{"text_format":"1","workbook":"xlsx","n_sheets":3,"sheets":["КАДРЫ","ТАБЛИЦА","ДОЛЖНОСТИ"],"not_rendered":{"charts":0,"images":0,"macros":1,"external_links":0,"defined_names":2,"comments":0,"pivot_tables":0},"unopened":[],"bounds":{"document_bytes":16777216,"sheet_cells":100000,"rows_first":2000,"rows_last":500,"rows_between":2000,"halvings":0,"cell_chars":16384,"cell_head_chars":4096},"cells_cut":0,"cells_raw":0,"read":"whole","date_system":"1900"}

{"sheet":"КАДРЫ","index":0,"n_rows":500,"n_cols":11,"rows_kept":500,"cut":false,"hidden":false,"merged":[]}
["NN","ФАМ_ИО","Д_РОЖД","КАТЕГОР","ТАБ_N","УЧАСТОК","ГРУППА_ЦЕХ","N_Л_К","ДОЛЖННОМ","К_ДЛЖН_ПРФ","ДОЛЖН_ПРОФ"]
[72,null,null,null,null,null,null,null,null,972,"БОЦМАН"]
[138,null,null,null,null,null,null,null,null,972,"БОЦМАН"]
[139,null,null,null,null,null,null,null,null,972,"БОЦМАН"]
[153,null,null,null,null,null,null,null,null,972,"БОЦМА"]
[154,null,null,null,null,null,null,null,null,972,"БОЦМАН"]
[191,null,null,null,null,null,null,null,null,972,"БОЦ"]
[238,null,null,null,null,null,null,null,null,972,"БОЦМАН"]
[193,null,null,null,null,null,null,null,"ВТОРОЙ МЕХАНИК",33190,"ВТОРОЙ МЕХАНИК"]
[423,null,null,null,null,null,null,null,"ВТОРОЙ МЕХАНИК",33190,"ВТОРОЙ МЕХАНИК"]
[5,null,null,null,null,null,null,null,"ВТОРОЙ ЭЛЕКТРОМЕХАНИК",33350,"ВТОРОЙ ЭЛЕКТРОМЕХАНИК"]
[77,null,null,null,null,null,null,null,"ДИСПЕТЧЕР ПО ТРАНСПОРТУ",33140,"ДИСПЕТЧЕР"]
[115,null,null,null,null,null,null,null,null,969,"ДНЕВАЛЬНЫЙ"]
[167,null,null,null,null,null,null,null,null,969,"ДНЕВАЛЬНЫ"]
[111,null,null,null,null,null,null,null,null,969,"ДНЕВАЛЬНЫЙ"]
[145,null,null,null,null,null,null,null,null,969,"ДНЕВАЛЬ"]
[431,null,null,null,null,null,null,null,null,969,"ДНЕВАЛЬНЫЙ"]
[22,null,null,null,null,null,null,null,null,969,"ДНЕВАЛЬНЫЙ"]
[129,null,null,null,null,null,null,null,null,969,"ДНЕВАЛЬНЫЙ"]
[214,null,null,null,null,null,null,null,null,969,"ДНЕВАЛЬНЫЙ"]
[226,null,null,null,null,null,null,null,"ЗАВЕДУЮЩИЙ ХОЗЯЙСТВОМ",29170,"ЗАВЕДУЮЩИЙ ХОЗЯЙСТВОМ"]
[229,null,null,null,null,null,null,null,"ЗАМЕСТИТЕЛЬ НАЧАЛЬНИКА ТРАНСПОРТНОГО ПРОИЗВОДСТВА - НАЧАЛЬНИ",27016,"ЗАМЕСТИТЕЛЬ НАЧАЛЬНИКА ПРОИЗВОДСТВА"]
[240,null,null,null,null,null,null,null,"ЗАМЕСТИТЕЛЬ НАЧАЛЬНИКА ЦЕХА ПО ПОДГОТОВКЕ ПРОИЗВОДСТВА",27026,"ЗАМЕСТИТЕЛЬ НАЧАЛЬНИКА ЦЕХА"]
[319,null,null,null,null,null,null,null,null,27026,"ЗАМЕСТИТЕЛЬ НАЧАЛЬНИКА ЦЕХА"]
[328,null,null,null,null,null,null,null,"ИНЖЕНЕР ПО ПОДГОТОВКЕ ПРОИЗВОДСТВА",31170,"ИНЖЕНЕР ПО ПОДГОТОВКЕ ПРОИЗВОДСТВА"]
[420,null,null,null,null,null,null,null,"КАПИТАН - РУКОВОДИТЕЛЬ УЧАСТКА",33225,"КАПИТАН"]
[432,null,null,null,null,null,null,null,null,922,"КЛАДОВЩИК"]
[47,null,null,null,null,null,null,null,null,922,"КЛАДОВЩИК"]
[78,null,null,null,null,null,null,null,null,922,"КЛАДОВЩИК"]
[60,null,null,null,null,null,null,null,"МАСТЕР ПОГРУЗО-РАЗГРУЗОЧНЫХ РАБОТ",28990,"МАСТЕР ВСПОМОГАТЕЛЬНЫХ РАБОТ"]
[150,null,null,null,null,null,null,null,"МАСТЕР ПО РЕМОНТУ И ОБСЛУЖИВАНИЮ ОБОРУДОВАНИЯ",28990,"МАСТЕР ВСПОМОГАТЕЛЬНЫХ РАБОТ"]
[183,null,null,null,null,null,null,null,"МАСТЕР ПО РЕМОНТУ И ОБСЛУЖИВАНИЮ ОБОРУДОВАНИЯ",28990,"МАСТЕР ВСПОМОГАТЕЛЬНЫХ РАБОТ"]
[23,null,null,null,null,null,null,null,"МАСТЕР ПОГРУЗО-РАЗГРУЗОЧНЫХ РАБОТ",28900,"МАСТЕР ПРОИЗВОДСТВЕННЫХ РАБОТ"]
[90,null,null,null,null,null,null,null,"МАСТЕР ТАКЕЛАЖНО-СУДОВЫХ РАБОТ",28180,"МАСТЕР ТАКЕЛАЖНЫХ РАБОТ"]
[1,null,null,null,null,null,null,null,null,953,"МАТРОС 1 КЛАССА"]
[61,null,null,null,null,null,null,null,null,953,"МАТРОС 1 КЛАССА"]
[75,null,null,null,null,null,null,null,null,953,"МАТРОС 1 КЛАССА"]
[164,null,null,null,null,null,null,null,null,953,"МАТРОС 1 КЛАССА"]
[316,null,null,null,null,null,null,null,null,953,"МАТРОС 1 КЛАССА"]
[414,null,null,null,null,null,null,null,null,953,"МАТРОС 1 КЛАССА"]
[467,null,null,null,null,null,null,null,null,953,"МАТРОС 1 КЛАССА"]
[152,null,null,null,null,null,null,null,null,953,"МАТРОС 1 КЛАССА"]
[33,null,null,null,null,null,null,null,null,953,"МАТРОС 1 КЛАССА"]
[55,null,null,null,null,null,null,null,null,953,"МАТРОС 1 КЛАССА"]
[58,null,null,null,null,null,null,null,null,953,"МАТРОС 1 КЛАССА"]
[68,null,null,null,null,null,null,null,null,953,"МАТРОС 1 КЛАССА"]
[80,null,null,null,null,null,null,null,null,953,"МАТРОС 1 КЛАССА"]
[131,null,null,null,null,null,null,null,null,953,"МАТРОС 1 КЛАССА"]
[165,null,null,null,null,null,null,null,null,953,"МАТРОС 1 КЛАССА"]
[413,null,null,null,null,null,null,null,null,953,"МАТРОС 1 КЛАССА"]
[461,null,null,null,null,null,null,null,null,953,"МАТРОС 1 КЛАССА"]
[103,null,null,null,null,null,null,null,null,953,"МАТРОС 1 КЛАССА"]
[186,null,null,null,null,null,null,null,null,953,"МАТРОС 1 КЛАССА"]
[99,null,null,null,null,null,null,null,null,953,"МАТРОС 1 КЛАССА"]
[133,null,null,null,null,null,null,null,null,953,"МАТРОС 1 КЛАССА"]
[136,null,null,null,null,null,null,null,null,953,"МАТРОС 1 КЛАССА"]
[450,null,null,null,null,null,null,null,null,953,"МАТРОС 1 КЛАССА"]
[459,null,null,null,null,null,null,null,null,953,"МАТРОС 1 КЛАССА"]
[31,null,null,null,null,null,null,null,null,953,"МАТРОС 1 КЛАССА"]
[242,null,null,null,null,null,null,null,null,953,"МАТРОС 1 КЛАССА"]
[454,null,null,null,null,null,null,null,null,953,"МАТРОС 1 КЛАССА"]
[196,null,null,null,null,null,null,null,null,953,"МАТРОС 1 КЛАССА"]
[199,null,null,null,null,null,null,null,null,953,"МАТРОС 1 КЛАССА"]
[201,null,null,null,null,null,null,null,null,953,"МАТРОС 1 КЛАССА"]
[203,null,null,null,null,null,null,null,null,953,"МАТРОС 1 КЛАССА"]
[205,null,null,null,null,null,null,null,null,953,"МАТРОС 1 КЛАССА"]
[207,null,null,null,null,null,null,null,null,953,"МАТРОС 1 КЛАССА"]
[208,null,null,null,null,null,null,null,null,953,"МАТРОС 1 КЛАССА"]
[209,null,null,null,null,null,null,null,null,953,"МАТРОС 1 КЛАССА"]
[212,null,null,null,null,null,null,null,null,953,"МАТРОС 1 КЛАССА"]
[222,null,null,null,null,null,null,null,null,953,"МАТРОС 1 КЛАССА"]
[228,null,null,null,null,null,null,null,null,953,"МАТРОС 1 КЛАССА"]
[231,null,null,null,null,null,null,null,null,953,"МАТРОС 1 КЛАССА"]
[236,null,null,null,null,null,null,null,null,953,"МАТРОС 1 КЛАССА"]
[247,null,null,null,null,null,null,null,null,953,"МАТРОС 1 КЛАССА"]
[248,null,null,null,null,null,null,null,null,953,"МАТРОС 1 КЛАССА"]
[250,null,null,null,null,null,null,null,null,953,"МАТРОС 1 КЛАССА"]
[251,null,null,null,null,null,null,null,null,953,"МАТРОС 1 КЛАССА"]
[253,null,null,null,null,null,null,null,null,982,"МАШИНИСТ КРАНА (КРАНОВЩИК)"]
[255,null,null,null,null,null,null,null,null,982,"МАШИНИСТ КРАНА (КРАНОВЩИК)"]
[256,null,null,null,null,null,null,null,null,982,"МАШИНИСТ КРАНА (КРАНОВЩИК)"]
[257,null,null,null,null,null,null,null,null,982,"МАШИНИСТ КРАНА (КРАНОВЩИК)"]
[258,null,null,null,null,null,null,null,null,982,"МАШИНИСТ КРАНА (КРАНОВЩИК)"]
[259,null,null,null,null,null,null,null,null,982,"МАШИНИСТ КРАНА (КРАНОВЩИК)"]
[260,null,null,null,null,null,null,null,null,982,"МАШИНИСТ КРАНА (КРАНОВЩИК)"]
[269,null,null,null,null,null,null,null,null,982,"МАШИНИСТ КРАНА (КРАНОВЩИК)"]
[276,null,null,null,null,null,null,null,null,982,"МАШИНИСТ КРАНА (КРАНОВЩИК)"]
[281,null,null,null,null,null,null,null,null,982,"МАШИНИСТ КРАНА (КРАНОВЩИК)"]
[285,null,null,null,null,null,null,null,null,982,"МАШИНИСТ КРАНА (КРАНОВЩИК)"]
[292,null,null,null,null,null,null,null,null,982,"МАШИНИСТ КРАНА (КРАНОВЩИК)"]
[303,null,null,null,null,null,null,null,null,982,"МАШИНИСТ КРАНА (КРАНОВЩИК)"]
[307,null,null,null,null,null,null,null,null,982,"МАШИНИСТ КРАНА (КРАНОВЩИК)"]
[317,null,null,null,null,null,null,null,null,982,"МАШИНИСТ КРАНА (КРАНОВЩИК)"]
[339,null,null,null,null,null,null,null,null,982,"МАШИНИСТ КРАНА (КРАНОВЩИК)"]
[342,null,null,null,null,null,null,null,null,982,"МАШИНИСТ КРАНА (КРАНОВЩИК)"]
[343,null,null,null,null,null,null,null,null,982,"МАШИНИСТ КРАНА (КРАНОВЩИК)"]
[356,null,null,null,null,null,null,null,null,982,"МАШИНИСТ КРАНА (КРАНОВЩИК)"]
[382,null,null,null,null,null,null,null,null,982,"МАШИНИСТ КРАНА (КРАНОВЩИК)"]
[401,null,null,null,null,null,null,null,null,982,"МАШИНИСТ КРАНА (КРАНОВЩИК)"]
[457,null,null,null,null,null,null,null,null,982,"МАШИНИСТ КРАНА (КРАНОВЩИК)"]
[474,null,null,null,null,null,null,null,null,982,"МАШИНИСТ КРАНА (КРАНОВЩИК)"]
[490,null,null,null,null,null,null,null,null,982,"МАШИНИСТ КРАНА (КРАНОВЩИК)"]
[496,null,null,null,null,null,null,null,null,982,"МАШИНИСТ КРАНА (КРАНОВЩИК)"]
[497,null,null,null,null,null,null,null,null,982,"МАШИНИСТ КРАНА (КРАНОВЩИК)"]
[498,null,null,null,null,null,null,null,null,982,"МАШИНИСТ КРАНА (КРАНОВЩИК)"]
[9,null,null,null,null,null,null,null,null,982,"МАШИНИСТ КРАНА (КРАНОВЩИК)"]
[32,null,null,null,null,null,null,null,"МЕХАНИК-ЭНЕРГЕТИК",33080,"МЕХАНИК ЦЕХА"]
[34,null,null,null,null,null,null,null,null,695,"МОНТАЖНИК САНИТАРНО-ТЕХНИЧЕСКИХ СИСТЕМ И ОБОРУДОВАНИЯ"]
[38,null,null,null,null,null,null,null,null,695,"МОНТАЖНИК САНИТАРНО-ТЕХНИЧЕСКИХ СИСТЕМ И ОБОРУДОВАНИЯ"]
[48,null,null,null,null,null,null,null,null,695,"МОНТАЖНИК САНИТАРНО-ТЕХНИЧЕСКИХ СИСТЕМ И ОБОРУДОВАНИЯ"]
[52,null,null,null,null,null,null,null,null,695,"МОНТАЖНИК САНИТАРНО-ТЕХНИЧЕСКИХ СИСТЕМ И ОБОРУДОВАНИЯ"]
[54,null,null,null,null,null,null,null,null,695,"МОНТАЖНИК САНИТАРНО-ТЕХНИЧЕСКИХ СИСТЕМ И ОБОРУДОВАНИЯ"]
[64,null,null,null,null,null,null,null,null,695,"МОНТАЖНИК САНИТАРНО-ТЕХНИЧЕСКИХ СИСТЕМ И ОБОРУДОВАНИЯ"]
[65,null,null,null,null,null,null,null,null,961,"МОТОРИСТ (МАШИНИСТ)"]
[69,null,null,null,null,null,null,null,null,961,"МОТОРИСТ (МАШИНИСТ)"]
[83,null,null,null,null,null,null,null,null,961,"МОТОРИСТ (МАШИНИСТ)"]
[88,null,null,null,null,null,null,null,null,961,"МОТОРИСТ (МАШИНИСТ)"]
[91,null,null,null,null,null,null,null,null,961,"МОТОРИСТ (МАШИНИСТ)"]
[108,null,null,null,null,null,null,null,null,961,"МОТОРИСТ (МАШИНИСТ)"]
[116,null,null,null,null,null,null,null,null,961,"МОТОРИСТ (МАШИНИСТ)"]
[159,null,null,null,null,null,null,null,null,961,"МОТОРИСТ (МАШИНИСТ)"]
[178,null,null,null,null,null,null,null,null,961,"МОТОРИСТ (МАШИНИСТ)"]
[181,null,null,null,null,null,null,null,null,961,"МОТОРИСТ (МАШИНИСТ)"]
[187,null,null,null,null,null,null,null,null,961,"МОТОРИСТ (МАШИНИСТ)"]
[190,null,null,null,null,null,null,null,null,961,"МОТОРИСТ (МАШИНИСТ)"]
[321,null,null,null,null,null,null,null,null,961,"МОТОРИСТ (МАШИНИСТ)"]
[338,null,null,null,null,null,null,null,null,961,"МОТОРИСТ (МАШИНИСТ)"]
[360,null,null,null,null,null,null,null,null,961,"МОТОРИСТ (МАШИНИСТ)"]
[376,null,null,null,null,null,null,null,null,961,"МОТОРИСТ (МАШИНИСТ)"]
[377,null,null,null,null,null,null,null,null,961,"МОТОРИСТ (МАШИНИСТ)"]
[390,null,null,null,null,null,null,null,null,961,"МОТОРИСТ (МАШИНИСТ)"]
[393,null,null,null,null,null,null,null,null,961,"МОТОРИСТ (МАШИНИСТ)"]
[421,null,null,null,null,null,null,null,null,961,"МОТОРИСТ (МАШИНИСТ)"]
[407,null,null,null,null,null,null,null,null,961,"МОТОРИСТ (МАШИНИСТ)"]
[433,null,null,null,null,null,null,null,null,961,"МОТОРИСТ (МАШИНИСТ)"]
[436,null,null,null,null,null,null,null,null,961,"МОТОРИСТ (МАШИНИСТ)"]
[437,null,null,null,null,null,null,null,null,961,"МОТОРИСТ (МАШИНИСТ)"]
[441,null,null,null,null,null,null,null,null,961,"МОТОРИСТ (МАШИНИСТ)"]
[444,null,null,null,null,null,null,null,null,961,"МОТОРИСТ (МАШИНИСТ)"]
[447,null,null,null,null,null,null,null,null,961,"МОТОРИСТ (МАШИНИСТ)"]
[464,null,null,null,null,null,null,null,null,961,"МОТОРИСТ (МАШИНИСТ)"]
[494,null,null,null,null,null,null,null,null,961,"МОТОРИСТ (МАШИНИСТ)"]
[147,null,null,null,null,null,null,null,null,961,"МОТОРИСТ (МАШИНИСТ)"]
[451,null,null,null,null,null,null,null,null,961,"МОТОРИСТ (МАШИНИСТ)"]
[66,null,null,null,null,null,null,null,null,961,"МОТОРИСТ (МАШИНИСТ)"]
[3,null,null,null,null,null,null,null,null,961,"МОТОРИСТ (МАШИНИСТ)"]
[6,null,null,null,null,null,null,null,null,961,"МОТОРИСТ (МАШИНИСТ)"]
[63,null,null,null,null,null,null,null,null,961,"МОТОРИСТ (МАШИНИСТ)"]
[79,null,null,null,null,null,null,null,null,961,"МОТОРИСТ (МАШИНИСТ)"]
[168,null,null,null,null,null,null,null,null,961,"МОТОРИСТ (МАШИНИСТ)"]
[489,null,null,null,null,null,null,null,null,961,"МОТОРИСТ (МАШИНИСТ)"]
[200,null,null,null,null,null,null,null,null,961,"МОТОРИСТ (МАШИНИСТ)"]
[204,null,null,null,null,null,null,null,null,961,"МОТОРИСТ (МАШИНИСТ)"]
[211,null,null,null,null,null,null,null,null,961,"МОТОРИСТ (МАШИНИСТ)"]
[213,null,null,null,null,null,null,null,null,961,"МОТОРИСТ (МАШИНИСТ)"]
[215,null,null,null,null,null,null,null,null,961,"МОТОРИСТ (МАШИНИСТ)"]
[217,null,null,null,null,null,null,null,null,961,"МОТОРИСТ (МАШИНИСТ)"]
[218,null,null,null,null,null,null,null,null,961,"МОТОРИСТ (МАШИНИСТ)"]
[221,null,null,null,null,null,null,null,null,961,"МОТОРИСТ (МАШИНИСТ)"]
[224,null,null,null,null,null,null,null,null,961,"МОТОРИСТ (МАШИНИСТ)"]
[225,null,null,null,null,null,null,null,null,961,"МОТОРИСТ (МАШИНИСТ)"]
[230,null,null,null,null,null,null,null,null,961,"МОТОРИСТ (МАШИНИСТ)"]
[243,null,null,null,null,null,null,null,null,961,"МОТОРИСТ (МАШИНИСТ)"]
[244,null,null,null,null,null,null,null,null,961,"МОТОРИСТ (МАШИНИСТ)"]
[262,null,null,null,null,null,null,null,null,961,"МОТОРИСТ (МАШИНИСТ)"]
[266,null,null,null,null,null,null,null,null,961,"МОТОРИСТ (МАШИНИСТ)"]
[267,null,null,null,null,null,null,null,null,961,"МОТОРИСТ (МАШИНИСТ)"]
[268,null,null,null,null,null,null,null,null,961,"МОТОРИСТ (МАШИНИСТ)"]
[272,null,null,null,null,null,null,null,null,961,"МОТОРИСТ (МАШИНИСТ)"]
[273,null,null,null,null,null,null,null,null,961,"МОТОРИСТ (МАШИНИСТ)"]
[275,null,null,null,null,null,null,null,null,961,"МОТОРИСТ (МАШИНИСТ)"]
[277,null,null,null,null,null,null,null,null,961,"МОТОРИСТ (МАШИНИСТ)"]
[279,null,null,null,null,null,null,null,null,961,"МОТОРИСТ (МАШИНИСТ)"]
[280,null,null,null,null,null,null,null,null,961,"МОТОРИСТ (МАШИНИСТ)"]
[282,null,null,null,null,null,null,null,null,961,"МОТОРИСТ (МАШИНИСТ)"]
[284,null,null,null,null,null,null,null,null,961,"МОТОРИСТ (МАШИНИСТ)"]
[286,null,null,null,null,null,null,null,null,961,"МОТОРИСТ (МАШИНИСТ)"]
[287,null,null,null,null,null,null,null,null,961,"МОТОРИСТ (МАШИНИСТ)"]
[288,null,null,null,null,null,null,null,null,961,"МОТОРИСТ (МАШИНИСТ)"]
[289,null,null,null,null,null,null,null,null,961,"МОТОРИСТ (МАШИНИСТ)"]
[290,null,null,null,null,null,null,null,null,961,"МОТОРИСТ (МАШИНИСТ)"]
[291,null,null,null,null,null,null,null,null,961,"МОТОРИСТ (МАШИНИСТ)"]
[295,null,null,null,null,null,null,null,null,961,"МОТОРИСТ (МАШИНИСТ)"]
[296,null,null,null,null,null,null,null,null,961,"МОТОРИСТ (МАШИНИСТ)"]
[297,null,null,null,null,null,null,null,null,961,"МОТОРИСТ (МАШИНИСТ)"]
[299,null,null,null,null,null,null,null,null,961,"МОТОРИСТ (МАШИНИСТ)"]
[300,null,null,null,null,null,null,null,null,961,"МОТОРИСТ (МАШИНИСТ)"]
[301,null,null,null,null,null,null,null,null,961,"МОТОРИСТ (МАШИНИСТ)"]
[305,null,null,null,null,null,null,null,null,961,"МОТОРИСТ (МАШИНИСТ)"]
[313,null,null,null,null,null,null,null,null,961,"МОТОРИСТ (МАШИНИСТ)"]
[318,null,null,null,null,null,null,null,null,961,"МОТОРИСТ (МАШИНИСТ)"]
[322,null,null,null,null,null,null,null,null,961,"МОТОРИСТ (МАШИНИСТ)"]
[323,null,null,null,null,null,null,null,null,961,"МОТОРИСТ (МАШИНИСТ)"]
[324,null,null,null,null,null,null,null,null,961,"МОТОРИСТ (МАШИНИСТ)"]
[325,null,null,null,null,null,null,null,null,961,"МОТОРИСТ (МАШИНИСТ)"]
[326,null,null,null,null,null,null,null,null,961,"МОТОРИСТ (МАШИНИСТ)"]
[327,null,null,null,null,null,null,null,null,961,"МОТОРИСТ (МАШИНИСТ)"]
[329,null,null,null,null,null,null,null,null,961,"МОТОРИСТ (МАШИНИСТ)"]
[330,null,null,null,null,null,null,null,null,961,"МОТОРИСТ (МАШИНИСТ)"]
[334,null,null,null,null,null,null,null,null,961,"МОТОРИСТ (МАШИНИСТ)"]
[337,null,null,null,null,null,null,null,null,961,"МОТОРИСТ (МАШИНИСТ)"]
[340,null,null,null,null,null,null,null,null,958,"МОТОРИСТ-МАТРОС"]
[344,null,null,null,null,null,null,null,null,965,"МОТОРИСТ-РУЛЕВОЙ"]
[345,null,null,null,null,null,null,null,null,965,"МОТОРИСТ-РУЛЕВОЙ"]
[349,null,null,null,null,null,null,null,"НАЧАЛЬНИК СЛУЖБЫ",22070,"НАЧАЛЬНИК СЛУЖБЫ"]
[350,null,null,null,null,null,null,null,"НАЧАЛЬНИК СЛУЖБЫ СУДОВОГО ХОЗЯЙСТВА",22070,"НАЧАЛЬНИК СЛУЖБЫ"]
[351,null,null,null,null,null,null,null,null,98,"ОПЕРАТОР ЭЛЕКТРОННО-ВЫЧИСЛИТЕЛЬНЫХ МАШИН"]
[352,null,null,null,null,null,null,null,null,975,"ПОВАР СУДОВОЙ 1 КАТЕГОРИИ"]
[353,null,null,null,null,null,null,null,null,979,"ПОВАР СУДОВОЙ 2 КАТЕГОРИИ"]
[354,null,null,null,null,null,null,null,null,979,"ПОВАР СУДОВОЙ 2 КАТЕГОРИИ"]
[355,null,null,null,null,null,null,null,null,979,"ПОВАР СУДОВОЙ 2 КАТЕГОРИИ"]
[357,null,null,null,null,null,null,null,null,979,"ПОВАР СУДОВОЙ 2 КАТЕГОРИИ"]
[358,null,null,null,null,null,null,null,null,979,"ПОВАР СУДОВОЙ 2 КАТЕГОРИИ"]
[359,null,null,null,null,null,null,null,null,979,"ПОВАР СУДОВОЙ 2 КАТЕГОРИИ"]
[361,null,null,null,null,null,null,null,null,979,"ПОВАР СУДОВОЙ 2 КАТЕГОРИИ"]
[366,null,null,null,null,null,null,null,null,979,"ПОВАР СУДОВОЙ 2 КАТЕГОРИИ"]
[369,null,null,null,null,null,null,null,null,979,"ПОВАР СУДОВОЙ 2 КАТЕГОРИИ"]
[370,null,null,null,null,null,null,null,null,979,"ПОВАР СУДОВОЙ 2 КАТЕГОРИИ"]
[371,null,null,null,null,null,null,null,null,968,"ПРОВОДНИК НА ВОДНОМ ТРАНСПОРТЕ"]
[372,null,null,null,null,null,null,null,"КАПИТАН",29990,"РУКОВОДИТЕЛЬ"]
[373,null,null,null,null,null,null,null,"КАПИТАН - СМЕННЫЙ МЕХАНИК",29990,"РУКОВОДИТЕЛЬ"]
[374,null,null,null,null,null,null,null,"КАПИТАН - СМЕННЫЙ МЕХАНИК",29990,"РУКОВОДИТЕЛЬ"]
[375,null,null,null,null,null,null,null,"КАПИТАН - СМЕННЫЙ МЕХАНИК",29990,"РУКОВОДИТЕЛЬ"]
[379,null,null,null,null,null,null,null,"КАПИТАН",29990,"РУКОВОДИТЕЛЬ"]
[380,null,null,null,null,null,null,null,"КАПИТАН - СМЕННЫЙ МЕХАНИК",29990,"РУКОВОДИТЕЛЬ"]
[381,null,null,null,null,null,null,null,"КАПИТАН",29990,"РУКОВОДИТЕЛЬ"]
[383,null,null,null,null,null,null,null,"КАПИТАН - СМЕННЫЙ МЕХАНИК",29990,"РУКОВОДИТЕЛЬ"]
[384,null,null,null,null,null,null,null,"КАПИТАН-КРАНМЕЙСТЕР",29990,"РУКОВОДИТЕЛЬ"]
[388,null,null,null,null,null,null,null,"НАЧАЛЬНИК ДОКА (ДОКМЕЙСТЕР)",29990,"РУКОВОДИТЕЛЬ"]
[391,null,null,null,null,null,null,null,"КАПИТАН - СМЕННЫЙ МЕХАНИК",29990,"РУКОВОДИТЕЛЬ"]
[403,null,null,null,null,null,null,null,"КАПИТАН",29990,"РУКОВОДИТЕЛЬ"]
[404,null,null,null,null,null,null,null,"КАПИТАН - СМЕННЫЙ МЕХАНИК",29990,"РУКОВОДИТЕЛЬ"]
[406,null,null,null,null,null,null,null,"КАПИТАН-КРАНМЕЙСТЕР",29990,"РУКОВОДИТЕЛЬ"]
[417,null,null,null,null,null,null,null,"КАПИТАН",29990,"РУКОВОДИТЕЛЬ"]
[418,null,null,null,null,null,null,null,"КАПИТАН - СМЕННЫЙ МЕХАНИК",29990,"РУКОВОДИТЕЛЬ"]
[422,null,null,null,null,null,null,null,"КАПИТАН",29990,"РУКОВОДИТЕЛЬ"]
[452,null,null,null,null,null,null,null,"КАПИТАН - СМЕННЫЙ МЕХАНИК",29990,"РУКОВОДИТЕЛЬ"]
[460,null,null,null,null,null,null,null,"КАПИТАН",29990,"РУКОВОДИТЕЛЬ"]
[499,null,null,null,null,null,null,null,null,861,"СЛЕСАРЬ-РЕМОНТНИК"]
[311,null,null,null,null,null,null,null,null,861,"СЛЕСАРЬ-РЕМОНТНИК"]
[312,null,null,null,null,null,null,null,null,861,"СЛЕСАРЬ-РЕМОНТНИК"]
[399,null,null,null,null,null,null,null,null,861,"СЛЕСАРЬ-РЕМОНТНИК"]
[104,null,null,null,null,null,null,null,null,861,"СЛЕСАРЬ-РЕМОНТНИК"]
[185,null,null,null,null,null,null,null,"СМЕННЫЙ МЕХАНИК",33158,"СМЕННЫЙ МЕХАНИК"]
[493,null,null,null,null,null,null,null,"СМЕННЫЙ МЕХАНИК",33158,"СМЕННЫЙ МЕХАНИК"]
[235,null,null,null,null,null,null,null,"СМЕННЫЙ ПОМОЩНИК КАПИТАНА",33228,"СМЕННЫЙ ПОМОЩНИК КАПИТАНА"]
[202,null,null,null,null,null,null,null,"СМЕННЫЙ ПОМОЩНИК КАПИТАНА",33228,"СМЕННЫЙ ПОМОЩНИК КАПИТАНА"]
[220,null,null,null,null,null,null,null,"СМЕННЫЙ ПОМОЩНИК КАПИТАНА",33228,"СМЕННЫЙ ПОМОЩНИК КАПИТАНА"]
[232,null,null,null,null,null,null,null,"СМЕННЫЙ ПОМОЩНИК КАПИТАНА",33228,"СМЕННЫЙ ПОМОЩНИК КАПИТАНА"]
[249,null,null,null,null,null,null,null,"СМЕННЫЙ ЭЛЕКТРОМЕХАНИК",33108,"СМЕННЫЙ СПЕЦИАЛИСТ ПЛАВСОСТАВА"]
[263,null,null,null,null,null,null,null,"ВТОРОЙ МЕХАНИК",33108,"СМЕННЫЙ СПЕЦИАЛИСТ ПЛАВСОСТАВА"]
[265,null,null,null,null,null,null,null,"СМЕННЫЙ МЕХАНИК",33108,"СМЕННЫЙ СПЕЦИАЛИСТ ПЛАВСОСТАВА"]
[293,null,null,null,null,null,null,null,"СМЕННЫЙ КАПИТАН-ДИСПЕТЧЕР",33108,"СМЕННЫЙ СПЕЦИАЛИСТ ПЛАВСОСТАВА"]
[302,null,null,null,null,null,null,null,"СМЕННЫЙ КАПИТАН-ДИСПЕТЧЕР",33108,"СМЕННЫЙ СПЕЦИАЛИСТ ПЛАВСОСТАВА"]
[365,null,null,null,null,null,null,null,"СМЕННЫЙ МЕХАНИК",33108,"СМЕННЫЙ СПЕЦИАЛИСТ ПЛАВСОСТАВА"]
[392,null,null,null,null,null,null,null,"СМЕННЫЙ КАПИТАН-ДИСПЕТЧЕР",33108,"СМЕННЫЙ СПЕЦИАЛИСТ ПЛАВСОСТАВА"]
[396,null,null,null,null,null,null,null,"СМЕННЫЙ ЭЛЕКТРОМЕХАНИК",33108,"СМЕННЫЙ СПЕЦИАЛИСТ ПЛАВСОСТАВА"]
[428,null,null,null,null,null,null,null,"СМЕННЫЙ ПОМОЩНИК КАПИТАНА - СМЕННЫЙ КРАНМЕЙСТЕР",33108,"СМЕННЫЙ СПЕЦИАЛИСТ ПЛАВСОСТАВА"]
[86,null,null,null,null,null,null,null,"СМЕННЫЙ КАПИТАН-ДИСПЕТЧЕР",33108,"СМЕННЫЙ СПЕЦИАЛИСТ ПЛАВСОСТАВА"]
[161,null,null,null,null,null,null,null,"СМЕННЫЙ МЕХАНИК",33108,"СМЕННЫЙ СПЕЦИАЛИСТ ПЛАВСОСТАВА"]
[163,null,null,null,null,null,null,null,"СМЕННЫЙ МЕХАНИК",33108,"СМЕННЫЙ СПЕЦИАЛИСТ ПЛАВСОСТАВА"]
[189,null,null,null,null,null,null,null,"СМЕННЫЙ МЕХАНИК",33108,"СМЕННЫЙ СПЕЦИАЛИСТ ПЛАВСОСТАВА"]
[397,null,null,null,null,null,null,null,"СМЕННЫЙ ЭЛЕКТРОМЕХАНИК",33108,"СМЕННЫЙ СПЕЦИАЛИСТ ПЛАВСОСТАВА"]
[434,null,null,null,null,null,null,null,"СМЕННЫЙ МЕХАНИК",33108,"СМЕННЫЙ СПЕЦИАЛИСТ ПЛАВСОСТАВА"]
[435,null,null,null,null,null,null,null,"СМЕННЫЙ МЕХАНИК",33108,"СМЕННЫЙ СПЕЦИАЛИСТ ПЛАВСОСТАВА"]
[439,null,null,null,null,null,null,null,"СМЕННЫЙ МЕХАНИК",33108,"СМЕННЫЙ СПЕЦИАЛИСТ ПЛАВСОСТАВА"]
[440,null,null,null,null,null,null,null,"СМЕННЫЙ МЕХАНИК",33108,"СМЕННЫЙ СПЕЦИАЛИСТ ПЛАВСОСТАВА"]
[442,null,null,null,null,null,null,null,"СМЕННЫЙ МЕХАНИК",33108,"СМЕННЫЙ СПЕЦИАЛИСТ ПЛАВСОСТАВА"]
[443,null,null,null,null,null,null,null,"СМЕННЫЙ МЕХАНИК",33108,"СМЕННЫЙ СПЕЦИАЛИСТ ПЛАВСОСТАВА"]
[445,null,null,null,null,null,null,null,"СМЕННЫЙ ПОМОЩНИК КАПИТАНА",33108,"СМЕННЫЙ СПЕЦИАЛИСТ ПЛАВСОСТАВА"]
[446,null,null,null,null,null,null,null,"СМЕННЫЙ МЕХАНИК",33108,"СМЕННЫЙ СПЕЦИАЛИСТ ПЛАВСОСТАВА"]
[448,null,null,null,null,null,null,null,"СМЕННЫЙ ПОМОЩНИК КАПИТАНА - КРАНМЕЙСТЕР",33108,"СМЕННЫЙ СПЕЦИАЛИСТ ПЛАВСОСТАВА"]
[449,null,null,null,null,null,null,null,"МЕХАНИК - СМЕННЫЙ КАПИТАН",33108,"СМЕННЫЙ СПЕЦИАЛИСТ ПЛАВСОСТАВА"]
[16,null,null,null,null,null,null,null,"СМЕННЫЙ МЕХАНИК",33108,"СМЕННЫЙ СПЕЦИАЛИСТ ПЛАВСОСТАВА"]
[24,null,null,null,null,null,null,null,"СМЕННЫЙ ЭЛЕКТРОМЕХАНИК",33108,"СМЕННЫЙ СПЕЦИАЛИСТ ПЛАВСОСТАВА"]
[29,null,null,null,null,null,null,null,"МЕХАНИК - СМЕННЫЙ КАПИТАН",33108,"СМЕННЫЙ СПЕЦИАЛИСТ ПЛАВСОСТАВА"]
[41,null,null,null,null,null,null,null,"СМЕННЫЙ КАПИТАН - СМЕННЫЙ МЕХАНИК",33108,"СМЕННЫЙ СПЕЦИАЛИСТ ПЛАВСОСТАВА"]
[468,null,null,null,null,null,null,null,"СМЕННЫЙ КАПИТАН - СМЕННЫЙ МЕХАНИК",33108,"СМЕННЫЙ СПЕЦИАЛИСТ ПЛАВСОСТАВА"]
[195,null,null,null,null,null,null,null,"МЕХАНИК - СМЕННЫЙ КАПИТАН",33108,"СМЕННЫЙ СПЕЦИАЛИСТ ПЛАВСОСТАВА"]
[485,null,null,null,null,null,null,null,"МЕХАНИК - СМЕННЫЙ КАПИТАН",33108,"СМЕННЫЙ СПЕЦИАЛИСТ ПЛАВСОСТАВА"]
[15,null,null,null,null,null,null,null,"СМЕННЫЙ КАПИТАН - СМЕННЫЙ МЕХАНИК",33108,"СМЕННЫЙ СПЕЦИАЛИСТ ПЛАВСОСТАВА"]
[26,null,null,null,null,null,null,null,"СМЕННЫЙ КАПИТАН - СМЕННЫЙ МЕХАНИК",33108,"СМЕННЫЙ СПЕЦИАЛИСТ ПЛАВСОСТАВА"]
[46,null,null,null,null,null,null,null,"МЕХАНИК - СМЕННЫЙ КАПИТАН",33108,"СМЕННЫЙ СПЕЦИАЛИСТ ПЛАВСОСТАВА"]
[50,null,null,null,null,null,null,null,"СМЕННЫЙ КАПИТАН - СМЕННЫЙ МЕХАНИК",33108,"СМЕННЫЙ СПЕЦИАЛИСТ ПЛАВСОСТАВА"]
[94,null,null,null,null,null,null,null,"СМЕННЫЙ КАПИТАН - СМЕННЫЙ МЕХАНИК",33108,"СМЕННЫЙ СПЕЦИАЛИСТ ПЛАВСОСТАВА"]
[118,null,null,null,null,null,null,null,"МЕХАНИК - СМЕННЫЙ КАПИТАН",33108,"СМЕННЫЙ СПЕЦИАЛИСТ ПЛАВСОСТАВА"]
[126,null,null,null,null,null,null,null,"СМЕННЫЙ КАПИТАН - СМЕННЫЙ МЕХАНИК",33108,"СМЕННЫЙ СПЕЦИАЛИСТ ПЛАВСОСТАВА"]
[134,null,null,null,null,null,null,null,"СМЕННЫЙ КАПИТАН - СМЕННЫЙ МЕХАНИК",33108,"СМЕННЫЙ СПЕЦИАЛИСТ ПЛАВСОСТАВА"]
[140,null,null,null,null,null,null,null,"МЕХАНИК - СМЕННЫЙ КАПИТАН",33108,"СМЕННЫЙ СПЕЦИАЛИСТ ПЛАВСОСТАВА"]
[157,null,null,null,null,null,null,null,"СМЕННЫЙ КАПИТАН - СМЕННЫЙ МЕХАНИК",33108,"СМЕННЫЙ СПЕЦИАЛИСТ ПЛАВСОСТАВА"]
[171,null,null,null,null,null,null,null,"СМЕННЫЙ КАПИТАН - СМЕННЫЙ МЕХАНИК",33108,"СМЕННЫЙ СПЕЦИАЛИСТ ПЛАВСОСТАВА"]
[194,null,null,null,null,null,null,null,"СМЕННЫЙ МЕХАНИК",33108,"СМЕННЫЙ СПЕЦИАЛИСТ ПЛАВСОСТАВА"]
[412,null,null,null,null,null,null,null,"МЕХАНИК - СМЕННЫЙ КАПИТАН",33108,"СМЕННЫЙ СПЕЦИАЛИСТ ПЛАВСОСТАВА"]
[463,null,null,null,null,null,null,null,"СМЕННЫЙ КАПИТАН-ДИСПЕТЧЕР",33108,"СМЕННЫЙ СПЕЦИАЛИСТ ПЛАВСОСТАВА"]
[472,null,null,null,null,null,null,null,"СМЕННЫЙ МЕХАНИК",33108,"СМЕННЫЙ СПЕЦИАЛИСТ ПЛАВСОСТАВА"]
[198,null,null,null,null,null,null,null,"СМЕННЫЙ ЭЛЕКТРОМЕХАНИК",33108,"СМЕННЫЙ СПЕЦИАЛИСТ ПЛАВСОСТАВА"]
[234,null,null,null,null,null,null,null,"МЕХАНИК - СМЕННЫЙ КАПИТАН",33108,"СМЕННЫЙ СПЕЦИАЛИСТ ПЛАВСОСТАВА"]
[239,null,null,null,null,null,null,null,"ЭЛЕКТРОМЕХАНИК",33100,"СПЕЦИАЛИСТ ПЛАВСОСТАВА"]
[470,null,null,null,null,null,null,null,"ЧЕТВЕРТЫЙ МЕХАНИК",33100,"СПЕЦИАЛИСТ ПЛАВСОСТАВА"]
[180,null,null,null,null,null,null,null,"ТРЕТИЙ МЕХАНИК",33100,"СПЕЦИАЛИСТ ПЛАВСОСТАВА"]
[387,null,null,null,null,null,null,null,"ЭЛЕКТРОМЕХАНИК",33100,"СПЕЦИАЛИСТ ПЛАВСОСТАВА"]
[36,null,null,null,null,null,null,null,"ВТОРОЙ ЭЛЕКТРОМЕХАНИК",33100,"СПЕЦИАЛИСТ ПЛАВСОСТАВА"]
[4,null,null,null,null,null,null,null,"ДОКМЕЙСТЕР",33100,"СПЕЦИАЛИСТ ПЛАВСОСТАВА"]
[30,null,null,null,null,null,null,null,"ВТОРОЙ МЕХАНИК",33100,"СПЕЦИАЛИСТ ПЛАВСОСТАВА"]
[102,null,null,null,null,null,null,null,"ДОКМЕЙСТЕР",33100,"СПЕЦИАЛИСТ ПЛАВСОСТАВА"]
[430,null,null,null,null,null,null,null,"ТРЕТИЙ МЕХАНИК",33100,"СПЕЦИАЛИСТ ПЛАВСОСТАВА"]
[492,null,null,null,null,null,null,null,"ТРЕТИЙ ПОМОЩНИК КАПИТАНА",33100,"СПЕЦИАЛИСТ ПЛАВСОСТАВА"]
[184,null,null,null,null,null,null,null,"ВТОРОЙ ПОМОЩНИК КАПИТАНА",33100,"СПЕЦИАЛИСТ ПЛАВСОСТАВА"]
[241,null,null,null,null,null,null,null,"ВТОРОЙ МЕХАНИК",33100,"СПЕЦИАЛИСТ ПЛАВСОСТАВА"]
[53,null,null,null,null,null,null,null,"ЭЛЕКТРОМЕХАНИК",33100,"СПЕЦИАЛИСТ ПЛАВСОСТАВА"]
[237,null,null,null,null,null,null,null,"ЭЛЕКТРОМЕХАНИК",33100,"СПЕЦИАЛИСТ ПЛАВСОСТАВА"]
[74,null,null,null,null,null,null,null,"ВТОРОЙ ПОМОЩНИК КАПИТАНА",33100,"СПЕЦИАЛИСТ ПЛАВСОСТАВА"]
[155,null,null,null,null,null,null,null,"МЕХАНИК (ГРУППОВОЙ)",33100,"СПЕЦИАЛИСТ ПЛАВСОСТАВА"]
[206,null,null,null,null,null,null,null,"ЧЕТВЕРТЫЙ МЕХАНИК",33100,"СПЕЦИАЛИСТ ПЛАВСОСТАВА"]
[246,null,null,null,null,null,null,null,"ТРЕТИЙ ЭЛЕКТРОМЕХАНИК",33100,"СПЕЦИАЛИСТ ПЛАВСОСТАВА"]
[261,null,null,null,null,null,null,null,"ВТОРОЙ МЕХАНИК",33100,"СПЕЦИАЛИСТ ПЛАВСОСТАВА"]
[308,null,null,null,null,null,null,null,"ЭЛЕКТРОМЕХАНИК",33100,"СПЕЦИАЛИСТ ПЛАВСОСТАВА"]
[314,null,null,null,null,null,null,null,"МЕХАНИК (ГРУППОВОЙ)",33100,"СПЕЦИАЛИСТ ПЛАВСОСТАВА"]
[453,null,null,null,null,null,null,null,"ЭЛЕКТРОМЕХАНИК",33100,"СПЕЦИАЛИСТ ПЛАВСОСТАВА"]
[486,null,null,null,null,null,null,null,"СПЕЦИАЛИСТ ПО ОХРАНЕ ТРУДА",33450,"СПЕЦИАЛИСТ ПО ОХРАНЕ ТРУДА"]
[495,null,null,null,null,null,null,null,null,927,"СТАРШИЙ КЛАДОВЩИК"]
[8,null,null,null,null,null,null,null,"СТАРШИЙ МАСТЕР - РУКОВОДИТЕЛЬ УЧАСТКА ТАКЕЛАЖНЫХ РАБОТ",28995,"СТАРШИЙ МАСТЕР ВСПОМОГАТЕЛЬНЫХ РАБОТ"]
[39,null,null,null,null,null,null,null,"СТАРШИЙ МАСТЕР ПОГРУЗОЧНО-РАЗГРУЗОЧНЫХ РАБОТ",28995,"СТАРШИЙ МАСТЕР ВСПОМОГАТЕЛЬНЫХ РАБОТ"]
[110,null,null,null,null,null,null,null,null,954,"СТАРШИЙ МАТРОС"]
[112,null,null,null,null,null,null,null,null,954,"СТАРШИЙ МАТРОС"]
[114,null,null,null,null,null,null,null,null,954,"СТАРШИЙ МАТРОС"]
[120,null,null,null,null,null,null,null,null,954,"СТАРШИЙ МАТРОС"]
[137,null,null,null,null,null,null,null,null,954,"СТАРШИЙ МАТРОС"]
[151,null,null,null,null,null,null,null,null,954,"СТАРШИЙ МАТРОС"]
[192,null,null,null,null,null,null,null,null,954,"СТАРШИЙ МАТРОС"]
[315,null,null,null,null,null,null,null,null,954,"СТАРШИЙ МАТРОС"]
[409,null,null,null,null,null,null,null,null,954,"СТАРШИЙ МАТРОС"]
[438,null,null,null,null,null,null,null,null,954,"СТАРШИЙ МАТРОС"]
[73,null,null,null,null,null,null,null,null,971,"СТАРШИЙ ПРОВОДНИК НА ВОДНОМ ТРАНСПОРТЕ"]
[81,null,null,null,null,null,null,null,"СТАРШИЙ МЕХАНИК",33105,"СТАРШИЙ СПЕЦИАЛИСТ ПЛАВСОСТАВА"]
[197,null,null,null,null,null,null,null,"СТАРШИЙ МЕХАНИК",33105,"СТАРШИЙ СПЕЦИАЛИСТ ПЛАВСОСТАВА"]
[455,null,null,null,null,null,null,null,"СТАРШИЙ ПОМОЩНИК КАПИТАНА",33105,"СТАРШИЙ СПЕЦИАЛИСТ ПЛАВСОСТАВА"]
[466,null,null,null,null,null,null,null,"СТАРШИЙ ПОМОЩНИК КАПИТАНА",33105,"СТАРШИЙ СПЕЦИАЛИСТ ПЛАВСОСТАВА"]
[113,null,null,null,null,null,null,null,"СТАРШИЙ МЕХАНИК",33105,"СТАРШИЙ СПЕЦИАЛИСТ ПЛАВСОСТАВА"]
[148,null,null,null,null,null,null,null,"СТАРШИЙ МЕХАНИК",33105,"СТАРШИЙ СПЕЦИАЛИСТ ПЛАВСОСТАВА"]
[223,null,null,null,null,null,null,null,"СТАРШИЙ ПОМОЩНИК КАПИТАНА - СМЕННЫЙ КРАНМЕЙСТЕР",33105,"СТАРШИЙ СПЕЦИАЛИСТ ПЛАВСОСТАВА"]
[210,null,null,null,null,null,null,null,"СТАРШИЙ МЕХАНИК",33105,"СТАРШИЙ СПЕЦИАЛИСТ ПЛАВСОСТАВА"]
[216,null,null,null,null,null,null,null,"СТАРШИЙ МЕХАНИК",33105,"СТАРШИЙ СПЕЦИАЛИСТ ПЛАВСОСТАВА"]
[219,null,null,null,null,null,null,null,"СТАРШИЙ ЭЛЕКТРОМЕХАНИК",33105,"СТАРШИЙ СПЕЦИАЛИСТ ПЛАВСОСТАВА"]
[227,null,null,null,null,null,null,null,"СТАРШИЙ МЕХАНИК",33105,"СТАРШИЙ СПЕЦИАЛИСТ ПЛАВСОСТАВА"]
[233,null,null,null,null,null,null,null,"СТАРШИЙ ПОМОЩНИК НАЧАЛЬНИКА ДОКА (ДОКМЕЙСТЕР)",33105,"СТАРШИЙ СПЕЦИАЛИСТ ПЛАВСОСТАВА"]
[252,null,null,null,null,null,null,null,"СТАРШИЙ МЕХАНИК",33105,"СТАРШИЙ СПЕЦИАЛИСТ ПЛАВСОСТАВА"]
[264,null,null,null,null,null,null,null,"СТАРШИЙ МЕХАНИК",33105,"СТАРШИЙ СПЕЦИАЛИСТ ПЛАВСОСТАВА"]
[270,null,null,null,null,null,null,null,"СТАРШИЙ ПОМОЩНИК КАПИТАНА",33105,"СТАРШИЙ СПЕЦИАЛИСТ ПЛАВСОСТАВА"]
[271,null,null,null,null,null,null,null,"СТАРШИЙ МЕХАНИК",33105,"СТАРШИЙ СПЕЦИАЛИСТ ПЛАВСОСТАВА"]
[274,null,null,null,null,null,null,null,"СТАРШИЙ МЕХАНИК",33105,"СТАРШИЙ СПЕЦИАЛИСТ ПЛАВСОСТАВА"]
[278,null,null,null,null,null,null,null,"СТАРШИЙ МЕХАНИК",33105,"СТАРШИЙ СПЕЦИАЛИСТ ПЛАВСОСТАВА"]
[283,null,null,null,null,null,null,null,"СТАРШИЙ ПОМОЩНИК КАПИТАНА",33105,"СТАРШИЙ СПЕЦИАЛИСТ ПЛАВСОСТАВА"]
[294,null,null,null,null,null,null,null,"СТАРШИЙ ПОМОЩНИК КАПИТАНА",33105,"СТАРШИЙ СПЕЦИАЛИСТ ПЛАВСОСТАВА"]
[298,null,null,null,null,null,null,null,"СТАРШИЙ ЭЛЕКТРОМЕХАНИК",33105,"СТАРШИЙ СПЕЦИАЛИСТ ПЛАВСОСТАВА"]
[304,null,null,null,null,null,null,null,null,963,"СТАРШИЙ ЭЛЕКТРИК СУДОВОЙ"]
[306,null,null,null,null,null,null,null,null,963,"СТАРШИЙ ЭЛЕКТРИК СУДОВОЙ"]
[310,null,null,null,null,null,null,null,null,963,"СТАРШИЙ ЭЛЕКТРИК СУДОВОЙ"]
[332,null,null,null,null,null,null,null,null,963,"СТАРШИЙ ЭЛЕКТРИК СУДОВОЙ"]
[335,null,null,null,null,null,null,null,null,963,"СТАРШИЙ ЭЛЕКТРИК СУДОВОЙ"]
[336,null,null,null,null,null,null,null,null,963,"СТАРШИЙ ЭЛЕКТРИК СУДОВОЙ"]
[341,null,null,null,null,null,null,null,null,963,"СТАРШИЙ ЭЛЕКТРИК СУДОВОЙ"]
[347,null,null,null,null,null,null,null,null,963,"СТАРШИЙ ЭЛЕКТРИК СУДОВОЙ"]
[362,null,null,null,null,null,null,null,null,963,"СТАРШИЙ ЭЛЕКТРИК СУДОВОЙ"]
[363,null,null,null,null,null,null,null,null,963,"СТАРШИЙ ЭЛЕКТРИК СУДОВОЙ"]
[364,null,null,null,null,null,null,null,null,963,"СТАРШИЙ ЭЛЕКТРИК СУДОВОЙ"]
[367,null,null,null,null,null,null,null,null,963,"СТАРШИЙ ЭЛЕКТРИК СУДОВОЙ"]
[368,null,null,null,null,null,null,null,null,963,"СТАРШИЙ ЭЛЕКТРИК СУДОВОЙ"]
[378,null,null,null,null,null,null,null,null,963,"СТАРШИЙ ЭЛЕКТРИК СУДОВОЙ"]
[385,null,null,null,null,null,null,null,null,963,"СТАРШИЙ ЭЛЕКТРИК СУДОВОЙ"]
[386,null,null,null,null,null,null,null,null,963,"СТАРШИЙ ЭЛЕКТРИК СУДОВОЙ"]
[394,null,null,null,null,null,null,null,null,963,"СТАРШИЙ ЭЛЕКТРИК СУДОВОЙ"]
[395,null,null,null,null,null,null,null,null,963,"СТАРШИЙ ЭЛЕКТРИК СУДОВОЙ"]
[402,null,null,null,null,null,null,null,null,963,"СТАРШИЙ ЭЛЕКТРИК СУДОВОЙ"]
[411,null,null,null,null,null,null,null,null,963,"СТАРШИЙ ЭЛЕКТРИК СУДОВОЙ"]
[427,null,null,null,null,null,null,null,null,963,"СТАРШИЙ ЭЛЕКТРИК СУДОВОЙ"]
[132,null,null,null,null,null,null,null,null,963,"СТАРШИЙ ЭЛЕКТРИК СУДОВОЙ"]
[491,null,null,null,null,null,null,null,null,963,"СТАРШИЙ ЭЛЕКТРИК СУДОВОЙ"]
[27,null,null,null,null,null,null,null,null,963,"СТАРШИЙ ЭЛЕКТРИК СУДОВОЙ"]
[84,null,null,null,null,null,null,null,null,963,"СТАРШИЙ ЭЛЕКТРИК СУДОВОЙ"]
[92,null,null,null,null,null,null,null,null,963,"СТАРШИЙ ЭЛЕКТРИК СУДОВОЙ"]
[98,null,null,null,null,null,null,null,null,963,"СТАРШИЙ ЭЛЕКТРИК СУДОВОЙ"]
[107,null,null,null,null,null,null,null,null,963,"СТАРШИЙ ЭЛЕКТРИК СУДОВОЙ"]
[117,null,null,null,null,null,null,null,null,963,"СТАРШИЙ ЭЛЕКТРИК СУДОВОЙ"]
[119,null,null,null,null,null,null,null,null,963,"СТАРШИЙ ЭЛЕКТРИК СУДОВОЙ"]
[13,null,null,null,null,null,null,null,null,963,"СТАРШИЙ ЭЛЕКТРИК СУДОВОЙ"]
[17,null,null,null,null,null,null,null,null,963,"СТАРШИЙ ЭЛЕКТРИК СУДОВОЙ"]
[18,null,null,null,null,null,null,null,null,963,"СТАРШИЙ ЭЛЕКТРИК СУДОВОЙ"]
[20,null,null,null,null,null,null,null,null,963,"СТАРШИЙ ЭЛЕКТРИК СУДОВОЙ"]
[25,null,null,null,null,null,null,null,null,963,"СТАРШИЙ ЭЛЕКТРИК СУДОВОЙ"]
[28,null,null,null,null,null,null,null,null,984,"ТАКЕЛАЖНИК"]
[35,null,null,null,null,null,null,null,null,984,"ТАКЕЛАЖНИК"]
[37,null,null,null,null,null,null,null,null,984,"ТАКЕЛАЖНИК"]
[42,null,null,null,null,null,null,null,null,984,"ТАКЕЛАЖНИК"]
[45,null,null,null,null,null,null,null,null,984,"ТАКЕЛАЖНИК"]
[49,null,null,null,null,null,null,null,null,984,"ТАКЕЛАЖНИК"]
[56,null,null,null,null,null,null,null,null,984,"ТАКЕЛАЖНИК"]
[59,null,null,null,null,null,null,null,null,985,"ТАКЕЛАЖНИК СУДОВОЙ"]
[62,null,null,null,null,null,null,null,null,985,"ТАКЕЛАЖНИК СУДОВОЙ"]
[67,null,null,null,null,null,null,null,null,985,"ТАКЕЛАЖНИК СУДОВОЙ"]
[70,null,null,null,null,null,null,null,null,985,"ТАКЕЛАЖНИК СУДОВОЙ"]
[71,null,null,null,null,null,null,null,null,985,"ТАКЕЛАЖНИК СУДОВОЙ"]
[76,null,null,null,null,null,null,null,null,985,"ТАКЕЛАЖНИК СУДОВОЙ"]
[82,null,null,null,null,null,null,null,null,985,"ТАКЕЛАЖНИК СУДОВОЙ"]
[87,null,null,null,null,null,null,null,null,985,"ТАКЕЛАЖНИК СУДОВОЙ"]
[89,null,null,null,null,null,null,null,null,985,"ТАКЕЛАЖНИК СУДОВОЙ"]
[96,null,null,null,null,null,null,null,null,985,"ТАКЕЛАЖНИК СУДОВОЙ"]
[97,null,null,null,null,null,null,null,null,985,"ТАКЕЛАЖНИК СУДОВОЙ"]
[100,null,null,null,null,null,null,null,null,985,"ТАКЕЛАЖНИК СУДОВОЙ"]
[101,null,null,null,null,null,null,null,null,985,"ТАКЕЛАЖНИК СУДОВОЙ"]
[105,null,null,null,null,null,null,null,null,985,"ТАКЕЛАЖНИК СУДОВОЙ"]
[106,null,null,null,null,null,null,null,null,985,"ТАКЕЛАЖНИК СУДОВОЙ"]
[121,null,null,null,null,null,null,null,null,985,"ТАКЕЛАЖНИК СУДОВОЙ"]
[122,null,null,null,null,null,null,null,null,985,"ТАКЕЛАЖНИК СУДОВОЙ"]
[123,null,null,null,null,null,null,null,null,985,"ТАКЕЛАЖНИК СУДОВОЙ"]
[124,null,null,null,null,null,null,null,null,985,"ТАКЕЛАЖНИК СУДОВОЙ"]
[125,null,null,null,null,null,null,null,null,985,"ТАКЕЛАЖНИК СУДОВОЙ"]
[127,null,null,null,null,null,null,null,null,985,"ТАКЕЛАЖНИК СУДОВОЙ"]
[130,null,null,null,null,null,null,null,null,985,"ТАКЕЛАЖНИК СУДОВОЙ"]
[158,null,null,null,null,null,null,null,null,985,"ТАКЕЛАЖНИК СУДОВОЙ"]
[160,null,null,null,null,null,null,null,null,985,"ТАКЕЛАЖНИК СУДОВОЙ"]
[162,null,null,null,null,null,null,null,null,985,"ТАКЕЛАЖНИК СУДОВОЙ"]
[166,null,null,null,null,null,null,null,null,985,"ТАКЕЛАЖНИК СУДОВОЙ"]
[173,null,null,null,null,null,null,null,null,985,"ТАКЕЛАЖНИК СУДОВОЙ"]
[174,null,null,null,null,null,null,null,null,985,"ТАКЕЛАЖНИК СУДОВОЙ"]
[175,null,null,null,null,null,null,null,null,985,"ТАКЕЛАЖНИК СУДОВОЙ"]
[176,null,null,null,null,null,null,null,null,985,"ТАКЕЛАЖНИК СУДОВОЙ"]
[177,null,null,null,null,null,null,null,null,985,"ТАКЕЛАЖНИК СУДОВОЙ"]
[179,null,null,null,null,null,null,null,null,985,"ТАКЕЛАЖНИК СУДОВОЙ"]
[245,null,null,null,null,null,null,null,null,985,"ТАКЕЛАЖНИК СУДОВОЙ"]
[254,null,null,null,null,null,null,null,null,985,"ТАКЕЛАЖНИК СУДОВОЙ"]
[398,null,null,null,null,null,null,null,null,985,"ТАКЕЛАЖНИК СУДОВОЙ"]
[424,null,null,null,null,null,null,null,null,985,"ТАКЕЛАЖНИК СУДОВОЙ"]
[426,null,null,null,null,null,null,null,null,985,"ТАКЕЛАЖНИК СУДОВОЙ"]
[429,null,null,null,null,null,null,null,null,985,"ТАКЕЛАЖНИК СУДОВОЙ"]
[469,null,null,null,null,null,null,null,null,985,"ТАКЕЛАЖНИК СУДОВОЙ"]
[475,null,null,null,null,null,null,null,null,985,"ТАКЕЛАЖНИК СУДОВОЙ"]
[476,null,null,null,null,null,null,null,null,985,"ТАКЕЛАЖНИК СУДОВОЙ"]
[477,null,null,null,null,null,null,null,null,985,"ТАКЕЛАЖНИК СУДОВОЙ"]
[478,null,null,null,null,null,null,null,null,985,"ТАКЕЛАЖНИК СУДОВОЙ"]
[479,null,null,null,null,null,null,null,null,985,"ТАКЕЛАЖНИК СУДОВОЙ"]
[480,null,null,null,null,null,null,null,null,985,"ТАКЕЛАЖНИК СУДОВОЙ"]
[481,null,null,null,null,null,null,null,null,985,"ТАКЕЛАЖНИК СУДОВОЙ"]
[482,null,null,null,null,null,null,null,null,985,"ТАКЕЛАЖНИК СУДОВОЙ"]
[483,null,null,null,null,null,null,null,null,985,"ТАКЕЛАЖНИК СУДОВОЙ"]
[484,null,null,null,null,null,null,null,null,985,"ТАКЕЛАЖНИК СУДОВОЙ"]
[19,null,null,null,null,null,null,null,null,985,"ТАКЕЛАЖНИК СУДОВОЙ"]
[95,null,null,null,null,null,null,null,null,985,"ТАКЕЛАЖНИК СУДОВОЙ"]
[109,null,null,null,null,null,null,null,null,985,"ТАКЕЛАЖНИК СУДОВОЙ"]
[156,null,null,null,null,null,null,null,null,985,"ТАКЕЛАЖНИК СУДОВОЙ"]
[14,null,null,null,null,null,null,null,null,985,"ТАКЕЛАЖНИК СУДОВОЙ"]
[40,null,null,null,null,null,null,null,null,985,"ТАКЕЛАЖНИК СУДОВОЙ"]
[43,null,null,null,null,null,null,null,null,985,"ТАКЕЛАЖНИК СУДОВОЙ"]
[51,null,null,null,null,null,null,null,null,985,"ТАКЕЛАЖНИК СУДОВОЙ"]
[57,null,null,null,null,null,null,null,null,985,"ТАКЕЛАЖНИК СУДОВОЙ"]
[141,null,null,null,null,null,null,null,null,985,"ТАКЕЛАЖНИК СУДОВОЙ"]
[143,null,null,null,null,null,null,null,null,985,"ТАКЕЛАЖНИК СУДОВОЙ"]
[146,null,null,null,null,null,null,null,null,985,"ТАКЕЛАЖНИК СУДОВОЙ"]
[170,null,null,null,null,null,null,null,null,55,"УБОРЩИК ПРОИЗВОДСТВЕННЫХ ПОМЕЩЕНИЙ"]
[309,null,null,null,null,null,null,null,null,55,"УБОРЩИК ПРОИЗВОДСТВЕННЫХ ПОМЕЩЕНИЙ"]
[389,null,null,null,null,null,null,null,null,55,"УБОРЩИК ПРОИЗВОДСТВЕННЫХ ПОМЕЩЕНИЙ"]
[405,null,null,null,null,null,null,null,null,55,"УБОРЩИК ПРОИЗВОДСТВЕННЫХ ПОМЕЩЕНИЙ"]
[425,null,null,null,null,null,null,null,null,55,"УБОРЩИК ПРОИЗВОДСТВЕННЫХ ПОМЕЩЕНИЙ"]
[456,null,null,null,null,null,null,null,null,55,"УБОРЩИК ПРОИЗВОДСТВЕННЫХ ПОМЕЩЕНИЙ"]
[471,null,null,null,null,null,null,null,null,55,"УБОРЩИК ПРОИЗВОДСТВЕННЫХ ПОМЕЩЕНИЙ"]
[473,null,null,null,null,null,null,null,null,55,"УБОРЩИК ПРОИЗВОДСТВЕННЫХ ПОМЕЩЕНИЙ"]
[487,null,null,null,null,null,null,null,null,55,"УБОРЩИК ПРОИЗВОДСТВЕННЫХ ПОМЕЩЕНИЙ"]
[458,null,null,null,null,null,null,null,null,55,"УБОРЩИК ПРОИЗВОДСТВЕННЫХ ПОМЕЩЕНИЙ"]
[2,null,null,null,null,null,null,null,null,55,"УБОРЩИК ПРОИЗВОДСТВЕННЫХ ПОМЕЩЕНИЙ"]
[144,null,null,null,null,null,null,null,null,55,"УБОРЩИК ПРОИЗВОДСТВЕННЫХ ПОМЕЩЕНИЙ"]
[169,null,null,null,null,null,null,null,null,55,"УБОРЩИК ПРОИЗВОДСТВЕННЫХ ПОМЕЩЕНИЙ"]
[410,null,null,null,null,null,null,null,null,55,"УБОРЩИК ПРОИЗВОДСТВЕННЫХ ПОМЕЩЕНИЙ"]
[415,null,null,null,null,null,null,null,null,55,"УБОРЩИК ПРОИЗВОДСТВЕННЫХ ПОМЕЩЕНИЙ"]
[416,null,null,null,null,null,null,null,null,55,"УБОРЩИК ПРОИЗВОДСТВЕННЫХ ПОМЕЩЕНИЙ"]
[12,null,null,null,null,null,null,null,null,55,"УБОРЩИК ПРОИЗВОДСТВЕННЫХ ПОМЕЩЕНИЙ"]
[149,null,null,null,null,null,null,null,null,58,"УБОРЩИК СЛУЖЕБНЫХ ПОМЕЩЕНИЙ"]
[320,null,null,null,null,null,null,null,null,992,"УБОРЩИК ТЕРРИТОРИЙ (УЛИЦ)"]
[331,null,null,null,null,null,null,null,null,992,"УБОРЩИК ТЕРРИТОРИЙ (УЛИЦ)"]
[333,null,null,null,null,null,null,null,null,992,"УБОРЩИК ТЕРРИТОРИЙ (УЛИЦ)"]
[346,null,null,null,null,null,null,null,null,992,"УБОРЩИК ТЕРРИТОРИЙ (УЛИЦ)"]
[348,null,null,null,null,null,null,null,null,992,"УБОРЩИК ТЕРРИТОРИЙ (УЛИЦ)"]
[400,null,null,null,null,null,null,null,null,992,"УБОРЩИК ТЕРРИТОРИЙ (УЛИЦ)"]
[408,null,null,null,null,null,null,null,null,974,"ЭЛЕКТРИК СУДОВОЙ"]
[419,null,null,null,null,null,null,null,null,974,"ЭЛЕКТРИК СУДОВОЙ"]
[462,null,null,null,null,null,null,null,null,974,"ЭЛЕКТРИК СУДОВОЙ"]
[85,null,null,null,null,null,null,null,null,974,"ЭЛЕКТРИК СУДОВОЙ"]
[7,null,null,null,null,null,null,null,null,974,"ЭЛЕКТРИК СУДОВОЙ"]
[21,null,null,null,null,null,null,null,null,974,"ЭЛЕКТРИК СУДОВОЙ"]
[135,null,null,null,null,null,null,null,null,974,"ЭЛЕКТРИК СУДОВОЙ"]
[142,null,null,null,null,null,null,null,null,974,"ЭЛЕКТРИК СУДОВОЙ"]
[172,null,null,null,null,null,null,null,null,974,"ЭЛЕКТРИК СУДОВОЙ"]
[465,null,null,null,null,null,null,null,null,528,"ЭЛЕКТРОГАЗОСВАРЩИК"]
[10,null,null,null,null,null,null,null,null,809,"ЭЛЕКТРОМОНТЕР ПО РЕМОНТУ И ОБСЛУЖИВАНИЮ ЭЛЕКТРООБОРУДОВАНИЯ"]
[11,null,null,null,null,null,null,null,null,809,"ЭЛЕКТРОМОНТЕР ПО РЕМОНТУ И ОБСЛУЖИВАНИЮ ЭЛЕКТРООБОРУДОВАНИЯ"]
[44,null,null,null,null,null,null,null,null,809,"ЭЛЕКТРОМОНТЕР ПО РЕМОНТУ И ОБСЛУЖИВАНИЮ ЭЛЕКТРООБОРУДОВАНИЯ"]
[93,null,null,null,null,null,null,null,null,809,"ЭЛЕКТРОМОНТЕР ПО РЕМОНТУ И ОБСЛУЖИВАНИЮ ЭЛЕКТРООБОРУДОВАНИЯ"]
[128,null,null,null,null,null,null,null,null,809,"ЭЛЕКТРОМОНТЕР ПО РЕМОНТУ И ОБСЛУЖИВАНИЮ ЭЛЕКТРООБОРУДОВАНИЯ"]
[182,null,null,null,null,null,null,null,null,809,"ЭЛЕКТРОМОНТЕР ПО РЕМОНТУ И ОБСЛУЖИВАНИЮ ЭЛЕКТРООБОРУДОВАНИЯ"]
[188,null,null,null,null,null,null,null,null,809,"ЭЛЕКТРОМОНТЕР ПО РЕМОНТУ И ОБСЛУЖИВАНИЮ ЭЛЕКТРООБОРУДОВАНИЯ"]
[488,null,null,null,null,null,null,null,null,809,"ЭЛЕКТРОМОНТЕР ПО РЕМОНТУ И ОБСЛУЖИВАНИЮ ЭЛЕКТРООБОРУДОВАНИЯ"]

{"sheet":"ТАБЛИЦА","index":1,"n_rows":600,"n_cols":15,"rows_kept":600,"cut":false,"hidden":false,"merged":[]}
[null,{"$f":"КАДРЫ!E1","v":"ТАБ_N"},{"$f":"КАДРЫ!B1","v":"ФАМ_ИО"},null,{"$f":"КАДРЫ!C1","v":"Д_РОЖД"},{"$f":"КАДРЫ!I1","v":"ДОЛЖННОМ"},{"$f":"КАДРЫ!D1","v":"КАТЕГОР"},{"$f":"КАДРЫ!F1","v":"УЧАСТОК"},{"$f":"КАДРЫ!G1","v":"ГРУППА_ЦЕХ"},{"$f":"КАДРЫ!H1","v":"N_Л_К"},{"$f":"КАДРЫ!J1","v":"К_ДЛЖН_ПРФ"},null,null,null,"Кривые должности в F заменить на"]
[1,{"$f":"КАДРЫ!E2","v":0},null,null,null,{"$f":"IF(КАДРЫ!I2=\"\",LOWER(КАДРЫ!K2),LOWER(КАДРЫ!I2))","v":"боцман"},{"$f":"КАДРЫ!D2","v":0},null,null,null,null,null,null,{"$f":"VLOOKUP(F2&\"*\",ДОЛЖНОСТИ!B:B,1,)","v":"боцман"},{"$f":"REPLACE(F2,100,2,ДОЛЖНОСТИ!$B$2:$B$71)","v":"боцманбоцман"}]
[2,{"$f":"КАДРЫ!E3","v":0},null,null,null,{"$f":"IF(КАДРЫ!I3=\"\",LOWER(КАДРЫ!K3),LOWER(КАДРЫ!I3))","v":"боцман"},{"$f":"КАДРЫ!D3","v":0},null,null,null,null,null,null,{"$f":"VLOOKUP(F3&\"*\",ДОЛЖНОСТИ!B:B,1,)","v":"боцман"},{"$f":"REPLACE(F3,100,2,ДОЛЖНОСТИ!$B$2:$B$71)","v":"боцманвторой механик"}]
[3,{"$f":"КАДРЫ!E4","v":0},null,null,null,{"$f":"IF(КАДРЫ!I4=\"\",LOWER(КАДРЫ!K4),LOWER(КАДРЫ!I4))","v":"боцман"},{"$f":"КАДРЫ!D4","v":0},null,null,null,null,null,null,{"$f":"VLOOKUP(F4&\"*\",ДОЛЖНОСТИ!B:B,1,)","v":"боцман"},{"$f":"REPLACE(F4,100,2,ДОЛЖНОСТИ!$B$2:$B$71)","v":"боцманвторой помощник капитана"}]
[4,{"$f":"КАДРЫ!E5","v":0},null,null,null,{"$f":"IF(КАДРЫ!I5=\"\",LOWER(КАДРЫ!K5),LOWER(КАДРЫ!I5))","v":"боцма"},{"$f":"КАДРЫ!D5","v":0},null,null,null,null,null,null,{"$f":"VLOOKUP(F5&\"*\",ДОЛЖНОСТИ!B:B,1,)","v":"боцман"},{"$f":"REPLACE(F5,100,2,ДОЛЖНОСТИ!$B$2:$B$71)","v":"боцмавторой электромеханик"}]
[5,{"$f":"КАДРЫ!E6","v":0},null,null,null,{"$f":"IF(КАДРЫ!I6=\"\",LOWER(КАДРЫ!K6),LOWER(КАДРЫ!I6))","v":"боцман"},{"$f":"КАДРЫ!D6","v":0},null,null,null,null,null,null,{"$f":"VLOOKUP(F6&\"*\",ДОЛЖНОСТИ!B:B,1,)","v":"боцман"},{"$f":"REPLACE(F6,100,2,ДОЛЖНОСТИ!$B$2:$B$71)","v":"боцмандиспетчер по транспорту"}]
[6,{"$f":"КАДРЫ!E7","v":0},null,null,null,{"$f":"IF(КАДРЫ!I7=\"\",LOWER(КАДРЫ!K7),LOWER(КАДРЫ!I7))","v":"боц"},{"$f":"КАДРЫ!D7","v":0},null,null,null,null,null,null,{"$f":"VLOOKUP(F7&\"*\",ДОЛЖНОСТИ!B:B,1,)","v":"боцман"},{"$f":"REPLACE(F7,100,2,ДОЛЖНОСТИ!$B$2:$B$71)","v":"боцдневальный"}]
[7,{"$f":"КАДРЫ!E8","v":0},null,null,null,{"$f":"IF(КАДРЫ!I8=\"\",LOWER(КАДРЫ!K8),LOWER(КАДРЫ!I8))","v":"боцман"},{"$f":"КАДРЫ!D8","v":0},null,null,null,null,null,null,{"$f":"VLOOKUP(F8&\"*\",ДОЛЖНОСТИ!B:B,1,)","v":"боцман"},{"$f":"REPLACE(F8,100,2,ДОЛЖНОСТИ!$B$2:$B$71)","v":"боцмандокмейстер"}]
[8,{"$f":"КАДРЫ!E9","v":0},null,null,null,{"$f":"IF(КАДРЫ!I9=\"\",LOWER(КАДРЫ!K9),LOWER(КАДРЫ!I9))","v":"второй механик"},{"$f":"КАДРЫ!D9","v":0},null,null,null,null,null,null,{"$f":"VLOOKUP(F9&\"*\",ДОЛЖНОСТИ!B:B,1,)","v":"второй механик"},{"$f":"REPLACE(F9,100,2,ДОЛЖНОСТИ!$B$2:$B$71)","v":"второй механикзаведующий хозяйством"}]
[9,{"$f":"КАДРЫ!E10","v":0},null,null,null,{"$f":"IF(КАДРЫ!I10=\"\",LOWER(КАДРЫ!K10),LOWER(КАДРЫ!I10))","v":"второй механик"},{"$f":"КАДРЫ!D10","v":0},null,null,null,null,null,null,{"$f":"VLOOKUP(F10&\"*\",ДОЛЖНОСТИ!B:B,1,)","v":"второй механик"},{"$f":"REPLACE(F10,100,2,ДОЛЖНОСТИ!$B$2:$B$71)","v":"второй механикзаместитель начальника транспортного производства - начальник цеха"}]
[10,{"$f":"КАДРЫ!E11","v":0},null,null,null,{"$f":"IF(КАДРЫ!I11=\"\",LOWER(КАДРЫ!K11),LOWER(КАДРЫ!I11))","v":"второй электромеханик"},{"$f":"КАДРЫ!D11","v":0},null,null,null,null,null,null,{"$f":"VLOOKUP(F11&\"*\",ДОЛЖНОСТИ!B:B,1,)","v":"второй электромеханик"},{"$f":"REPLACE(F11,100,2,ДОЛЖНОСТИ!$B$2:$B$71)","v":"второй электромеханикзаместитель начальника цеха - капитанобъединения"}]
[11,{"$f":"КАДРЫ!E12","v":0},null,null,null,{"$f":"IF(КАДРЫ!I12=\"\",LOWER(КАДРЫ!K12),LOWER(КАДРЫ!I12))","v":"диспетчер по транспорту"},{"$f":"КАДРЫ!D12","v":0},null,null,null,null,null,null,{"$f":"VLOOKUP(F12&\"*\",ДОЛЖНОСТИ!B:B,1,)","v":"диспетчер по транспорту"},{"$f":"REPLACE(F12,100,2,ДОЛЖНОСТИ!$B$2:$B$71)","v":"диспетчер по транспортузаместитель начальника цеха по подготовке производства"}]
[12,{"$f":"КАДРЫ!E13","v":0},null,null,null,{"$f":"IF(КАДРЫ!I13=\"\",LOWER(КАДРЫ!K13),LOWER(КАДРЫ!I13))","v":"дневальный"},{"$f":"КАДРЫ!D13","v":0},null,null,null,null,null,null,{"$f":"VLOOKUP(F13&\"*\",ДОЛЖНОСТИ!B:B,1,)","v":"дневальный"},{"$f":"REPLACE(F13,100,2,ДОЛЖНОСТИ!$B$2:$B$71)","v":"дневальныйинженер по подготовке производства"}]
[13,{"$f":"КАДРЫ!E14","v":0},null,null,null,{"$f":"IF(КАДРЫ!I14=\"\",LOWER(КАДРЫ!K14),LOWER(КАДРЫ!I14))","v":"дневальны"},{"$f":"КАДРЫ!D14","v":0},null,null,null,null,null,null,{"$f":"VLOOKUP(F14&\"*\",ДОЛЖНОСТИ!B:B,1,)","v":"дневальный"},{"$f":"REPLACE(F14,100,2,ДОЛЖНОСТИ!$B$2:$B$71)","v":"дневальныкапитан"}]
[14,{"$f":"КАДРЫ!E15","v":0},null,null,null,{"$f":"IF(КАДРЫ!I15=\"\",LOWER(КАДРЫ!K15),LOWER(КАДРЫ!I15))","v":"дневальный"},{"$f":"КАДРЫ!D15","v":0},null,null,null,null,null,null,{"$f":"VLOOKUP(F15&\"*\",ДОЛЖНОСТИ!B:B,1,)","v":"дневальный"},{"$f":"REPLACE(F15,100,2,ДОЛЖНОСТИ!$B$2:$B$71)","v":"дневальныйкапитан-руководительучастка"}]
[15,{"$f":"КАДРЫ!E16","v":0},null,null,null,{"$f":"IF(КАДРЫ!I16=\"\",LOWER(КАДРЫ!K16),LOWER(КАДРЫ!I16))","v":"дневаль"},{"$f":"КАДРЫ!D16","v":0},null,null,null,null,null,null,{"$f":"VLOOKUP(F16&\"*\",ДОЛЖНОСТИ!B:B,1,)","v":"дневальный"},{"$f":"REPLACE(F16,100,2,ДОЛЖНОСТИ!$B$2:$B$71)","v":"дневалькапитан-сменныймеханик"}]
[16,{"$f":"КАДРЫ!E17","v":0},null,null,null,{"$f":"IF(КАДРЫ!I17=\"\",LOWER(КАДРЫ!K17),LOWER(КАДРЫ!I17))","v":"дневальный"},{"$f":"КАДРЫ!D17","v":0},null,null,null,null,null,null,{"$f":"VLOOKUP(F17&\"*\",ДОЛЖНОСТИ!B:B,1,)","v":"дневальный"},{"$f":"REPLACE(F17,100,2,ДОЛЖНОСТИ!$B$2:$B$71)","v":"дневальныйкапитан-кранмейстер"}]
[17,{"$f":"КАДРЫ!E18","v":0},null,null,null,{"$f":"IF(КАДРЫ!I18=\"\",LOWER(КАДРЫ!K18),LOWER(КАДРЫ!I18))","v":"дневальный"},{"$f":"КАДРЫ!D18","v":0},null,null,null,null,null,null,{"$f":"VLOOKUP(F18&\"*\",ДОЛЖНОСТИ!B:B,1,)","v":"дневальный"},{"$f":"REPLACE(F18,100,2,ДОЛЖНОСТИ!$B$2:$B$71)","v":"дневальныйкладовщик"}]
[18,{"$f":"КАДРЫ!E19","v":0},null,null,null,{"$f":"IF(КАДРЫ!I19=\"\",LOWER(КАДРЫ!K19),LOWER(КАДРЫ!I19))","v":"дневальный"},{"$f":"КАДРЫ!D19","v":0},null,null,null,null,null,null,{"$f":"VLOOKUP(F19&\"*\",ДОЛЖНОСТИ!B:B,1,)","v":"дневальный"},{"$f":"REPLACE(F19,100,2,ДОЛЖНОСТИ!$B$2:$B$71)","v":"дневальныймастер по ремонту и обслуживанию оборудования"}]
[19,{"$f":"КАДРЫ!E20","v":0},null,null,null,{"$f":"IF(КАДРЫ!I20=\"\",LOWER(КАДРЫ!K20),LOWER(КАДРЫ!I20))","v":"дневальный"},{"$f":"КАДРЫ!D20","v":0},null,null,null,null,null,null,{"$f":"VLOOKUP(F20&\"*\",ДОЛЖНОСТИ!B:B,1,)","v":"дневальный"},{"$f":"REPLACE(F20,100,2,ДОЛЖНОСТИ!$B$2:$B$71)","v":"дневальныймастер погрузо-разгрузочных работ"}]
[20,{"$f":"КАДРЫ!E21","v":0},null,null,null,{"$f":"IF(КАДРЫ!I21=\"\",LOWER(КАДРЫ!K21),LOWER(КАДРЫ!I21))","v":"заведующий хозяйством"},{"$f":"КАДРЫ!D21","v":0},null,null,null,null,null,null,{"$f":"VLOOKUP(F21&\"*\",ДОЛЖНОСТИ!B:B,1,)","v":"заведующий хозяйством"},{"$f":"REPLACE(F21,100,2,ДОЛЖНОСТИ!$B$2:$B$71)","v":"заведующий хозяйствоммастер такелажно-судовых работ"}]
[21,{"$f":"КАДРЫ!E22","v":0},null,null,null,{"$f":"IF(КАДРЫ!I22=\"\",LOWER(КАДРЫ!K22),LOWER(КАДРЫ!I22))","v":"заместитель начальника транспортного производства - начальни"},{"$f":"КАДРЫ!D22","v":0},null,null,null,null,null,null,{"$f":"VLOOKUP(F22&\"*\",ДОЛЖНОСТИ!B:B,1,)","v":"заместитель начальника транспортного производства - начальник цеха"},{"$f":"REPLACE(F22,100,2,ДОЛЖНОСТИ!$B$2:$B$71)","v":"заместитель начальника транспортного производства - начальниматрос 1 класса"}]
[22,{"$f":"КАДРЫ!E23","v":0},null,null,null,{"$f":"IF(КАДРЫ!I23=\"\",LOWER(КАДРЫ!K23),LOWER(КАДРЫ!I23))","v":"заместитель начальника цеха по подготовке производства"},{"$f":"КАДРЫ!D23","v":0},null,null,null,null,null,null,{"$f":"VLOOKUP(F23&\"*\",ДОЛЖНОСТИ!B:B,1,)","v":"заместитель начальника цеха по подготовке производства"},{"$f":"REPLACE(F23,100,2,ДОЛЖНОСТИ!$B$2:$B$71)","v":"заместитель начальника цеха по подготовке производствамашинист крана (крановщик)"}]
[23,{"$f":"КАДРЫ!E24","v":0},null,null,null,{"$f":"IF(КАДРЫ!I24=\"\",LOWER(КАДРЫ!K24),LOWER(КАДРЫ!I24))","v":"заместитель начальника цеха"},{"$f":"КАДРЫ!D24","v":0},null,null,null,null,null,null,{"$f":"VLOOKUP(F24&\"*\",ДОЛЖНОСТИ!B:B,1,)","v":"заместитель начальника цеха - капитанобъединения"},{"$f":"REPLACE(F24,100,2,ДОЛЖНОСТИ!$B$2:$B$71)","v":"заместитель начальника цехамеханик-сменныйкапитан"}]
[24,{"$f":"КАДРЫ!E25","v":0},null,null,null,{"$f":"IF(КАДРЫ!I25=\"\",LOWER(КАДРЫ!K25),LOWER(КАДРЫ!I25))","v":"инженер по подготовке производства"},{"$f":"КАДРЫ!D25","v":0},null,null,null,null,null,null,{"$f":"VLOOKUP(F25&\"*\",ДОЛЖНОСТИ!B:B,1,)","v":"инженер по подготовке производства"},{"$f":"REPLACE(F25,100,2,ДОЛЖНОСТИ!$B$2:$B$71)","v":"инженер по подготовке производствамеханик (групповой)"}]
[25,{"$f":"КАДРЫ!E26","v":0},null,null,null,{"$f":"IF(КАДРЫ!I26=\"\",LOWER(КАДРЫ!K26),LOWER(КАДРЫ!I26))","v":"капитан - руководитель участка"},{"$f":"КАДРЫ!D26","v":0},null,null,null,null,null,null,{"$f":"VLOOKUP(F26&\"*\",ДОЛЖНОСТИ!B:B,1,)","v":{"$error":"#N/A"}},{"$f":"REPLACE(F26,100,2,ДОЛЖНОСТИ!$B$2:$B$71)","v":"капитан - руководитель участкамеханик-энергетик"}]
[26,{"$f":"КАДРЫ!E27","v":0},null,null,null,{"$f":"IF(КАДРЫ!I27=\"\",LOWER(КАДРЫ!K27),LOWER(КАДРЫ!I27))","v":"кладовщик"},{"$f":"КАДРЫ!D27","v":0},null,null,null,null,null,null,{"$f":"VLOOKUP(F27&\"*\",ДОЛЖНОСТИ!B:B,1,)","v":"кладовщик"},{"$f":"REPLACE(F27,100,2,ДОЛЖНОСТИ!$B$2:$B$71)","v":"кладовщикмонтажник санитарно - технических систем и оборудования"}]
[27,{"$f":"КАДРЫ!E28","v":0},null,null,null,{"$f":"IF(КАДРЫ!I28=\"\",LOWER(КАДРЫ!K28),LOWER(КАДРЫ!I28))","v":"кладовщик"},{"$f":"КАДРЫ!D28","v":0},null,null,null,null,null,null,{"$f":"VLOOKUP(F28&\"*\",ДОЛЖНОСТИ!B:B,1,)","v":"кладовщик"},{"$f":"REPLACE(F28,100,2,ДОЛЖНОСТИ!$B$2:$B$71)","v":"кладовщикмоторист (машинист)"}]
[28,{"$f":"КАДРЫ!E29","v":0},null,null,null,{"$f":"IF(КАДРЫ!I29=\"\",LOWER(КАДРЫ!K29),LOWER(КАДРЫ!I29))","v":"кладовщик"},{"$f":"КАДРЫ!D29","v":0},null,null,null,null,null,null,{"$f":"VLOOKUP(F29&\"*\",ДОЛЖНОСТИ!B:B,1,)","v":"кладовщик"},{"$f":"REPLACE(F29,100,2,ДОЛЖНОСТИ!$B$2:$B$71)","v":"кладовщикмоторист-матрос"}]
[29,{"$f":"КАДРЫ!E30","v":0},null,null,null,{"$f":"IF(КАДРЫ!I30=\"\",LOWER(КАДРЫ!K30),LOWER(КАДРЫ!I30))","v":"мастер погрузо-разгрузочных работ"},{"$f":"КАДРЫ!D30","v":0},null,null,null,null,null,null,{"$f":"VLOOKUP(F30&\"*\",ДОЛЖНОСТИ!B:B,1,)","v":"мастер погрузо-разгрузочных работ"},{"$f":"REPLACE(F30,100,2,ДОЛЖНОСТИ!$B$2:$B$71)","v":"мастер погрузо-разгрузочных работмоторист-рулевой"}]
[30,{"$f":"КАДРЫ!E31","v":0},null,null,null,{"$f":"IF(КАДРЫ!I31=\"\",LOWER(КАДРЫ!K31),LOWER(КАДРЫ!I31))","v":"мастер по ремонту и обслуживанию оборудования"},{"$f":"КАДРЫ!D31","v":0},null,null,null,null,null,null,{"$f":"VLOOKUP(F31&\"*\",ДОЛЖНОСТИ!B:B,1,)","v":"мастер по ремонту и обслуживанию оборудования"},{"$f":"REPLACE(F31,100,2,ДОЛЖНОСТИ!$B$2:$B$71)","v":"мастер по ремонту и обслуживанию оборудованияначальник дока (докмейстер)"}]
[31,{"$f":"КАДРЫ!E32","v":0},null,null,null,{"$f":"IF(КАДРЫ!I32=\"\",LOWER(КАДРЫ!K32),LOWER(КАДРЫ!I32))","v":"мастер по ремонту и обслуживанию оборудования"},{"$f":"КАДРЫ!D32","v":0},null,null,null,null,null,null,{"$f":"VLOOKUP(F32&\"*\",ДОЛЖНОСТИ!B:B,1,)","v":"мастер по ремонту и обслуживанию оборудования"},{"$f":"REPLACE(F32,100,2,ДОЛЖНОСТИ!$B$2:$B$71)","v":"мастер по ремонту и обслуживанию оборудованияначальник службы"}]
[32,{"$f":"КАДРЫ!E33","v":0},null,null,null,{"$f":"IF(КАДРЫ!I33=\"\",LOWER(КАДРЫ!K33),LOWER(КАДРЫ!I33))","v":"мастер погрузо-разгрузочных работ"},{"$f":"КАДРЫ!D33","v":0},null,null,null,null,null,null,{"$f":"VLOOKUP(F33&\"*\",ДОЛЖНОСТИ!B:B,1,)","v":"мастер погрузо-разгрузочных работ"},{"$f":"REPLACE(F33,100,2,ДОЛЖНОСТИ!$B$2:$B$71)","v":"мастер погрузо-разгрузочных работначальник службы судового хозяйства"}]
[33,{"$f":"КАДРЫ!E34","v":0},null,null,null,{"$f":"IF(КАДРЫ!I34=\"\",LOWER(КАДРЫ!K34),LOWER(КАДРЫ!I34))","v":"мастер такелажно-судовых работ"},{"$f":"КАДРЫ!D34","v":0},null,null,null,null,null,null,{"$f":"VLOOKUP(F34&\"*\",ДОЛЖНОСТИ!B:B,1,)","v":"мастер такелажно-судовых работ"},{"$f":"REPLACE(F34,100,2,ДОЛЖНОСТИ!$B$2:$B$71)","v":"мастер такелажно-судовых работоператор электронно-вычислительных машин"}]
[34,{"$f":"КАДРЫ!E35","v":0},null,null,null,{"$f":"IF(КАДРЫ!I35=\"\",LOWER(КАДРЫ!K35),LOWER(КАДРЫ!I35))","v":"матрос 1 класса"},{"$f":"КАДРЫ!D35","v":0},null,null,null,null,null,null,{"$f":"VLOOKUP(F35&\"*\",ДОЛЖНОСТИ!B:B,1,)","v":"матрос 1 класса"},{"$f":"REPLACE(F35,100,2,ДОЛЖНОСТИ!$B$2:$B$71)","v":"матрос 1 классаповарс удовой 1 категории"}]
[35,{"$f":"КАДРЫ!E36","v":0},null,null,null,{"$f":"IF(КАДРЫ!I36=\"\",LOWER(КАДРЫ!K36),LOWER(КАДРЫ!I36))","v":"матрос 1 класса"},{"$f":"КАДРЫ!D36","v":0},null,null,null,null,null,null,{"$f":"VLOOKUP(F36&\"*\",ДОЛЖНОСТИ!B:B,1,)","v":"матрос 1 класса"},{"$f":"REPLACE(F36,100,2,ДОЛЖНОСТИ!$B$2:$B$71)","v":"матрос 1 классаповар судовой 2 категории"}]
[36,{"$f":"КАДРЫ!E37","v":0},null,null,null,{"$f":"IF(КАДРЫ!I37=\"\",LOWER(КАДРЫ!K37),LOWER(КАДРЫ!I37))","v":"матрос 1 класса"},{"$f":"КАДРЫ!D37","v":0},null,null,null,null,null,null,{"$f":"VLOOKUP(F37&\"*\",ДОЛЖНОСТИ!B:B,1,)","v":"матрос 1 класса"},{"$f":"REPLACE(F37,100,2,ДОЛЖНОСТИ!$B$2:$B$71)","v":"матрос 1 классапроводник на водном транспорте"}]
[37,{"$f":"КАДРЫ!E38","v":0},null,null,null,{"$f":"IF(КАДРЫ!I38=\"\",LOWER(КАДРЫ!K38),LOWER(КАДРЫ!I38))","v":"матрос 1 класса"},{"$f":"КАДРЫ!D38","v":0},null,null,null,null,null,null,{"$f":"VLOOKUP(F38&\"*\",ДОЛЖНОСТИ!B:B,1,)","v":"матрос 1 класса"},{"$f":"REPLACE(F38,100,2,ДОЛЖНОСТИ!$B$2:$B$71)","v":"матрос 1 классаслесарь-ремонтник"}]
[38,{"$f":"КАДРЫ!E39","v":0},null,null,null,{"$f":"IF(КАДРЫ!I39=\"\",LOWER(КАДРЫ!K39),LOWER(КАДРЫ!I39))","v":"матрос 1 класса"},{"$f":"КАДРЫ!D39","v":0},null,null,null,null,null,null,{"$f":"VLOOKUP(F39&\"*\",ДОЛЖНОСТИ!B:B,1,)","v":"матрос 1 класса"},{"$f":"REPLACE(F39,100,2,ДОЛЖНОСТИ!$B$2:$B$71)","v":"матрос 1 классасменный капитан-сменный механик"}]
[39,{"$f":"КАДРЫ!E40","v":0},null,null,null,{"$f":"IF(КАДРЫ!I40=\"\",LOWER(КАДРЫ!K40),LOWER(КАДРЫ!I40))","v":"матрос 1 класса"},{"$f":"КАДРЫ!D40","v":0},null,null,null,null,null,null,{"$f":"VLOOKUP(F40&\"*\",ДОЛЖНОСТИ!B:B,1,)","v":"матрос 1 класса"},{"$f":"REPLACE(F40,100,2,ДОЛЖНОСТИ!$B$2:$B$71)","v":"матрос 1 классасменный капитан-диспетчер"}]
[40,{"$f":"КАДРЫ!E41","v":0},null,null,null,{"$f":"IF(КАДРЫ!I41=\"\",LOWER(КАДРЫ!K41),LOWER(КАДРЫ!I41))","v":"матрос 1 класса"},{"$f":"КАДРЫ!D41","v":0},null,null,null,null,null,null,{"$f":"VLOOKUP(F41&\"*\",ДОЛЖНОСТИ!B:B,1,)","v":"матрос 1 класса"},{"$f":"REPLACE(F41,100,2,ДОЛЖНОСТИ!$B$2:$B$71)","v":"матрос 1 классасменный механик"}]
[41,{"$f":"КАДРЫ!E42","v":0},null,null,null,{"$f":"IF(КАДРЫ!I42=\"\",LOWER(КАДРЫ!K42),LOWER(КАДРЫ!I42))","v":"матрос 1 класса"},{"$f":"КАДРЫ!D42","v":0},null,null,null,null,null,null,{"$f":"VLOOKUP(F42&\"*\",ДОЛЖНОСТИ!B:B,1,)","v":"матрос 1 класса"},{"$f":"REPLACE(F42,100,2,ДОЛЖНОСТИ!$B$2:$B$71)","v":"матрос 1 классасменный помощник капитана"}]
[42,{"$f":"КАДРЫ!E43","v":0},null,null,null,{"$f":"IF(КАДРЫ!I43=\"\",LOWER(КАДРЫ!K43),LOWER(КАДРЫ!I43))","v":"матрос 1 класса"},{"$f":"КАДРЫ!D43","v":0},null,null,null,null,null,null,{"$f":"VLOOKUP(F43&\"*\",ДОЛЖНОСТИ!B:B,1,)","v":"матрос 1 класса"},{"$f":"REPLACE(F43,100,2,ДОЛЖНОСТИ!$B$2:$B$71)","v":"матрос 1 классасменный помощник капитана-кранмейстер"}]
[43,{"$f":"КАДРЫ!E44","v":0},null,null,null,{"$f":"IF(КАДРЫ!I44=\"\",LOWER(КАДРЫ!K44),LOWER(КАДРЫ!I44))","v":"матрос 1 класса"},{"$f":"КАДРЫ!D44","v":0},null,null,null,null,null,null,{"$f":"VLOOKUP(F44&\"*\",ДОЛЖНОСТИ!B:B,1,)","v":"матрос 1 класса"},{"$f":"REPLACE(F44,100,2,ДОЛЖНОСТИ!$B$2:$B$71)","v":"матрос 1 классасменный помощник капитана-сменный кранмейстер"}]
[44,{"$f":"КАДРЫ!E45","v":0},null,null,null,{"$f":"IF(КАДРЫ!I45=\"\",LOWER(КАДРЫ!K45),LOWER(КАДРЫ!I45))","v":"матрос 1 класса"},{"$f":"КАДРЫ!D45","v":0},null,null,null,null,null,null,{"$f":"VLOOKUP(F45&\"*\",ДОЛЖНОСТИ!B:B,1,)","v":"матрос 1 класса"},{"$f":"REPLACE(F45,100,2,ДОЛЖНОСТИ!$B$2:$B$71)","v":"матрос 1 классасменный электромеханик"}]
[45,{"$f":"КАДРЫ!E46","v":0},null,null,null,{"$f":"IF(КАДРЫ!I46=\"\",LOWER(КАДРЫ!K46),LOWER(КАДРЫ!I46))","v":"матрос 1 класса"},{"$f":"КАДРЫ!D46","v":0},null,null,null,null,null,null,{"$f":"VLOOKUP(F46&\"*\",ДОЛЖНОСТИ!B:B,1,)","v":"матрос 1 класса"},{"$f":"REPLACE(F46,100,2,ДОЛЖНОСТИ!$B$2:$B$71)","v":"матрос 1 классаспециалист по охране труда"}]
[46,{"$f":"КАДРЫ!E47","v":0},null,null,null,{"$f":"IF(КАДРЫ!I47=\"\",LOWER(КАДРЫ!K47),LOWER(КАДРЫ!I47))","v":"матрос 1 класса"},{"$f":"КАДРЫ!D47","v":0},null,null,null,null,null,null,{"$f":"VLOOKUP(F47&\"*\",ДОЛЖНОСТИ!B:B,1,)","v":"матрос 1 класса"},{"$f":"REPLACE(F47,100,2,ДОЛЖНОСТИ!$B$2:$B$71)","v":"матрос 1 классастарший кладовщик"}]
[47,{"$f":"КАДРЫ!E48","v":0},null,null,null,{"$f":"IF(КАДРЫ!I48=\"\",LOWER(КАДРЫ!K48),LOWER(КАДРЫ!I48))","v":"матрос 1 класса"},{"$f":"КАДРЫ!D48","v":0},null,null,null,null,null,null,{"$f":"VLOOKUP(F48&\"*\",ДОЛЖНОСТИ!B:B,1,)","v":"матрос 1 класса"},{"$f":"REPLACE(F48,100,2,ДОЛЖНОСТИ!$B$2:$B$71)","v":"матрос 1 классастарший мастер-руководитель участката келажных работ"}]
[48,{"$f":"КАДРЫ!E49","v":0},null,null,null,{"$f":"IF(КАДРЫ!I49=\"\",LOWER(КАДРЫ!K49),LOWER(КАДРЫ!I49))","v":"матрос 1 класса"},{"$f":"КАДРЫ!D49","v":0},null,null,null,null,null,null,{"$f":"VLOOKUP(F49&\"*\",ДОЛЖНОСТИ!B:B,1,)","v":"матрос 1 класса"},{"$f":"REPLACE(F49,100,2,ДОЛЖНОСТИ!$B$2:$B$71)","v":"матрос 1 классастарший мастер погрузочно-разгрузочных работ"}]
[49,{"$f":"КАДРЫ!E50","v":0},null,null,null,{"$f":"IF(КАДРЫ!I50=\"\",LOWER(КАДРЫ!K50),LOWER(КАДРЫ!I50))","v":"матрос 1 класса"},{"$f":"КАДРЫ!D50","v":0},null,null,null,null,null,null,{"$f":"VLOOKUP(F50&\"*\",ДОЛЖНОСТИ!B:B,1,)","v":"матрос 1 класса"},{"$f":"REPLACE(F50,100,2,ДОЛЖНОСТИ!$B$2:$B$71)","v":"матрос 1 классастарший матрос"}]
[50,{"$f":"КАДРЫ!E51","v":0},null,null,null,{"$f":"IF(КАДРЫ!I51=\"\",LOWER(КАДРЫ!K51),LOWER(КАДРЫ!I51))","v":"матрос 1 класса"},{"$f":"КАДРЫ!D51","v":0},null,null,null,null,null,null,{"$f":"VLOOKUP(F51&\"*\",ДОЛЖНОСТИ!B:B,1,)","v":"матрос 1 класса"},{"$f":"REPLACE(F51,100,2,ДОЛЖНОСТИ!$B$2:$B$71)","v":"матрос 1 классастарший механик"}]
[51,{"$f":"КАДРЫ!E52","v":0},null,null,null,{"$f":"IF(КАДРЫ!I52=\"\",LOWER(КАДРЫ!K52),LOWER(КАДРЫ!I52))","v":"матрос 1 класса"},{"$f":"КАДРЫ!D52","v":0},null,null,null,null,null,null,{"$f":"VLOOKUP(F52&\"*\",ДОЛЖНОСТИ!B:B,1,)","v":"матрос 1 класса"},{"$f":"REPLACE(F52,100,2,ДОЛЖНОСТИ!$B$2:$B$71)","v":"матрос 1 классастарший помощник капитана"}]
[52,{"$f":"КАДРЫ!E53","v":0},null,null,null,{"$f":"IF(КАДРЫ!I53=\"\",LOWER(КАДРЫ!K53),LOWER(КАДРЫ!I53))","v":"матрос 1 класса"},{"$f":"КАДРЫ!D53","v":0},null,null,null,null,null,null,{"$f":"VLOOKUP(F53&\"*\",ДОЛЖНОСТИ!B:B,1,)","v":"матрос 1 класса"},{"$f":"REPLACE(F53,100,2,ДОЛЖНОСТИ!$B$2:$B$71)","v":"матрос 1 классастарший помощник капитана-сменный кранмейстер"}]
[53,{"$f":"КАДРЫ!E54","v":0},null,null,null,{"$f":"IF(КАДРЫ!I54=\"\",LOWER(КАДРЫ!K54),LOWER(КАДРЫ!I54))","v":"матрос 1 класса"},{"$f":"КАДРЫ!D54","v":0},null,null,null,null,null,null,{"$f":"VLOOKUP(F54&\"*\",ДОЛЖНОСТИ!B:B,1,)","v":"матрос 1 класса"},{"$f":"REPLACE(F54,100,2,ДОЛЖНОСТИ!$B$2:$B$71)","v":"матрос 1 классастарший помощник начальника дока (докмейстер)"}]
[54,{"$f":"КАДРЫ!E55","v":0},null,null,null,{"$f":"IF(КАДРЫ!I55=\"\",LOWER(КАДРЫ!K55),LOWER(КАДРЫ!I55))","v":"матрос 1 класса"},{"$f":"КАДРЫ!D55","v":0},null,null,null,null,null,null,{"$f":"VLOOKUP(F55&\"*\",ДОЛЖНОСТИ!B:B,1,)","v":"матрос 1 класса"},{"$f":"REPLACE(F55,100,2,ДОЛЖНОСТИ!$B$2:$B$71)","v":"матрос 1 классастарший проводник на водном транспорте"}]
[55,{"$f":"КАДРЫ!E56","v":0},null,null,null,{"$f":"IF(КАДРЫ!I56=\"\",LOWER(КАДРЫ!K56),LOWER(КАДРЫ!I56))","v":"матрос 1 класса"},{"$f":"КАДРЫ!D56","v":0},null,null,null,null,null,null,{"$f":"VLOOKUP(F56&\"*\",ДОЛЖНОСТИ!B:B,1,)","v":"матрос 1 класса"},{"$f":"REPLACE(F56,100,2,ДОЛЖНОСТИ!$B$2:$B$71)","v":"матрос 1 классастарший электрик судовой"}]
[56,{"$f":"КАДРЫ!E57","v":0},null,null,null,{"$f":"IF(КАДРЫ!I57=\"\",LOWER(КАДРЫ!K57),LOWER(КАДРЫ!I57))","v":"матрос 1 класса"},{"$f":"КАДРЫ!D57","v":0},null,null,null,null,null,null,{"$f":"VLOOKUP(F57&\"*\",ДОЛЖНОСТИ!B:B,1,)","v":"матрос 1 класса"},{"$f":"REPLACE(F57,100,2,ДОЛЖНОСТИ!$B$2:$B$71)","v":"матрос 1 классастарший электромеханик"}]
[57,{"$f":"КАДРЫ!E58","v":0},null,null,null,{"$f":"IF(КАДРЫ!I58=\"\",LOWER(КАДРЫ!K58),LOWER(КАДРЫ!I58))","v":"матрос 1 класса"},{"$f":"КАДРЫ!D58","v":0},null,null,null,null,null,null,{"$f":"VLOOKUP(F58&\"*\",ДОЛЖНОСТИ!B:B,1,)","v":"матрос 1 класса"},{"$f":"REPLACE(F58,100,2,ДОЛЖНОСТИ!$B$2:$B$71)","v":"матрос 1 классатакелажник"}]
[58,{"$f":"КАДРЫ!E59","v":0},null,null,null,{"$f":"IF(КАДРЫ!I59=\"\",LOWER(КАДРЫ!K59),LOWER(КАДРЫ!I59))","v":"матрос 1 класса"},{"$f":"КАДРЫ!D59","v":0},null,null,null,null,null,null,{"$f":"VLOOKUP(F59&\"*\",ДОЛЖНОСТИ!B:B,1,)","v":"матрос 1 класса"},{"$f":"REPLACE(F59,100,2,ДОЛЖНОСТИ!$B$2:$B$71)","v":"матрос 1 классатакелажник судовой"}]
[59,{"$f":"КАДРЫ!E60","v":0},null,null,null,{"$f":"IF(КАДРЫ!I60=\"\",LOWER(КАДРЫ!K60),LOWER(КАДРЫ!I60))","v":"матрос 1 класса"},{"$f":"КАДРЫ!D60","v":0},null,null,null,null,null,null,{"$f":"VLOOKUP(F60&\"*\",ДОЛЖНОСТИ!B:B,1,)","v":"матрос 1 класса"},{"$f":"REPLACE(F60,100,2,ДОЛЖНОСТИ!$B$2:$B$71)","v":"матрос 1 классатретий механик"}]
[60,{"$f":"КАДРЫ!E61","v":0},null,null,null,{"$f":"IF(КАДРЫ!I61=\"\",LOWER(КАДРЫ!K61),LOWER(КАДРЫ!I61))","v":"матрос 1 класса"},{"$f":"КАДРЫ!D61","v":0},null,null,null,null,null,null,{"$f":"VLOOKUP(F61&\"*\",ДОЛЖНОСТИ!B:B,1,)","v":"матрос 1 класса"},{"$f":"REPLACE(F61,100,2,ДОЛЖНОСТИ!$B$2:$B$71)","v":"матрос 1 классатретий помощник капитана"}]
[61,{"$f":"КАДРЫ!E62","v":0},null,null,null,{"$f":"IF(КАДРЫ!I62=\"\",LOWER(КАДРЫ!K62),LOWER(КАДРЫ!I62))","v":"матрос 1 класса"},{"$f":"КАДРЫ!D62","v":0},null,null,null,null,null,null,{"$f":"VLOOKUP(F62&\"*\",ДОЛЖНОСТИ!B:B,1,)","v":"матрос 1 класса"},{"$f":"REPLACE(F62,100,2,ДОЛЖНОСТИ!$B$2:$B$71)","v":"матрос 1 классатретий электромеханик"}]
[62,{"$f":"КАДРЫ!E63","v":0},null,null,null,{"$f":"IF(КАДРЫ!I63=\"\",LOWER(КАДРЫ!K63),LOWER(КАДРЫ!I63))","v":"матрос 1 класса"},{"$f":"КАДРЫ!D63","v":0},null,null,null,null,null,null,{"$f":"VLOOKUP(F63&\"*\",ДОЛЖНОСТИ!B:B,1,)","v":"матрос 1 класса"},{"$f":"REPLACE(F63,100,2,ДОЛЖНОСТИ!$B$2:$B$71)","v":"матрос 1 классауборщик производственных помещений"}]
[63,{"$f":"КАДРЫ!E64","v":0},null,null,null,{"$f":"IF(КАДРЫ!I64=\"\",LOWER(КАДРЫ!K64),LOWER(КАДРЫ!I64))","v":"матрос 1 класса"},{"$f":"КАДРЫ!D64","v":0},null,null,null,null,null,null,{"$f":"VLOOKUP(F64&\"*\",ДОЛЖНОСТИ!B:B,1,)","v":"матрос 1 класса"},{"$f":"REPLACE(F64,100,2,ДОЛЖНОСТИ!$B$2:$B$71)","v":"матрос 1 классауборщик служебных помещений"}]
[64,{"$f":"КАДРЫ!E65","v":0},null,null,null,{"$f":"IF(КАДРЫ!I65=\"\",LOWER(КАДРЫ!K65),LOWER(КАДРЫ!I65))","v":"матрос 1 класса"},{"$f":"КАДРЫ!D65","v":0},null,null,null,null,null,null,{"$f":"VLOOKUP(F65&\"*\",ДОЛЖНОСТИ!B:B,1,)","v":"матрос 1 класса"},{"$f":"REPLACE(F65,100,2,ДОЛЖНОСТИ!$B$2:$B$71)","v":"матрос 1 классауборщик территорий (улиц)"}]
[65,{"$f":"КАДРЫ!E66","v":0},null,null,null,{"$f":"IF(КАДРЫ!I66=\"\",LOWER(КАДРЫ!K66),LOWER(КАДРЫ!I66))","v":"матрос 1 класса"},{"$f":"КАДРЫ!D66","v":0},null,null,null,null,null,null,{"$f":"VLOOKUP(F66&\"*\",ДОЛЖНОСТИ!B:B,1,)","v":"матрос 1 класса"},{"$f":"REPLACE(F66,100,2,ДОЛЖНОСТИ!$B$2:$B$71)","v":"матрос 1 классачетвертый механик"}]
[66,{"$f":"КАДРЫ!E67","v":0},null,null,null,{"$f":"IF(КАДРЫ!I67=\"\",LOWER(КАДРЫ!K67),LOWER(КАДРЫ!I67))","v":"матрос 1 класса"},{"$f":"КАДРЫ!D67","v":0},null,null,null,null,null,null,{"$f":"VLOOKUP(F67&\"*\",ДОЛЖНОСТИ!B:B,1,)","v":"матрос 1 класса"},{"$f":"REPLACE(F67,100,2,ДОЛЖНОСТИ!$B$2:$B$71)","v":"матрос 1 классаэлектрик судовой"}]
[67,{"$f":"КАДРЫ!E68","v":0},null,null,null,{"$f":"IF(КАДРЫ!I68=\"\",LOWER(КАДРЫ!K68),LOWER(КАДРЫ!I68))","v":"матрос 1 класса"},{"$f":"КАДРЫ!D68","v":0},null,null,null,null,null,null,{"$f":"VLOOKUP(F68&\"*\",ДОЛЖНОСТИ!B:B,1,)","v":"матрос 1 класса"},{"$f":"REPLACE(F68,100,2,ДОЛЖНОСТИ!$B$2:$B$71)","v":"матрос 1 классаэлектрогазосварщик"}]
[68,{"$f":"КАДРЫ!E69","v":0},null,null,null,{"$f":"IF(КАДРЫ!I69=\"\",LOWER(КАДРЫ!K69),LOWER(КАДРЫ!I69))","v":"матрос 1 класса"},{"$f":"КАДРЫ!D69","v":0},null,null,null,null,null,null,{"$f":"VLOOKUP(F69&\"*\",ДОЛЖНОСТИ!B:B,1,)","v":"матрос 1 класса"},{"$f":"REPLACE(F69,100,2,ДОЛЖНОСТИ!$B$2:$B$71)","v":"матрос 1 классаэлектромеханик"}]
[69,{"$f":"КАДРЫ!E70","v":0},null,null,null,{"$f":"IF(КАДРЫ!I70=\"\",LOWER(КАДРЫ!K70),LOWER(КАДРЫ!I70))","v":"матрос 1 класса"},{"$f":"КАДРЫ!D70","v":0},null,null,null,null,null,null,{"$f":"VLOOKUP(F70&\"*\",ДОЛЖНОСТИ!B:B,1,)","v":"матрос 1 класса"},{"$f":"REPLACE(F70,100,2,ДОЛЖНОСТИ!$B$2:$B$71)","v":"матрос 1 классаэлектромонтер по ремонту и обслуживанию электрооборудования"}]
[70,{"$f":"КАДРЫ!E71","v":0},null,null,null,{"$f":"IF(КАДРЫ!I71=\"\",LOWER(КАДРЫ!K71),LOWER(КАДРЫ!I71))","v":"матрос 1 класса"},{"$f":"КАДРЫ!D71","v":0},null,null,null,null,null,null,{"$f":"VLOOKUP(F71&\"*\",ДОЛЖНОСТИ!B:B,1,)","v":"матрос 1 класса"},{"$f":"REPLACE(F71,100,2,ДОЛЖНОСТИ!$B$2:$B$71)","v":"матрос 1 класса"}]
[71,{"$f":"КАДРЫ!E72","v":0},null,null,null,{"$f":"IF(КАДРЫ!I72=\"\",LOWER(КАДРЫ!K72),LOWER(КАДРЫ!I72))","v":"матрос 1 класса"},{"$f":"КАДРЫ!D72","v":0},null,null,null,null,null,null,{"$f":"VLOOKUP(F72&\"*\",ДОЛЖНОСТИ!B:B,1,)","v":"матрос 1 класса"},{"$f":"REPLACE(F72,100,2,ДОЛЖНОСТИ!$B$2:$B$71)","v":{"$error":"#VALUE!"}}]
[72,{"$f":"КАДРЫ!E73","v":0},null,null,null,{"$f":"IF(КАДРЫ!I73=\"\",LOWER(КАДРЫ!K73),LOWER(КАДРЫ!I73))","v":"матрос 1 класса"},{"$f":"КАДРЫ!D73","v":0},null,null,null,null,null,null,{"$f":"VLOOKUP(F73&\"*\",ДОЛЖНОСТИ!B:B,1,)","v":"матрос 1 класса"},{"$f":"REPLACE(F73,100,2,ДОЛЖНОСТИ!$B$2:$B$71)","v":{"$error":"#VALUE!"}}]
[73,{"$f":"КАДРЫ!E74","v":0},null,null,null,{"$f":"IF(КАДРЫ!I74=\"\",LOWER(КАДРЫ!K74),LOWER(КАДРЫ!I74))","v":"матрос 1 класса"},{"$f":"КАДРЫ!D74","v":0},null,null,null,null,null,null,{"$f":"VLOOKUP(F74&\"*\",ДОЛЖНОСТИ!B:B,1,)","v":"матрос 1 класса"},{"$f":"REPLACE(F74,100,2,ДОЛЖНОСТИ!$B$2:$B$71)","v":{"$error":"#VALUE!"}}]
[74,{"$f":"КАДРЫ!E75","v":0},null,null,null,{"$f":"IF(КАДРЫ!I75=\"\",LOWER(КАДРЫ!K75),LOWER(КАДРЫ!I75))","v":"матрос 1 класса"},{"$f":"КАДРЫ!D75","v":0},null,null,null,null,null,null,{"$f":"VLOOKUP(F75&\"*\",ДОЛЖНОСТИ!B:B,1,)","v":"матрос 1 класса"},{"$f":"REPLACE(F75,100,2,ДОЛЖНОСТИ!$B$2:$B$71)","v":{"$error":"#VALUE!"}}]
[75,{"$f":"КАДРЫ!E76","v":0},null,null,null,{"$f":"IF(КАДРЫ!I76=\"\",LOWER(КАДРЫ!K76),LOWER(КАДРЫ!I76))","v":"матрос 1 класса"},{"$f":"КАДРЫ!D76","v":0},null,null,null,null,null,null,{"$f":"VLOOKUP(F76&\"*\",ДОЛЖНОСТИ!B:B,1,)","v":"матрос 1 класса"},{"$f":"REPLACE(F76,100,2,ДОЛЖНОСТИ!$B$2:$B$71)","v":{"$error":"#VALUE!"}}]
[76,{"$f":"КАДРЫ!E77","v":0},null,null,null,{"$f":"IF(КАДРЫ!I77=\"\",LOWER(КАДРЫ!K77),LOWER(КАДРЫ!I77))","v":"матрос 1 класса"},{"$f":"КАДРЫ!D77","v":0},null,null,null,null,null,null,{"$f":"VLOOKUP(F77&\"*\",ДОЛЖНОСТИ!B:B,1,)","v":"матрос 1 класса"},{"$f":"REPLACE(F77,100,2,ДОЛЖНОСТИ!$B$2:$B$71)","v":{"$error":"#VALUE!"}}]
[77,{"$f":"КАДРЫ!E78","v":0},null,null,null,{"$f":"IF(КАДРЫ!I78=\"\",LOWER(КАДРЫ!K78),LOWER(КАДРЫ!I78))","v":"матрос 1 класса"},{"$f":"КАДРЫ!D78","v":0},null,null,null,null,null,null,{"$f":"VLOOKUP(F78&\"*\",ДОЛЖНОСТИ!B:B,1,)","v":"матрос 1 класса"},{"$f":"REPLACE(F78,100,2,ДОЛЖНОСТИ!$B$2:$B$71)","v":{"$error":"#VALUE!"}}]
[78,{"$f":"КАДРЫ!E79","v":0},null,null,null,{"$f":"IF(КАДРЫ!I79=\"\",LOWER(КАДРЫ!K79),LOWER(КАДРЫ!I79))","v":"машинист крана (крановщик)"},{"$f":"КАДРЫ!D79","v":0},null,null,null,null,null,null,{"$f":"VLOOKUP(F79&\"*\",ДОЛЖНОСТИ!B:B,1,)","v":"машинист крана (крановщик)"},{"$f":"REPLACE(F79,100,2,ДОЛЖНОСТИ!$B$2:$B$71)","v":{"$error":"#VALUE!"}}]
[79,{"$f":"КАДРЫ!E80","v":0},null,null,null,{"$f":"IF(КАДРЫ!I80=\"\",LOWER(КАДРЫ!K80),LOWER(КАДРЫ!I80))","v":"машинист крана (крановщик)"},{"$f":"КАДРЫ!D80","v":0},null,null,null,null,null,null,{"$f":"VLOOKUP(F80&\"*\",ДОЛЖНОСТИ!B:B,1,)","v":"машинист крана (крановщик)"},{"$f":"REPLACE(F80,100,2,ДОЛЖНОСТИ!$B$2:$B$71)","v":{"$error":"#VALUE!"}}]
[80,{"$f":"КАДРЫ!E81","v":0},null,null,null,{"$f":"IF(КАДРЫ!I81=\"\",LOWER(КАДРЫ!K81),LOWER(КАДРЫ!I81))","v":"машинист крана (крановщик)"},{"$f":"КАДРЫ!D81","v":0},null,null,null,null,null,null,{"$f":"VLOOKUP(F81&\"*\",ДОЛЖНОСТИ!B:B,1,)","v":"машинист крана (крановщик)"},{"$f":"REPLACE(F81,100,2,ДОЛЖНОСТИ!$B$2:$B$71)","v":{"$error":"#VALUE!"}}]
[81,{"$f":"КАДРЫ!E82","v":0},null,null,null,{"$f":"IF(КАДРЫ!I82=\"\",LOWER(КАДРЫ!K82),LOWER(КАДРЫ!I82))","v":"машинист крана (крановщик)"},{"$f":"КАДРЫ!D82","v":0},null,null,null,null,null,null,{"$f":"VLOOKUP(F82&\"*\",ДОЛЖНОСТИ!B:B,1,)","v":"машинист крана (крановщик)"},{"$f":"REPLACE(F82,100,2,ДОЛЖНОСТИ!$B$2:$B$71)","v":{"$error":"#VALUE!"}}]
[82,{"$f":"КАДРЫ!E83","v":0},null,null,null,{"$f":"IF(КАДРЫ!I83=\"\",LOWER(КАДРЫ!K83),LOWER(КАДРЫ!I83))","v":"машинист крана (крановщик)"},{"$f":"КАДРЫ!D83","v":0},null,null,null,null,null,null,{"$f":"VLOOKUP(F83&\"*\",ДОЛЖНОСТИ!B:B,1,)","v":"машинист крана (крановщик)"},{"$f":"REPLACE(F83,100,2,ДОЛЖНОСТИ!$B$2:$B$71)","v":{"$error":"#VALUE!"}}]
[83,{"$f":"КАДРЫ!E84","v":0},null,null,null,{"$f":"IF(КАДРЫ!I84=\"\",LOWER(КАДРЫ!K84),LOWER(КАДРЫ!I84))","v":"машинист крана (крановщик)"},{"$f":"КАДРЫ!D84","v":0},null,null,null,null,null,null,{"$f":"VLOOKUP(F84&\"*\",ДОЛЖНОСТИ!B:B,1,)","v":"машинист крана (крановщик)"},{"$f":"REPLACE(F84,100,2,ДОЛЖНОСТИ!$B$2:$B$71)","v":{"$error":"#VALUE!"}}]
[84,{"$f":"КАДРЫ!E85","v":0},null,null,null,{"$f":"IF(КАДРЫ!I85=\"\",LOWER(КАДРЫ!K85),LOWER(КАДРЫ!I85))","v":"машинист крана (крановщик)"},{"$f":"КАДРЫ!D85","v":0},null,null,null,null,null,null,{"$f":"VLOOKUP(F85&\"*\",ДОЛЖНОСТИ!B:B,1,)","v":"машинист крана (крановщик)"},{"$f":"REPLACE(F85,100,2,ДОЛЖНОСТИ!$B$2:$B$71)","v":{"$error":"#VALUE!"}}]
[85,{"$f":"КАДРЫ!E86","v":0},null,null,null,{"$f":"IF(КАДРЫ!I86=\"\",LOWER(КАДРЫ!K86),LOWER(КАДРЫ!I86))","v":"машинист крана (крановщик)"},{"$f":"КАДРЫ!D86","v":0},null,null,null,null,null,null,{"$f":"VLOOKUP(F86&\"*\",ДОЛЖНОСТИ!B:B,1,)","v":"машинист крана (крановщик)"},{"$f":"REPLACE(F86,100,2,ДОЛЖНОСТИ!$B$2:$B$71)","v":{"$error":"#VALUE!"}}]
[86,{"$f":"КАДРЫ!E87","v":0},null,null,null,{"$f":"IF(КАДРЫ!I87=\"\",LOWER(КАДРЫ!K87),LOWER(КАДРЫ!I87))","v":"машинист крана (крановщик)"},{"$f":"КАДРЫ!D87","v":0},null,null,null,null,null,null,{"$f":"VLOOKUP(F87&\"*\",ДОЛЖНОСТИ!B:B,1,)","v":"машинист крана (крановщик)"},{"$f":"REPLACE(F87,100,2,ДОЛЖНОСТИ!$B$2:$B$71)","v":{"$error":"#VALUE!"}}]
[87,{"$f":"КАДРЫ!E88","v":0},null,null,null,{"$f":"IF(КАДРЫ!I88=\"\",LOWER(КАДРЫ!K88),LOWER(КАДРЫ!I88))","v":"машинист крана (крановщик)"},{"$f":"КАДРЫ!D88","v":0},null,null,null,null,null,null,{"$f":"VLOOKUP(F88&\"*\",ДОЛЖНОСТИ!B:B,1,)","v":"машинист крана (крановщик)"},{"$f":"REPLACE(F88,100,2,ДОЛЖНОСТИ!$B$2:$B$71)","v":{"$error":"#VALUE!"}}]
[88,{"$f":"КАДРЫ!E89","v":0},null,null,null,{"$f":"IF(КАДРЫ!I89=\"\",LOWER(КАДРЫ!K89),LOWER(КАДРЫ!I89))","v":"машинист крана (крановщик)"},{"$f":"КАДРЫ!D89","v":0},null,null,null,null,null,null,{"$f":"VLOOKUP(F89&\"*\",ДОЛЖНОСТИ!B:B,1,)","v":"машинист крана (крановщик)"},{"$f":"REPLACE(F89,100,2,ДОЛЖНОСТИ!$B$2:$B$71)","v":{"$error":"#VALUE!"}}]
[89,{"$f":"КАДРЫ!E90","v":0},null,null,null,{"$f":"IF(КАДРЫ!I90=\"\",LOWER(КАДРЫ!K90),LOWER(КАДРЫ!I90))","v":"машинист крана (крановщик)"},{"$f":"КАДРЫ!D90","v":0},null,null,null,null,null,null,{"$f":"VLOOKUP(F90&\"*\",ДОЛЖНОСТИ!B:B,1,)","v":"машинист крана (крановщик)"},{"$f":"REPLACE(F90,100,2,ДОЛЖНОСТИ!$B$2:$B$71)","v":{"$error":"#VALUE!"}}]
[90,{"$f":"КАДРЫ!E91","v":0},null,null,null,{"$f":"IF(КАДРЫ!I91=\"\",LOWER(КАДРЫ!K91),LOWER(КАДРЫ!I91))","v":"машинист крана (крановщик)"},{"$f":"КАДРЫ!D91","v":0},null,null,null,null,null,null,{"$f":"VLOOKUP(F91&\"*\",ДОЛЖНОСТИ!B:B,1,)","v":"машинист крана (крановщик)"},{"$f":"REPLACE(F91,100,2,ДОЛЖНОСТИ!$B$2:$B$71)","v":{"$error":"#VALUE!"}}]
[91,{"$f":"КАДРЫ!E92","v":0},null,null,null,{"$f":"IF(КАДРЫ!I92=\"\",LOWER(КАДРЫ!K92),LOWER(КАДРЫ!I92))","v":"машинист крана (крановщик)"},{"$f":"КАДРЫ!D92","v":0},null,null,null,null,null,null,{"$f":"VLOOKUP(F92&\"*\",ДОЛЖНОСТИ!B:B,1,)","v":"машинист крана (крановщик)"},{"$f":"REPLACE(F92,100,2,ДОЛЖНОСТИ!$B$2:$B$71)","v":{"$error":"#VALUE!"}}]
[92,{"$f":"КАДРЫ!E93","v":0},null,null,null,{"$f":"IF(КАДРЫ!I93=\"\",LOWER(КАДРЫ!K93),LOWER(КАДРЫ!I93))","v":"машинист крана (крановщик)"},{"$f":"КАДРЫ!D93","v":0},null,null,null,null,null,null,{"$f":"VLOOKUP(F93&\"*\",ДОЛЖНОСТИ!B:B,1,)","v":"машинист крана (крановщик)"},{"$f":"REPLACE(F93,100,2,ДОЛЖНОСТИ!$B$2:$B$71)","v":{"$error":"#VALUE!"}}]
[93,{"$f":"КАДРЫ!E94","v":0},null,null,null,{"$f":"IF(КАДРЫ!I94=\"\",LOWER(КАДРЫ!K94),LOWER(КАДРЫ!I94))","v":"машинист крана (крановщик)"},{"$f":"КАДРЫ!D94","v":0},null,null,null,null,null,null,{"$f":"VLOOKUP(F94&\"*\",ДОЛЖНОСТИ!B:B,1,)","v":"машинист крана (крановщик)"},{"$f":"REPLACE(F94,100,2,ДОЛЖНОСТИ!$B$2:$B$71)","v":{"$error":"#VALUE!"}}]
[94,{"$f":"КАДРЫ!E95","v":0},null,null,null,{"$f":"IF(КАДРЫ!I95=\"\",LOWER(КАДРЫ!K95),LOWER(КАДРЫ!I95))","v":"машинист крана (крановщик)"},{"$f":"КАДРЫ!D95","v":0},null,null,null,null,null,null,{"$f":"VLOOKUP(F95&\"*\",ДОЛЖНОСТИ!B:B,1,)","v":"машинист крана (крановщик)"},{"$f":"REPLACE(F95,100,2,ДОЛЖНОСТИ!$B$2:$B$71)","v":{"$error":"#VALUE!"}}]
[95,{"$f":"КАДРЫ!E96","v":0},null,null,null,{"$f":"IF(КАДРЫ!I96=\"\",LOWER(КАДРЫ!K96),LOWER(КАДРЫ!I96))","v":"машинист крана (крановщик)"},{"$f":"КАДРЫ!D96","v":0},null,null,null,null,null,null,{"$f":"VLOOKUP(F96&\"*\",ДОЛЖНОСТИ!B:B,1,)","v":"машинист крана (крановщик)"},{"$f":"REPLACE(F96,100,2,ДОЛЖНОСТИ!$B$2:$B$71)","v":{"$error":"#VALUE!"}}]
[96,{"$f":"КАДРЫ!E97","v":0},null,null,null,{"$f":"IF(КАДРЫ!I97=\"\",LOWER(КАДРЫ!K97),LOWER(КАДРЫ!I97))","v":"машинист крана (крановщик)"},{"$f":"КАДРЫ!D97","v":0},null,null,null,null,null,null,{"$f":"VLOOKUP(F97&\"*\",ДОЛЖНОСТИ!B:B,1,)","v":"машинист крана (крановщик)"},{"$f":"REPLACE(F97,100,2,ДОЛЖНОСТИ!$B$2:$B$71)","v":{"$error":"#VALUE!"}}]
[97,{"$f":"КАДРЫ!E98","v":0},null,null,null,{"$f":"IF(КАДРЫ!I98=\"\",LOWER(КАДРЫ!K98),LOWER(КАДРЫ!I98))","v":"машинист крана (крановщик)"},{"$f":"КАДРЫ!D98","v":0},null,null,null,null,null,null,{"$f":"VLOOKUP(F98&\"*\",ДОЛЖНОСТИ!B:B,1,)","v":"машинист крана (крановщик)"},{"$f":"REPLACE(F98,100,2,ДОЛЖНОСТИ!$B$2:$B$71)","v":{"$error":"#VALUE!"}}]
[98,{"$f":"КАДРЫ!E99","v":0},null,null,null,{"$f":"IF(КАДРЫ!I99=\"\",LOWER(КАДРЫ!K99),LOWER(КАДРЫ!I99))","v":"машинист крана (крановщик)"},{"$f":"КАДРЫ!D99","v":0},null,null,null,null,null,null,{"$f":"VLOOKUP(F99&\"*\",ДОЛЖНОСТИ!B:B,1,)","v":"машинист крана (крановщик)"},{"$f":"REPLACE(F99,100,2,ДОЛЖНОСТИ!$B$2:$B$71)","v":{"$error":"#VALUE!"}}]
[99,{"$f":"КАДРЫ!E100","v":0},null,null,null,{"$f":"IF(КАДРЫ!I100=\"\",LOWER(КАДРЫ!K100),LOWER(КАДРЫ!I100))","v":"машинист крана (крановщик)"},{"$f":"КАДРЫ!D100","v":0},null,null,null,null,null,null,{"$f":"VLOOKUP(F100&\"*\",ДОЛЖНОСТИ!B:B,1,)","v":"машинист крана (крановщик)"},{"$f":"REPLACE(F100,100,2,ДОЛЖНОСТИ!$B$2:$B$71)","v":{"$error":"#VALUE!"}}]
[100,{"$f":"КАДРЫ!E101","v":0},null,null,null,{"$f":"IF(КАДРЫ!I101=\"\",LOWER(КАДРЫ!K101),LOWER(КАДРЫ!I101))","v":"машинист крана (крановщик)"},{"$f":"КАДРЫ!D101","v":0},null,null,null,null,null,null,{"$f":"VLOOKUP(F101&\"*\",ДОЛЖНОСТИ!B:B,1,)","v":"машинист крана (крановщик)"},{"$f":"REPLACE(F101,100,2,ДОЛЖНОСТИ!$B$2:$B$71)","v":{"$error":"#VALUE!"}}]
[101,{"$f":"КАДРЫ!E102","v":0},null,null,null,{"$f":"IF(КАДРЫ!I102=\"\",LOWER(КАДРЫ!K102),LOWER(КАДРЫ!I102))","v":"машинист крана (крановщик)"},{"$f":"КАДРЫ!D102","v":0},null,null,null,null,null,null,{"$f":"VLOOKUP(F102&\"*\",ДОЛЖНОСТИ!B:B,1,)","v":"машинист крана (крановщик)"},{"$f":"REPLACE(F102,100,2,ДОЛЖНОСТИ!$B$2:$B$71)","v":{"$error":"#VALUE!"}}]
[102,{"$f":"КАДРЫ!E103","v":0},null,null,null,{"$f":"IF(КАДРЫ!I103=\"\",LOWER(КАДРЫ!K103),LOWER(КАДРЫ!I103))","v":"машинист крана (крановщик)"},{"$f":"КАДРЫ!D103","v":0},null,null,null,null,null,null,{"$f":"VLOOKUP(F103&\"*\",ДОЛЖНОСТИ!B:B,1,)","v":"машинист крана (крановщик)"},{"$f":"REPLACE(F103,100,2,ДОЛЖНОСТИ!$B$2:$B$71)","v":{"$error":"#VALUE!"}}]
[103,{"$f":"КАДРЫ!E104","v":0},null,null,null,{"$f":"IF(КАДРЫ!I104=\"\",LOWER(КАДРЫ!K104),LOWER(КАДРЫ!I104))","v":"машинист крана (крановщик)"},{"$f":"КАДРЫ!D104","v":0},null,null,null,null,null,null,{"$f":"VLOOKUP(F104&\"*\",ДОЛЖНОСТИ!B:B,1,)","v":"машинист крана (крановщик)"},{"$f":"REPLACE(F104,100,2,ДОЛЖНОСТИ!$B$2:$B$71)","v":{"$error":"#VALUE!"}}]
[104,{"$f":"КАДРЫ!E105","v":0},null,null,null,{"$f":"IF(КАДРЫ!I105=\"\",LOWER(КАДРЫ!K105),LOWER(КАДРЫ!I105))","v":"машинист крана (крановщик)"},{"$f":"КАДРЫ!D105","v":0},null,null,null,null,null,null,{"$f":"VLOOKUP(F105&\"*\",ДОЛЖНОСТИ!B:B,1,)","v":"машинист крана (крановщик)"},{"$f":"REPLACE(F105,100,2,ДОЛЖНОСТИ!$B$2:$B$71)","v":{"$error":"#VALUE!"}}]
[105,{"$f":"КАДРЫ!E106","v":0},null,null,null,{"$f":"IF(КАДРЫ!I106=\"\",LOWER(КАДРЫ!K106),LOWER(КАДРЫ!I106))","v":"машинист крана (крановщик)"},{"$f":"КАДРЫ!D106","v":0},null,null,null,null,null,null,{"$f":"VLOOKUP(F106&\"*\",ДОЛЖНОСТИ!B:B,1,)","v":"машинист крана (крановщик)"},{"$f":"REPLACE(F106,100,2,ДОЛЖНОСТИ!$B$2:$B$71)","v":{"$error":"#VALUE!"}}]
[106,{"$f":"КАДРЫ!E107","v":0},null,null,null,{"$f":"IF(КАДРЫ!I107=\"\",LOWER(КАДРЫ!K107),LOWER(КАДРЫ!I107))","v":"механик-энергетик"},{"$f":"КАДРЫ!D107","v":0},null,null,null,null,null,null,{"$f":"VLOOKUP(F107&\"*\",ДОЛЖНОСТИ!B:B,1,)","v":"механик-энергетик"},{"$f":"REPLACE(F107,100,2,ДОЛЖНОСТИ!$B$2:$B$71)","v":{"$error":"#VALUE!"}}]
[107,{"$f":"КАДРЫ!E108","v":0},null,null,null,{"$f":"IF(КАДРЫ!I108=\"\",LOWER(КАДРЫ!K108),LOWER(КАДРЫ!I108))","v":"монтажник санитарно-технических систем и оборудования"},{"$f":"КАДРЫ!D108","v":0},null,null,null,null,null,null,{"$f":"VLOOKUP(F108&\"*\",ДОЛЖНОСТИ!B:B,1,)","v":{"$error":"#N/A"}},{"$f":"REPLACE(F108,100,2,ДОЛЖНОСТИ!$B$2:$B$71)","v":{"$error":"#VALUE!"}}]
[108,{"$f":"КАДРЫ!E109","v":0},null,null,null,{"$f":"IF(КАДРЫ!I109=\"\",LOWER(КАДРЫ!K109),LOWER(КАДРЫ!I109))","v":"монтажник санитарно-технических систем и оборудования"},{"$f":"КАДРЫ!D109","v":0},null,null,null,null,null,null,{"$f":"VLOOKUP(F109&\"*\",ДОЛЖНОСТИ!B:B,1,)","v":{"$error":"#N/A"}},{"$f":"REPLACE(F109,100,2,ДОЛЖНОСТИ!$B$2:$B$71)","v":{"$error":"#VALUE!"}}]
[109,{"$f":"КАДРЫ!E110","v":0},null,null,null,{"$f":"IF(КАДРЫ!I110=\"\",LOWER(КАДРЫ!K110),LOWER(КАДРЫ!I110))","v":"монтажник санитарно-технических систем и оборудования"},{"$f":"КАДРЫ!D110","v":0},null,null,null,null,null,null,{"$f":"VLOOKUP(F110&\"*\",ДОЛЖНОСТИ!B:B,1,)","v":{"$error":"#N/A"}},{"$f":"REPLACE(F110,100,2,ДОЛЖНОСТИ!$B$2:$B$71)","v":{"$error":"#VALUE!"}}]
[110,{"$f":"КАДРЫ!E111","v":0},null,null,null,{"$f":"IF(КАДРЫ!I111=\"\",LOWER(КАДРЫ!K111),LOWER(КАДРЫ!I111))","v":"монтажник санитарно-технических систем и оборудования"},{"$f":"КАДРЫ!D111","v":0},null,null,null,null,null,null,{"$f":"VLOOKUP(F111&\"*\",ДОЛЖНОСТИ!B:B,1,)","v":{"$error":"#N/A"}},{"$f":"REPLACE(F111,100,2,ДОЛЖНОСТИ!$B$2:$B$71)","v":{"$error":"#VALUE!"}}]
[111,{"$f":"КАДРЫ!E112","v":0},null,null,null,{"$f":"IF(КАДРЫ!I112=\"\",LOWER(КАДРЫ!K112),LOWER(КАДРЫ!I112))","v":"монтажник санитарно-технических систем и оборудования"},{"$f":"КАДРЫ!D112","v":0},null,null,null,null,null,null,{"$f":"VLOOKUP(F112&\"*\",ДОЛЖНОСТИ!B:B,1,)","v":{"$error":"#N/A"}},{"$f":"REPLACE(F112,100,2,ДОЛЖНОСТИ!$B$2:$B$71)","v":{"$error":"#VALUE!"}}]
[112,{"$f":"КАДРЫ!E113","v":0},null,null,null,{"$f":"IF(КАДРЫ!I113=\"\",LOWER(КАДРЫ!K113),LOWER(КАДРЫ!I113))","v":"монтажник санитарно-технических систем и оборудования"},{"$f":"КАДРЫ!D113","v":0},null,null,null,null,null,null,{"$f":"VLOOKUP(F113&\"*\",ДОЛЖНОСТИ!B:B,1,)","v":{"$error":"#N/A"}},{"$f":"REPLACE(F113,100,2,ДОЛЖНОСТИ!$B$2:$B$71)","v":{"$error":"#VALUE!"}}]
[113,{"$f":"КАДРЫ!E114","v":0},null,null,null,{"$f":"IF(КАДРЫ!I114=\"\",LOWER(КАДРЫ!K114),LOWER(КАДРЫ!I114))","v":"моторист (машинист)"},{"$f":"КАДРЫ!D114","v":0},null,null,null,null,null,null,{"$f":"VLOOKUP(F114&\"*\",ДОЛЖНОСТИ!B:B,1,)","v":"моторист (машинист)"},{"$f":"REPLACE(F114,100,2,ДОЛЖНОСТИ!$B$2:$B$71)","v":{"$error":"#VALUE!"}}]
[114,{"$f":"КАДРЫ!E115","v":0},null,null,null,{"$f":"IF(КАДРЫ!I115=\"\",LOWER(КАДРЫ!K115),LOWER(КАДРЫ!I115))","v":"моторист (машинист)"},{"$f":"КАДРЫ!D115","v":0},null,null,null,null,null,null,{"$f":"VLOOKUP(F115&\"*\",ДОЛЖНОСТИ!B:B,1,)","v":"моторист (машинист)"},{"$f":"REPLACE(F115,100,2,ДОЛЖНОСТИ!$B$2:$B$71)","v":{"$error":"#VALUE!"}}]
[115,{"$f":"КАДРЫ!E116","v":0},null,null,null,{"$f":"IF(КАДРЫ!I116=\"\",LOWER(КАДРЫ!K116),LOWER(КАДРЫ!I116))","v":"моторист (машинист)"},{"$f":"КАДРЫ!D116","v":0},null,null,null,null,null,null,{"$f":"VLOOKUP(F116&\"*\",ДОЛЖНОСТИ!B:B,1,)","v":"моторист (машинист)"},{"$f":"REPLACE(F116,100,2,ДОЛЖНОСТИ!$B$2:$B$71)","v":{"$error":"#VALUE!"}}]
[116,{"$f":"КАДРЫ!E117","v":0},null,null,null,{"$f":"IF(КАДРЫ!I117=\"\",LOWER(КАДРЫ!K117),LOWER(КАДРЫ!I117))","v":"моторист (машинист)"},{"$f":"КАДРЫ!D117","v":0},null,null,null,null,null,null,{"$f":"VLOOKUP(F117&\"*\",ДОЛЖНОСТИ!B:B,1,)","v":"моторист (машинист)"},{"$f":"REPLACE(F117,100,2,ДОЛЖНОСТИ!$B$2:$B$71)","v":{"$error":"#VALUE!"}}]
[117,{"$f":"КАДРЫ!E118","v":0},null,null,null,{"$f":"IF(КАДРЫ!I118=\"\",LOWER(КАДРЫ!K118),LOWER(КАДРЫ!I118))","v":"моторист (машинист)"},{"$f":"КАДРЫ!D118","v":0},null,null,null,null,null,null,{"$f":"VLOOKUP(F118&\"*\",ДОЛЖНОСТИ!B:B,1,)","v":"моторист (машинист)"},{"$f":"REPLACE(F118,100,2,ДОЛЖНОСТИ!$B$2:$B$71)","v":{"$error":"#VALUE!"}}]
[118,{"$f":"КАДРЫ!E119","v":0},null,null,null,{"$f":"IF(КАДРЫ!I119=\"\",LOWER(КАДРЫ!K119),LOWER(КАДРЫ!I119))","v":"моторист (машинист)"},{"$f":"КАДРЫ!D119","v":0},null,null,null,null,null,null,{"$f":"VLOOKUP(F119&\"*\",ДОЛЖНОСТИ!B:B,1,)","v":"моторист (машинист)"},{"$f":"REPLACE(F119,100,2,ДОЛЖНОСТИ!$B$2:$B$71)","v":{"$error":"#VALUE!"}}]
[119,{"$f":"КАДРЫ!E120","v":0},null,null,null,{"$f":"IF(КАДРЫ!I120=\"\",LOWER(КАДРЫ!K120),LOWER(КАДРЫ!I120))","v":"моторист (машинист)"},{"$f":"КАДРЫ!D120","v":0},null,null,null,null,null,null,{"$f":"VLOOKUP(F120&\"*\",ДОЛЖНОСТИ!B:B,1,)","v":"моторист (машинист)"},{"$f":"REPLACE(F120,100,2,ДОЛЖНОСТИ!$B$2:$B$71)","v":{"$error":"#VALUE!"}}]
[120,{"$f":"КАДРЫ!E121","v":0},null,null,null,{"$f":"IF(КАДРЫ!I121=\"\",LOWER(КАДРЫ!K121),LOWER(КАДРЫ!I121))","v":"моторист (машинист)"},{"$f":"КАДРЫ!D121","v":0},null,null,null,null,null,null,{"$f":"VLOOKUP(F121&\"*\",ДОЛЖНОСТИ!B:B,1,)","v":"моторист (машинист)"},{"$f":"REPLACE(F121,100,2,ДОЛЖНОСТИ!$B$2:$B$71)","v":{"$error":"#VALUE!"}}]
[121,{"$f":"КАДРЫ!E122","v":0},null,null,null,{"$f":"IF(КАДРЫ!I122=\"\",LOWER(КАДРЫ!K122),LOWER(КАДРЫ!I122))","v":"моторист (машинист)"},{"$f":"КАДРЫ!D122","v":0},null,null,null,null,null,null,{"$f":"VLOOKUP(F122&\"*\",ДОЛЖНОСТИ!B:B,1,)","v":"моторист (машинист)"},{"$f":"REPLACE(F122,100,2,ДОЛЖНОСТИ!$B$2:$B$71)","v":{"$error":"#VALUE!"}}]
[122,{"$f":"КАДРЫ!E123","v":0},null,null,null,{"$f":"IF(КАДРЫ!I123=\"\",LOWER(КАДРЫ!K123),LOWER(КАДРЫ!I123))","v":"моторист (машинист)"},{"$f":"КАДРЫ!D123","v":0},null,null,null,null,null,null,{"$f":"VLOOKUP(F123&\"*\",ДОЛЖНОСТИ!B:B,1,)","v":"моторист (машинист)"},{"$f":"REPLACE(F123,100,2,ДОЛЖНОСТИ!$B$2:$B$71)","v":{"$error":"#VALUE!"}}]
[123,{"$f":"КАДРЫ!E124","v":0},null,null,null,{"$f":"IF(КАДРЫ!I124=\"\",LOWER(КАДРЫ!K124),LOWER(КАДРЫ!I124))","v":"моторист (машинист)"},{"$f":"КАДРЫ!D124","v":0},null,null,null,null,null,null,{"$f":"VLOOKUP(F124&\"*\",ДОЛЖНОСТИ!B:B,1,)","v":"моторист (машинист)"},{"$f":"REPLACE(F124,100,2,ДОЛЖНОСТИ!$B$2:$B$71)","v":{"$error":"#VALUE!"}}]
[124,{"$f":"КАДРЫ!E125","v":0},null,null,null,{"$f":"IF(КАДРЫ!I125=\"\",LOWER(КАДРЫ!K125),LOWER(КАДРЫ!I125))","v":"моторист (машинист)"},{"$f":"КАДРЫ!D125","v":0},null,null,null,null,null,null,{"$f":"VLOOKUP(F125&\"*\",ДОЛЖНОСТИ!B:B,1,)","v":"моторист (машинист)"},{"$f":"REPLACE(F125,100,2,ДОЛЖНОСТИ!$B$2:$B$71)","v":{"$error":"#VALUE!"}}]
[125,{"$f":"КАДРЫ!E126","v":0},null,null,null,{"$f":"IF(КАДРЫ!I126=\"\",LOWER(КАДРЫ!K126),LOWER(КАДРЫ!I126))","v":"моторист (машинист)"},{"$f":"КАДРЫ!D126","v":0},null,null,null,null,null,null,{"$f":"VLOOKUP(F126&\"*\",ДОЛЖНОСТИ!B:B,1,)","v":"моторист (машинист)"},{"$f":"REPLACE(F126,100,2,ДОЛЖНОСТИ!$B$2:$B$71)","v":{"$error":"#VALUE!"}}]
[126,{"$f":"КАДРЫ!E127","v":0},null,null,null,{"$f":"IF(КАДРЫ!I127=\"\",LOWER(КАДРЫ!K127),LOWER(КАДРЫ!I127))","v":"моторист (машинист)"},{"$f":"КАДРЫ!D127","v":0},null,null,null,null,null,null,{"$f":"VLOOKUP(F127&\"*\",ДОЛЖНОСТИ!B:B,1,)","v":"моторист (машинист)"},{"$f":"REPLACE(F127,100,2,ДОЛЖНОСТИ!$B$2:$B$71)","v":{"$error":"#VALUE!"}}]
[127,{"$f":"КАДРЫ!E128","v":0},null,null,null,{"$f":"IF(КАДРЫ!I128=\"\",LOWER(КАДРЫ!K128),LOWER(КАДРЫ!I128))","v":"моторист (машинист)"},{"$f":"КАДРЫ!D128","v":0},null,null,null,null,null,null,{"$f":"VLOOKUP(F128&\"*\",ДОЛЖНОСТИ!B:B,1,)","v":"моторист (машинист)"},{"$f":"REPLACE(F128,100,2,ДОЛЖНОСТИ!$B$2:$B$71)","v":{"$error":"#VALUE!"}}]
[128,{"$f":"КАДРЫ!E129","v":0},null,null,null,{"$f":"IF(КАДРЫ!I129=\"\",LOWER(КАДРЫ!K129),LOWER(КАДРЫ!I129))","v":"моторист (машинист)"},{"$f":"КАДРЫ!D129","v":0},null,null,null,null,null,null,{"$f":"VLOOKUP(F129&\"*\",ДОЛЖНОСТИ!B:B,1,)","v":"моторист (машинист)"},{"$f":"REPLACE(F129,100,2,ДОЛЖНОСТИ!$B$2:$B$71)","v":{"$error":"#VALUE!"}}]
[129,{"$f":"КАДРЫ!E130","v":0},null,null,null,{"$f":"IF(КАДРЫ!I130=\"\",LOWER(КАДРЫ!K130),LOWER(КАДРЫ!I130))","v":"моторист (машинист)"},{"$f":"КАДРЫ!D130","v":0},null,null,null,null,null,null,{"$f":"VLOOKUP(F130&\"*\",ДОЛЖНОСТИ!B:B,1,)","v":"моторист (машинист)"},{"$f":"REPLACE(F130,100,2,ДОЛЖНОСТИ!$B$2:$B$71)","v":{"$error":"#VALUE!"}}]
[130,{"$f":"КАДРЫ!E131","v":0},null,null,null,{"$f":"IF(КАДРЫ!I131=\"\",LOWER(КАДРЫ!K131),LOWER(КАДРЫ!I131))","v":"моторист (машинист)"},{"$f":"КАДРЫ!D131","v":0},null,null,null,null,null,null,{"$f":"VLOOKUP(F131&\"*\",ДОЛЖНОСТИ!B:B,1,)","v":"моторист (машинист)"},{"$f":"REPLACE(F131,100,2,ДОЛЖНОСТИ!$B$2:$B$71)","v":{"$error":"#VALUE!"}}]
[131,{"$f":"КАДРЫ!E132","v":0},null,null,null,{"$f":"IF(КАДРЫ!I132=\"\",LOWER(КАДРЫ!K132),LOWER(КАДРЫ!I132))","v":"моторист (машинист)"},{"$f":"КАДРЫ!D132","v":0},null,null,null,null,null,null,{"$f":"VLOOKUP(F132&\"*\",ДОЛЖНОСТИ!B:B,1,)","v":"моторист (машинист)"},{"$f":"REPLACE(F132,100,2,ДОЛЖНОСТИ!$B$2:$B$71)","v":{"$error":"#VALUE!"}}]
[132,{"$f":"КАДРЫ!E133","v":0},null,null,null,{"$f":"IF(КАДРЫ!I133=\"\",LOWER(КАДРЫ!K133),LOWER(КАДРЫ!I133))","v":"моторист (машинист)"},{"$f":"КАДРЫ!D133","v":0},null,null,null,null,null,null,{"$f":"VLOOKUP(F133&\"*\",ДОЛЖНОСТИ!B:B,1,)","v":"моторист (машинист)"},{"$f":"REPLACE(F133,100,2,ДОЛЖНОСТИ!$B$2:$B$71)","v":{"$error":"#VALUE!"}}]
[133,{"$f":"КАДРЫ!E134","v":0},null,null,null,{"$f":"IF(КАДРЫ!I134=\"\",LOWER(КАДРЫ!K134),LOWER(КАДРЫ!I134))","v":"моторист (машинист)"},{"$f":"КАДРЫ!D134","v":0},null,null,null,null,null,null,{"$f":"VLOOKUP(F134&\"*\",ДОЛЖНОСТИ!B:B,1,)","v":"моторист (машинист)"},{"$f":"REPLACE(F134,100,2,ДОЛЖНОСТИ!$B$2:$B$71)","v":{"$error":"#VALUE!"}}]
[134,{"$f":"КАДРЫ!E135","v":0},null,null,null,{"$f":"IF(КАДРЫ!I135=\"\",LOWER(КАДРЫ!K135),LOWER(КАДРЫ!I135))","v":"моторист (машинист)"},{"$f":"КАДРЫ!D135","v":0},null,null,null,null,null,null,{"$f":"VLOOKUP(F135&\"*\",ДОЛЖНОСТИ!B:B,1,)","v":"моторист (машинист)"},{"$f":"REPLACE(F135,100,2,ДОЛЖНОСТИ!$B$2:$B$71)","v":{"$error":"#VALUE!"}}]
[135,{"$f":"КАДРЫ!E136","v":0},null,null,null,{"$f":"IF(КАДРЫ!I136=\"\",LOWER(КАДРЫ!K136),LOWER(КАДРЫ!I136))","v":"моторист (машинист)"},{"$f":"КАДРЫ!D136","v":0},null,null,null,null,null,null,{"$f":"VLOOKUP(F136&\"*\",ДОЛЖНОСТИ!B:B,1,)","v":"моторист (машинист)"},{"$f":"REPLACE(F136,100,2,ДОЛЖНОСТИ!$B$2:$B$71)","v":{"$error":"#VALUE!"}}]
[136,{"$f":"КАДРЫ!E137","v":0},null,null,null,{"$f":"IF(КАДРЫ!I137=\"\",LOWER(КАДРЫ!K137),LOWER(КАДРЫ!I137))","v":"моторист (машинист)"},{"$f":"КАДРЫ!D137","v":0},null,null,null,null,null,null,{"$f":"VLOOKUP(F137&\"*\",ДОЛЖНОСТИ!B:B,1,)","v":"моторист (машинист)"},{"$f":"REPLACE(F137,100,2,ДОЛЖНОСТИ!$B$2:$B$71)","v":{"$error":"#VALUE!"}}]
[137,{"$f":"КАДРЫ!E138","v":0},null,null,null,{"$f":"IF(КАДРЫ!I138=\"\",LOWER(КАДРЫ!K138),LOWER(КАДРЫ!I138))","v":"моторист (машинист)"},{"$f":"КАДРЫ!D138","v":0},null,null,null,null,null,null,{"$f":"VLOOKUP(F138&\"*\",ДОЛЖНОСТИ!B:B,1,)","v":"моторист (машинист)"},{"$f":"REPLACE(F138,100,2,ДОЛЖНОСТИ!$B$2:$B$71)","v":{"$error":"#VALUE!"}}]
[138,{"$f":"КАДРЫ!E139","v":0},null,null,null,{"$f":"IF(КАДРЫ!I139=\"\",LOWER(КАДРЫ!K139),LOWER(КАДРЫ!I139))","v":"моторист (машинист)"},{"$f":"КАДРЫ!D139","v":0},null,null,null,null,null,null,{"$f":"VLOOKUP(F139&\"*\",ДОЛЖНОСТИ!B:B,1,)","v":"моторист (машинист)"},{"$f":"REPLACE(F139,100,2,ДОЛЖНОСТИ!$B$2:$B$71)","v":{"$error":"#VALUE!"}}]
[139,{"$f":"КАДРЫ!E140","v":0},null,null,null,{"$f":"IF(КАДРЫ!I140=\"\",LOWER(КАДРЫ!K140),LOWER(КАДРЫ!I140))","v":"моторист (машинист)"},{"$f":"КАДРЫ!D140","v":0},null,null,null,null,null,null,{"$f":"VLOOKUP(F140&\"*\",ДОЛЖНОСТИ!B:B,1,)","v":"моторист (машинист)"},{"$f":"REPLACE(F140,100,2,ДОЛЖНОСТИ!$B$2:$B$71)","v":{"$error":"#VALUE!"}}]
[140,{"$f":"КАДРЫ!E141","v":0},null,null,null,{"$f":"IF(КАДРЫ!I141=\"\",LOWER(КАДРЫ!K141),LOWER(КАДРЫ!I141))","v":"моторист (машинист)"},{"$f":"КАДРЫ!D141","v":0},null,null,null,null,null,null,{"$f":"VLOOKUP(F141&\"*\",ДОЛЖНОСТИ!B:B,1,)","v":"моторист (машинист)"},{"$f":"REPLACE(F141,100,2,ДОЛЖНОСТИ!$B$2:$B$71)","v":{"$error":"#VALUE!"}}]
[141,{"$f":"КАДРЫ!E142","v":0},null,null,null,{"$f":"IF(КАДРЫ!I142=\"\",LOWER(КАДРЫ!K142),LOWER(КАДРЫ!I142))","v":"моторист (машинист)"},{"$f":"КАДРЫ!D142","v":0},null,null,null,null,null,null,{"$f":"VLOOKUP(F142&\"*\",ДОЛЖНОСТИ!B:B,1,)","v":"моторист (машинист)"},{"$f":"REPLACE(F142,100,2,ДОЛЖНОСТИ!$B$2:$B$71)","v":{"$error":"#VALUE!"}}]
[142,{"$f":"КАДРЫ!E143","v":0},null,null,null,{"$f":"IF(КАДРЫ!I143=\"\",LOWER(КАДРЫ!K143),LOWER(КАДРЫ!I143))","v":"моторист (машинист)"},{"$f":"КАДРЫ!D143","v":0},null,null,null,null,null,null,{"$f":"VLOOKUP(F143&\"*\",ДОЛЖНОСТИ!B:B,1,)","v":"моторист (машинист)"},{"$f":"REPLACE(F143,100,2,ДОЛЖНОСТИ!$B$2:$B$71)","v":{"$error":"#VALUE!"}}]
[143,{"$f":"КАДРЫ!E144","v":0},null,null,null,{"$f":"IF(КАДРЫ!I144=\"\",LOWER(КАДРЫ!K144),LOWER(КАДРЫ!I144))","v":"моторист (машинист)"},{"$f":"КАДРЫ!D144","v":0},null,null,null,null,null,null,{"$f":"VLOOKUP(F144&\"*\",ДОЛЖНОСТИ!B:B,1,)","v":"моторист (машинист)"},{"$f":"REPLACE(F144,100,2,ДОЛЖНОСТИ!$B$2:$B$71)","v":{"$error":"#VALUE!"}}]
[144,{"$f":"КАДРЫ!E145","v":0},null,null,null,{"$f":"IF(КАДРЫ!I145=\"\",LOWER(КАДРЫ!K145),LOWER(КАДРЫ!I145))","v":"моторист (машинист)"},{"$f":"КАДРЫ!D145","v":0},null,null,null,null,null,null,{"$f":"VLOOKUP(F145&\"*\",ДОЛЖНОСТИ!B:B,1,)","v":"моторист (машинист)"},{"$f":"REPLACE(F145,100,2,ДОЛЖНОСТИ!$B$2:$B$71)","v":{"$error":"#VALUE!"}}]
[145,{"$f":"КАДРЫ!E146","v":0},null,null,null,{"$f":"IF(КАДРЫ!I146=\"\",LOWER(КАДРЫ!K146),LOWER(КАДРЫ!I146))","v":"моторист (машинист)"},{"$f":"КАДРЫ!D146","v":0},null,null,null,null,null,null,{"$f":"VLOOKUP(F146&\"*\",ДОЛЖНОСТИ!B:B,1,)","v":"моторист (машинист)"},{"$f":"REPLACE(F146,100,2,ДОЛЖНОСТИ!$B$2:$B$71)","v":{"$error":"#VALUE!"}}]
[146,{"$f":"КАДРЫ!E147","v":0},null,null,null,{"$f":"IF(КАДРЫ!I147=\"\",LOWER(КАДРЫ!K147),LOWER(КАДРЫ!I147))","v":"моторист (машинист)"},{"$f":"КАДРЫ!D147","v":0},null,null,null,null,null,null,{"$f":"VLOOKUP(F147&\"*\",ДОЛЖНОСТИ!B:B,1,)","v":"моторист (машинист)"},{"$f":"REPLACE(F147,100,2,ДОЛЖНОСТИ!$B$2:$B$71)","v":{"$error":"#VALUE!"}}]
[147,{"$f":"КАДРЫ!E148","v":0},null,null,null,{"$f":"IF(КАДРЫ!I148=\"\",LOWER(КАДРЫ!K148),LOWER(КАДРЫ!I148))","v":"моторист (машинист)"},{"$f":"КАДРЫ!D148","v":0},null,null,null,null,null,null,{"$f":"VLOOKUP(F148&\"*\",ДОЛЖНОСТИ!B:B,1,)","v":"моторист (машинист)"},{"$f":"REPLACE(F148,100,2,ДОЛЖНОСТИ!$B$2:$B$71)","v":{"$error":"#VALUE!"}}]
[148,{"$f":"КАДРЫ!E149","v":0},null,null,null,{"$f":"IF(КАДРЫ!I149=\"\",LOWER(КАДРЫ!K149),LOWER(КАДРЫ!I149))","v":"моторист (машинист)"},{"$f":"КАДРЫ!D149","v":0},null,null,null,null,null,null,{"$f":"VLOOKUP(F149&\"*\",ДОЛЖНОСТИ!B:B,1,)","v":"моторист (машинист)"},{"$f":"REPLACE(F149,100,2,ДОЛЖНОСТИ!$B$2:$B$71)","v":{"$error":"#VALUE!"}}]
[149,{"$f":"КАДРЫ!E150","v":0},null,null,null,{"$f":"IF(КАДРЫ!I150=\"\",LOWER(КАДРЫ!K150),LOWER(КАДРЫ!I150))","v":"моторист (машинист)"},{"$f":"КАДРЫ!D150","v":0},null,null,null,null,null,null,{"$f":"VLOOKUP(F150&\"*\",ДОЛЖНОСТИ!B:B,1,)","v":"моторист (машинист)"},{"$f":"REPLACE(F150,100,2,ДОЛЖНОСТИ!$B$2:$B$71)","v":{"$error":"#VALUE!"}}]
[150,{"$f":"КАДРЫ!E151","v":0},null,null,null,{"$f":"IF(КАДРЫ!I151=\"\",LOWER(КАДРЫ!K151),LOWER(КАДРЫ!I151))","v":"моторист (машинист)"},{"$f":"КАДРЫ!D151","v":0},null,null,null,null,null,null,{"$f":"VLOOKUP(F151&\"*\",ДОЛЖНОСТИ!B:B,1,)","v":"моторист (машинист)"},{"$f":"REPLACE(F151,100,2,ДОЛЖНОСТИ!$B$2:$B$71)","v":{"$error":"#VALUE!"}}]
[151,{"$f":"КАДРЫ!E152","v":0},null,null,null,{"$f":"IF(КАДРЫ!I152=\"\",LOWER(КАДРЫ!K152),LOWER(КАДРЫ!I152))","v":"моторист (машинист)"},{"$f":"КАДРЫ!D152","v":0},null,null,null,null,null,null,{"$f":"VLOOKUP(F152&\"*\",ДОЛЖНОСТИ!B:B,1,)","v":"моторист (машинист)"},{"$f":"REPLACE(F152,100,2,ДОЛЖНОСТИ!$B$2:$B$71)","v":{"$error":"#VALUE!"}}]
[152,{"$f":"КАДРЫ!E153","v":0},null,null,null,{"$f":"IF(КАДРЫ!I153=\"\",LOWER(КАДРЫ!K153),LOWER(КАДРЫ!I153))","v":"моторист (машинист)"},{"$f":"КАДРЫ!D153","v":0},null,null,null,null,null,null,{"$f":"VLOOKUP(F153&\"*\",ДОЛЖНОСТИ!B:B,1,)","v":"моторист (машинист)"},{"$f":"REPLACE(F153,100,2,ДОЛЖНОСТИ!$B$2:$B$71)","v":{"$error":"#VALUE!"}}]
[153,{"$f":"КАДРЫ!E154","v":0},null,null,null,{"$f":"IF(КАДРЫ!I154=\"\",LOWER(КАДРЫ!K154),LOWER(КАДРЫ!I154))","v":"моторист (машинист)"},{"$f":"КАДРЫ!D154","v":0},null,null,null,null,null,null,{"$f":"VLOOKUP(F154&\"*\",ДОЛЖНОСТИ!B:B,1,)","v":"моторист (машинист)"},{"$f":"REPLACE(F154,100,2,ДОЛЖНОСТИ!$B$2:$B$71)","v":{"$error":"#VALUE!"}}]
[154,{"$f":"КАДРЫ!E155","v":0},null,null,null,{"$f":"IF(КАДРЫ!I155=\"\",LOWER(КАДРЫ!K155),LOWER(КАДРЫ!I155))","v":"моторист (машинист)"},{"$f":"КАДРЫ!D155","v":0},null,null,null,null,null,null,{"$f":"VLOOKUP(F155&\"*\",ДОЛЖНОСТИ!B:B,1,)","v":"моторист (машинист)"},{"$f":"REPLACE(F155,100,2,ДОЛЖНОСТИ!$B$2:$B$71)","v":{"$error":"#VALUE!"}}]
[155,{"$f":"КАДРЫ!E156","v":0},null,null,null,{"$f":"IF(КАДРЫ!I156=\"\",LOWER(КАДРЫ!K156),LOWER(КАДРЫ!I156))","v":"моторист (машинист)"},{"$f":"КАДРЫ!D156","v":0},null,null,null,null,null,null,{"$f":"VLOOKUP(F156&\"*\",ДОЛЖНОСТИ!B:B,1,)","v":"моторист (машинист)"},{"$f":"REPLACE(F156,100,2,ДОЛЖНОСТИ!$B$2:$B$71)","v":{"$error":"#VALUE!"}}]
[156,{"$f":"КАДРЫ!E157","v":0},null,null,null,{"$f":"IF(КАДРЫ!I157=\"\",LOWER(КАДРЫ!K157),LOWER(КАДРЫ!I157))","v":"моторист (машинист)"},{"$f":"КАДРЫ!D157","v":0},null,null,null,null,null,null,{"$f":"VLOOKUP(F157&\"*\",ДОЛЖНОСТИ!B:B,1,)","v":"моторист (машинист)"},{"$f":"REPLACE(F157,100,2,ДОЛЖНОСТИ!$B$2:$B$71)","v":{"$error":"#VALUE!"}}]
[157,{"$f":"КАДРЫ!E158","v":0},null,null,null,{"$f":"IF(КАДРЫ!I158=\"\",LOWER(КАДРЫ!K158),LOWER(КАДРЫ!I158))","v":"моторист (машинист)"},{"$f":"КАДРЫ!D158","v":0},null,null,null,null,null,null,{"$f":"VLOOKUP(F158&\"*\",ДОЛЖНОСТИ!B:B,1,)","v":"моторист (машинист)"},{"$f":"REPLACE(F158,100,2,ДОЛЖНОСТИ!$B$2:$B$71)","v":{"$error":"#VALUE!"}}]
[158,{"$f":"КАДРЫ!E159","v":0},null,null,null,{"$f":"IF(КАДРЫ!I159=\"\",LOWER(КАДРЫ!K159),LOWER(КАДРЫ!I159))","v":"моторист (машинист)"},{"$f":"КАДРЫ!D159","v":0},null,null,null,null,null,null,{"$f":"VLOOKUP(F159&\"*\",ДОЛЖНОСТИ!B:B,1,)","v":"моторист (машинист)"},{"$f":"REPLACE(F159,100,2,ДОЛЖНОСТИ!$B$2:$B$71)","v":{"$error":"#VALUE!"}}]
[159,{"$f":"КАДРЫ!E160","v":0},null,null,null,{"$f":"IF(КАДРЫ!I160=\"\",LOWER(КАДРЫ!K160),LOWER(КАДРЫ!I160))","v":"моторист (машинист)"},{"$f":"КАДРЫ!D160","v":0},null,null,null,null,null,null,{"$f":"VLOOKUP(F160&\"*\",ДОЛЖНОСТИ!B:B,1,)","v":"моторист (машинист)"},{"$f":"REPLACE(F160,100,2,ДОЛЖНОСТИ!$B$2:$B$71)","v":{"$error":"#VALUE!"}}]
[160,{"$f":"КАДРЫ!E161","v":0},null,null,null,{"$f":"IF(КАДРЫ!I161=\"\",LOWER(КАДРЫ!K161),LOWER(КАДРЫ!I161))","v":"моторист (машинист)"},{"$f":"КАДРЫ!D161","v":0},null,null,null,null,null,null,{"$f":"VLOOKUP(F161&\"*\",ДОЛЖНОСТИ!B:B,1,)","v":"моторист (машинист)"},{"$f":"REPLACE(F161,100,2,ДОЛЖНОСТИ!$B$2:$B$71)","v":{"$error":"#VALUE!"}}]
[161,{"$f":"КАДРЫ!E162","v":0},null,null,null,{"$f":"IF(КАДРЫ!I162=\"\",LOWER(КАДРЫ!K162),LOWER(КАДРЫ!I162))","v":"моторист (машинист)"},{"$f":"КАДРЫ!D162","v":0},null,null,null,null,null,null,{"$f":"VLOOKUP(F162&\"*\",ДОЛЖНОСТИ!B:B,1,)","v":"моторист (машинист)"},{"$f":"REPLACE(F162,100,2,ДОЛЖНОСТИ!$B$2:$B$71)","v":{"$error":"#VALUE!"}}]
[162,{"$f":"КАДРЫ!E163","v":0},null,null,null,{"$f":"IF(КАДРЫ!I163=\"\",LOWER(КАДРЫ!K163),LOWER(КАДРЫ!I163))","v":"моторист (машинист)"},{"$f":"КАДРЫ!D163","v":0},null,null,null,null,null,null,{"$f":"VLOOKUP(F163&\"*\",ДОЛЖНОСТИ!B:B,1,)","v":"моторист (машинист)"},{"$f":"REPLACE(F163,100,2,ДОЛЖНОСТИ!$B$2:$B$71)","v":{"$error":"#VALUE!"}}]
[163,{"$f":"КАДРЫ!E164","v":0},null,null,null,{"$f":"IF(КАДРЫ!I164=\"\",LOWER(КАДРЫ!K164),LOWER(КАДРЫ!I164))","v":"моторист (машинист)"},{"$f":"КАДРЫ!D164","v":0},null,null,null,null,null,null,{"$f":"VLOOKUP(F164&\"*\",ДОЛЖНОСТИ!B:B,1,)","v":"моторист (машинист)"},{"$f":"REPLACE(F164,100,2,ДОЛЖНОСТИ!$B$2:$B$71)","v":{"$error":"#VALUE!"}}]
[164,{"$f":"КАДРЫ!E165","v":0},null,null,null,{"$f":"IF(КАДРЫ!I165=\"\",LOWER(КАДРЫ!K165),LOWER(КАДРЫ!I165))","v":"моторист (машинист)"},{"$f":"КАДРЫ!D165","v":0},null,null,null,null,null,null,{"$f":"VLOOKUP(F165&\"*\",ДОЛЖНОСТИ!B:B,1,)","v":"моторист (машинист)"},{"$f":"REPLACE(F165,100,2,ДОЛЖНОСТИ!$B$2:$B$71)","v":{"$error":"#VALUE!"}}]
[165,{"$f":"КАДРЫ!E166","v":0},null,null,null,{"$f":"IF(КАДРЫ!I166=\"\",LOWER(КАДРЫ!K166),LOWER(КАДРЫ!I166))","v":"моторист (машинист)"},{"$f":"КАДРЫ!D166","v":0},null,null,null,null,null,null,{"$f":"VLOOKUP(F166&\"*\",ДОЛЖНОСТИ!B:B,1,)","v":"моторист (машинист)"},{"$f":"REPLACE(F166,100,2,ДОЛЖНОСТИ!$B$2:$B$71)","v":{"$error":"#VALUE!"}}]
[166,{"$f":"КАДРЫ!E167","v":0},null,null,null,{"$f":"IF(КАДРЫ!I167=\"\",LOWER(КАДРЫ!K167),LOWER(КАДРЫ!I167))","v":"моторист (машинист)"},{"$f":"КАДРЫ!D167","v":0},null,null,null,null,null,null,{"$f":"VLOOKUP(F167&\"*\",ДОЛЖНОСТИ!B:B,1,)","v":"моторист (машинист)"},{"$f":"REPLACE(F167,100,2,ДОЛЖНОСТИ!$B$2:$B$71)","v":{"$error":"#VALUE!"}}]
[167,{"$f":"КАДРЫ!E168","v":0},null,null,null,{"$f":"IF(КАДРЫ!I168=\"\",LOWER(КАДРЫ!K168),LOWER(КАДРЫ!I168))","v":"моторист (машинист)"},{"$f":"КАДРЫ!D168","v":0},null,null,null,null,null,null,{"$f":"VLOOKUP(F168&\"*\",ДОЛЖНОСТИ!B:B,1,)","v":"моторист (машинист)"},{"$f":"REPLACE(F168,100,2,ДОЛЖНОСТИ!$B$2:$B$71)","v":{"$error":"#VALUE!"}}]
[168,{"$f":"КАДРЫ!E169","v":0},null,null,null,{"$f":"IF(КАДРЫ!I169=\"\",LOWER(КАДРЫ!K169),LOWER(КАДРЫ!I169))","v":"моторист (машинист)"},{"$f":"КАДРЫ!D169","v":0},null,null,null,null,null,null,{"$f":"VLOOKUP(F169&\"*\",ДОЛЖНОСТИ!B:B,1,)","v":"моторист (машинист)"},{"$f":"REPLACE(F169,100,2,ДОЛЖНОСТИ!$B$2:$B$71)","v":{"$error":"#VALUE!"}}]
[169,{"$f":"КАДРЫ!E170","v":0},null,null,null,{"$f":"IF(КАДРЫ!I170=\"\",LOWER(КАДРЫ!K170),LOWER(КАДРЫ!I170))","v":"моторист (машинист)"},{"$f":"КАДРЫ!D170","v":0},null,null,null,null,null,null,{"$f":"VLOOKUP(F170&\"*\",ДОЛЖНОСТИ!B:B,1,)","v":"моторист (машинист)"},{"$f":"REPLACE(F170,100,2,ДОЛЖНОСТИ!$B$2:$B$71)","v":{"$error":"#VALUE!"}}]
[170,{"$f":"КАДРЫ!E171","v":0},null,null,null,{"$f":"IF(КАДРЫ!I171=\"\",LOWER(КАДРЫ!K171),LOWER(КАДРЫ!I171))","v":"моторист (машинист)"},{"$f":"КАДРЫ!D171","v":0},null,null,null,null,null,null,{"$f":"VLOOKUP(F171&\"*\",ДОЛЖНОСТИ!B:B,1,)","v":"моторист (машинист)"},{"$f":"REPLACE(F171,100,2,ДОЛЖНОСТИ!$B$2:$B$71)","v":{"$error":"#VALUE!"}}]
[171,{"$f":"КАДРЫ!E172","v":0},null,null,null,{"$f":"IF(КАДРЫ!I172=\"\",LOWER(КАДРЫ!K172),LOWER(КАДРЫ!I172))","v":"моторист (машинист)"},{"$f":"КАДРЫ!D172","v":0},null,null,null,null,null,null,{"$f":"VLOOKUP(F172&\"*\",ДОЛЖНОСТИ!B:B,1,)","v":"моторист (машинист)"},{"$f":"REPLACE(F172,100,2,ДОЛЖНОСТИ!$B$2:$B$71)","v":{"$error":"#VALUE!"}}]
[172,{"$f":"КАДРЫ!E173","v":0},null,null,null,{"$f":"IF(КАДРЫ!I173=\"\",LOWER(КАДРЫ!K173),LOWER(КАДРЫ!I173))","v":"моторист (машинист)"},{"$f":"КАДРЫ!D173","v":0},null,null,null,null,null,null,{"$f":"VLOOKUP(F173&\"*\",ДОЛЖНОСТИ!B:B,1,)","v":"моторист (машинист)"},{"$f":"REPLACE(F173,100,2,ДОЛЖНОСТИ!$B$2:$B$71)","v":{"$error":"#VALUE!"}}]
[173,{"$f":"КАДРЫ!E174","v":0},null,null,null,{"$f":"IF(КАДРЫ!I174=\"\",LOWER(КАДРЫ!K174),LOWER(КАДРЫ!I174))","v":"моторист (машинист)"},{"$f":"КАДРЫ!D174","v":0},null,null,null,null,null,null,{"$f":"VLOOKUP(F174&\"*\",ДОЛЖНОСТИ!B:B,1,)","v":"моторист (машинист)"},{"$f":"REPLACE(F174,100,2,ДОЛЖНОСТИ!$B$2:$B$71)","v":{"$error":"#VALUE!"}}]
[174,{"$f":"КАДРЫ!E175","v":0},null,null,null,{"$f":"IF(КАДРЫ!I175=\"\",LOWER(КАДРЫ!K175),LOWER(КАДРЫ!I175))","v":"моторист (машинист)"},{"$f":"КАДРЫ!D175","v":0},null,null,null,null,null,null,{"$f":"VLOOKUP(F175&\"*\",ДОЛЖНОСТИ!B:B,1,)","v":"моторист (машинист)"},{"$f":"REPLACE(F175,100,2,ДОЛЖНОСТИ!$B$2:$B$71)","v":{"$error":"#VALUE!"}}]
[175,{"$f":"КАДРЫ!E176","v":0},null,null,null,{"$f":"IF(КАДРЫ!I176=\"\",LOWER(КАДРЫ!K176),LOWER(КАДРЫ!I176))","v":"моторист (машинист)"},{"$f":"КАДРЫ!D176","v":0},null,null,null,null,null,null,{"$f":"VLOOKUP(F176&\"*\",ДОЛЖНОСТИ!B:B,1,)","v":"моторист (машинист)"},{"$f":"REPLACE(F176,100,2,ДОЛЖНОСТИ!$B$2:$B$71)","v":{"$error":"#VALUE!"}}]
[176,{"$f":"КАДРЫ!E177","v":0},null,null,null,{"$f":"IF(КАДРЫ!I177=\"\",LOWER(КАДРЫ!K177),LOWER(КАДРЫ!I177))","v":"моторист (машинист)"},{"$f":"КАДРЫ!D177","v":0},null,null,null,null,null,null,{"$f":"VLOOKUP(F177&\"*\",ДОЛЖНОСТИ!B:B,1,)","v":"моторист (машинист)"},{"$f":"REPLACE(F177,100,2,ДОЛЖНОСТИ!$B$2:$B$71)","v":{"$error":"#VALUE!"}}]
[177,{"$f":"КАДРЫ!E178","v":0},null,null,null,{"$f":"IF(КАДРЫ!I178=\"\",LOWER(КАДРЫ!K178),LOWER(КАДРЫ!I178))","v":"моторист (машинист)"},{"$f":"КАДРЫ!D178","v":0},null,null,null,null,null,null,{"$f":"VLOOKUP(F178&\"*\",ДОЛЖНОСТИ!B:B,1,)","v":"моторист (машинист)"},{"$f":"REPLACE(F178,100,2,ДОЛЖНОСТИ!$B$2:$B$71)","v":{"$error":"#VALUE!"}}]
[178,{"$f":"КАДРЫ!E179","v":0},null,null,null,{"$f":"IF(КАДРЫ!I179=\"\",LOWER(КАДРЫ!K179),LOWER(КАДРЫ!I179))","v":"моторист (машинист)"},{"$f":"КАДРЫ!D179","v":0},null,null,null,null,null,null,{"$f":"VLOOKUP(F179&\"*\",ДОЛЖНОСТИ!B:B,1,)","v":"моторист (машинист)"},{"$f":"REPLACE(F179,100,2,ДОЛЖНОСТИ!$B$2:$B$71)","v":{"$error":"#VALUE!"}}]
[179,{"$f":"КАДРЫ!E180","v":0},null,null,null,{"$f":"IF(КАДРЫ!I180=\"\",LOWER(КАДРЫ!K180),LOWER(КАДРЫ!I180))","v":"моторист (машинист)"},{"$f":"КАДРЫ!D180","v":0},null,null,null,null,null,null,{"$f":"VLOOKUP(F180&\"*\",ДОЛЖНОСТИ!B:B,1,)","v":"моторист (машинист)"},{"$f":"REPLACE(F180,100,2,ДОЛЖНОСТИ!$B$2:$B$71)","v":{"$error":"#VALUE!"}}]
[180,{"$f":"КАДРЫ!E181","v":0},null,null,null,{"$f":"IF(КАДРЫ!I181=\"\",LOWER(КАДРЫ!K181),LOWER(КАДРЫ!I181))","v":"моторист (машинист)"},{"$f":"КАДРЫ!D181","v":0},null,null,null,null,null,null,{"$f":"VLOOKUP(F181&\"*\",ДОЛЖНОСТИ!B:B,1,)","v":"моторист (машинист)"},{"$f":"REPLACE(F181,100,2,ДОЛЖНОСТИ!$B$2:$B$71)","v":{"$error":"#VALUE!"}}]
[181,{"$f":"КАДРЫ!E182","v":0},null,null,null,{"$f":"IF(КАДРЫ!I182=\"\",LOWER(КАДРЫ!K182),LOWER(КАДРЫ!I182))","v":"моторист (машинист)"},{"$f":"КАДРЫ!D182","v":0},null,null,null,null,null,null,{"$f":"VLOOKUP(F182&\"*\",ДОЛЖНОСТИ!B:B,1,)","v":"моторист (машинист)"},{"$f":"REPLACE(F182,100,2,ДОЛЖНОСТИ!$B$2:$B$71)","v":{"$error":"#VALUE!"}}]
[182,{"$f":"КАДРЫ!E183","v":0},null,null,null,{"$f":"IF(КАДРЫ!I183=\"\",LOWER(КАДРЫ!K183),LOWER(КАДРЫ!I183))","v":"моторист (машинист)"},{"$f":"КАДРЫ!D183","v":0},null,null,null,null,null,null,{"$f":"VLOOKUP(F183&\"*\",ДОЛЖНОСТИ!B:B,1,)","v":"моторист (машинист)"},{"$f":"REPLACE(F183,100,2,ДОЛЖНОСТИ!$B$2:$B$71)","v":{"$error":"#VALUE!"}}]
[183,{"$f":"КАДРЫ!E184","v":0},null,null,null,{"$f":"IF(КАДРЫ!I184=\"\",LOWER(КАДРЫ!K184),LOWER(КАДРЫ!I184))","v":"моторист (машинист)"},{"$f":"КАДРЫ!D184","v":0},null,null,null,null,null,null,{"$f":"VLOOKUP(F184&\"*\",ДОЛЖНОСТИ!B:B,1,)","v":"моторист (машинист)"},{"$f":"REPLACE(F184,100,2,ДОЛЖНОСТИ!$B$2:$B$71)","v":{"$error":"#VALUE!"}}]
[184,{"$f":"КАДРЫ!E185","v":0},null,null,null,{"$f":"IF(КАДРЫ!I185=\"\",LOWER(КАДРЫ!K185),LOWER(КАДРЫ!I185))","v":"моторист (машинист)"},{"$f":"КАДРЫ!D185","v":0},null,null,null,null,null,null,{"$f":"VLOOKUP(F185&\"*\",ДОЛЖНОСТИ!B:B,1,)","v":"моторист (машинист)"},{"$f":"REPLACE(F185,100,2,ДОЛЖНОСТИ!$B$2:$B$71)","v":{"$error":"#VALUE!"}}]
[185,{"$f":"КАДРЫ!E186","v":0},null,null,null,{"$f":"IF(КАДРЫ!I186=\"\",LOWER(КАДРЫ!K186),LOWER(КАДРЫ!I186))","v":"моторист (машинист)"},{"$f":"КАДРЫ!D186","v":0},null,null,null,null,null,null,{"$f":"VLOOKUP(F186&\"*\",ДОЛЖНОСТИ!B:B,1,)","v":"моторист (машинист)"},{"$f":"REPLACE(F186,100,2,ДОЛЖНОСТИ!$B$2:$B$71)","v":{"$error":"#VALUE!"}}]
[186,{"$f":"КАДРЫ!E187","v":0},null,null,null,{"$f":"IF(КАДРЫ!I187=\"\",LOWER(КАДРЫ!K187),LOWER(КАДРЫ!I187))","v":"моторист (машинист)"},{"$f":"КАДРЫ!D187","v":0},null,null,null,null,null,null,{"$f":"VLOOKUP(F187&\"*\",ДОЛЖНОСТИ!B:B,1,)","v":"моторист (машинист)"},{"$f":"REPLACE(F187,100,2,ДОЛЖНОСТИ!$B$2:$B$71)","v":{"$error":"#VALUE!"}}]
[187,{"$f":"КАДРЫ!E188","v":0},null,null,null,{"$f":"IF(КАДРЫ!I188=\"\",LOWER(КАДРЫ!K188),LOWER(КАДРЫ!I188))","v":"моторист (машинист)"},{"$f":"КАДРЫ!D188","v":0},null,null,null,null,null,null,{"$f":"VLOOKUP(F188&\"*\",ДОЛЖНОСТИ!B:B,1,)","v":"моторист (машинист)"},{"$f":"REPLACE(F188,100,2,ДОЛЖНОСТИ!$B$2:$B$71)","v":{"$error":"#VALUE!"}}]
[188,{"$f":"КАДРЫ!E189","v":0},null,null,null,{"$f":"IF(КАДРЫ!I189=\"\",LOWER(КАДРЫ!K189),LOWER(КАДРЫ!I189))","v":"моторист (машинист)"},{"$f":"КАДРЫ!D189","v":0},null,null,null,null,null,null,{"$f":"VLOOKUP(F189&\"*\",ДОЛЖНОСТИ!B:B,1,)","v":"моторист (машинист)"},{"$f":"REPLACE(F189,100,2,ДОЛЖНОСТИ!$B$2:$B$71)","v":{"$error":"#VALUE!"}}]
[189,{"$f":"КАДРЫ!E190","v":0},null,null,null,{"$f":"IF(КАДРЫ!I190=\"\",LOWER(КАДРЫ!K190),LOWER(КАДРЫ!I190))","v":"моторист (машинист)"},{"$f":"КАДРЫ!D190","v":0},null,null,null,null,null,null,{"$f":"VLOOKUP(F190&\"*\",ДОЛЖНОСТИ!B:B,1,)","v":"моторист (машинист)"},{"$f":"REPLACE(F190,100,2,ДОЛЖНОСТИ!$B$2:$B$71)","v":{"$error":"#VALUE!"}}]
[190,{"$f":"КАДРЫ!E191","v":0},null,null,null,{"$f":"IF(КАДРЫ!I191=\"\",LOWER(КАДРЫ!K191),LOWER(КАДРЫ!I191))","v":"моторист (машинист)"},{"$f":"КАДРЫ!D191","v":0},null,null,null,null,null,null,{"$f":"VLOOKUP(F191&\"*\",ДОЛЖНОСТИ!B:B,1,)","v":"моторист (машинист)"},{"$f":"REPLACE(F191,100,2,ДОЛЖНОСТИ!$B$2:$B$71)","v":{"$error":"#VALUE!"}}]
[191,{"$f":"КАДРЫ!E192","v":0},null,null,null,{"$f":"IF(КАДРЫ!I192=\"\",LOWER(КАДРЫ!K192),LOWER(КАДРЫ!I192))","v":"моторист (машинист)"},{"$f":"КАДРЫ!D192","v":0},null,null,null,null,null,null,{"$f":"VLOOKUP(F192&\"*\",ДОЛЖНОСТИ!B:B,1,)","v":"моторист (машинист)"},{"$f":"REPLACE(F192,100,2,ДОЛЖНОСТИ!$B$2:$B$71)","v":{"$error":"#VALUE!"}}]
[192,{"$f":"КАДРЫ!E193","v":0},null,null,null,{"$f":"IF(КАДРЫ!I193=\"\",LOWER(КАДРЫ!K193),LOWER(КАДРЫ!I193))","v":"моторист (машинист)"},{"$f":"КАДРЫ!D193","v":0},null,null,null,null,null,null,{"$f":"VLOOKUP(F193&\"*\",ДОЛЖНОСТИ!B:B,1,)","v":"моторист (машинист)"},{"$f":"REPLACE(F193,100,2,ДОЛЖНОСТИ!$B$2:$B$71)","v":{"$error":"#VALUE!"}}]
[193,{"$f":"КАДРЫ!E194","v":0},null,null,null,{"$f":"IF(КАДРЫ!I194=\"\",LOWER(КАДРЫ!K194),LOWER(КАДРЫ!I194))","v":"моторист (машинист)"},{"$f":"КАДРЫ!D194","v":0},null,null,null,null,null,null,{"$f":"VLOOKUP(F194&\"*\",ДОЛЖНОСТИ!B:B,1,)","v":"моторист (машинист)"},{"$f":"REPLACE(F194,100,2,ДОЛЖНОСТИ!$B$2:$B$71)","v":{"$error":"#VALUE!"}}]
[194,{"$f":"КАДРЫ!E195","v":0},null,null,null,{"$f":"IF(КАДРЫ!I195=\"\",LOWER(КАДРЫ!K195),LOWER(КАДРЫ!I195))","v":"моторист (машинист)"},{"$f":"КАДРЫ!D195","v":0},null,null,null,null,null,null,{"$f":"VLOOKUP(F195&\"*\",ДОЛЖНОСТИ!B:B,1,)","v":"моторист (машинист)"},{"$f":"REPLACE(F195,100,2,ДОЛЖНОСТИ!$B$2:$B$71)","v":{"$error":"#VALUE!"}}]
[195,{"$f":"КАДРЫ!E196","v":0},null,null,null,{"$f":"IF(КАДРЫ!I196=\"\",LOWER(КАДРЫ!K196),LOWER(КАДРЫ!I196))","v":"моторист (машинист)"},{"$f":"КАДРЫ!D196","v":0},null,null,null,null,null,null,{"$f":"VLOOKUP(F196&\"*\",ДОЛЖНОСТИ!B:B,1,)","v":"моторист (машинист)"},{"$f":"REPLACE(F196,100,2,ДОЛЖНОСТИ!$B$2:$B$71)","v":{"$error":"#VALUE!"}}]
[196,{"$f":"КАДРЫ!E197","v":0},null,null,null,{"$f":"IF(КАДРЫ!I197=\"\",LOWER(КАДРЫ!K197),LOWER(КАДРЫ!I197))","v":"моторист (машинист)"},{"$f":"КАДРЫ!D197","v":0},null,null,null,null,null,null,{"$f":"VLOOKUP(F197&\"*\",ДОЛЖНОСТИ!B:B,1,)","v":"моторист (машинист)"},{"$f":"REPLACE(F197,100,2,ДОЛЖНОСТИ!$B$2:$B$71)","v":{"$error":"#VALUE!"}}]
[197,{"$f":"КАДРЫ!E198","v":0},null,null,null,{"$f":"IF(КАДРЫ!I198=\"\",LOWER(КАДРЫ!K198),LOWER(КАДРЫ!I198))","v":"моторист (машинист)"},{"$f":"КАДРЫ!D198","v":0},null,null,null,null,null,null,{"$f":"VLOOKUP(F198&\"*\",ДОЛЖНОСТИ!B:B,1,)","v":"моторист (машинист)"},{"$f":"REPLACE(F198,100,2,ДОЛЖНОСТИ!$B$2:$B$71)","v":{"$error":"#VALUE!"}}]
[198,{"$f":"КАДРЫ!E199","v":0},null,null,null,{"$f":"IF(КАДРЫ!I199=\"\",LOWER(КАДРЫ!K199),LOWER(КАДРЫ!I199))","v":"моторист (машинист)"},{"$f":"КАДРЫ!D199","v":0},null,null,null,null,null,null,{"$f":"VLOOKUP(F199&\"*\",ДОЛЖНОСТИ!B:B,1,)","v":"моторист (машинист)"},{"$f":"REPLACE(F199,100,2,ДОЛЖНОСТИ!$B$2:$B$71)","v":{"$error":"#VALUE!"}}]
[199,{"$f":"КАДРЫ!E200","v":0},null,null,null,{"$f":"IF(КАДРЫ!I200=\"\",LOWER(КАДРЫ!K200),LOWER(КАДРЫ!I200))","v":"моторист (машинист)"},{"$f":"КАДРЫ!D200","v":0},null,null,null,null,null,null,{"$f":"VLOOKUP(F200&\"*\",ДОЛЖНОСТИ!B:B,1,)","v":"моторист (машинист)"},{"$f":"REPLACE(F200,100,2,ДОЛЖНОСТИ!$B$2:$B$71)","v":{"$error":"#VALUE!"}}]
[200,{"$f":"КАДРЫ!E201","v":0},null,null,null,{"$f":"IF(КАДРЫ!I201=\"\",LOWER(КАДРЫ!K201),LOWER(КАДРЫ!I201))","v":"моторист (машинист)"},{"$f":"КАДРЫ!D201","v":0},null,null,null,null,null,null,{"$f":"VLOOKUP(F201&\"*\",ДОЛЖНОСТИ!B:B,1,)","v":"моторист (машинист)"},{"$f":"REPLACE(F201,100,2,ДОЛЖНОСТИ!$B$2:$B$71)","v":{"$error":"#VALUE!"}}]
[201,{"$f":"КАДРЫ!E202","v":0},null,null,null,{"$f":"IF(КАДРЫ!I202=\"\",LOWER(КАДРЫ!K202),LOWER(КАДРЫ!I202))","v":"моторист-матрос"},{"$f":"КАДРЫ!D202","v":0},null,null,null,null,null,null,{"$f":"VLOOKUP(F202&\"*\",ДОЛЖНОСТИ!B:B,1,)","v":"моторист-матрос"},{"$f":"REPLACE(F202,100,2,ДОЛЖНОСТИ!$B$2:$B$71)","v":{"$error":"#VALUE!"}}]
[202,{"$f":"КАДРЫ!E203","v":0},null,null,null,{"$f":"IF(КАДРЫ!I203=\"\",LOWER(КАДРЫ!K203),LOWER(КАДРЫ!I203))","v":"моторист-рулевой"},{"$f":"КАДРЫ!D203","v":0},null,null,null,null,null,null,{"$f":"VLOOKUP(F203&\"*\",ДОЛЖНОСТИ!B:B,1,)","v":"моторист-рулевой"},{"$f":"REPLACE(F203,100,2,ДОЛЖНОСТИ!$B$2:$B$71)","v":{"$error":"#VALUE!"}}]
[203,{"$f":"КАДРЫ!E204","v":0},null,null,null,{"$f":"IF(КАДРЫ!I204=\"\",LOWER(КАДРЫ!K204),LOWER(КАДРЫ!I204))","v":"моторист-рулевой"},{"$f":"КАДРЫ!D204","v":0},null,null,null,null,null,null,{"$f":"VLOOKUP(F204&\"*\",ДОЛЖНОСТИ!B:B,1,)","v":"моторист-рулевой"},{"$f":"REPLACE(F204,100,2,ДОЛЖНОСТИ!$B$2:$B$71)","v":{"$error":"#VALUE!"}}]
[204,{"$f":"КАДРЫ!E205","v":0},null,null,null,{"$f":"IF(КАДРЫ!I205=\"\",LOWER(КАДРЫ!K205),LOWER(КАДРЫ!I205))","v":"начальник службы"},{"$f":"КАДРЫ!D205","v":0},null,null,null,null,null,null,{"$f":"VLOOKUP(F205&\"*\",ДОЛЖНОСТИ!B:B,1,)","v":"начальник службы"},{"$f":"REPLACE(F205,100,2,ДОЛЖНОСТИ!$B$2:$B$71)","v":{"$error":"#VALUE!"}}]
[205,{"$f":"КАДРЫ!E206","v":0},null,null,null,{"$f":"IF(КАДРЫ!I206=\"\",LOWER(КАДРЫ!K206),LOWER(КАДРЫ!I206))","v":"начальник службы судового хозяйства"},{"$f":"КАДРЫ!D206","v":0},null,null,null,null,null,null,{"$f":"VLOOKUP(F206&\"*\",ДОЛЖНОСТИ!B:B,1,)","v":"начальник службы судового хозяйства"},{"$f":"REPLACE(F206,100,2,ДОЛЖНОСТИ!$B$2:$B$71)","v":{"$error":"#VALUE!"}}]
[206,{"$f":"КАДРЫ!E207","v":0},null,null,null,{"$f":"IF(КАДРЫ!I207=\"\",LOWER(КАДРЫ!K207),LOWER(КАДРЫ!I207))","v":"оператор электронно-вычислительных машин"},{"$f":"КАДРЫ!D207","v":0},null,null,null,null,null,null,{"$f":"VLOOKUP(F207&\"*\",ДОЛЖНОСТИ!B:B,1,)","v":"оператор электронно-вычислительных машин"},{"$f":"REPLACE(F207,100,2,ДОЛЖНОСТИ!$B$2:$B$71)","v":{"$error":"#VALUE!"}}]
[207,{"$f":"КАДРЫ!E208","v":0},null,null,null,{"$f":"IF(КАДРЫ!I208=\"\",LOWER(КАДРЫ!K208),LOWER(КАДРЫ!I208))","v":"повар судовой 1 категории"},{"$f":"КАДРЫ!D208","v":0},null,null,null,null,null,null,{"$f":"VLOOKUP(F208&\"*\",ДОЛЖНОСТИ!B:B,1,)","v":{"$error":"#N/A"}},{"$f":"REPLACE(F208,100,2,ДОЛЖНОСТИ!$B$2:$B$71)","v":{"$error":"#VALUE!"}}]
[208,{"$f":"КАДРЫ!E209","v":0},null,null,null,{"$f":"IF(КАДРЫ!I209=\"\",LOWER(КАДРЫ!K209),LOWER(КАДРЫ!I209))","v":"повар судовой 2 категории"},{"$f":"КАДРЫ!D209","v":0},null,null,null,null,null,null,{"$f":"VLOOKUP(F209&\"*\",ДОЛЖНОСТИ!B:B,1,)","v":"повар судовой 2 категории"},{"$f":"REPLACE(F209,100,2,ДОЛЖНОСТИ!$B$2:$B$71)","v":{"$error":"#VALUE!"}}]
[209,{"$f":"КАДРЫ!E210","v":0},null,null,null,{"$f":"IF(КАДРЫ!I210=\"\",LOWER(КАДРЫ!K210),LOWER(КАДРЫ!I210))","v":"повар судовой 2 категории"},{"$f":"КАДРЫ!D210","v":0},null,null,null,null,null,null,{"$f":"VLOOKUP(F210&\"*\",ДОЛЖНОСТИ!B:B,1,)","v":"повар судовой 2 категории"},{"$f":"REPLACE(F210,100,2,ДОЛЖНОСТИ!$B$2:$B$71)","v":{"$error":"#VALUE!"}}]
[210,{"$f":"КАДРЫ!E211","v":0},null,null,null,{"$f":"IF(КАДРЫ!I211=\"\",LOWER(КАДРЫ!K211),LOWER(КАДРЫ!I211))","v":"повар судовой 2 категории"},{"$f":"КАДРЫ!D211","v":0},null,null,null,null,null,null,{"$f":"VLOOKUP(F211&\"*\",ДОЛЖНОСТИ!B:B,1,)","v":"повар судовой 2 категории"},{"$f":"REPLACE(F211,100,2,ДОЛЖНОСТИ!$B$2:$B$71)","v":{"$error":"#VALUE!"}}]
[211,{"$f":"КАДРЫ!E212","v":0},null,null,null,{"$f":"IF(КАДРЫ!I212=\"\",LOWER(КАДРЫ!K212),LOWER(КАДРЫ!I212))","v":"повар судовой 2 категории"},{"$f":"КАДРЫ!D212","v":0},null,null,null,null,null,null,{"$f":"VLOOKUP(F212&\"*\",ДОЛЖНОСТИ!B:B,1,)","v":"повар судовой 2 категории"},{"$f":"REPLACE(F212,100,2,ДОЛЖНОСТИ!$B$2:$B$71)","v":{"$error":"#VALUE!"}}]
[212,{"$f":"КАДРЫ!E213","v":0},null,null,null,{"$f":"IF(КАДРЫ!I213=\"\",LOWER(КАДРЫ!K213),LOWER(КАДРЫ!I213))","v":"повар судовой 2 категории"},{"$f":"КАДРЫ!D213","v":0},null,null,null,null,null,null,{"$f":"VLOOKUP(F213&\"*\",ДОЛЖНОСТИ!B:B,1,)","v":"повар судовой 2 категории"},{"$f":"REPLACE(F213,100,2,ДОЛЖНОСТИ!$B$2:$B$71)","v":{"$error":"#VALUE!"}}]
[213,{"$f":"КАДРЫ!E214","v":0},null,null,null,{"$f":"IF(КАДРЫ!I214=\"\",LOWER(КАДРЫ!K214),LOWER(КАДРЫ!I214))","v":"повар судовой 2 категории"},{"$f":"КАДРЫ!D214","v":0},null,null,null,null,null,null,{"$f":"VLOOKUP(F214&\"*\",ДОЛЖНОСТИ!B:B,1,)","v":"повар судовой 2 категории"},{"$f":"REPLACE(F214,100,2,ДОЛЖНОСТИ!$B$2:$B$71)","v":{"$error":"#VALUE!"}}]
[214,{"$f":"КАДРЫ!E215","v":0},null,null,null,{"$f":"IF(КАДРЫ!I215=\"\",LOWER(КАДРЫ!K215),LOWER(КАДРЫ!I215))","v":"повар судовой 2 категории"},{"$f":"КАДРЫ!D215","v":0},null,null,null,null,null,null,{"$f":"VLOOKUP(F215&\"*\",ДОЛЖНОСТИ!B:B,1,)","v":"повар судовой 2 категории"},{"$f":"REPLACE(F215,100,2,ДОЛЖНОСТИ!$B$2:$B$71)","v":{"$error":"#VALUE!"}}]
[215,{"$f":"КАДРЫ!E216","v":0},null,null,null,{"$f":"IF(КАДРЫ!I216=\"\",LOWER(КАДРЫ!K216),LOWER(КАДРЫ!I216))","v":"повар судовой 2 категории"},{"$f":"КАДРЫ!D216","v":0},null,null,null,null,null,null,{"$f":"VLOOKUP(F216&\"*\",ДОЛЖНОСТИ!B:B,1,)","v":"повар судовой 2 категории"},{"$f":"REPLACE(F216,100,2,ДОЛЖНОСТИ!$B$2:$B$71)","v":{"$error":"#VALUE!"}}]
[216,{"$f":"КАДРЫ!E217","v":0},null,null,null,{"$f":"IF(КАДРЫ!I217=\"\",LOWER(КАДРЫ!K217),LOWER(КАДРЫ!I217))","v":"повар судовой 2 категории"},{"$f":"КАДРЫ!D217","v":0},null,null,null,null,null,null,{"$f":"VLOOKUP(F217&\"*\",ДОЛЖНОСТИ!B:B,1,)","v":"повар судовой 2 категории"},{"$f":"REPLACE(F217,100,2,ДОЛЖНОСТИ!$B$2:$B$71)","v":{"$error":"#VALUE!"}}]
[217,{"$f":"КАДРЫ!E218","v":0},null,null,null,{"$f":"IF(КАДРЫ!I218=\"\",LOWER(КАДРЫ!K218),LOWER(КАДРЫ!I218))","v":"повар судовой 2 категории"},{"$f":"КАДРЫ!D218","v":0},null,null,null,null,null,null,{"$f":"VLOOKUP(F218&\"*\",ДОЛЖНОСТИ!B:B,1,)","v":"повар судовой 2 категории"},{"$f":"REPLACE(F218,100,2,ДОЛЖНОСТИ!$B$2:$B$71)","v":{"$error":"#VALUE!"}}]
[218,{"$f":"КАДРЫ!E219","v":0},null,null,null,{"$f":"IF(КАДРЫ!I219=\"\",LOWER(КАДРЫ!K219),LOWER(КАДРЫ!I219))","v":"проводник на водном транспорте"},{"$f":"КАДРЫ!D219","v":0},null,null,null,null,null,null,{"$f":"VLOOKUP(F219&\"*\",ДОЛЖНОСТИ!B:B,1,)","v":"проводник на водном транспорте"},{"$f":"REPLACE(F219,100,2,ДОЛЖНОСТИ!$B$2:$B$71)","v":{"$error":"#VALUE!"}}]
[219,{"$f":"КАДРЫ!E220","v":0},null,null,null,{"$f":"IF(КАДРЫ!I220=\"\",LOWER(КАДРЫ!K220),LOWER(КАДРЫ!I220))","v":"капитан"},{"$f":"КАДРЫ!D220","v":0},null,null,null,null,null,null,{"$f":"VLOOKUP(F220&\"*\",ДОЛЖНОСТИ!B:B,1,)","v":"капитан"},{"$f":"REPLACE(F220,100,2,ДОЛЖНОСТИ!$B$2:$B$71)","v":{"$error":"#VALUE!"}}]
[220,{"$f":"КАДРЫ!E221","v":0},null,null,null,{"$f":"IF(КАДРЫ!I221=\"\",LOWER(КАДРЫ!K221),LOWER(КАДРЫ!I221))","v":"капитан - сменный механик"},{"$f":"КАДРЫ!D221","v":0},null,null,null,null,null,null,{"$f":"VLOOKUP(F221&\"*\",ДОЛЖНОСТИ!B:B,1,)","v":{"$error":"#N/A"}},{"$f":"REPLACE(F221,100,2,ДОЛЖНОСТИ!$B$2:$B$71)","v":{"$error":"#VALUE!"}}]
[221,{"$f":"КАДРЫ!E222","v":0},null,null,null,{"$f":"IF(КАДРЫ!I222=\"\",LOWER(КАДРЫ!K222),LOWER(КАДРЫ!I222))","v":"капитан - сменный механик"},{"$f":"КАДРЫ!D222","v":0},null,null,null,null,null,null,{"$f":"VLOOKUP(F222&\"*\",ДОЛЖНОСТИ!B:B,1,)","v":{"$error":"#N/A"}},{"$f":"REPLACE(F222,100,2,ДОЛЖНОСТИ!$B$2:$B$71)","v":{"$error":"#VALUE!"}}]
[222,{"$f":"КАДРЫ!E223","v":0},null,null,null,{"$f":"IF(КАДРЫ!I223=\"\",LOWER(КАДРЫ!K223),LOWER(КАДРЫ!I223))","v":"капитан - сменный механик"},{"$f":"КАДРЫ!D223","v":0},null,null,null,null,null,null,{"$f":"VLOOKUP(F223&\"*\",ДОЛЖНОСТИ!B:B,1,)","v":{"$error":"#N/A"}},{"$f":"REPLACE(F223,100,2,ДОЛЖНОСТИ!$B$2:$B$71)","v":{"$error":"#VALUE!"}}]
[223,{"$f":"КАДРЫ!E224","v":0},null,null,null,{"$f":"IF(КАДРЫ!I224=\"\",LOWER(КАДРЫ!K224),LOWER(КАДРЫ!I224))","v":"капитан"},{"$f":"КАДРЫ!D224","v":0},null,null,null,null,null,null,{"$f":"VLOOKUP(F224&\"*\",ДОЛЖНОСТИ!B:B,1,)","v":"капитан"},{"$f":"REPLACE(F224,100,2,ДОЛЖНОСТИ!$B$2:$B$71)","v":{"$error":"#VALUE!"}}]
[224,{"$f":"КАДРЫ!E225","v":0},null,null,null,{"$f":"IF(КАДРЫ!I225=\"\",LOWER(КАДРЫ!K225),LOWER(КАДРЫ!I225))","v":"капитан - сменный механик"},{"$f":"КАДРЫ!D225","v":0},null,null,null,null,null,null,{"$f":"VLOOKUP(F225&\"*\",ДОЛЖНОСТИ!B:B,1,)","v":{"$error":"#N/A"}},{"$f":"REPLACE(F225,100,2,ДОЛЖНОСТИ!$B$2:$B$71)","v":{"$error":"#VALUE!"}}]
[225,{"$f":"КАДРЫ!E226","v":0},null,null,null,{"$f":"IF(КАДРЫ!I226=\"\",LOWER(КАДРЫ!K226),LOWER(КАДРЫ!I226))","v":"капитан"},{"$f":"КАДРЫ!D226","v":0},null,null,null,null,null,null,{"$f":"VLOOKUP(F226&\"*\",ДОЛЖНОСТИ!B:B,1,)","v":"капитан"},{"$f":"REPLACE(F226,100,2,ДОЛЖНОСТИ!$B$2:$B$71)","v":{"$error":"#VALUE!"}}]
[226,{"$f":"КАДРЫ!E227","v":0},null,null,null,{"$f":"IF(КАДРЫ!I227=\"\",LOWER(КАДРЫ!K227),LOWER(КАДРЫ!I227))","v":"капитан - сменный механик"},{"$f":"КАДРЫ!D227","v":0},null,null,null,null,null,null,{"$f":"VLOOKUP(F227&\"*\",ДОЛЖНОСТИ!B:B,1,)","v":{"$error":"#N/A"}},{"$f":"REPLACE(F227,100,2,ДОЛЖНОСТИ!$B$2:$B$71)","v":{"$error":"#VALUE!"}}]
[227,{"$f":"КАДРЫ!E228","v":0},null,null,null,{"$f":"IF(КАДРЫ!I228=\"\",LOWER(КАДРЫ!K228),LOWER(КАДРЫ!I228))","v":"капитан-кранмейстер"},{"$f":"КАДРЫ!D228","v":0},null,null,null,null,null,null,{"$f":"VLOOKUP(F228&\"*\",ДОЛЖНОСТИ!B:B,1,)","v":"капитан-кранмейстер"},{"$f":"REPLACE(F228,100,2,ДОЛЖНОСТИ!$B$2:$B$71)","v":{"$error":"#VALUE!"}}]
[228,{"$f":"КАДРЫ!E229","v":0},null,null,null,{"$f":"IF(КАДРЫ!I229=\"\",LOWER(КАДРЫ!K229),LOWER(КАДРЫ!I229))","v":"начальник дока (докмейстер)"},{"$f":"КАДРЫ!D229","v":0},null,null,null,null,null,null,{"$f":"VLOOKUP(F229&\"*\",ДОЛЖНОСТИ!B:B,1,)","v":"начальник дока (докмейстер)"},{"$f":"REPLACE(F229,100,2,ДОЛЖНОСТИ!$B$2:$B$71)","v":{"$error":"#VALUE!"}}]
[229,{"$f":"КАДРЫ!E230","v":0},null,null,null,{"$f":"IF(КАДРЫ!I230=\"\",LOWER(КАДРЫ!K230),LOWER(КАДРЫ!I230))","v":"капитан - сменный механик"},{"$f":"КАДРЫ!D230","v":0},null,null,null,null,null,null,{"$f":"VLOOKUP(F230&\"*\",ДОЛЖНОСТИ!B:B,1,)","v":{"$error":"#N/A"}},{"$f":"REPLACE(F230,100,2,ДОЛЖНОСТИ!$B$2:$B$71)","v":{"$error":"#VALUE!"}}]
[230,{"$f":"КАДРЫ!E231","v":0},null,null,null,{"$f":"IF(КАДРЫ!I231=\"\",LOWER(КАДРЫ!K231),LOWER(КАДРЫ!I231))","v":"капитан"},{"$f":"КАДРЫ!D231","v":0},null,null,null,null,null,null,{"$f":"VLOOKUP(F231&\"*\",ДОЛЖНОСТИ!B:B,1,)","v":"капитан"},{"$f":"REPLACE(F231,100,2,ДОЛЖНОСТИ!$B$2:$B$71)","v":{"$error":"#VALUE!"}}]
[231,{"$f":"КАДРЫ!E232","v":0},null,null,null,{"$f":"IF(КАДРЫ!I232=\"\",LOWER(КАДРЫ!K232),LOWER(КАДРЫ!I232))","v":"капитан - сменный механик"},{"$f":"КАДРЫ!D232","v":0},null,null,null,null,null,null,{"$f":"VLOOKUP(F232&\"*\",ДОЛЖНОСТИ!B:B,1,)","v":{"$error":"#N/A"}},{"$f":"REPLACE(F232,100,2,ДОЛЖНОСТИ!$B$2:$B$71)","v":{"$error":"#VALUE!"}}]
[232,{"$f":"КАДРЫ!E233","v":0},null,null,null,{"$f":"IF(КАДРЫ!I233=\"\",LOWER(КАДРЫ!K233),LOWER(КАДРЫ!I233))","v":"капитан-кранмейстер"},{"$f":"КАДРЫ!D233","v":0},null,null,null,null,null,null,{"$f":"VLOOKUP(F233&\"*\",ДОЛЖНОСТИ!B:B,1,)","v":"капитан-кранмейстер"},{"$f":"REPLACE(F233,100,2,ДОЛЖНОСТИ!$B$2:$B$71)","v":{"$error":"#VALUE!"}}]
[233,{"$f":"КАДРЫ!E234","v":0},null,null,null,{"$f":"IF(КАДРЫ!I234=\"\",LOWER(КАДРЫ!K234),LOWER(КАДРЫ!I234))","v":"капитан"},{"$f":"КАДРЫ!D234","v":0},null,null,null,null,null,null,{"$f":"VLOOKUP(F234&\"*\",ДОЛЖНОСТИ!B:B,1,)","v":"капитан"},{"$f":"REPLACE(F234,100,2,ДОЛЖНОСТИ!$B$2:$B$71)","v":{"$error":"#VALUE!"}}]
[234,{"$f":"КАДРЫ!E235","v":0},null,null,null,{"$f":"IF(КАДРЫ!I235=\"\",LOWER(КАДРЫ!K235),LOWER(КАДРЫ!I235))","v":"капитан - сменный механик"},{"$f":"КАДРЫ!D235","v":0},null,null,null,null,null,null,{"$f":"VLOOKUP(F235&\"*\",ДОЛЖНОСТИ!B:B,1,)","v":{"$error":"#N/A"}},{"$f":"REPLACE(F235,100,2,ДОЛЖНОСТИ!$B$2:$B$71)","v":{"$error":"#VALUE!"}}]
[235,{"$f":"КАДРЫ!E236","v":0},null,null,null,{"$f":"IF(КАДРЫ!I236=\"\",LOWER(КАДРЫ!K236),LOWER(КАДРЫ!I236))","v":"капитан"},{"$f":"КАДРЫ!D236","v":0},null,null,null,null,null,null,{"$f":"VLOOKUP(F236&\"*\",ДОЛЖНОСТИ!B:B,1,)","v":"капитан"},{"$f":"REPLACE(F236,100,2,ДОЛЖНОСТИ!$B$2:$B$71)","v":{"$error":"#VALUE!"}}]
[236,{"$f":"КАДРЫ!E237","v":0},null,null,null,{"$f":"IF(КАДРЫ!I237=\"\",LOWER(КАДРЫ!K237),LOWER(КАДРЫ!I237))","v":"капитан - сменный механик"},{"$f":"КАДРЫ!D237","v":0},null,null,null,null,null,null,{"$f":"VLOOKUP(F237&\"*\",ДОЛЖНОСТИ!B:B,1,)","v":{"$error":"#N/A"}},{"$f":"REPLACE(F237,100,2,ДОЛЖНОСТИ!$B$2:$B$71)","v":{"$error":"#VALUE!"}}]
[237,{"$f":"КАДРЫ!E238","v":0},null,null,null,{"$f":"IF(КАДРЫ!I238=\"\",LOWER(КАДРЫ!K238),LOWER(КАДРЫ!I238))","v":"капитан"},{"$f":"КАДРЫ!D238","v":0},null,null,null,null,null,null,{"$f":"VLOOKUP(F238&\"*\",ДОЛЖНОСТИ!B:B,1,)","v":"капитан"},{"$f":"REPLACE(F238,100,2,ДОЛЖНОСТИ!$B$2:$B$71)","v":{"$error":"#VALUE!"}}]
[238,{"$f":"КАДРЫ!E239","v":0},null,null,null,{"$f":"IF(КАДРЫ!I239=\"\",LOWER(КАДРЫ!K239),LOWER(КАДРЫ!I239))","v":"слесарь-ремонтник"},{"$f":"КАДРЫ!D239","v":0},null,null,null,null,null,null,{"$f":"VLOOKUP(F239&\"*\",ДОЛЖНОСТИ!B:B,1,)","v":"слесарь-ремонтник"},{"$f":"REPLACE(F239,100,2,ДОЛЖНОСТИ!$B$2:$B$71)","v":{"$error":"#VALUE!"}}]
[239,{"$f":"КАДРЫ!E240","v":0},null,null,null,{"$f":"IF(КАДРЫ!I240=\"\",LOWER(КАДРЫ!K240),LOWER(КАДРЫ!I240))","v":"слесарь-ремонтник"},{"$f":"КАДРЫ!D240","v":0},null,null,null,null,null,null,{"$f":"VLOOKUP(F240&\"*\",ДОЛЖНОСТИ!B:B,1,)","v":"слесарь-ремонтник"},{"$f":"REPLACE(F240,100,2,ДОЛЖНОСТИ!$B$2:$B$71)","v":{"$error":"#VALUE!"}}]
[240,{"$f":"КАДРЫ!E241","v":0},null,null,null,{"$f":"IF(КАДРЫ!I241=\"\",LOWER(КАДРЫ!K241),LOWER(КАДРЫ!I241))","v":"слесарь-ремонтник"},{"$f":"КАДРЫ!D241","v":0},null,null,null,null,null,null,{"$f":"VLOOKUP(F241&\"*\",ДОЛЖНОСТИ!B:B,1,)","v":"слесарь-ремонтник"},{"$f":"REPLACE(F241,100,2,ДОЛЖНОСТИ!$B$2:$B$71)","v":{"$error":"#VALUE!"}}]
[241,{"$f":"КАДРЫ!E242","v":0},null,null,null,{"$f":"IF(КАДРЫ!I242=\"\",LOWER(КАДРЫ!K242),LOWER(КАДРЫ!I242))","v":"слесарь-ремонтник"},{"$f":"КАДРЫ!D242","v":0},null,null,null,null,null,null,{"$f":"VLOOKUP(F242&\"*\",ДОЛЖНОСТИ!B:B,1,)","v":"слесарь-ремонтник"},{"$f":"REPLACE(F242,100,2,ДОЛЖНОСТИ!$B$2:$B$71)","v":{"$error":"#VALUE!"}}]
[242,{"$f":"КАДРЫ!E243","v":0},null,null,null,{"$f":"IF(КАДРЫ!I243=\"\",LOWER(КАДРЫ!K243),LOWER(КАДРЫ!I243))","v":"слесарь-ремонтник"},{"$f":"КАДРЫ!D243","v":0},null,null,null,null,null,null,{"$f":"VLOOKUP(F243&\"*\",ДОЛЖНОСТИ!B:B,1,)","v":"слесарь-ремонтник"},{"$f":"REPLACE(F243,100,2,ДОЛЖНОСТИ!$B$2:$B$71)","v":{"$error":"#VALUE!"}}]
[243,{"$f":"КАДРЫ!E244","v":0},null,null,null,{"$f":"IF(КАДРЫ!I244=\"\",LOWER(КАДРЫ!K244),LOWER(КАДРЫ!I244))","v":"сменный механик"},{"$f":"КАДРЫ!D244","v":0},null,null,null,null,null,null,{"$f":"VLOOKUP(F244&\"*\",ДОЛЖНОСТИ!B:B,1,)","v":"сменный механик"},{"$f":"REPLACE(F244,100,2,ДОЛЖНОСТИ!$B$2:$B$71)","v":{"$error":"#VALUE!"}}]
[244,{"$f":"КАДРЫ!E245","v":0},null,null,null,{"$f":"IF(КАДРЫ!I245=\"\",LOWER(КАДРЫ!K245),LOWER(КАДРЫ!I245))","v":"сменный механик"},{"$f":"КАДРЫ!D245","v":0},null,null,null,null,null,null,{"$f":"VLOOKUP(F245&\"*\",ДОЛЖНОСТИ!B:B,1,)","v":"сменный механик"},{"$f":"REPLACE(F245,100,2,ДОЛЖНОСТИ!$B$2:$B$71)","v":{"$error":"#VALUE!"}}]
[245,{"$f":"КАДРЫ!E246","v":0},null,null,null,{"$f":"IF(КАДРЫ!I246=\"\",LOWER(КАДРЫ!K246),LOWER(КАДРЫ!I246))","v":"сменный помощник капитана"},{"$f":"КАДРЫ!D246","v":0},null,null,null,null,null,null,{"$f":"VLOOKUP(F246&\"*\",ДОЛЖНОСТИ!B:B,1,)","v":"сменный помощник капитана"},{"$f":"REPLACE(F246,100,2,ДОЛЖНОСТИ!$B$2:$B$71)","v":{"$error":"#VALUE!"}}]
[246,{"$f":"КАДРЫ!E247","v":0},null,null,null,{"$f":"IF(КАДРЫ!I247=\"\",LOWER(КАДРЫ!K247),LOWER(КАДРЫ!I247))","v":"сменный помощник капитана"},{"$f":"КАДРЫ!D247","v":0},null,null,null,null,null,null,{"$f":"VLOOKUP(F247&\"*\",ДОЛЖНОСТИ!B:B,1,)","v":"сменный помощник капитана"},{"$f":"REPLACE(F247,100,2,ДОЛЖНОСТИ!$B$2:$B$71)","v":{"$error":"#VALUE!"}}]
[247,{"$f":"КАДРЫ!E248","v":0},null,null,null,{"$f":"IF(КАДРЫ!I248=\"\",LOWER(КАДРЫ!K248),LOWER(КАДРЫ!I248))","v":"сменный помощник капитана"},{"$f":"КАДРЫ!D248","v":0},null,null,null,null,null,null,{"$f":"VLOOKUP(F248&\"*\",ДОЛЖНОСТИ!B:B,1,)","v":"сменный помощник капитана"},{"$f":"REPLACE(F248,100,2,ДОЛЖНОСТИ!$B$2:$B$71)","v":{"$error":"#VALUE!"}}]
[248,{"$f":"КАДРЫ!E249","v":0},null,null,null,{"$f":"IF(КАДРЫ!I249=\"\",LOWER(КАДРЫ!K249),LOWER(КАДРЫ!I249))","v":"сменный помощник капитана"},{"$f":"КАДРЫ!D249","v":0},null,null,null,null,null,null,{"$f":"VLOOKUP(F249&\"*\",ДОЛЖНОСТИ!B:B,1,)","v":"сменный помощник капитана"},{"$f":"REPLACE(F249,100,2,ДОЛЖНОСТИ!$B$2:$B$71)","v":{"$error":"#VALUE!"}}]
[249,{"$f":"КАДРЫ!E250","v":0},null,null,null,{"$f":"IF(КАДРЫ!I250=\"\",LOWER(КАДРЫ!K250),LOWER(КАДРЫ!I250))","v":"сменный электромеханик"},{"$f":"КАДРЫ!D250","v":0},null,null,null,null,null,null,{"$f":"VLOOKUP(F250&\"*\",ДОЛЖНОСТИ!B:B,1,)","v":"сменный электромеханик"},{"$f":"REPLACE(F250,100,2,ДОЛЖНОСТИ!$B$2:$B$71)","v":{"$error":"#VALUE!"}}]
[250,{"$f":"КАДРЫ!E251","v":0},null,null,null,{"$f":"IF(КАДРЫ!I251=\"\",LOWER(КАДРЫ!K251),LOWER(КАДРЫ!I251))","v":"второй механик"},{"$f":"КАДРЫ!D251","v":0},null,null,null,null,null,null,{"$f":"VLOOKUP(F251&\"*\",ДОЛЖНОСТИ!B:B,1,)","v":"второй механик"},{"$f":"REPLACE(F251,100,2,ДОЛЖНОСТИ!$B$2:$B$71)","v":{"$error":"#VALUE!"}}]
[251,{"$f":"КАДРЫ!E252","v":0},null,null,null,{"$f":"IF(КАДРЫ!I252=\"\",LOWER(КАДРЫ!K252),LOWER(КАДРЫ!I252))","v":"сменный механик"},{"$f":"КАДРЫ!D252","v":0},null,null,null,null,null,null,{"$f":"VLOOKUP(F252&\"*\",ДОЛЖНОСТИ!B:B,1,)","v":"сменный механик"},{"$f":"REPLACE(F252,100,2,ДОЛЖНОСТИ!$B$2:$B$71)","v":{"$error":"#VALUE!"}}]
[252,{"$f":"КАДРЫ!E253","v":0},null,null,null,{"$f":"IF(КАДРЫ!I253=\"\",LOWER(КАДРЫ!K253),LOWER(КАДРЫ!I253))","v":"сменный капитан-диспетчер"},{"$f":"КАДРЫ!D253","v":0},null,null,null,null,null,null,{"$f":"VLOOKUP(F253&\"*\",ДОЛЖНОСТИ!B:B,1,)","v":"сменный капитан-диспетчер"},{"$f":"REPLACE(F253,100,2,ДОЛЖНОСТИ!$B$2:$B$71)","v":{"$error":"#VALUE!"}}]
[253,{"$f":"КАДРЫ!E254","v":0},null,null,null,{"$f":"IF(КАДРЫ!I254=\"\",LOWER(КАДРЫ!K254),LOWER(КАДРЫ!I254))","v":"сменный капитан-диспетчер"},{"$f":"КАДРЫ!D254","v":0},null,null,null,null,null,null,{"$f":"VLOOKUP(F254&\"*\",ДОЛЖНОСТИ!B:B,1,)","v":"сменный капитан-диспетчер"},{"$f":"REPLACE(F254,100,2,ДОЛЖНОСТИ!$B$2:$B$71)","v":{"$error":"#VALUE!"}}]
[254,{"$f":"КАДРЫ!E255","v":0},null,null,null,{"$f":"IF(КАДРЫ!I255=\"\",LOWER(КАДРЫ!K255),LOWER(КАДРЫ!I255))","v":"сменный механик"},{"$f":"КАДРЫ!D255","v":0},null,null,null,null,null,null,{"$f":"VLOOKUP(F255&\"*\",ДОЛЖНОСТИ!B:B,1,)","v":"сменный механик"},{"$f":"REPLACE(F255,100,2,ДОЛЖНОСТИ!$B$2:$B$71)","v":{"$error":"#VALUE!"}}]
[255,{"$f":"КАДРЫ!E256","v":0},null,null,null,{"$f":"IF(КАДРЫ!I256=\"\",LOWER(КАДРЫ!K256),LOWER(КАДРЫ!I256))","v":"сменный капитан-диспетчер"},{"$f":"КАДРЫ!D256","v":0},null,null,null,null,null,null,{"$f":"VLOOKUP(F256&\"*\",ДОЛЖНОСТИ!B:B,1,)","v":"сменный капитан-диспетчер"},{"$f":"REPLACE(F256,100,2,ДОЛЖНОСТИ!$B$2:$B$71)","v":{"$error":"#VALUE!"}}]
[256,{"$f":"КАДРЫ!E257","v":0},null,null,null,{"$f":"IF(КАДРЫ!I257=\"\",LOWER(КАДРЫ!K257),LOWER(КАДРЫ!I257))","v":"сменный электромеханик"},{"$f":"КАДРЫ!D257","v":0},null,null,null,null,null,null,{"$f":"VLOOKUP(F257&\"*\",ДОЛЖНОСТИ!B:B,1,)","v":"сменный электромеханик"},{"$f":"REPLACE(F257,100,2,ДОЛЖНОСТИ!$B$2:$B$71)","v":{"$error":"#VALUE!"}}]
[257,{"$f":"КАДРЫ!E258","v":0},null,null,null,{"$f":"IF(КАДРЫ!I258=\"\",LOWER(КАДРЫ!K258),LOWER(КАДРЫ!I258))","v":"сменный помощник капитана - сменный кранмейстер"},{"$f":"КАДРЫ!D258","v":0},null,null,null,null,null,null,{"$f":"VLOOKUP(F258&\"*\",ДОЛЖНОСТИ!B:B,1,)","v":{"$error":"#N/A"}},{"$f":"REPLACE(F258,100,2,ДОЛЖНОСТИ!$B$2:$B$71)","v":{"$error":"#VALUE!"}}]
[258,{"$f":"КАДРЫ!E259","v":0},null,null,null,{"$f":"IF(КАДРЫ!I259=\"\",LOWER(КАДРЫ!K259),LOWER(КАДРЫ!I259))","v":"сменный капитан-диспетчер"},{"$f":"КАДРЫ!D259","v":0},null,null,null,null,null,null,{"$f":"VLOOKUP(F259&\"*\",ДОЛЖНОСТИ!B:B,1,)","v":"сменный капитан-диспетчер"},{"$f":"REPLACE(F259,100,2,ДОЛЖНОСТИ!$B$2:$B$71)","v":{"$error":"#VALUE!"}}]
[259,{"$f":"КАДРЫ!E260","v":0},null,null,null,{"$f":"IF(КАДРЫ!I260=\"\",LOWER(КАДРЫ!K260),LOWER(КАДРЫ!I260))","v":"сменный механик"},{"$f":"КАДРЫ!D260","v":0},null,null,null,null,null,null,{"$f":"VLOOKUP(F260&\"*\",ДОЛЖНОСТИ!B:B,1,)","v":"сменный механик"},{"$f":"REPLACE(F260,100,2,ДОЛЖНОСТИ!$B$2:$B$71)","v":{"$error":"#VALUE!"}}]
[260,{"$f":"КАДРЫ!E261","v":0},null,null,null,{"$f":"IF(КАДРЫ!I261=\"\",LOWER(КАДРЫ!K261),LOWER(КАДРЫ!I261))","v":"сменный механик"},{"$f":"КАДРЫ!D261","v":0},null,null,null,null,null,null,{"$f":"VLOOKUP(F261&\"*\",ДОЛЖНОСТИ!B:B,1,)","v":"сменный механик"},{"$f":"REPLACE(F261,100,2,ДОЛЖНОСТИ!$B$2:$B$71)","v":{"$error":"#VALUE!"}}]
[261,{"$f":"КАДРЫ!E262","v":0},null,null,null,{"$f":"IF(КАДРЫ!I262=\"\",LOWER(КАДРЫ!K262),LOWER(КАДРЫ!I262))","v":"сменный механик"},{"$f":"КАДРЫ!D262","v":0},null,null,null,null,null,null,{"$f":"VLOOKUP(F262&\"*\",ДОЛЖНОСТИ!B:B,1,)","v":"сменный механик"},{"$f":"REPLACE(F262,100,2,ДОЛЖНОСТИ!$B$2:$B$71)","v":{"$error":"#VALUE!"}}]
[262,{"$f":"КАДРЫ!E263","v":0},null,null,null,{"$f":"IF(КАДРЫ!I263=\"\",LOWER(КАДРЫ!K263),LOWER(КАДРЫ!I263))","v":"сменный электромеханик"},{"$f":"КАДРЫ!D263","v":0},null,null,null,null,null,null,{"$f":"VLOOKUP(F263&\"*\",ДОЛЖНОСТИ!B:B,1,)","v":"сменный электромеханик"},{"$f":"REPLACE(F263,100,2,ДОЛЖНОСТИ!$B$2:$B$71)","v":{"$error":"#VALUE!"}}]
[263,{"$f":"КАДРЫ!E264","v":0},null,null,null,{"$f":"IF(КАДРЫ!I264=\"\",LOWER(КАДРЫ!K264),LOWER(КАДРЫ!I264))","v":"сменный механик"},{"$f":"КАДРЫ!D264","v":0},null,null,null,null,null,null,{"$f":"VLOOKUP(F264&\"*\",ДОЛЖНОСТИ!B:B,1,)","v":"сменный механик"},{"$f":"REPLACE(F264,100,2,ДОЛЖНОСТИ!$B$2:$B$71)","v":{"$error":"#VALUE!"}}]
[264,{"$f":"КАДРЫ!E265","v":0},null,null,null,{"$f":"IF(КАДРЫ!I265=\"\",LOWER(КАДРЫ!K265),LOWER(КАДРЫ!I265))","v":"сменный механик"},{"$f":"КАДРЫ!D265","v":0},null,null,null,null,null,null,{"$f":"VLOOKUP(F265&\"*\",ДОЛЖНОСТИ!B:B,1,)","v":"сменный механик"},{"$f":"REPLACE(F265,100,2,ДОЛЖНОСТИ!$B$2:$B$71)","v":{"$error":"#VALUE!"}}]
[265,{"$f":"КАДРЫ!E266","v":0},null,null,null,{"$f":"IF(КАДРЫ!I266=\"\",LOWER(КАДРЫ!K266),LOWER(КАДРЫ!I266))","v":"сменный механик"},{"$f":"КАДРЫ!D266","v":0},null,null,null,null,null,null,{"$f":"VLOOKUP(F266&\"*\",ДОЛЖНОСТИ!B:B,1,)","v":"сменный механик"},{"$f":"REPLACE(F266,100,2,ДОЛЖНОСТИ!$B$2:$B$71)","v":{"$error":"#VALUE!"}}]
[266,{"$f":"КАДРЫ!E267","v":0},null,null,null,{"$f":"IF(КАДРЫ!I267=\"\",LOWER(КАДРЫ!K267),LOWER(КАДРЫ!I267))","v":"сменный механик"},{"$f":"КАДРЫ!D267","v":0},null,null,null,null,null,null,{"$f":"VLOOKUP(F267&\"*\",ДОЛЖНОСТИ!B:B,1,)","v":"сменный механик"},{"$f":"REPLACE(F267,100,2,ДОЛЖНОСТИ!$B$2:$B$71)","v":{"$error":"#VALUE!"}}]
[267,{"$f":"КАДРЫ!E268","v":0},null,null,null,{"$f":"IF(КАДРЫ!I268=\"\",LOWER(КАДРЫ!K268),LOWER(КАДРЫ!I268))","v":"сменный механик"},{"$f":"КАДРЫ!D268","v":0},null,null,null,null,null,null,{"$f":"VLOOKUP(F268&\"*\",ДОЛЖНОСТИ!B:B,1,)","v":"сменный механик"},{"$f":"REPLACE(F268,100,2,ДОЛЖНОСТИ!$B$2:$B$71)","v":{"$error":"#VALUE!"}}]
[268,{"$f":"КАДРЫ!E269","v":0},null,null,null,{"$f":"IF(КАДРЫ!I269=\"\",LOWER(КАДРЫ!K269),LOWER(КАДРЫ!I269))","v":"сменный механик"},{"$f":"КАДРЫ!D269","v":0},null,null,null,null,null,null,{"$f":"VLOOKUP(F269&\"*\",ДОЛЖНОСТИ!B:B,1,)","v":"сменный механик"},{"$f":"REPLACE(F269,100,2,ДОЛЖНОСТИ!$B$2:$B$71)","v":{"$error":"#VALUE!"}}]
[269,{"$f":"КАДРЫ!E270","v":0},null,null,null,{"$f":"IF(КАДРЫ!I270=\"\",LOWER(КАДРЫ!K270),LOWER(КАДРЫ!I270))","v":"сменный помощник капитана"},{"$f":"КАДРЫ!D270","v":0},null,null,null,null,null,null,{"$f":"VLOOKUP(F270&\"*\",ДОЛЖНОСТИ!B:B,1,)","v":"сменный помощник капитана"},{"$f":"REPLACE(F270,100,2,ДОЛЖНОСТИ!$B$2:$B$71)","v":{"$error":"#VALUE!"}}]
[270,{"$f":"КАДРЫ!E271","v":0},null,null,null,{"$f":"IF(КАДРЫ!I271=\"\",LOWER(КАДРЫ!K271),LOWER(КАДРЫ!I271))","v":"сменный механик"},{"$f":"КАДРЫ!D271","v":0},null,null,null,null,null,null,{"$f":"VLOOKUP(F271&\"*\",ДОЛЖНОСТИ!B:B,1,)","v":"сменный механик"},{"$f":"REPLACE(F271,100,2,ДОЛЖНОСТИ!$B$2:$B$71)","v":{"$error":"#VALUE!"}}]
[271,{"$f":"КАДРЫ!E272","v":0},null,null,null,{"$f":"IF(КАДРЫ!I272=\"\",LOWER(КАДРЫ!K272),LOWER(КАДРЫ!I272))","v":"сменный помощник капитана - кранмейстер"},{"$f":"КАДРЫ!D272","v":0},null,null,null,null,null,null,{"$f":"VLOOKUP(F272&\"*\",ДОЛЖНОСТИ!B:B,1,)","v":{"$error":"#N/A"}},{"$f":"REPLACE(F272,100,2,ДОЛЖНОСТИ!$B$2:$B$71)","v":{"$error":"#VALUE!"}}]
[272,{"$f":"КАДРЫ!E273","v":0},null,null,null,{"$f":"IF(КАДРЫ!I273=\"\",LOWER(КАДРЫ!K273),LOWER(КАДРЫ!I273))","v":"механик - сменный капитан"},{"$f":"КАДРЫ!D273","v":0},null,null,null,null,null,null,{"$f":"VLOOKUP(F273&\"*\",ДОЛЖНОСТИ!B:B,1,)","v":{"$error":"#N/A"}},{"$f":"REPLACE(F273,100,2,ДОЛЖНОСТИ!$B$2:$B$71)","v":{"$error":"#VALUE!"}}]
[273,{"$f":"КАДРЫ!E274","v":0},null,null,null,{"$f":"IF(КАДРЫ!I274=\"\",LOWER(КАДРЫ!K274),LOWER(КАДРЫ!I274))","v":"сменный механик"},{"$f":"КАДРЫ!D274","v":0},null,null,null,null,null,null,{"$f":"VLOOKUP(F274&\"*\",ДОЛЖНОСТИ!B:B,1,)","v":"сменный механик"},{"$f":"REPLACE(F274,100,2,ДОЛЖНОСТИ!$B$2:$B$71)","v":{"$error":"#VALUE!"}}]
[274,{"$f":"КАДРЫ!E275","v":0},null,null,null,{"$f":"IF(КАДРЫ!I275=\"\",LOWER(КАДРЫ!K275),LOWER(КАДРЫ!I275))","v":"сменный электромеханик"},{"$f":"КАДРЫ!D275","v":0},null,null,null,null,null,null,{"$f":"VLOOKUP(F275&\"*\",ДОЛЖНОСТИ!B:B,1,)","v":"сменный электромеханик"},{"$f":"REPLACE(F275,100,2,ДОЛЖНОСТИ!$B$2:$B$71)","v":{"$error":"#VALUE!"}}]
[275,{"$f":"КАДРЫ!E276","v":0},null,null,null,{"$f":"IF(КАДРЫ!I276=\"\",LOWER(КАДРЫ!K276),LOWER(КАДРЫ!I276))","v":"механик - сменный капитан"},{"$f":"КАДРЫ!D276","v":0},null,null,null,null,null,null,{"$f":"VLOOKUP(F276&\"*\",ДОЛЖНОСТИ!B:B,1,)","v":{"$error":"#N/A"}},{"$f":"REPLACE(F276,100,2,ДОЛЖНОСТИ!$B$2:$B$71)","v":{"$error":"#VALUE!"}}]
[276,{"$f":"КАДРЫ!E277","v":0},null,null,null,{"$f":"IF(КАДРЫ!I277=\"\",LOWER(КАДРЫ!K277),LOWER(КАДРЫ!I277))","v":"сменный капитан - сменный механик"},{"$f":"КАДРЫ!D277","v":0},null,null,null,null,null,null,{"$f":"VLOOKUP(F277&\"*\",ДОЛЖНОСТИ!B:B,1,)","v":{"$error":"#N/A"}},{"$f":"REPLACE(F277,100,2,ДОЛЖНОСТИ!$B$2:$B$71)","v":{"$error":"#VALUE!"}}]
[277,{"$f":"КАДРЫ!E278","v":0},null,null,null,{"$f":"IF(КАДРЫ!I278=\"\",LOWER(КАДРЫ!K278),LOWER(КАДРЫ!I278))","v":"сменный капитан - сменный механик"},{"$f":"КАДРЫ!D278","v":0},null,null,null,null,null,null,{"$f":"VLOOKUP(F278&\"*\",ДОЛЖНОСТИ!B:B,1,)","v":{"$error":"#N/A"}},{"$f":"REPLACE(F278,100,2,ДОЛЖНОСТИ!$B$2:$B$71)","v":{"$error":"#VALUE!"}}]
[278,{"$f":"КАДРЫ!E279","v":0},null,null,null,{"$f":"IF(КАДРЫ!I279=\"\",LOWER(КАДРЫ!K279),LOWER(КАДРЫ!I279))","v":"механик - сменный капитан"},{"$f":"КАДРЫ!D279","v":0},null,null,null,null,null,null,{"$f":"VLOOKUP(F279&\"*\",ДОЛЖНОСТИ!B:B,1,)","v":{"$error":"#N/A"}},{"$f":"REPLACE(F279,100,2,ДОЛЖНОСТИ!$B$2:$B$71)","v":{"$error":"#VALUE!"}}]
[279,{"$f":"КАДРЫ!E280","v":0},null,null,null,{"$f":"IF(КАДРЫ!I280=\"\",LOWER(КАДРЫ!K280),LOWER(КАДРЫ!I280))","v":"механик - сменный капитан"},{"$f":"КАДРЫ!D280","v":0},null,null,null,null,null,null,{"$f":"VLOOKUP(F280&\"*\",ДОЛЖНОСТИ!B:B,1,)","v":{"$error":"#N/A"}},{"$f":"REPLACE(F280,100,2,ДОЛЖНОСТИ!$B$2:$B$71)","v":{"$error":"#VALUE!"}}]
[280,{"$f":"КАДРЫ!E281","v":0},null,null,null,{"$f":"IF(КАДРЫ!I281=\"\",LOWER(КАДРЫ!K281),LOWER(КАДРЫ!I281))","v":"сменный капитан - сменный механик"},{"$f":"КАДРЫ!D281","v":0},null,null,null,null,null,null,{"$f":"VLOOKUP(F281&\"*\",ДОЛЖНОСТИ!B:B,1,)","v":{"$error":"#N/A"}},{"$f":"REPLACE(F281,100,2,ДОЛЖНОСТИ!$B$2:$B$71)","v":{"$error":"#VALUE!"}}]
[281,{"$f":"КАДРЫ!E282","v":0},null,null,null,{"$f":"IF(КАДРЫ!I282=\"\",LOWER(КАДРЫ!K282),LOWER(КАДРЫ!I282))","v":"сменный капитан - сменный механик"},{"$f":"КАДРЫ!D282","v":0},null,null,null,null,null,null,{"$f":"VLOOKUP(F282&\"*\",ДОЛЖНОСТИ!B:B,1,)","v":{"$error":"#N/A"}},{"$f":"REPLACE(F282,100,2,ДОЛЖНОСТИ!$B$2:$B$71)","v":{"$error":"#VALUE!"}}]
[282,{"$f":"КАДРЫ!E283","v":0},null,null,null,{"$f":"IF(КАДРЫ!I283=\"\",LOWER(КАДРЫ!K283),LOWER(КАДРЫ!I283))","v":"механик - сменный капитан"},{"$f":"КАДРЫ!D283","v":0},null,null,null,null,null,null,{"$f":"VLOOKUP(F283&\"*\",ДОЛЖНОСТИ!B:B,1,)","v":{"$error":"#N/A"}},{"$f":"REPLACE(F283,100,2,ДОЛЖНОСТИ!$B$2:$B$71)","v":{"$error":"#VALUE!"}}]
[283,{"$f":"КАДРЫ!E284","v":0},null,null,null,{"$f":"IF(КАДРЫ!I284=\"\",LOWER(КАДРЫ!K284),LOWER(КАДРЫ!I284))","v":"сменный капитан - сменный механик"},{"$f":"КАДРЫ!D284","v":0},null,null,null,null,null,null,{"$f":"VLOOKUP(F284&\"*\",ДОЛЖНОСТИ!B:B,1,)","v":{"$error":"#N/A"}},{"$f":"REPLACE(F284,100,2,ДОЛЖНОСТИ!$B$2:$B$71)","v":{"$error":"#VALUE!"}}]
[284,{"$f":"КАДРЫ!E285","v":0},null,null,null,{"$f":"IF(КАДРЫ!I285=\"\",LOWER(КАДРЫ!K285),LOWER(КАДРЫ!I285))","v":"сменный капитан - сменный механик"},{"$f":"КАДРЫ!D285","v":0},null,null,null,null,null,null,{"$f":"VLOOKUP(F285&\"*\",ДОЛЖНОСТИ!B:B,1,)","v":{"$error":"#N/A"}},{"$f":"REPLACE(F285,100,2,ДОЛЖНОСТИ!$B$2:$B$71)","v":{"$error":"#VALUE!"}}]
[285,{"$f":"КАДРЫ!E286","v":0},null,null,null,{"$f":"IF(КАДРЫ!I286=\"\",LOWER(КАДРЫ!K286),LOWER(КАДРЫ!I286))","v":"механик - сменный капитан"},{"$f":"КАДРЫ!D286","v":0},null,null,null,null,null,null,{"$f":"VLOOKUP(F286&\"*\",ДОЛЖНОСТИ!B:B,1,)","v":{"$error":"#N/A"}},{"$f":"REPLACE(F286,100,2,ДОЛЖНОСТИ!$B$2:$B$71)","v":{"$error":"#VALUE!"}}]
[286,{"$f":"КАДРЫ!E287","v":0},null,null,null,{"$f":"IF(КАДРЫ!I287=\"\",LOWER(КАДРЫ!K287),LOWER(КАДРЫ!I287))","v":"сменный капитан - сменный механик"},{"$f":"КАДРЫ!D287","v":0},null,null,null,null,null,null,{"$f":"VLOOKUP(F287&\"*\",ДОЛЖНОСТИ!B:B,1,)","v":{"$error":"#N/A"}},{"$f":"REPLACE(F287,100,2,ДОЛЖНОСТИ!$B$2:$B$71)","v":{"$error":"#VALUE!"}}]
[287,{"$f":"КАДРЫ!E288","v":0},null,null,null,{"$f":"IF(КАДРЫ!I288=\"\",LOWER(КАДРЫ!K288),LOWER(КАДРЫ!I288))","v":"сменный капитан - сменный механик"},{"$f":"КАДРЫ!D288","v":0},null,null,null,null,null,null,{"$f":"VLOOKUP(F288&\"*\",ДОЛЖНОСТИ!B:B,1,)","v":{"$error":"#N/A"}},{"$f":"REPLACE(F288,100,2,ДОЛЖНОСТИ!$B$2:$B$71)","v":{"$error":"#VALUE!"}}]
[288,{"$f":"КАДРЫ!E289","v":0},null,null,null,{"$f":"IF(КАДРЫ!I289=\"\",LOWER(КАДРЫ!K289),LOWER(КАДРЫ!I289))","v":"механик - сменный капитан"},{"$f":"КАДРЫ!D289","v":0},null,null,null,null,null,null,{"$f":"VLOOKUP(F289&\"*\",ДОЛЖНОСТИ!B:B,1,)","v":{"$error":"#N/A"}},{"$f":"REPLACE(F289,100,2,ДОЛЖНОСТИ!$B$2:$B$71)","v":{"$error":"#VALUE!"}}]
[289,{"$f":"КАДРЫ!E290","v":0},null,null,null,{"$f":"IF(КАДРЫ!I290=\"\",LOWER(КАДРЫ!K290),LOWER(КАДРЫ!I290))","v":"сменный капитан - сменный механик"},{"$f":"КАДРЫ!D290","v":0},null,null,null,null,null,null,{"$f":"VLOOKUP(F290&\"*\",ДОЛЖНОСТИ!B:B,1,)","v":{"$error":"#N/A"}},{"$f":"REPLACE(F290,100,2,ДОЛЖНОСТИ!$B$2:$B$71)","v":{"$error":"#VALUE!"}}]
[290,{"$f":"КАДРЫ!E291","v":0},null,null,null,{"$f":"IF(КАДРЫ!I291=\"\",LOWER(КАДРЫ!K291),LOWER(КАДРЫ!I291))","v":"сменный капитан - сменный механик"},{"$f":"КАДРЫ!D291","v":0},null,null,null,null,null,null,{"$f":"VLOOKUP(F291&\"*\",ДОЛЖНОСТИ!B:B,1,)","v":{"$error":"#N/A"}},{"$f":"REPLACE(F291,100,2,ДОЛЖНОСТИ!$B$2:$B$71)","v":{"$error":"#VALUE!"}}]
[291,{"$f":"КАДРЫ!E292","v":0},null,null,null,{"$f":"IF(КАДРЫ!I292=\"\",LOWER(КАДРЫ!K292),LOWER(КАДРЫ!I292))","v":"сменный механик"},{"$f":"КАДРЫ!D292","v":0},null,null,null,null,null,null,{"$f":"VLOOKUP(F292&\"*\",ДОЛЖНОСТИ!B:B,1,)","v":"сменный механик"},{"$f":"REPLACE(F292,100,2,ДОЛЖНОСТИ!$B$2:$B$71)","v":{"$error":"#VALUE!"}}]
[292,{"$f":"КАДРЫ!E293","v":0},null,null,null,{"$f":"IF(КАДРЫ!I293=\"\",LOWER(КАДРЫ!K293),LOWER(КАДРЫ!I293))","v":"механик - сменный капитан"},{"$f":"КАДРЫ!D293","v":0},null,null,null,null,null,null,{"$f":"VLOOKUP(F293&\"*\",ДОЛЖНОСТИ!B:B,1,)","v":{"$error":"#N/A"}},{"$f":"REPLACE(F293,100,2,ДОЛЖНОСТИ!$B$2:$B$71)","v":{"$error":"#VALUE!"}}]
[293,{"$f":"КАДРЫ!E294","v":0},null,null,null,{"$f":"IF(КАДРЫ!I294=\"\",LOWER(КАДРЫ!K294),LOWER(КАДРЫ!I294))","v":"сменный капитан-диспетчер"},{"$f":"КАДРЫ!D294","v":0},null,null,null,null,null,null,{"$f":"VLOOKUP(F294&\"*\",ДОЛЖНОСТИ!B:B,1,)","v":"сменный капитан-диспетчер"},{"$f":"REPLACE(F294,100,2,ДОЛЖНОСТИ!$B$2:$B$71)","v":{"$error":"#VALUE!"}}]
[294,{"$f":"КАДРЫ!E295","v":0},null,null,null,{"$f":"IF(КАДРЫ!I295=\"\",LOWER(КАДРЫ!K295),LOWER(КАДРЫ!I295))","v":"сменный механик"},{"$f":"КАДРЫ!D295","v":0},null,null,null,null,null,null,{"$f":"VLOOKUP(F295&\"*\",ДОЛЖНОСТИ!B:B,1,)","v":"сменный механик"},{"$f":"REPLACE(F295,100,2,ДОЛЖНОСТИ!$B$2:$B$71)","v":{"$error":"#VALUE!"}}]
[295,{"$f":"КАДРЫ!E296","v":0},null,null,null,{"$f":"IF(КАДРЫ!I296=\"\",LOWER(КАДРЫ!K296),LOWER(КАДРЫ!I296))","v":"сменный электромеханик"},{"$f":"КАДРЫ!D296","v":0},null,null,null,null,null,null,{"$f":"VLOOKUP(F296&\"*\",ДОЛЖНОСТИ!B:B,1,)","v":"сменный электромеханик"},{"$f":"REPLACE(F296,100,2,ДОЛЖНОСТИ!$B$2:$B$71)","v":{"$error":"#VALUE!"}}]
[296,{"$f":"КАДРЫ!E297","v":0},null,null,null,{"$f":"IF(КАДРЫ!I297=\"\",LOWER(КАДРЫ!K297),LOWER(КАДРЫ!I297))","v":"механик - сменный капитан"},{"$f":"КАДРЫ!D297","v":0},null,null,null,null,null,null,{"$f":"VLOOKUP(F297&\"*\",ДОЛЖНОСТИ!B:B,1,)","v":{"$error":"#N/A"}},{"$f":"REPLACE(F297,100,2,ДОЛЖНОСТИ!$B$2:$B$71)","v":{"$error":"#VALUE!"}}]
[297,{"$f":"КАДРЫ!E298","v":0},null,null,null,{"$f":"IF(КАДРЫ!I298=\"\",LOWER(КАДРЫ!K298),LOWER(КАДРЫ!I298))","v":"электромеханик"},{"$f":"КАДРЫ!D298","v":0},null,null,null,null,null,null,{"$f":"VLOOKUP(F298&\"*\",ДОЛЖНОСТИ!B:B,1,)","v":"электромеханик"},{"$f":"REPLACE(F298,100,2,ДОЛЖНОСТИ!$B$2:$B$71)","v":{"$error":"#VALUE!"}}]
[298,{"$f":"КАДРЫ!E299","v":0},null,null,null,{"$f":"IF(КАДРЫ!I299=\"\",LOWER(КАДРЫ!K299),LOWER(КАДРЫ!I299))","v":"четвертый механик"},{"$f":"КАДРЫ!D299","v":0},null,null,null,null,null,null,{"$f":"VLOOKUP(F299&\"*\",ДОЛЖНОСТИ!B:B,1,)","v":"четвертый механик"},{"$f":"REPLACE(F299,100,2,ДОЛЖНОСТИ!$B$2:$B$71)","v":{"$error":"#VALUE!"}}]
[299,{"$f":"КАДРЫ!E300","v":0},null,null,null,{"$f":"IF(КАДРЫ!I300=\"\",LOWER(КАДРЫ!K300),LOWER(КАДРЫ!I300))","v":"третий механик"},{"$f":"КАДРЫ!D300","v":0},null,null,null,null,null,null,{"$f":"VLOOKUP(F300&\"*\",ДОЛЖНОСТИ!B:B,1,)","v":"третий механик"},{"$f":"REPLACE(F300,100,2,ДОЛЖНОСТИ!$B$2:$B$71)","v":{"$error":"#VALUE!"}}]
[300,{"$f":"КАДРЫ!E301","v":0},null,null,null,{"$f":"IF(КАДРЫ!I301=\"\",LOWER(КАДРЫ!K301),LOWER(КАДРЫ!I301))","v":"электромеханик"},{"$f":"КАДРЫ!D301","v":0},null,null,null,null,null,null,{"$f":"VLOOKUP(F301&\"*\",ДОЛЖНОСТИ!B:B,1,)","v":"электромеханик"},{"$f":"REPLACE(F301,100,2,ДОЛЖНОСТИ!$B$2:$B$71)","v":{"$error":"#VALUE!"}}]
[301,{"$f":"КАДРЫ!E302","v":0},null,null,null,{"$f":"IF(КАДРЫ!I302=\"\",LOWER(КАДРЫ!K302),LOWER(КАДРЫ!I302))","v":"второй электромеханик"},{"$f":"КАДРЫ!D302","v":0},null,null,null,null,null,null,{"$f":"VLOOKUP(F302&\"*\",ДОЛЖНОСТИ!B:B,1,)","v":"второй электромеханик"},{"$f":"REPLACE(F302,100,2,ДОЛЖНОСТИ!$B$2:$B$71)","v":{"$error":"#VALUE!"}}]
[302,{"$f":"КАДРЫ!E303","v":0},null,null,null,{"$f":"IF(КАДРЫ!I303=\"\",LOWER(КАДРЫ!K303),LOWER(КАДРЫ!I303))","v":"докмейстер"},{"$f":"КАДРЫ!D303","v":0},null,null,null,null,null,null,{"$f":"VLOOKUP(F303&\"*\",ДОЛЖНОСТИ!B:B,1,)","v":"докмейстер"},{"$f":"REPLACE(F303,100,2,ДОЛЖНОСТИ!$B$2:$B$71)","v":{"$error":"#VALUE!"}}]
[303,{"$f":"КАДРЫ!E304","v":0},null,null,null,{"$f":"IF(КАДРЫ!I304=\"\",LOWER(КАДРЫ!K304),LOWER(КАДРЫ!I304))","v":"второй механик"},{"$f":"КАДРЫ!D304","v":0},null,null,null,null,null,null,{"$f":"VLOOKUP(F304&\"*\",ДОЛЖНОСТИ!B:B,1,)","v":"второй механик"},{"$f":"REPLACE(F304,100,2,ДОЛЖНОСТИ!$B$2:$B$71)","v":{"$error":"#VALUE!"}}]
[304,{"$f":"КАДРЫ!E305","v":0},null,null,null,{"$f":"IF(КАДРЫ!I305=\"\",LOWER(КАДРЫ!K305),LOWER(КАДРЫ!I305))","v":"докмейстер"},{"$f":"КАДРЫ!D305","v":0},null,null,null,null,null,null,{"$f":"VLOOKUP(F305&\"*\",ДОЛЖНОСТИ!B:B,1,)","v":"докмейстер"},{"$f":"REPLACE(F305,100,2,ДОЛЖНОСТИ!$B$2:$B$71)","v":{"$error":"#VALUE!"}}]
[305,{"$f":"КАДРЫ!E306","v":0},null,null,null,{"$f":"IF(КАДРЫ!I306=\"\",LOWER(КАДРЫ!K306),LOWER(КАДРЫ!I306))","v":"третий механик"},{"$f":"КАДРЫ!D306","v":0},null,null,null,null,null,null,{"$f":"VLOOKUP(F306&\"*\",ДОЛЖНОСТИ!B:B,1,)","v":"третий механик"},{"$f":"REPLACE(F306,100,2,ДОЛЖНОСТИ!$B$2:$B$71)","v":{"$error":"#VALUE!"}}]
[306,{"$f":"КАДРЫ!E307","v":0},null,null,null,{"$f":"IF(КАДРЫ!I307=\"\",LOWER(КАДРЫ!K307),LOWER(КАДРЫ!I307))","v":"третий помощник капитана"},{"$f":"КАДРЫ!D307","v":0},null,null,null,null,null,null,{"$f":"VLOOKUP(F307&\"*\",ДОЛЖНОСТИ!B:B,1,)","v":"третий помощник капитана"},{"$f":"REPLACE(F307,100,2,ДОЛЖНОСТИ!$B$2:$B$71)","v":{"$error":"#VALUE!"}}]
[307,{"$f":"КАДРЫ!E308","v":0},null,null,null,{"$f":"IF(КАДРЫ!I308=\"\",LOWER(КАДРЫ!K308),LOWER(КАДРЫ!I308))","v":"второй помощник капитана"},{"$f":"КАДРЫ!D308","v":0},null,null,null,null,null,null,{"$f":"VLOOKUP(F308&\"*\",ДОЛЖНОСТИ!B:B,1,)","v":"второй помощник капитана"},{"$f":"REPLACE(F308,100,2,ДОЛЖНОСТИ!$B$2:$B$71)","v":{"$error":"#VALUE!"}}]
[308,{"$f":"КАДРЫ!E309","v":0},null,null,null,{"$f":"IF(КАДРЫ!I309=\"\",LOWER(КАДРЫ!K309),LOWER(КАДРЫ!I309))","v":"второй механик"},{"$f":"КАДРЫ!D309","v":0},null,null,null,null,null,null,{"$f":"VLOOKUP(F309&\"*\",ДОЛЖНОСТИ!B:B,1,)","v":"второй механик"},{"$f":"REPLACE(F309,100,2,ДОЛЖНОСТИ!$B$2:$B$71)","v":{"$error":"#VALUE!"}}]
[309,{"$f":"КАДРЫ!E310","v":0},null,null,null,{"$f":"IF(КАДРЫ!I310=\"\",LOWER(КАДРЫ!K310),LOWER(КАДРЫ!I310))","v":"электромеханик"},{"$f":"КАДРЫ!D310","v":0},null,null,null,null,null,null,null,{"$f":"REPLACE(F310,100,2,ДОЛЖНОСТИ!$B$2:$B$71)","v":{"$error":"#VALUE!"}}]
[310,{"$f":"КАДРЫ!E311","v":0},null,null,null,{"$f":"IF(КАДРЫ!I311=\"\",LOWER(КАДРЫ!K311),LOWER(КАДРЫ!I311))","v":"электромеханик"},{"$f":"КАДРЫ!D311","v":0},null,null,null,null,null,null,null,{"$f":"REPLACE(F311,100,2,ДОЛЖНОСТИ!$B$2:$B$71)","v":{"$error":"#VALUE!"}}]
[311,{"$f":"КАДРЫ!E312","v":0},null,null,null,{"$f":"IF(КАДРЫ!I312=\"\",LOWER(КАДРЫ!K312),LOWER(КАДРЫ!I312))","v":"второй помощник капитана"},{"$f":"КАДРЫ!D312","v":0},null,null,null,null,null,null,null,{"$f":"REPLACE(F312,100,2,ДОЛЖНОСТИ!$B$2:$B$71)","v":{"$error":"#VALUE!"}}]
[312,{"$f":"КАДРЫ!E313","v":0},null,null,null,{"$f":"IF(КАДРЫ!I313=\"\",LOWER(КАДРЫ!K313),LOWER(КАДРЫ!I313))","v":"механик (групповой)"},{"$f":"КАДРЫ!D313","v":0},null,null,null,null,null,null,null,{"$f":"REPLACE(F313,100,2,ДОЛЖНОСТИ!$B$2:$B$71)","v":{"$error":"#VALUE!"}}]
[313,{"$f":"КАДРЫ!E314","v":0},null,null,null,{"$f":"IF(КАДРЫ!I314=\"\",LOWER(КАДРЫ!K314),LOWER(КАДРЫ!I314))","v":"четвертый механик"},{"$f":"КАДРЫ!D314","v":0},null,null,null,null,null,null,null,{"$f":"REPLACE(F314,100,2,ДОЛЖНОСТИ!$B$2:$B$71)","v":{"$error":"#VALUE!"}}]
[314,{"$f":"КАДРЫ!E315","v":0},null,null,null,{"$f":"IF(КАДРЫ!I315=\"\",LOWER(КАДРЫ!K315),LOWER(КАДРЫ!I315))","v":"третий электромеханик"},{"$f":"КАДРЫ!D315","v":0},null,null,null,null,null,null,null,{"$f":"REPLACE(F315,100,2,ДОЛЖНОСТИ!$B$2:$B$71)","v":{"$error":"#VALUE!"}}]
[315,{"$f":"КАДРЫ!E316","v":0},null,null,null,{"$f":"IF(КАДРЫ!I316=\"\",LOWER(КАДРЫ!K316),LOWER(КАДРЫ!I316))","v":"второй механик"},{"$f":"КАДРЫ!D316","v":0},null,null,null,null,null,null,null,{"$f":"REPLACE(F316,100,2,ДОЛЖНОСТИ!$B$2:$B$71)","v":{"$error":"#VALUE!"}}]
[316,{"$f":"КАДРЫ!E317","v":0},null,null,null,{"$f":"IF(КАДРЫ!I317=\"\",LOWER(КАДРЫ!K317),LOWER(КАДРЫ!I317))","v":"электромеханик"},{"$f":"КАДРЫ!D317","v":0},null,null,null,null,null,null,null,{"$f":"REPLACE(F317,100,2,ДОЛЖНОСТИ!$B$2:$B$71)","v":{"$error":"#VALUE!"}}]
[317,{"$f":"КАДРЫ!E318","v":0},null,null,null,{"$f":"IF(КАДРЫ!I318=\"\",LOWER(КАДРЫ!K318),LOWER(КАДРЫ!I318))","v":"механик (групповой)"},{"$f":"КАДРЫ!D318","v":0},null,null,null,null,null,null,null,{"$f":"REPLACE(F318,100,2,ДОЛЖНОСТИ!$B$2:$B$71)","v":{"$error":"#VALUE!"}}]
[318,{"$f":"КАДРЫ!E319","v":0},null,null,null,{"$f":"IF(КАДРЫ!I319=\"\",LOWER(КАДРЫ!K319),LOWER(КАДРЫ!I319))","v":"электромеханик"},{"$f":"КАДРЫ!D319","v":0},null,null,null,null,null,null,null,{"$f":"REPLACE(F319,100,2,ДОЛЖНОСТИ!$B$2:$B$71)","v":{"$error":"#VALUE!"}}]
[319,{"$f":"КАДРЫ!E320","v":0},null,null,null,{"$f":"IF(КАДРЫ!I320=\"\",LOWER(КАДРЫ!K320),LOWER(КАДРЫ!I320))","v":"специалист по охране труда"},{"$f":"КАДРЫ!D320","v":0},null,null,null,null,null,null,null,{"$f":"REPLACE(F320,100,2,ДОЛЖНОСТИ!$B$2:$B$71)","v":{"$error":"#VALUE!"}}]
[320,{"$f":"КАДРЫ!E321","v":0},null,null,null,{"$f":"IF(КАДРЫ!I321=\"\",LOWER(КАДРЫ!K321),LOWER(КАДРЫ!I321))","v":"старший кладовщик"},{"$f":"КАДРЫ!D321","v":0},null,null,null,null,null,null,null,{"$f":"REPLACE(F321,100,2,ДОЛЖНОСТИ!$B$2:$B$71)","v":{"$error":"#VALUE!"}}]
[321,{"$f":"КАДРЫ!E322","v":0},null,null,null,{"$f":"IF(КАДРЫ!I322=\"\",LOWER(КАДРЫ!K322),LOWER(КАДРЫ!I322))","v":"старший мастер - руководитель участка такелажных работ"},{"$f":"КАДРЫ!D322","v":0},null,null,null,null,null,null,null,{"$f":"REPLACE(F322,100,2,ДОЛЖНОСТИ!$B$2:$B$71)","v":{"$error":"#VALUE!"}}]
[322,{"$f":"КАДРЫ!E323","v":0},null,null,null,{"$f":"IF(КАДРЫ!I323=\"\",LOWER(КАДРЫ!K323),LOWER(КАДРЫ!I323))","v":"старший мастер погрузочно-разгрузочных работ"},{"$f":"КАДРЫ!D323","v":0},null,null,null,null,null,null,null,{"$f":"REPLACE(F323,100,2,ДОЛЖНОСТИ!$B$2:$B$71)","v":{"$error":"#VALUE!"}}]
[323,{"$f":"КАДРЫ!E324","v":0},null,null,null,{"$f":"IF(КАДРЫ!I324=\"\",LOWER(КАДРЫ!K324),LOWER(КАДРЫ!I324))","v":"старший матрос"},{"$f":"КАДРЫ!D324","v":0},null,null,null,null,null,null,null,{"$f":"REPLACE(F324,100,2,ДОЛЖНОСТИ!$B$2:$B$71)","v":{"$error":"#VALUE!"}}]
[324,{"$f":"КАДРЫ!E325","v":0},null,null,null,{"$f":"IF(КАДРЫ!I325=\"\",LOWER(КАДРЫ!K325),LOWER(КАДРЫ!I325))","v":"старший матрос"},{"$f":"КАДРЫ!D325","v":0},null,null,null,null,null,null,null,{"$f":"REPLACE(F325,100,2,ДОЛЖНОСТИ!$B$2:$B$71)","v":{"$error":"#VALUE!"}}]
[325,{"$f":"КАДРЫ!E326","v":0},null,null,null,{"$f":"IF(КАДРЫ!I326=\"\",LOWER(КАДРЫ!K326),LOWER(КАДРЫ!I326))","v":"старший матрос"},{"$f":"КАДРЫ!D326","v":0},null,null,null,null,null,null,null,{"$f":"REPLACE(F326,100,2,ДОЛЖНОСТИ!$B$2:$B$71)","v":{"$error":"#VALUE!"}}]
[326,{"$f":"КАДРЫ!E327","v":0},null,null,null,{"$f":"IF(КАДРЫ!I327=\"\",LOWER(КАДРЫ!K327),LOWER(КАДРЫ!I327))","v":"старший матрос"},{"$f":"КАДРЫ!D327","v":0},null,null,null,null,null,null,null,{"$f":"REPLACE(F327,100,2,ДОЛЖНОСТИ!$B$2:$B$71)","v":{"$error":"#VALUE!"}}]
[327,{"$f":"КАДРЫ!E328","v":0},null,null,null,{"$f":"IF(КАДРЫ!I328=\"\",LOWER(КАДРЫ!K328),LOWER(КАДРЫ!I328))","v":"старший матрос"},{"$f":"КАДРЫ!D328","v":0},null,null,null,null,null,null,null,{"$f":"REPLACE(F328,100,2,ДОЛЖНОСТИ!$B$2:$B$71)","v":{"$error":"#VALUE!"}}]
[328,{"$f":"КАДРЫ!E329","v":0},null,null,null,{"$f":"IF(КАДРЫ!I329=\"\",LOWER(КАДРЫ!K329),LOWER(КАДРЫ!I329))","v":"старший матрос"},{"$f":"КАДРЫ!D329","v":0},null,null,null,null,null,null,null,{"$f":"REPLACE(F329,100,2,ДОЛЖНОСТИ!$B$2:$B$71)","v":{"$error":"#VALUE!"}}]
[329,{"$f":"КАДРЫ!E330","v":0},null,null,null,{"$f":"IF(КАДРЫ!I330=\"\",LOWER(КАДРЫ!K330),LOWER(КАДРЫ!I330))","v":"старший матрос"},{"$f":"КАДРЫ!D330","v":0},null,null,null,null,null,null,null,{"$f":"REPLACE(F330,100,2,ДОЛЖНОСТИ!$B$2:$B$71)","v":{"$error":"#VALUE!"}}]
[330,{"$f":"КАДРЫ!E331","v":0},null,null,null,{"$f":"IF(КАДРЫ!I331=\"\",LOWER(КАДРЫ!K331),LOWER(КАДРЫ!I331))","v":"старший матрос"},{"$f":"КАДРЫ!D331","v":0},null,null,null,null,null,null,null,{"$f":"REPLACE(F331,100,2,ДОЛЖНОСТИ!$B$2:$B$71)","v":{"$error":"#VALUE!"}}]
[331,{"$f":"КАДРЫ!E332","v":0},null,null,null,{"$f":"IF(КАДРЫ!I332=\"\",LOWER(КАДРЫ!K332),LOWER(КАДРЫ!I332))","v":"старший матрос"},{"$f":"КАДРЫ!D332","v":0},null,null,null,null,null,null,null,{"$f":"REPLACE(F332,100,2,ДОЛЖНОСТИ!$B$2:$B$71)","v":{"$error":"#VALUE!"}}]
[332,{"$f":"КАДРЫ!E333","v":0},null,null,null,{"$f":"IF(КАДРЫ!I333=\"\",LOWER(КАДРЫ!K333),LOWER(КАДРЫ!I333))","v":"старший матрос"},{"$f":"КАДРЫ!D333","v":0},null,null,null,null,null,null,null,{"$f":"REPLACE(F333,100,2,ДОЛЖНОСТИ!$B$2:$B$71)","v":{"$error":"#VALUE!"}}]
[333,{"$f":"КАДРЫ!E334","v":0},null,null,null,{"$f":"IF(КАДРЫ!I334=\"\",LOWER(КАДРЫ!K334),LOWER(КАДРЫ!I334))","v":"старший проводник на водном транспорте"},{"$f":"КАДРЫ!D334","v":0},null,null,null,null,null,null,null,{"$f":"REPLACE(F334,100,2,ДОЛЖНОСТИ!$B$2:$B$71)","v":{"$error":"#VALUE!"}}]
[334,{"$f":"КАДРЫ!E335","v":0},null,null,null,{"$f":"IF(КАДРЫ!I335=\"\",LOWER(КАДРЫ!K335),LOWER(КАДРЫ!I335))","v":"старший механик"},{"$f":"КАДРЫ!D335","v":0},null,null,null,null,null,null,null,{"$f":"REPLACE(F335,100,2,ДОЛЖНОСТИ!$B$2:$B$71)","v":{"$error":"#VALUE!"}}]
[335,{"$f":"КАДРЫ!E336","v":0},null,null,null,{"$f":"IF(КАДРЫ!I336=\"\",LOWER(КАДРЫ!K336),LOWER(КАДРЫ!I336))","v":"старший механик"},{"$f":"КАДРЫ!D336","v":0},null,null,null,null,null,null,null,{"$f":"REPLACE(F336,100,2,ДОЛЖНОСТИ!$B$2:$B$71)","v":{"$error":"#VALUE!"}}]
[336,{"$f":"КАДРЫ!E337","v":0},null,null,null,{"$f":"IF(КАДРЫ!I337=\"\",LOWER(КАДРЫ!K337),LOWER(КАДРЫ!I337))","v":"старший помощник капитана"},{"$f":"КАДРЫ!D337","v":0},null,null,null,null,null,null,null,{"$f":"REPLACE(F337,100,2,ДОЛЖНОСТИ!$B$2:$B$71)","v":{"$error":"#VALUE!"}}]
[337,{"$f":"КАДРЫ!E338","v":0},null,null,null,{"$f":"IF(КАДРЫ!I338=\"\",LOWER(КАДРЫ!K338),LOWER(КАДРЫ!I338))","v":"старший помощник капитана"},{"$f":"КАДРЫ!D338","v":0},null,null,null,null,null,null,null,{"$f":"REPLACE(F338,100,2,ДОЛЖНОСТИ!$B$2:$B$71)","v":{"$error":"#VALUE!"}}]
[338,{"$f":"КАДРЫ!E339","v":0},null,null,null,{"$f":"IF(КАДРЫ!I339=\"\",LOWER(КАДРЫ!K339),LOWER(КАДРЫ!I339))","v":"старший механик"},{"$f":"КАДРЫ!D339","v":0},null,null,null,null,null,null,null,{"$f":"REPLACE(F339,100,2,ДОЛЖНОСТИ!$B$2:$B$71)","v":{"$error":"#VALUE!"}}]
[339,{"$f":"КАДРЫ!E340","v":0},null,null,null,{"$f":"IF(КАДРЫ!I340=\"\",LOWER(КАДРЫ!K340),LOWER(КАДРЫ!I340))","v":"старший механик"},{"$f":"КАДРЫ!D340","v":0},null,null,null,null,null,null,null,{"$f":"REPLACE(F340,100,2,ДОЛЖНОСТИ!$B$2:$B$71)","v":{"$error":"#VALUE!"}}]
[340,{"$f":"КАДРЫ!E341","v":0},null,null,null,{"$f":"IF(КАДРЫ!I341=\"\",LOWER(КАДРЫ!K341),LOWER(КАДРЫ!I341))","v":"старший помощник капитана - сменный кранмейстер"},{"$f":"КАДРЫ!D341","v":0},null,null,null,null,null,null,null,{"$f":"REPLACE(F341,100,2,ДОЛЖНОСТИ!$B$2:$B$71)","v":{"$error":"#VALUE!"}}]
[341,{"$f":"КАДРЫ!E342","v":0},null,null,null,{"$f":"IF(КАДРЫ!I342=\"\",LOWER(КАДРЫ!K342),LOWER(КАДРЫ!I342))","v":"старший механик"},{"$f":"КАДРЫ!D342","v":0},null,null,null,null,null,null,null,{"$f":"REPLACE(F342,100,2,ДОЛЖНОСТИ!$B$2:$B$71)","v":{"$error":"#VALUE!"}}]
[342,{"$f":"КАДРЫ!E343","v":0},null,null,null,{"$f":"IF(КАДРЫ!I343=\"\",LOWER(КАДРЫ!K343),LOWER(КАДРЫ!I343))","v":"старший механик"},{"$f":"КАДРЫ!D343","v":0},null,null,null,null,null,null,null,{"$f":"REPLACE(F343,100,2,ДОЛЖНОСТИ!$B$2:$B$71)","v":{"$error":"#VALUE!"}}]
[343,{"$f":"КАДРЫ!E344","v":0},null,null,null,{"$f":"IF(КАДРЫ!I344=\"\",LOWER(КАДРЫ!K344),LOWER(КАДРЫ!I344))","v":"старший электромеханик"},{"$f":"КАДРЫ!D344","v":0},null,null,null,null,null,null,null,{"$f":"REPLACE(F344,100,2,ДОЛЖНОСТИ!$B$2:$B$71)","v":{"$error":"#VALUE!"}}]
[344,{"$f":"КАДРЫ!E345","v":0},null,null,null,{"$f":"IF(КАДРЫ!I345=\"\",LOWER(КАДРЫ!K345),LOWER(КАДРЫ!I345))","v":"старший механик"},{"$f":"КАДРЫ!D345","v":0},null,null,null,null,null,null,null,{"$f":"REPLACE(F345,100,2,ДОЛЖНОСТИ!$B$2:$B$71)","v":{"$error":"#VALUE!"}}]
[345,{"$f":"КАДРЫ!E346","v":0},null,null,null,{"$f":"IF(КАДРЫ!I346=\"\",LOWER(КАДРЫ!K346),LOWER(КАДРЫ!I346))","v":"старший помощник начальника дока (докмейстер)"},{"$f":"КАДРЫ!D346","v":0},null,null,null,null,null,null,null,{"$f":"REPLACE(F346,100,2,ДОЛЖНОСТИ!$B$2:$B$71)","v":{"$error":"#VALUE!"}}]
[346,{"$f":"КАДРЫ!E347","v":0},null,null,null,{"$f":"IF(КАДРЫ!I347=\"\",LOWER(КАДРЫ!K347),LOWER(КАДРЫ!I347))","v":"старший механик"},{"$f":"КАДРЫ!D347","v":0},null,null,null,null,null,null,null,{"$f":"REPLACE(F347,100,2,ДОЛЖНОСТИ!$B$2:$B$71)","v":{"$error":"#VALUE!"}}]
[347,{"$f":"КАДРЫ!E348","v":0},null,null,null,{"$f":"IF(КАДРЫ!I348=\"\",LOWER(КАДРЫ!K348),LOWER(КАДРЫ!I348))","v":"старший механик"},{"$f":"КАДРЫ!D348","v":0},null,null,null,null,null,null,null,{"$f":"REPLACE(F348,100,2,ДОЛЖНОСТИ!$B$2:$B$71)","v":{"$error":"#VALUE!"}}]
[348,{"$f":"КАДРЫ!E349","v":0},null,null,null,{"$f":"IF(КАДРЫ!I349=\"\",LOWER(КАДРЫ!K349),LOWER(КАДРЫ!I349))","v":"старший помощник капитана"},{"$f":"КАДРЫ!D349","v":0},null,null,null,null,null,null,null,{"$f":"REPLACE(F349,100,2,ДОЛЖНОСТИ!$B$2:$B$71)","v":{"$error":"#VALUE!"}}]
[349,{"$f":"КАДРЫ!E350","v":0},null,null,null,{"$f":"IF(КАДРЫ!I350=\"\",LOWER(КАДРЫ!K350),LOWER(КАДРЫ!I350))","v":"старший механик"},{"$f":"КАДРЫ!D350","v":0},null,null,null,null,null,null,null,{"$f":"REPLACE(F350,100,2,ДОЛЖНОСТИ!$B$2:$B$71)","v":{"$error":"#VALUE!"}}]
[350,{"$f":"КАДРЫ!E351","v":0},null,null,null,{"$f":"IF(КАДРЫ!I351=\"\",LOWER(КАДРЫ!K351),LOWER(КАДРЫ!I351))","v":"старший механик"},{"$f":"КАДРЫ!D351","v":0},null,null,null,null,null,null,null,{"$f":"REPLACE(F351,100,2,ДОЛЖНОСТИ!$B$2:$B$71)","v":{"$error":"#VALUE!"}}]
[351,{"$f":"КАДРЫ!E352","v":0},null,null,null,{"$f":"IF(КАДРЫ!I352=\"\",LOWER(КАДРЫ!K352),LOWER(КАДРЫ!I352))","v":"старший механик"},{"$f":"КАДРЫ!D352","v":0},null,null,null,null,null,null,null,{"$f":"REPLACE(F352,100,2,ДОЛЖНОСТИ!$B$2:$B$71)","v":{"$error":"#VALUE!"}}]
[352,{"$f":"КАДРЫ!E353","v":0},null,null,null,{"$f":"IF(КАДРЫ!I353=\"\",LOWER(КАДРЫ!K353),LOWER(КАДРЫ!I353))","v":"старший помощник капитана"},{"$f":"КАДРЫ!D353","v":0},null,null,null,null,null,null,null,{"$f":"REPLACE(F353,100,2,ДОЛЖНОСТИ!$B$2:$B$71)","v":{"$error":"#VALUE!"}}]
[353,{"$f":"КАДРЫ!E354","v":0},null,null,null,{"$f":"IF(КАДРЫ!I354=\"\",LOWER(КАДРЫ!K354),LOWER(КАДРЫ!I354))","v":"старший помощник капитана"},{"$f":"КАДРЫ!D354","v":0},null,null,null,null,null,null,null,{"$f":"REPLACE(F354,100,2,ДОЛЖНОСТИ!$B$2:$B$71)","v":{"$error":"#VALUE!"}}]
[354,{"$f":"КАДРЫ!E355","v":0},null,null,null,{"$f":"IF(КАДРЫ!I355=\"\",LOWER(КАДРЫ!K355),LOWER(КАДРЫ!I355))","v":"старший электромеханик"},{"$f":"КАДРЫ!D355","v":0},null,null,null,null,null,null,null,{"$f":"REPLACE(F355,100,2,ДОЛЖНОСТИ!$B$2:$B$71)","v":{"$error":"#VALUE!"}}]
[355,{"$f":"КАДРЫ!E356","v":0},null,null,null,{"$f":"IF(КАДРЫ!I356=\"\",LOWER(КАДРЫ!K356),LOWER(КАДРЫ!I356))","v":"старший электрик судовой"},{"$f":"КАДРЫ!D356","v":0},null,null,null,null,null,null,null,{"$f":"REPLACE(F356,100,2,ДОЛЖНОСТИ!$B$2:$B$71)","v":{"$error":"#VALUE!"}}]
[356,{"$f":"КАДРЫ!E357","v":0},null,null,null,{"$f":"IF(КАДРЫ!I357=\"\",LOWER(КАДРЫ!K357),LOWER(КАДРЫ!I357))","v":"старший электрик судовой"},{"$f":"КАДРЫ!D357","v":0},null,null,null,null,null,null,null,{"$f":"REPLACE(F357,100,2,ДОЛЖНОСТИ!$B$2:$B$71)","v":{"$error":"#VALUE!"}}]
[357,{"$f":"КАДРЫ!E358","v":0},null,null,null,{"$f":"IF(КАДРЫ!I358=\"\",LOWER(КАДРЫ!K358),LOWER(КАДРЫ!I358))","v":"старший электрик судовой"},{"$f":"КАДРЫ!D358","v":0},null,null,null,null,null,null,null,{"$f":"REPLACE(F358,100,2,ДОЛЖНОСТИ!$B$2:$B$71)","v":{"$error":"#VALUE!"}}]
[358,{"$f":"КАДРЫ!E359","v":0},null,null,null,{"$f":"IF(КАДРЫ!I359=\"\",LOWER(КАДРЫ!K359),LOWER(КАДРЫ!I359))","v":"старший электрик судовой"},{"$f":"КАДРЫ!D359","v":0},null,null,null,null,null,null,null,{"$f":"REPLACE(F359,100,2,ДОЛЖНОСТИ!$B$2:$B$71)","v":{"$error":"#VALUE!"}}]
[359,{"$f":"КАДРЫ!E360","v":0},null,null,null,{"$f":"IF(КАДРЫ!I360=\"\",LOWER(КАДРЫ!K360),LOWER(КАДРЫ!I360))","v":"старший электрик судовой"},{"$f":"КАДРЫ!D360","v":0},null,null,null,null,null,null,null,{"$f":"REPLACE(F360,100,2,ДОЛЖНОСТИ!$B$2:$B$71)","v":{"$error":"#VALUE!"}}]
[360,{"$f":"КАДРЫ!E361","v":0},null,null,null,{"$f":"IF(КАДРЫ!I361=\"\",LOWER(КАДРЫ!K361),LOWER(КАДРЫ!I361))","v":"старший электрик судовой"},{"$f":"КАДРЫ!D361","v":0},null,null,null,null,null,null,null,{"$f":"REPLACE(F361,100,2,ДОЛЖНОСТИ!$B$2:$B$71)","v":{"$error":"#VALUE!"}}]
[361,{"$f":"КАДРЫ!E362","v":0},null,null,null,{"$f":"IF(КАДРЫ!I362=\"\",LOWER(КАДРЫ!K362),LOWER(КАДРЫ!I362))","v":"старший электрик судовой"},{"$f":"КАДРЫ!D362","v":0},null,null,null,null,null,null,null,{"$f":"REPLACE(F362,100,2,ДОЛЖНОСТИ!$B$2:$B$71)","v":{"$error":"#VALUE!"}}]
[362,{"$f":"КАДРЫ!E363","v":0},null,null,null,{"$f":"IF(КАДРЫ!I363=\"\",LOWER(КАДРЫ!K363),LOWER(КАДРЫ!I363))","v":"старший электрик судовой"},{"$f":"КАДРЫ!D363","v":0},null,null,null,null,null,null,null,{"$f":"REPLACE(F363,100,2,ДОЛЖНОСТИ!$B$2:$B$71)","v":{"$error":"#VALUE!"}}]
[363,{"$f":"КАДРЫ!E364","v":0},null,null,null,{"$f":"IF(КАДРЫ!I364=\"\",LOWER(КАДРЫ!K364),LOWER(КАДРЫ!I364))","v":"старший электрик судовой"},{"$f":"КАДРЫ!D364","v":0},null,null,null,null,null,null,null,{"$f":"REPLACE(F364,100,2,ДОЛЖНОСТИ!$B$2:$B$71)","v":{"$error":"#VALUE!"}}]
[364,{"$f":"КАДРЫ!E365","v":0},null,null,null,{"$f":"IF(КАДРЫ!I365=\"\",LOWER(КАДРЫ!K365),LOWER(КАДРЫ!I365))","v":"старший электрик судовой"},{"$f":"КАДРЫ!D365","v":0},null,null,null,null,null,null,null,{"$f":"REPLACE(F365,100,2,ДОЛЖНОСТИ!$B$2:$B$71)","v":{"$error":"#VALUE!"}}]
[365,{"$f":"КАДРЫ!E366","v":0},null,null,null,{"$f":"IF(КАДРЫ!I366=\"\",LOWER(КАДРЫ!K366),LOWER(КАДРЫ!I366))","v":"старший электрик судовой"},{"$f":"КАДРЫ!D366","v":0},null,null,null,null,null,null,null,{"$f":"REPLACE(F366,100,2,ДОЛЖНОСТИ!$B$2:$B$71)","v":{"$error":"#VALUE!"}}]
[366,{"$f":"КАДРЫ!E367","v":0},null,null,null,{"$f":"IF(КАДРЫ!I367=\"\",LOWER(КАДРЫ!K367),LOWER(КАДРЫ!I367))","v":"старший электрик судовой"},{"$f":"КАДРЫ!D367","v":0},null,null,null,null,null,null,null,{"$f":"REPLACE(F367,100,2,ДОЛЖНОСТИ!$B$2:$B$71)","v":{"$error":"#VALUE!"}}]
[367,{"$f":"КАДРЫ!E368","v":0},null,null,null,{"$f":"IF(КАДРЫ!I368=\"\",LOWER(КАДРЫ!K368),LOWER(КАДРЫ!I368))","v":"старший электрик судовой"},{"$f":"КАДРЫ!D368","v":0},null,null,null,null,null,null,null,{"$f":"REPLACE(F368,100,2,ДОЛЖНОСТИ!$B$2:$B$71)","v":{"$error":"#VALUE!"}}]
[368,{"$f":"КАДРЫ!E369","v":0},null,null,null,{"$f":"IF(КАДРЫ!I369=\"\",LOWER(КАДРЫ!K369),LOWER(КАДРЫ!I369))","v":"старший электрик судовой"},{"$f":"КАДРЫ!D369","v":0},null,null,null,null,null,null,null,{"$f":"REPLACE(F369,100,2,ДОЛЖНОСТИ!$B$2:$B$71)","v":{"$error":"#VALUE!"}}]
[369,{"$f":"КАДРЫ!E370","v":0},null,null,null,{"$f":"IF(КАДРЫ!I370=\"\",LOWER(КАДРЫ!K370),LOWER(КАДРЫ!I370))","v":"старший электрик судовой"},{"$f":"КАДРЫ!D370","v":0},null,null,null,null,null,null,null,{"$f":"REPLACE(F370,100,2,ДОЛЖНОСТИ!$B$2:$B$71)","v":{"$error":"#VALUE!"}}]
[370,{"$f":"КАДРЫ!E371","v":0},null,null,null,{"$f":"IF(КАДРЫ!I371=\"\",LOWER(КАДРЫ!K371),LOWER(КАДРЫ!I371))","v":"старший электрик судовой"},{"$f":"КАДРЫ!D371","v":0},null,null,null,null,null,null,null,{"$f":"REPLACE(F371,100,2,ДОЛЖНОСТИ!$B$2:$B$71)","v":{"$error":"#VALUE!"}}]
[371,{"$f":"КАДРЫ!E372","v":0},null,null,null,{"$f":"IF(КАДРЫ!I372=\"\",LOWER(КАДРЫ!K372),LOWER(КАДРЫ!I372))","v":"старший электрик судовой"},{"$f":"КАДРЫ!D372","v":0},null,null,null,null,null,null,null,{"$f":"REPLACE(F372,100,2,ДОЛЖНОСТИ!$B$2:$B$71)","v":{"$error":"#VALUE!"}}]
[372,{"$f":"КАДРЫ!E373","v":0},null,null,null,{"$f":"IF(КАДРЫ!I373=\"\",LOWER(КАДРЫ!K373),LOWER(КАДРЫ!I373))","v":"старший электрик судовой"},{"$f":"КАДРЫ!D373","v":0},null,null,null,null,null,null,null,{"$f":"REPLACE(F373,100,2,ДОЛЖНОСТИ!$B$2:$B$71)","v":{"$error":"#VALUE!"}}]
[373,{"$f":"КАДРЫ!E374","v":0},null,null,null,{"$f":"IF(КАДРЫ!I374=\"\",LOWER(КАДРЫ!K374),LOWER(КАДРЫ!I374))","v":"старший электрик судовой"},{"$f":"КАДРЫ!D374","v":0},null,null,null,null,null,null,null,{"$f":"REPLACE(F374,100,2,ДОЛЖНОСТИ!$B$2:$B$71)","v":{"$error":"#VALUE!"}}]
[374,{"$f":"КАДРЫ!E375","v":0},null,null,null,{"$f":"IF(КАДРЫ!I375=\"\",LOWER(КАДРЫ!K375),LOWER(КАДРЫ!I375))","v":"старший электрик судовой"},{"$f":"КАДРЫ!D375","v":0},null,null,null,null,null,null,null,{"$f":"REPLACE(F375,100,2,ДОЛЖНОСТИ!$B$2:$B$71)","v":{"$error":"#VALUE!"}}]
[375,{"$f":"КАДРЫ!E376","v":0},null,null,null,{"$f":"IF(КАДРЫ!I376=\"\",LOWER(КАДРЫ!K376),LOWER(КАДРЫ!I376))","v":"старший электрик судовой"},{"$f":"КАДРЫ!D376","v":0},null,null,null,null,null,null,null,{"$f":"REPLACE(F376,100,2,ДОЛЖНОСТИ!$B$2:$B$71)","v":{"$error":"#VALUE!"}}]
[376,{"$f":"КАДРЫ!E377","v":0},null,null,null,{"$f":"IF(КАДРЫ!I377=\"\",LOWER(КАДРЫ!K377),LOWER(КАДРЫ!I377))","v":"старший электрик судовой"},{"$f":"КАДРЫ!D377","v":0},null,null,null,null,null,null,null,{"$f":"REPLACE(F377,100,2,ДОЛЖНОСТИ!$B$2:$B$71)","v":{"$error":"#VALUE!"}}]
[377,{"$f":"КАДРЫ!E378","v":0},null,null,null,{"$f":"IF(КАДРЫ!I378=\"\",LOWER(КАДРЫ!K378),LOWER(КАДРЫ!I378))","v":"старший электрик судовой"},{"$f":"КАДРЫ!D378","v":0},null,null,null,null,null,null,null,{"$f":"REPLACE(F378,100,2,ДОЛЖНОСТИ!$B$2:$B$71)","v":{"$error":"#VALUE!"}}]
[378,{"$f":"КАДРЫ!E379","v":0},null,null,null,{"$f":"IF(КАДРЫ!I379=\"\",LOWER(КАДРЫ!K379),LOWER(КАДРЫ!I379))","v":"старший электрик судовой"},{"$f":"КАДРЫ!D379","v":0},null,null,null,null,null,null,null,{"$f":"REPLACE(F379,100,2,ДОЛЖНОСТИ!$B$2:$B$71)","v":{"$error":"#VALUE!"}}]
[379,{"$f":"КАДРЫ!E380","v":0},null,null,null,{"$f":"IF(КАДРЫ!I380=\"\",LOWER(КАДРЫ!K380),LOWER(КАДРЫ!I380))","v":"старший электрик судовой"},{"$f":"КАДРЫ!D380","v":0},null,null,null,null,null,null,null,{"$f":"REPLACE(F380,100,2,ДОЛЖНОСТИ!$B$2:$B$71)","v":{"$error":"#VALUE!"}}]
[380,{"$f":"КАДРЫ!E381","v":0},null,null,null,{"$f":"IF(КАДРЫ!I381=\"\",LOWER(КАДРЫ!K381),LOWER(КАДРЫ!I381))","v":"старший электрик судовой"},{"$f":"КАДРЫ!D381","v":0},null,null,null,null,null,null,null,{"$f":"REPLACE(F381,100,2,ДОЛЖНОСТИ!$B$2:$B$71)","v":{"$error":"#VALUE!"}}]
[381,{"$f":"КАДРЫ!E382","v":0},null,null,null,{"$f":"IF(КАДРЫ!I382=\"\",LOWER(КАДРЫ!K382),LOWER(КАДРЫ!I382))","v":"старший электрик судовой"},{"$f":"КАДРЫ!D382","v":0},null,null,null,null,null,null,null,{"$f":"REPLACE(F382,100,2,ДОЛЖНОСТИ!$B$2:$B$71)","v":{"$error":"#VALUE!"}}]
[382,{"$f":"КАДРЫ!E383","v":0},null,null,null,{"$f":"IF(КАДРЫ!I383=\"\",LOWER(КАДРЫ!K383),LOWER(КАДРЫ!I383))","v":"старший электрик судовой"},{"$f":"КАДРЫ!D383","v":0},null,null,null,null,null,null,null,{"$f":"REPLACE(F383,100,2,ДОЛЖНОСТИ!$B$2:$B$71)","v":{"$error":"#VALUE!"}}]
[383,{"$f":"КАДРЫ!E384","v":0},null,null,null,{"$f":"IF(КАДРЫ!I384=\"\",LOWER(КАДРЫ!K384),LOWER(КАДРЫ!I384))","v":"старший электрик судовой"},{"$f":"КАДРЫ!D384","v":0},null,null,null,null,null,null,null,{"$f":"REPLACE(F384,100,2,ДОЛЖНОСТИ!$B$2:$B$71)","v":{"$error":"#VALUE!"}}]
[384,{"$f":"КАДРЫ!E385","v":0},null,null,null,{"$f":"IF(КАДРЫ!I385=\"\",LOWER(КАДРЫ!K385),LOWER(КАДРЫ!I385))","v":"старший электрик судовой"},{"$f":"КАДРЫ!D385","v":0},null,null,null,null,null,null,null,{"$f":"REPLACE(F385,100,2,ДОЛЖНОСТИ!$B$2:$B$71)","v":{"$error":"#VALUE!"}}]
[385,{"$f":"КАДРЫ!E386","v":0},null,null,null,{"$f":"IF(КАДРЫ!I386=\"\",LOWER(КАДРЫ!K386),LOWER(КАДРЫ!I386))","v":"старший электрик судовой"},{"$f":"КАДРЫ!D386","v":0},null,null,null,null,null,null,null,{"$f":"REPLACE(F386,100,2,ДОЛЖНОСТИ!$B$2:$B$71)","v":{"$error":"#VALUE!"}}]
[386,{"$f":"КАДРЫ!E387","v":0},null,null,null,{"$f":"IF(КАДРЫ!I387=\"\",LOWER(КАДРЫ!K387),LOWER(КАДРЫ!I387))","v":"старший электрик судовой"},{"$f":"КАДРЫ!D387","v":0},null,null,null,null,null,null,null,{"$f":"REPLACE(F387,100,2,ДОЛЖНОСТИ!$B$2:$B$71)","v":{"$error":"#VALUE!"}}]
[387,{"$f":"КАДРЫ!E388","v":0},null,null,null,{"$f":"IF(КАДРЫ!I388=\"\",LOWER(КАДРЫ!K388),LOWER(КАДРЫ!I388))","v":"старший электрик судовой"},{"$f":"КАДРЫ!D388","v":0},null,null,null,null,null,null,null,{"$f":"REPLACE(F388,100,2,ДОЛЖНОСТИ!$B$2:$B$71)","v":{"$error":"#VALUE!"}}]
[388,{"$f":"КАДРЫ!E389","v":0},null,null,null,{"$f":"IF(КАДРЫ!I389=\"\",LOWER(КАДРЫ!K389),LOWER(КАДРЫ!I389))","v":"старший электрик судовой"},{"$f":"КАДРЫ!D389","v":0},null,null,null,null,null,null,null,{"$f":"REPLACE(F389,100,2,ДОЛЖНОСТИ!$B$2:$B$71)","v":{"$error":"#VALUE!"}}]
[389,{"$f":"КАДРЫ!E390","v":0},null,null,null,{"$f":"IF(КАДРЫ!I390=\"\",LOWER(КАДРЫ!K390),LOWER(КАДРЫ!I390))","v":"старший электрик судовой"},{"$f":"КАДРЫ!D390","v":0},null,null,null,null,null,null,null,{"$f":"REPLACE(F390,100,2,ДОЛЖНОСТИ!$B$2:$B$71)","v":{"$error":"#VALUE!"}}]
[390,{"$f":"КАДРЫ!E391","v":0},null,null,null,{"$f":"IF(КАДРЫ!I391=\"\",LOWER(КАДРЫ!K391),LOWER(КАДРЫ!I391))","v":"такелажник"},{"$f":"КАДРЫ!D391","v":0},null,null,null,null,null,null,null,{"$f":"REPLACE(F391,100,2,ДОЛЖНОСТИ!$B$2:$B$71)","v":{"$error":"#VALUE!"}}]
[391,{"$f":"КАДРЫ!E392","v":0},null,null,null,{"$f":"IF(КАДРЫ!I392=\"\",LOWER(КАДРЫ!K392),LOWER(КАДРЫ!I392))","v":"такелажник"},{"$f":"КАДРЫ!D392","v":0},null,null,null,null,null,null,null,{"$f":"REPLACE(F392,100,2,ДОЛЖНОСТИ!$B$2:$B$71)","v":{"$error":"#VALUE!"}}]
[392,{"$f":"КАДРЫ!E393","v":0},null,null,null,{"$f":"IF(КАДРЫ!I393=\"\",LOWER(КАДРЫ!K393),LOWER(КАДРЫ!I393))","v":"такелажник"},{"$f":"КАДРЫ!D393","v":0},null,null,null,null,null,null,null,{"$f":"REPLACE(F393,100,2,ДОЛЖНОСТИ!$B$2:$B$71)","v":{"$error":"#VALUE!"}}]
[393,{"$f":"КАДРЫ!E394","v":0},null,null,null,{"$f":"IF(КАДРЫ!I394=\"\",LOWER(КАДРЫ!K394),LOWER(КАДРЫ!I394))","v":"такелажник"},{"$f":"КАДРЫ!D394","v":0},null,null,null,null,null,null,null,{"$f":"REPLACE(F394,100,2,ДОЛЖНОСТИ!$B$2:$B$71)","v":{"$error":"#VALUE!"}}]
[394,{"$f":"КАДРЫ!E395","v":0},null,null,null,{"$f":"IF(КАДРЫ!I395=\"\",LOWER(КАДРЫ!K395),LOWER(КАДРЫ!I395))","v":"такелажник"},{"$f":"КАДРЫ!D395","v":0},null,null,null,null,null,null,null,{"$f":"REPLACE(F395,100,2,ДОЛЖНОСТИ!$B$2:$B$71)","v":{"$error":"#VALUE!"}}]
[395,{"$f":"КАДРЫ!E396","v":0},null,null,null,{"$f":"IF(КАДРЫ!I396=\"\",LOWER(КАДРЫ!K396),LOWER(КАДРЫ!I396))","v":"такелажник"},{"$f":"КАДРЫ!D396","v":0},null,null,null,null,null,null,null,{"$f":"REPLACE(F396,100,2,ДОЛЖНОСТИ!$B$2:$B$71)","v":{"$error":"#VALUE!"}}]
[396,{"$f":"КАДРЫ!E397","v":0},null,null,null,{"$f":"IF(КАДРЫ!I397=\"\",LOWER(КАДРЫ!K397),LOWER(КАДРЫ!I397))","v":"такелажник"},{"$f":"КАДРЫ!D397","v":0},null,null,null,null,null,null,null,{"$f":"REPLACE(F397,100,2,ДОЛЖНОСТИ!$B$2:$B$71)","v":{"$error":"#VALUE!"}}]
[397,{"$f":"КАДРЫ!E398","v":0},null,null,null,{"$f":"IF(КАДРЫ!I398=\"\",LOWER(КАДРЫ!K398),LOWER(КАДРЫ!I398))","v":"такелажник судовой"},{"$f":"КАДРЫ!D398","v":0},null,null,null,null,null,null,null,{"$f":"REPLACE(F398,100,2,ДОЛЖНОСТИ!$B$2:$B$71)","v":{"$error":"#VALUE!"}}]
[398,{"$f":"КАДРЫ!E399","v":0},null,null,null,{"$f":"IF(КАДРЫ!I399=\"\",LOWER(КАДРЫ!K399),LOWER(КАДРЫ!I399))","v":"такелажник судовой"},{"$f":"КАДРЫ!D399","v":0},null,null,null,null,null,null,null,{"$f":"REPLACE(F399,100,2,ДОЛЖНОСТИ!$B$2:$B$71)","v":{"$error":"#VALUE!"}}]
[399,{"$f":"КАДРЫ!E400","v":0},null,null,null,{"$f":"IF(КАДРЫ!I400=\"\",LOWER(КАДРЫ!K400),LOWER(КАДРЫ!I400))","v":"такелажник судовой"},{"$f":"КАДРЫ!D400","v":0},null,null,null,null,null,null,null,{"$f":"REPLACE(F400,100,2,ДОЛЖНОСТИ!$B$2:$B$71)","v":{"$error":"#VALUE!"}}]
[400,{"$f":"КАДРЫ!E401","v":0},null,null,null,{"$f":"IF(КАДРЫ!I401=\"\",LOWER(КАДРЫ!K401),LOWER(КАДРЫ!I401))","v":"такелажник судовой"},{"$f":"КАДРЫ!D401","v":0},null,null,null,null,null,null,null,{"$f":"REPLACE(F401,100,2,ДОЛЖНОСТИ!$B$2:$B$71)","v":{"$error":"#VALUE!"}}]
[401,{"$f":"КАДРЫ!E402","v":0},null,null,null,{"$f":"IF(КАДРЫ!I402=\"\",LOWER(КАДРЫ!K402),LOWER(КАДРЫ!I402))","v":"такелажник судовой"},{"$f":"КАДРЫ!D402","v":0},null,null,null,null,null,null,null,{"$f":"REPLACE(F402,100,2,ДОЛЖНОСТИ!$B$2:$B$71)","v":{"$error":"#VALUE!"}}]
[402,{"$f":"КАДРЫ!E403","v":0},null,null,null,{"$f":"IF(КАДРЫ!I403=\"\",LOWER(КАДРЫ!K403),LOWER(КАДРЫ!I403))","v":"такелажник судовой"},{"$f":"КАДРЫ!D403","v":0},null,null,null,null,null,null,null,{"$f":"REPLACE(F403,100,2,ДОЛЖНОСТИ!$B$2:$B$71)","v":{"$error":"#VALUE!"}}]
[403,{"$f":"КАДРЫ!E404","v":0},null,null,null,{"$f":"IF(КАДРЫ!I404=\"\",LOWER(КАДРЫ!K404),LOWER(КАДРЫ!I404))","v":"такелажник судовой"},{"$f":"КАДРЫ!D404","v":0},null,null,null,null,null,null,null,{"$f":"REPLACE(F404,100,2,ДОЛЖНОСТИ!$B$2:$B$71)","v":{"$error":"#VALUE!"}}]
[404,{"$f":"КАДРЫ!E405","v":0},null,null,null,{"$f":"IF(КАДРЫ!I405=\"\",LOWER(КАДРЫ!K405),LOWER(КАДРЫ!I405))","v":"такелажник судовой"},{"$f":"КАДРЫ!D405","v":0},null,null,null,null,null,null,null,{"$f":"REPLACE(F405,100,2,ДОЛЖНОСТИ!$B$2:$B$71)","v":{"$error":"#VALUE!"}}]
[405,{"$f":"КАДРЫ!E406","v":0},null,null,null,{"$f":"IF(КАДРЫ!I406=\"\",LOWER(КАДРЫ!K406),LOWER(КАДРЫ!I406))","v":"такелажник судовой"},{"$f":"КАДРЫ!D406","v":0},null,null,null,null,null,null,null,{"$f":"REPLACE(F406,100,2,ДОЛЖНОСТИ!$B$2:$B$71)","v":{"$error":"#VALUE!"}}]
[406,{"$f":"КАДРЫ!E407","v":0},null,null,null,{"$f":"IF(КАДРЫ!I407=\"\",LOWER(КАДРЫ!K407),LOWER(КАДРЫ!I407))","v":"такелажник судовой"},{"$f":"КАДРЫ!D407","v":0},null,null,null,null,null,null,null,{"$f":"REPLACE(F407,100,2,ДОЛЖНОСТИ!$B$2:$B$71)","v":{"$error":"#VALUE!"}}]
[407,{"$f":"КАДРЫ!E408","v":0},null,null,null,{"$f":"IF(КАДРЫ!I408=\"\",LOWER(КАДРЫ!K408),LOWER(КАДРЫ!I408))","v":"такелажник судовой"},{"$f":"КАДРЫ!D408","v":0},null,null,null,null,null,null,null,{"$f":"REPLACE(F408,100,2,ДОЛЖНОСТИ!$B$2:$B$71)","v":{"$error":"#VALUE!"}}]
[408,{"$f":"КАДРЫ!E409","v":0},null,null,null,{"$f":"IF(КАДРЫ!I409=\"\",LOWER(КАДРЫ!K409),LOWER(КАДРЫ!I409))","v":"такелажник судовой"},{"$f":"КАДРЫ!D409","v":0},null,null,null,null,null,null,null,{"$f":"REPLACE(F409,100,2,ДОЛЖНОСТИ!$B$2:$B$71)","v":{"$error":"#VALUE!"}}]
[409,{"$f":"КАДРЫ!E410","v":0},null,null,null,{"$f":"IF(КАДРЫ!I410=\"\",LOWER(КАДРЫ!K410),LOWER(КАДРЫ!I410))","v":"такелажник судовой"},{"$f":"КАДРЫ!D410","v":0},null,null,null,null,null,null,null,{"$f":"REPLACE(F410,100,2,ДОЛЖНОСТИ!$B$2:$B$71)","v":{"$error":"#VALUE!"}}]
[410,{"$f":"КАДРЫ!E411","v":0},null,null,null,{"$f":"IF(КАДРЫ!I411=\"\",LOWER(КАДРЫ!K411),LOWER(КАДРЫ!I411))","v":"такелажник судовой"},{"$f":"КАДРЫ!D411","v":0},null,null,null,null,null,null,null,{"$f":"REPLACE(F411,100,2,ДОЛЖНОСТИ!$B$2:$B$71)","v":{"$error":"#VALUE!"}}]
[411,{"$f":"КАДРЫ!E412","v":0},null,null,null,{"$f":"IF(КАДРЫ!I412=\"\",LOWER(КАДРЫ!K412),LOWER(КАДРЫ!I412))","v":"такелажник судовой"},{"$f":"КАДРЫ!D412","v":0},null,null,null,null,null,null,null,{"$f":"REPLACE(F412,100,2,ДОЛЖНОСТИ!$B$2:$B$71)","v":{"$error":"#VALUE!"}}]
[412,{"$f":"КАДРЫ!E413","v":0},null,null,null,{"$f":"IF(КАДРЫ!I413=\"\",LOWER(КАДРЫ!K413),LOWER(КАДРЫ!I413))","v":"такелажник судовой"},{"$f":"КАДРЫ!D413","v":0},null,null,null,null,null,null,null,{"$f":"REPLACE(F413,100,2,ДОЛЖНОСТИ!$B$2:$B$71)","v":{"$error":"#VALUE!"}}]
[413,{"$f":"КАДРЫ!E414","v":0},null,null,null,{"$f":"IF(КАДРЫ!I414=\"\",LOWER(КАДРЫ!K414),LOWER(КАДРЫ!I414))","v":"такелажник судовой"},{"$f":"КАДРЫ!D414","v":0},null,null,null,null,null,null,null,{"$f":"REPLACE(F414,100,2,ДОЛЖНОСТИ!$B$2:$B$71)","v":{"$error":"#VALUE!"}}]
[414,{"$f":"КАДРЫ!E415","v":0},null,null,null,{"$f":"IF(КАДРЫ!I415=\"\",LOWER(КАДРЫ!K415),LOWER(КАДРЫ!I415))","v":"такелажник судовой"},{"$f":"КАДРЫ!D415","v":0},null,null,null,null,null,null,null,{"$f":"REPLACE(F415,100,2,ДОЛЖНОСТИ!$B$2:$B$71)","v":{"$error":"#VALUE!"}}]
[415,{"$f":"КАДРЫ!E416","v":0},null,null,null,{"$f":"IF(КАДРЫ!I416=\"\",LOWER(КАДРЫ!K416),LOWER(КАДРЫ!I416))","v":"такелажник судовой"},{"$f":"КАДРЫ!D416","v":0},null,null,null,null,null,null,null,{"$f":"REPLACE(F416,100,2,ДОЛЖНОСТИ!$B$2:$B$71)","v":{"$error":"#VALUE!"}}]
[416,{"$f":"КАДРЫ!E417","v":0},null,null,null,{"$f":"IF(КАДРЫ!I417=\"\",LOWER(КАДРЫ!K417),LOWER(КАДРЫ!I417))","v":"такелажник судовой"},{"$f":"КАДРЫ!D417","v":0},null,null,null,null,null,null,null,{"$f":"REPLACE(F417,100,2,ДОЛЖНОСТИ!$B$2:$B$71)","v":{"$error":"#VALUE!"}}]
[417,{"$f":"КАДРЫ!E418","v":0},null,null,null,{"$f":"IF(КАДРЫ!I418=\"\",LOWER(КАДРЫ!K418),LOWER(КАДРЫ!I418))","v":"такелажник судовой"},{"$f":"КАДРЫ!D418","v":0},null,null,null,null,null,null,null,{"$f":"REPLACE(F418,100,2,ДОЛЖНОСТИ!$B$2:$B$71)","v":{"$error":"#VALUE!"}}]
[418,{"$f":"КАДРЫ!E419","v":0},null,null,null,{"$f":"IF(КАДРЫ!I419=\"\",LOWER(КАДРЫ!K419),LOWER(КАДРЫ!I419))","v":"такелажник судовой"},{"$f":"КАДРЫ!D419","v":0},null,null,null,null,null,null,null,{"$f":"REPLACE(F419,100,2,ДОЛЖНОСТИ!$B$2:$B$71)","v":{"$error":"#VALUE!"}}]
[419,{"$f":"КАДРЫ!E420","v":0},null,null,null,{"$f":"IF(КАДРЫ!I420=\"\",LOWER(КАДРЫ!K420),LOWER(КАДРЫ!I420))","v":"такелажник судовой"},{"$f":"КАДРЫ!D420","v":0},null,null,null,null,null,null,null,{"$f":"REPLACE(F420,100,2,ДОЛЖНОСТИ!$B$2:$B$71)","v":{"$error":"#VALUE!"}}]
[420,{"$f":"КАДРЫ!E421","v":0},null,null,null,{"$f":"IF(КАДРЫ!I421=\"\",LOWER(КАДРЫ!K421),LOWER(КАДРЫ!I421))","v":"такелажник судовой"},{"$f":"КАДРЫ!D421","v":0},null,null,null,null,null,null,null,{"$f":"REPLACE(F421,100,2,ДОЛЖНОСТИ!$B$2:$B$71)","v":{"$error":"#VALUE!"}}]
[421,{"$f":"КАДРЫ!E422","v":0},null,null,null,{"$f":"IF(КАДРЫ!I422=\"\",LOWER(КАДРЫ!K422),LOWER(КАДРЫ!I422))","v":"такелажник судовой"},{"$f":"КАДРЫ!D422","v":0},null,null,null,null,null,null,null,{"$f":"REPLACE(F422,100,2,ДОЛЖНОСТИ!$B$2:$B$71)","v":{"$error":"#VALUE!"}}]
[422,{"$f":"КАДРЫ!E423","v":0},null,null,null,{"$f":"IF(КАДРЫ!I423=\"\",LOWER(КАДРЫ!K423),LOWER(КАДРЫ!I423))","v":"такелажник судовой"},{"$f":"КАДРЫ!D423","v":0},null,null,null,null,null,null,null,{"$f":"REPLACE(F423,100,2,ДОЛЖНОСТИ!$B$2:$B$71)","v":{"$error":"#VALUE!"}}]
[423,{"$f":"КАДРЫ!E424","v":0},null,null,null,{"$f":"IF(КАДРЫ!I424=\"\",LOWER(КАДРЫ!K424),LOWER(КАДРЫ!I424))","v":"такелажник судовой"},{"$f":"КАДРЫ!D424","v":0},null,null,null,null,null,null,null,{"$f":"REPLACE(F424,100,2,ДОЛЖНОСТИ!$B$2:$B$71)","v":{"$error":"#VALUE!"}}]
[424,{"$f":"КАДРЫ!E425","v":0},null,null,null,{"$f":"IF(КАДРЫ!I425=\"\",LOWER(КАДРЫ!K425),LOWER(КАДРЫ!I425))","v":"такелажник судовой"},{"$f":"КАДРЫ!D425","v":0},null,null,null,null,null,null,null,{"$f":"REPLACE(F425,100,2,ДОЛЖНОСТИ!$B$2:$B$71)","v":{"$error":"#VALUE!"}}]
[425,{"$f":"КАДРЫ!E426","v":0},null,null,null,{"$f":"IF(КАДРЫ!I426=\"\",LOWER(КАДРЫ!K426),LOWER(КАДРЫ!I426))","v":"такелажник судовой"},{"$f":"КАДРЫ!D426","v":0},null,null,null,null,null,null,null,{"$f":"REPLACE(F426,100,2,ДОЛЖНОСТИ!$B$2:$B$71)","v":{"$error":"#VALUE!"}}]
[426,{"$f":"КАДРЫ!E427","v":0},null,null,null,{"$f":"IF(КАДРЫ!I427=\"\",LOWER(КАДРЫ!K427),LOWER(КАДРЫ!I427))","v":"такелажник судовой"},{"$f":"КАДРЫ!D427","v":0},null,null,null,null,null,null,null,{"$f":"REPLACE(F427,100,2,ДОЛЖНОСТИ!$B$2:$B$71)","v":{"$error":"#VALUE!"}}]
[427,{"$f":"КАДРЫ!E428","v":0},null,null,null,{"$f":"IF(КАДРЫ!I428=\"\",LOWER(КАДРЫ!K428),LOWER(КАДРЫ!I428))","v":"такелажник судовой"},{"$f":"КАДРЫ!D428","v":0},null,null,null,null,null,null,null,{"$f":"REPLACE(F428,100,2,ДОЛЖНОСТИ!$B$2:$B$71)","v":{"$error":"#VALUE!"}}]
[428,{"$f":"КАДРЫ!E429","v":0},null,null,null,{"$f":"IF(КАДРЫ!I429=\"\",LOWER(КАДРЫ!K429),LOWER(КАДРЫ!I429))","v":"такелажник судовой"},{"$f":"КАДРЫ!D429","v":0},null,null,null,null,null,null,null,{"$f":"REPLACE(F429,100,2,ДОЛЖНОСТИ!$B$2:$B$71)","v":{"$error":"#VALUE!"}}]
[429,{"$f":"КАДРЫ!E430","v":0},null,null,null,{"$f":"IF(КАДРЫ!I430=\"\",LOWER(КАДРЫ!K430),LOWER(КАДРЫ!I430))","v":"такелажник судовой"},{"$f":"КАДРЫ!D430","v":0},null,null,null,null,null,null,null,{"$f":"REPLACE(F430,100,2,ДОЛЖНОСТИ!$B$2:$B$71)","v":{"$error":"#VALUE!"}}]
[430,{"$f":"КАДРЫ!E431","v":0},null,null,null,{"$f":"IF(КАДРЫ!I431=\"\",LOWER(КАДРЫ!K431),LOWER(КАДРЫ!I431))","v":"такелажник судовой"},{"$f":"КАДРЫ!D431","v":0},null,null,null,null,null,null,null,{"$f":"REPLACE(F431,100,2,ДОЛЖНОСТИ!$B$2:$B$71)","v":{"$error":"#VALUE!"}}]
[431,{"$f":"КАДРЫ!E432","v":0},null,null,null,{"$f":"IF(КАДРЫ!I432=\"\",LOWER(КАДРЫ!K432),LOWER(КАДРЫ!I432))","v":"такелажник судовой"},{"$f":"КАДРЫ!D432","v":0},null,null,null,null,null,null,null,{"$f":"REPLACE(F432,100,2,ДОЛЖНОСТИ!$B$2:$B$71)","v":{"$error":"#VALUE!"}}]
[432,{"$f":"КАДРЫ!E433","v":0},null,null,null,{"$f":"IF(КАДРЫ!I433=\"\",LOWER(КАДРЫ!K433),LOWER(КАДРЫ!I433))","v":"такелажник судовой"},{"$f":"КАДРЫ!D433","v":0},null,null,null,null,null,null,null,{"$f":"REPLACE(F433,100,2,ДОЛЖНОСТИ!$B$2:$B$71)","v":{"$error":"#VALUE!"}}]
[433,{"$f":"КАДРЫ!E434","v":0},null,null,null,{"$f":"IF(КАДРЫ!I434=\"\",LOWER(КАДРЫ!K434),LOWER(КАДРЫ!I434))","v":"такелажник судовой"},{"$f":"КАДРЫ!D434","v":0},null,null,null,null,null,null,null,{"$f":"REPLACE(F434,100,2,ДОЛЖНОСТИ!$B$2:$B$71)","v":{"$error":"#VALUE!"}}]
[434,{"$f":"КАДРЫ!E435","v":0},null,null,null,{"$f":"IF(КАДРЫ!I435=\"\",LOWER(КАДРЫ!K435),LOWER(КАДРЫ!I435))","v":"такелажник судовой"},{"$f":"КАДРЫ!D435","v":0},null,null,null,null,null,null,null,{"$f":"REPLACE(F435,100,2,ДОЛЖНОСТИ!$B$2:$B$71)","v":{"$error":"#VALUE!"}}]
[435,{"$f":"КАДРЫ!E436","v":0},null,null,null,{"$f":"IF(КАДРЫ!I436=\"\",LOWER(КАДРЫ!K436),LOWER(КАДРЫ!I436))","v":"такелажник судовой"},{"$f":"КАДРЫ!D436","v":0},null,null,null,null,null,null,null,{"$f":"REPLACE(F436,100,2,ДОЛЖНОСТИ!$B$2:$B$71)","v":{"$error":"#VALUE!"}}]
[436,{"$f":"КАДРЫ!E437","v":0},null,null,null,{"$f":"IF(КАДРЫ!I437=\"\",LOWER(КАДРЫ!K437),LOWER(КАДРЫ!I437))","v":"такелажник судовой"},{"$f":"КАДРЫ!D437","v":0},null,null,null,null,null,null,null,{"$f":"REPLACE(F437,100,2,ДОЛЖНОСТИ!$B$2:$B$71)","v":{"$error":"#VALUE!"}}]
[437,{"$f":"КАДРЫ!E438","v":0},null,null,null,{"$f":"IF(КАДРЫ!I438=\"\",LOWER(КАДРЫ!K438),LOWER(КАДРЫ!I438))","v":"такелажник судовой"},{"$f":"КАДРЫ!D438","v":0},null,null,null,null,null,null,null,{"$f":"REPLACE(F438,100,2,ДОЛЖНОСТИ!$B$2:$B$71)","v":{"$error":"#VALUE!"}}]
[438,{"$f":"КАДРЫ!E439","v":0},null,null,null,{"$f":"IF(КАДРЫ!I439=\"\",LOWER(КАДРЫ!K439),LOWER(КАДРЫ!I439))","v":"такелажник судовой"},{"$f":"КАДРЫ!D439","v":0},null,null,null,null,null,null,null,{"$f":"REPLACE(F439,100,2,ДОЛЖНОСТИ!$B$2:$B$71)","v":{"$error":"#VALUE!"}}]
[439,{"$f":"КАДРЫ!E440","v":0},null,null,null,{"$f":"IF(КАДРЫ!I440=\"\",LOWER(КАДРЫ!K440),LOWER(КАДРЫ!I440))","v":"такелажник судовой"},{"$f":"КАДРЫ!D440","v":0},null,null,null,null,null,null,null,{"$f":"REPLACE(F440,100,2,ДОЛЖНОСТИ!$B$2:$B$71)","v":{"$error":"#VALUE!"}}]
[440,{"$f":"КАДРЫ!E441","v":0},null,null,null,{"$f":"IF(КАДРЫ!I441=\"\",LOWER(КАДРЫ!K441),LOWER(КАДРЫ!I441))","v":"такелажник судовой"},{"$f":"КАДРЫ!D441","v":0},null,null,null,null,null,null,null,{"$f":"REPLACE(F441,100,2,ДОЛЖНОСТИ!$B$2:$B$71)","v":{"$error":"#VALUE!"}}]
[441,{"$f":"КАДРЫ!E442","v":0},null,null,null,{"$f":"IF(КАДРЫ!I442=\"\",LOWER(КАДРЫ!K442),LOWER(КАДРЫ!I442))","v":"такелажник судовой"},{"$f":"КАДРЫ!D442","v":0},null,null,null,null,null,null,null,{"$f":"REPLACE(F442,100,2,ДОЛЖНОСТИ!$B$2:$B$71)","v":{"$error":"#VALUE!"}}]
[442,{"$f":"КАДРЫ!E443","v":0},null,null,null,{"$f":"IF(КАДРЫ!I443=\"\",LOWER(КАДРЫ!K443),LOWER(КАДРЫ!I443))","v":"такелажник судовой"},{"$f":"КАДРЫ!D443","v":0},null,null,null,null,null,null,null,{"$f":"REPLACE(F443,100,2,ДОЛЖНОСТИ!$B$2:$B$71)","v":{"$error":"#VALUE!"}}]
[443,{"$f":"КАДРЫ!E444","v":0},null,null,null,{"$f":"IF(КАДРЫ!I444=\"\",LOWER(КАДРЫ!K444),LOWER(КАДРЫ!I444))","v":"такелажник судовой"},{"$f":"КАДРЫ!D444","v":0},null,null,null,null,null,null,null,{"$f":"REPLACE(F444,100,2,ДОЛЖНОСТИ!$B$2:$B$71)","v":{"$error":"#VALUE!"}}]
[444,{"$f":"КАДРЫ!E445","v":0},null,null,null,{"$f":"IF(КАДРЫ!I445=\"\",LOWER(КАДРЫ!K445),LOWER(КАДРЫ!I445))","v":"такелажник судовой"},{"$f":"КАДРЫ!D445","v":0},null,null,null,null,null,null,null,{"$f":"REPLACE(F445,100,2,ДОЛЖНОСТИ!$B$2:$B$71)","v":{"$error":"#VALUE!"}}]
[445,{"$f":"КАДРЫ!E446","v":0},null,null,null,{"$f":"IF(КАДРЫ!I446=\"\",LOWER(КАДРЫ!K446),LOWER(КАДРЫ!I446))","v":"такелажник судовой"},{"$f":"КАДРЫ!D446","v":0},null,null,null,null,null,null,null,{"$f":"REPLACE(F446,100,2,ДОЛЖНОСТИ!$B$2:$B$71)","v":{"$error":"#VALUE!"}}]
[446,{"$f":"КАДРЫ!E447","v":0},null,null,null,{"$f":"IF(КАДРЫ!I447=\"\",LOWER(КАДРЫ!K447),LOWER(КАДРЫ!I447))","v":"такелажник судовой"},{"$f":"КАДРЫ!D447","v":0},null,null,null,null,null,null,null,{"$f":"REPLACE(F447,100,2,ДОЛЖНОСТИ!$B$2:$B$71)","v":{"$error":"#VALUE!"}}]
[447,{"$f":"КАДРЫ!E448","v":0},null,null,null,{"$f":"IF(КАДРЫ!I448=\"\",LOWER(КАДРЫ!K448),LOWER(КАДРЫ!I448))","v":"такелажник судовой"},{"$f":"КАДРЫ!D448","v":0},null,null,null,null,null,null,null,{"$f":"REPLACE(F448,100,2,ДОЛЖНОСТИ!$B$2:$B$71)","v":{"$error":"#VALUE!"}}]
[448,{"$f":"КАДРЫ!E449","v":0},null,null,null,{"$f":"IF(КАДРЫ!I449=\"\",LOWER(КАДРЫ!K449),LOWER(КАДРЫ!I449))","v":"такелажник судовой"},{"$f":"КАДРЫ!D449","v":0},null,null,null,null,null,null,null,{"$f":"REPLACE(F449,100,2,ДОЛЖНОСТИ!$B$2:$B$71)","v":{"$error":"#VALUE!"}}]
[449,{"$f":"КАДРЫ!E450","v":0},null,null,null,{"$f":"IF(КАДРЫ!I450=\"\",LOWER(КАДРЫ!K450),LOWER(КАДРЫ!I450))","v":"такелажник судовой"},{"$f":"КАДРЫ!D450","v":0},null,null,null,null,null,null,null,{"$f":"REPLACE(F450,100,2,ДОЛЖНОСТИ!$B$2:$B$71)","v":{"$error":"#VALUE!"}}]
[450,{"$f":"КАДРЫ!E451","v":0},null,null,null,{"$f":"IF(КАДРЫ!I451=\"\",LOWER(КАДРЫ!K451),LOWER(КАДРЫ!I451))","v":"такелажник судовой"},{"$f":"КАДРЫ!D451","v":0},null,null,null,null,null,null,null,{"$f":"REPLACE(F451,100,2,ДОЛЖНОСТИ!$B$2:$B$71)","v":{"$error":"#VALUE!"}}]
[451,{"$f":"КАДРЫ!E452","v":0},null,null,null,{"$f":"IF(КАДРЫ!I452=\"\",LOWER(КАДРЫ!K452),LOWER(КАДРЫ!I452))","v":"такелажник судовой"},{"$f":"КАДРЫ!D452","v":0},null,null,null,null,null,null,null,{"$f":"REPLACE(F452,100,2,ДОЛЖНОСТИ!$B$2:$B$71)","v":{"$error":"#VALUE!"}}]
[452,{"$f":"КАДРЫ!E453","v":0},null,null,null,{"$f":"IF(КАДРЫ!I453=\"\",LOWER(КАДРЫ!K453),LOWER(КАДРЫ!I453))","v":"такелажник судовой"},{"$f":"КАДРЫ!D453","v":0},null,null,null,null,null,null,null,{"$f":"REPLACE(F453,100,2,ДОЛЖНОСТИ!$B$2:$B$71)","v":{"$error":"#VALUE!"}}]
[453,{"$f":"КАДРЫ!E454","v":0},null,null,null,{"$f":"IF(КАДРЫ!I454=\"\",LOWER(КАДРЫ!K454),LOWER(КАДРЫ!I454))","v":"такелажник судовой"},{"$f":"КАДРЫ!D454","v":0},null,null,null,null,null,null,null,{"$f":"REPLACE(F454,100,2,ДОЛЖНОСТИ!$B$2:$B$71)","v":{"$error":"#VALUE!"}}]
[454,{"$f":"КАДРЫ!E455","v":0},null,null,null,{"$f":"IF(КАДРЫ!I455=\"\",LOWER(КАДРЫ!K455),LOWER(КАДРЫ!I455))","v":"такелажник судовой"},{"$f":"КАДРЫ!D455","v":0},null,null,null,null,null,null,null,{"$f":"REPLACE(F455,100,2,ДОЛЖНОСТИ!$B$2:$B$71)","v":{"$error":"#VALUE!"}}]
[455,{"$f":"КАДРЫ!E456","v":0},null,null,null,{"$f":"IF(КАДРЫ!I456=\"\",LOWER(КАДРЫ!K456),LOWER(КАДРЫ!I456))","v":"такелажник судовой"},{"$f":"КАДРЫ!D456","v":0},null,null,null,null,null,null,null,{"$f":"REPLACE(F456,100,2,ДОЛЖНОСТИ!$B$2:$B$71)","v":{"$error":"#VALUE!"}}]
[456,{"$f":"КАДРЫ!E457","v":0},null,null,null,{"$f":"IF(КАДРЫ!I457=\"\",LOWER(КАДРЫ!K457),LOWER(КАДРЫ!I457))","v":"такелажник судовой"},{"$f":"КАДРЫ!D457","v":0},null,null,null,null,null,null,null,{"$f":"REPLACE(F457,100,2,ДОЛЖНОСТИ!$B$2:$B$71)","v":{"$error":"#VALUE!"}}]
[457,{"$f":"КАДРЫ!E458","v":0},null,null,null,{"$f":"IF(КАДРЫ!I458=\"\",LOWER(КАДРЫ!K458),LOWER(КАДРЫ!I458))","v":"такелажник судовой"},{"$f":"КАДРЫ!D458","v":0},null,null,null,null,null,null,null,{"$f":"REPLACE(F458,100,2,ДОЛЖНОСТИ!$B$2:$B$71)","v":{"$error":"#VALUE!"}}]
[458,{"$f":"КАДРЫ!E459","v":0},null,null,null,{"$f":"IF(КАДРЫ!I459=\"\",LOWER(КАДРЫ!K459),LOWER(КАДРЫ!I459))","v":"уборщик производственных помещений"},{"$f":"КАДРЫ!D459","v":0},null,null,null,null,null,null,null,{"$f":"REPLACE(F459,100,2,ДОЛЖНОСТИ!$B$2:$B$71)","v":{"$error":"#VALUE!"}}]
[459,{"$f":"КАДРЫ!E460","v":0},null,null,null,{"$f":"IF(КАДРЫ!I460=\"\",LOWER(КАДРЫ!K460),LOWER(КАДРЫ!I460))","v":"уборщик производственных помещений"},{"$f":"КАДРЫ!D460","v":0},null,null,null,null,null,null,null,{"$f":"REPLACE(F460,100,2,ДОЛЖНОСТИ!$B$2:$B$71)","v":{"$error":"#VALUE!"}}]
[460,{"$f":"КАДРЫ!E461","v":0},null,null,null,{"$f":"IF(КАДРЫ!I461=\"\",LOWER(КАДРЫ!K461),LOWER(КАДРЫ!I461))","v":"уборщик производственных помещений"},{"$f":"КАДРЫ!D461","v":0},null,null,null,null,null,null,null,{"$f":"REPLACE(F461,100,2,ДОЛЖНОСТИ!$B$2:$B$71)","v":{"$error":"#VALUE!"}}]
[461,{"$f":"КАДРЫ!E462","v":0},null,null,null,{"$f":"IF(КАДРЫ!I462=\"\",LOWER(КАДРЫ!K462),LOWER(КАДРЫ!I462))","v":"уборщик производственных помещений"},{"$f":"КАДРЫ!D462","v":0},null,null,null,null,null,null,null,{"$f":"REPLACE(F462,100,2,ДОЛЖНОСТИ!$B$2:$B$71)","v":{"$error":"#VALUE!"}}]
[462,{"$f":"КАДРЫ!E463","v":0},null,null,null,{"$f":"IF(КАДРЫ!I463=\"\",LOWER(КАДРЫ!K463),LOWER(КАДРЫ!I463))","v":"уборщик производственных помещений"},{"$f":"КАДРЫ!D463","v":0},null,null,null,null,null,null,null,{"$f":"REPLACE(F463,100,2,ДОЛЖНОСТИ!$B$2:$B$71)","v":{"$error":"#VALUE!"}}]
[463,{"$f":"КАДРЫ!E464","v":0},null,null,null,{"$f":"IF(КАДРЫ!I464=\"\",LOWER(КАДРЫ!K464),LOWER(КАДРЫ!I464))","v":"уборщик производственных помещений"},{"$f":"КАДРЫ!D464","v":0},null,null,null,null,null,null,null,{"$f":"REPLACE(F464,100,2,ДОЛЖНОСТИ!$B$2:$B$71)","v":{"$error":"#VALUE!"}}]
[464,{"$f":"КАДРЫ!E465","v":0},null,null,null,{"$f":"IF(КАДРЫ!I465=\"\",LOWER(КАДРЫ!K465),LOWER(КАДРЫ!I465))","v":"уборщик производственных помещений"},{"$f":"КАДРЫ!D465","v":0},null,null,null,null,null,null,null,{"$f":"REPLACE(F465,100,2,ДОЛЖНОСТИ!$B$2:$B$71)","v":{"$error":"#VALUE!"}}]
[465,{"$f":"КАДРЫ!E466","v":0},null,null,null,{"$f":"IF(КАДРЫ!I466=\"\",LOWER(КАДРЫ!K466),LOWER(КАДРЫ!I466))","v":"уборщик производственных помещений"},{"$f":"КАДРЫ!D466","v":0},null,null,null,null,null,null,null,{"$f":"REPLACE(F466,100,2,ДОЛЖНОСТИ!$B$2:$B$71)","v":{"$error":"#VALUE!"}}]
[466,{"$f":"КАДРЫ!E467","v":0},null,null,null,{"$f":"IF(КАДРЫ!I467=\"\",LOWER(КАДРЫ!K467),LOWER(КАДРЫ!I467))","v":"уборщик производственных помещений"},{"$f":"КАДРЫ!D467","v":0},null,null,null,null,null,null,null,{"$f":"REPLACE(F467,100,2,ДОЛЖНОСТИ!$B$2:$B$71)","v":{"$error":"#VALUE!"}}]
[467,{"$f":"КАДРЫ!E468","v":0},null,null,null,{"$f":"IF(КАДРЫ!I468=\"\",LOWER(КАДРЫ!K468),LOWER(КАДРЫ!I468))","v":"уборщик производственных помещений"},{"$f":"КАДРЫ!D468","v":0},null,null,null,null,null,null,null,{"$f":"REPLACE(F468,100,2,ДОЛЖНОСТИ!$B$2:$B$71)","v":{"$error":"#VALUE!"}}]
[468,{"$f":"КАДРЫ!E469","v":0},null,null,null,{"$f":"IF(КАДРЫ!I469=\"\",LOWER(КАДРЫ!K469),LOWER(КАДРЫ!I469))","v":"уборщик производственных помещений"},{"$f":"КАДРЫ!D469","v":0},null,null,null,null,null,null,null,{"$f":"REPLACE(F469,100,2,ДОЛЖНОСТИ!$B$2:$B$71)","v":{"$error":"#VALUE!"}}]
[469,{"$f":"КАДРЫ!E470","v":0},null,null,null,{"$f":"IF(КАДРЫ!I470=\"\",LOWER(КАДРЫ!K470),LOWER(КАДРЫ!I470))","v":"уборщик производственных помещений"},{"$f":"КАДРЫ!D470","v":0},null,null,null,null,null,null,null,{"$f":"REPLACE(F470,100,2,ДОЛЖНОСТИ!$B$2:$B$71)","v":{"$error":"#VALUE!"}}]
[470,{"$f":"КАДРЫ!E471","v":0},null,null,null,{"$f":"IF(КАДРЫ!I471=\"\",LOWER(КАДРЫ!K471),LOWER(КАДРЫ!I471))","v":"уборщик производственных помещений"},{"$f":"КАДРЫ!D471","v":0},null,null,null,null,null,null,null,{"$f":"REPLACE(F471,100,2,ДОЛЖНОСТИ!$B$2:$B$71)","v":{"$error":"#VALUE!"}}]
[471,{"$f":"КАДРЫ!E472","v":0},null,null,null,{"$f":"IF(КАДРЫ!I472=\"\",LOWER(КАДРЫ!K472),LOWER(КАДРЫ!I472))","v":"уборщик производственных помещений"},{"$f":"КАДРЫ!D472","v":0},null,null,null,null,null,null,null,{"$f":"REPLACE(F472,100,2,ДОЛЖНОСТИ!$B$2:$B$71)","v":{"$error":"#VALUE!"}}]
[472,{"$f":"КАДРЫ!E473","v":0},null,null,null,{"$f":"IF(КАДРЫ!I473=\"\",LOWER(КАДРЫ!K473),LOWER(КАДРЫ!I473))","v":"уборщик производственных помещений"},{"$f":"КАДРЫ!D473","v":0},null,null,null,null,null,null,null,{"$f":"REPLACE(F473,100,2,ДОЛЖНОСТИ!$B$2:$B$71)","v":{"$error":"#VALUE!"}}]
[473,{"$f":"КАДРЫ!E474","v":0},null,null,null,{"$f":"IF(КАДРЫ!I474=\"\",LOWER(КАДРЫ!K474),LOWER(КАДРЫ!I474))","v":"уборщик производственных помещений"},{"$f":"КАДРЫ!D474","v":0},null,null,null,null,null,null,null,{"$f":"REPLACE(F474,100,2,ДОЛЖНОСТИ!$B$2:$B$71)","v":{"$error":"#VALUE!"}}]
[474,{"$f":"КАДРЫ!E475","v":0},null,null,null,{"$f":"IF(КАДРЫ!I475=\"\",LOWER(КАДРЫ!K475),LOWER(КАДРЫ!I475))","v":"уборщик производственных помещений"},{"$f":"КАДРЫ!D475","v":0},null,null,null,null,null,null,null,{"$f":"REPLACE(F475,100,2,ДОЛЖНОСТИ!$B$2:$B$71)","v":{"$error":"#VALUE!"}}]
[475,{"$f":"КАДРЫ!E476","v":0},null,null,null,{"$f":"IF(КАДРЫ!I476=\"\",LOWER(КАДРЫ!K476),LOWER(КАДРЫ!I476))","v":"уборщик служебных помещений"},{"$f":"КАДРЫ!D476","v":0},null,null,null,null,null,null,null,{"$f":"REPLACE(F476,100,2,ДОЛЖНОСТИ!$B$2:$B$71)","v":{"$error":"#VALUE!"}}]
[476,{"$f":"КАДРЫ!E477","v":0},null,null,null,{"$f":"IF(КАДРЫ!I477=\"\",LOWER(КАДРЫ!K477),LOWER(КАДРЫ!I477))","v":"уборщик территорий (улиц)"},{"$f":"КАДРЫ!D477","v":0},null,null,null,null,null,null,null,{"$f":"REPLACE(F477,100,2,ДОЛЖНОСТИ!$B$2:$B$71)","v":{"$error":"#VALUE!"}}]
[477,{"$f":"КАДРЫ!E478","v":0},null,null,null,{"$f":"IF(КАДРЫ!I478=\"\",LOWER(КАДРЫ!K478),LOWER(КАДРЫ!I478))","v":"уборщик территорий (улиц)"},{"$f":"КАДРЫ!D478","v":0},null,null,null,null,null,null,null,{"$f":"REPLACE(F478,100,2,ДОЛЖНОСТИ!$B$2:$B$71)","v":{"$error":"#VALUE!"}}]
[478,{"$f":"КАДРЫ!E479","v":0},null,null,null,{"$f":"IF(КАДРЫ!I479=\"\",LOWER(КАДРЫ!K479),LOWER(КАДРЫ!I479))","v":"уборщик территорий (улиц)"},{"$f":"КАДРЫ!D479","v":0},null,null,null,null,null,null,null,{"$f":"REPLACE(F479,100,2,ДОЛЖНОСТИ!$B$2:$B$71)","v":{"$error":"#VALUE!"}}]
[479,{"$f":"КАДРЫ!E480","v":0},null,null,null,{"$f":"IF(КАДРЫ!I480=\"\",LOWER(КАДРЫ!K480),LOWER(КАДРЫ!I480))","v":"уборщик территорий (улиц)"},{"$f":"КАДРЫ!D480","v":0},null,null,null,null,null,null,null,{"$f":"REPLACE(F480,100,2,ДОЛЖНОСТИ!$B$2:$B$71)","v":{"$error":"#VALUE!"}}]
[480,{"$f":"КАДРЫ!E481","v":0},null,null,null,{"$f":"IF(КАДРЫ!I481=\"\",LOWER(КАДРЫ!K481),LOWER(КАДРЫ!I481))","v":"уборщик территорий (улиц)"},{"$f":"КАДРЫ!D481","v":0},null,null,null,null,null,null,null,{"$f":"REPLACE(F481,100,2,ДОЛЖНОСТИ!$B$2:$B$71)","v":{"$error":"#VALUE!"}}]
[481,{"$f":"КАДРЫ!E482","v":0},null,null,null,{"$f":"IF(КАДРЫ!I482=\"\",LOWER(КАДРЫ!K482),LOWER(КАДРЫ!I482))","v":"уборщик территорий (улиц)"},{"$f":"КАДРЫ!D482","v":0},null,null,null,null,null,null,null,{"$f":"REPLACE(F482,100,2,ДОЛЖНОСТИ!$B$2:$B$71)","v":{"$error":"#VALUE!"}}]
[482,{"$f":"КАДРЫ!E483","v":0},null,null,null,{"$f":"IF(КАДРЫ!I483=\"\",LOWER(КАДРЫ!K483),LOWER(КАДРЫ!I483))","v":"электрик судовой"},{"$f":"КАДРЫ!D483","v":0},null,null,null,null,null,null,null,{"$f":"REPLACE(F483,100,2,ДОЛЖНОСТИ!$B$2:$B$71)","v":{"$error":"#VALUE!"}}]
[483,{"$f":"КАДРЫ!E484","v":0},null,null,null,{"$f":"IF(КАДРЫ!I484=\"\",LOWER(КАДРЫ!K484),LOWER(КАДРЫ!I484))","v":"электрик судовой"},{"$f":"КАДРЫ!D484","v":0},null,null,null,null,null,null,null,{"$f":"REPLACE(F484,100,2,ДОЛЖНОСТИ!$B$2:$B$71)","v":{"$error":"#VALUE!"}}]
[484,{"$f":"КАДРЫ!E485","v":0},null,null,null,{"$f":"IF(КАДРЫ!I485=\"\",LOWER(КАДРЫ!K485),LOWER(КАДРЫ!I485))","v":"электрик судовой"},{"$f":"КАДРЫ!D485","v":0},null,null,null,null,null,null,null,{"$f":"REPLACE(F485,100,2,ДОЛЖНОСТИ!$B$2:$B$71)","v":{"$error":"#VALUE!"}}]
[485,{"$f":"КАДРЫ!E486","v":0},null,null,null,{"$f":"IF(КАДРЫ!I486=\"\",LOWER(КАДРЫ!K486),LOWER(КАДРЫ!I486))","v":"электрик судовой"},{"$f":"КАДРЫ!D486","v":0},null,null,null,null,null,null,null,{"$f":"REPLACE(F486,100,2,ДОЛЖНОСТИ!$B$2:$B$71)","v":{"$error":"#VALUE!"}}]
[486,{"$f":"КАДРЫ!E487","v":0},null,null,null,{"$f":"IF(КАДРЫ!I487=\"\",LOWER(КАДРЫ!K487),LOWER(КАДРЫ!I487))","v":"электрик судовой"},{"$f":"КАДРЫ!D487","v":0},null,null,null,null,null,null,null,{"$f":"REPLACE(F487,100,2,ДОЛЖНОСТИ!$B$2:$B$71)","v":{"$error":"#VALUE!"}}]
[487,{"$f":"КАДРЫ!E488","v":0},null,null,null,{"$f":"IF(КАДРЫ!I488=\"\",LOWER(КАДРЫ!K488),LOWER(КАДРЫ!I488))","v":"электрик судовой"},{"$f":"КАДРЫ!D488","v":0},null,null,null,null,null,null,null,{"$f":"REPLACE(F488,100,2,ДОЛЖНОСТИ!$B$2:$B$71)","v":{"$error":"#VALUE!"}}]
[488,{"$f":"КАДРЫ!E489","v":0},null,null,null,{"$f":"IF(КАДРЫ!I489=\"\",LOWER(КАДРЫ!K489),LOWER(КАДРЫ!I489))","v":"электрик судовой"},{"$f":"КАДРЫ!D489","v":0},null,null,null,null,null,null,null,{"$f":"REPLACE(F489,100,2,ДОЛЖНОСТИ!$B$2:$B$71)","v":{"$error":"#VALUE!"}}]
[489,{"$f":"КАДРЫ!E490","v":0},null,null,null,{"$f":"IF(КАДРЫ!I490=\"\",LOWER(КАДРЫ!K490),LOWER(КАДРЫ!I490))","v":"электрик судовой"},{"$f":"КАДРЫ!D490","v":0},null,null,null,null,null,null,null,{"$f":"REPLACE(F490,100,2,ДОЛЖНОСТИ!$B$2:$B$71)","v":{"$error":"#VALUE!"}}]
[490,{"$f":"КАДРЫ!E491","v":0},null,null,null,{"$f":"IF(КАДРЫ!I491=\"\",LOWER(КАДРЫ!K491),LOWER(КАДРЫ!I491))","v":"электрик судовой"},{"$f":"КАДРЫ!D491","v":0},null,null,null,null,null,null,null,{"$f":"REPLACE(F491,100,2,ДОЛЖНОСТИ!$B$2:$B$71)","v":{"$error":"#VALUE!"}}]
[491,{"$f":"КАДРЫ!E492","v":0},null,null,null,{"$f":"IF(КАДРЫ!I492=\"\",LOWER(КАДРЫ!K492),LOWER(КАДРЫ!I492))","v":"электрогазосварщик"},{"$f":"КАДРЫ!D492","v":0},null,null,null,null,null,null,null,{"$f":"REPLACE(F492,100,2,ДОЛЖНОСТИ!$B$2:$B$71)","v":{"$error":"#VALUE!"}}]
[492,{"$f":"КАДРЫ!E493","v":0},null,null,null,{"$f":"IF(КАДРЫ!I493=\"\",LOWER(КАДРЫ!K493),LOWER(КАДРЫ!I493))","v":"электромонтер по ремонту и обслуживанию электрооборудования"},{"$f":"КАДРЫ!D493","v":0},null,null,null,null,null,null,null,{"$f":"REPLACE(F493,100,2,ДОЛЖНОСТИ!$B$2:$B$71)","v":{"$error":"#VALUE!"}}]
[493,{"$f":"КАДРЫ!E494","v":0},null,null,null,{"$f":"IF(КАДРЫ!I494=\"\",LOWER(КАДРЫ!K494),LOWER(КАДРЫ!I494))","v":"электромонтер по ремонту и обслуживанию электрооборудования"},{"$f":"КАДРЫ!D494","v":0},null,null,null,null,null,null,null,{"$f":"REPLACE(F494,100,2,ДОЛЖНОСТИ!$B$2:$B$71)","v":{"$error":"#VALUE!"}}]
[494,{"$f":"КАДРЫ!E495","v":0},null,null,null,{"$f":"IF(КАДРЫ!I495=\"\",LOWER(КАДРЫ!K495),LOWER(КАДРЫ!I495))","v":"электромонтер по ремонту и обслуживанию электрооборудования"},{"$f":"КАДРЫ!D495","v":0},null,null,null,null,null,null,null,{"$f":"REPLACE(F495,100,2,ДОЛЖНОСТИ!$B$2:$B$71)","v":{"$error":"#VALUE!"}}]
[495,{"$f":"КАДРЫ!E496","v":0},null,null,null,{"$f":"IF(КАДРЫ!I496=\"\",LOWER(КАДРЫ!K496),LOWER(КАДРЫ!I496))","v":"электромонтер по ремонту и обслуживанию электрооборудования"},{"$f":"КАДРЫ!D496","v":0},null,null,null,null,null,null,null,{"$f":"REPLACE(F496,100,2,ДОЛЖНОСТИ!$B$2:$B$71)","v":{"$error":"#VALUE!"}}]
[496,{"$f":"КАДРЫ!E497","v":0},null,null,null,{"$f":"IF(КАДРЫ!I497=\"\",LOWER(КАДРЫ!K497),LOWER(КАДРЫ!I497))","v":"электромонтер по ремонту и обслуживанию электрооборудования"},{"$f":"КАДРЫ!D497","v":0},null,null,null,null,null,null,null,{"$f":"REPLACE(F497,100,2,ДОЛЖНОСТИ!$B$2:$B$71)","v":{"$error":"#VALUE!"}}]
[497,{"$f":"КАДРЫ!E498","v":0},null,null,null,{"$f":"IF(КАДРЫ!I498=\"\",LOWER(КАДРЫ!K498),LOWER(КАДРЫ!I498))","v":"электромонтер по ремонту и обслуживанию электрооборудования"},{"$f":"КАДРЫ!D498","v":0},null,null,null,null,null,null,null,{"$f":"REPLACE(F498,100,2,ДОЛЖНОСТИ!$B$2:$B$71)","v":{"$error":"#VALUE!"}}]
[498,{"$f":"КАДРЫ!E499","v":0},null,null,null,{"$f":"IF(КАДРЫ!I499=\"\",LOWER(КАДРЫ!K499),LOWER(КАДРЫ!I499))","v":"электромонтер по ремонту и обслуживанию электрооборудования"},{"$f":"КАДРЫ!D499","v":0},null,null,null,null,null,null,null,{"$f":"REPLACE(F499,100,2,ДОЛЖНОСТИ!$B$2:$B$71)","v":{"$error":"#VALUE!"}}]
[499,{"$f":"КАДРЫ!E500","v":0},null,null,null,{"$f":"IF(КАДРЫ!I500=\"\",LOWER(КАДРЫ!K500),LOWER(КАДРЫ!I500))","v":"электромонтер по ремонту и обслуживанию электрооборудования"},{"$f":"КАДРЫ!D500","v":0},null,null,null,null,null,null,null,{"$f":"REPLACE(F500,100,2,ДОЛЖНОСТИ!$B$2:$B$71)","v":{"$error":"#VALUE!"}}]
[500,{"$f":"КАДРЫ!E501","v":0},{"$f":"PROPER(КАДРЫ!B501)","v":""},{"$f":"LEFT(C501,FIND(\" \",C501,1)+1)&\".\"&MID(C501,FIND(\" \",C501,FIND(\" \",C501,1)+1)+1,1)&\".\"","v":{"$error":"#VALUE!"}},{"$f":"КАДРЫ!C501","v":0},{"$f":"IF(КАДРЫ!I501=\"\",LOWER(КАДРЫ!K501),LOWER(КАДРЫ!I501))","v":""},{"$f":"КАДРЫ!D501","v":0},{"$f":"КАДРЫ!F501","v":0},{"$f":"КАДРЫ!G501","v":0},{"$f":"КАДРЫ!H501","v":0},{"$f":"КАДРЫ!J501","v":0},null,null,null,{"$f":"REPLACE(F501,100,2,ДОЛЖНОСТИ!$B$2:$B$71)","v":{"$error":"#VALUE!"}}]
[501,{"$f":"КАДРЫ!E502","v":0},{"$f":"PROPER(КАДРЫ!B502)","v":""},{"$error":"#VALUE!"},{"$f":"КАДРЫ!C502","v":0},{"$f":"IF(КАДРЫ!I502=\"\",LOWER(КАДРЫ!K502),LOWER(КАДРЫ!I502))","v":""},{"$f":"КАДРЫ!D502","v":0},{"$f":"КАДРЫ!F502","v":0},{"$f":"КАДРЫ!G502","v":0},{"$f":"КАДРЫ!H502","v":0},{"$f":"КАДРЫ!J502","v":0},null,null,null,{"$f":"REPLACE(F502,100,2,ДОЛЖНОСТИ!$B$2:$B$71)","v":{"$error":"#VALUE!"}}]
[502,{"$f":"КАДРЫ!E503","v":0},{"$f":"PROPER(КАДРЫ!B503)","v":""},{"$error":"#VALUE!"},{"$f":"КАДРЫ!C503","v":0},{"$f":"IF(КАДРЫ!I503=\"\",LOWER(КАДРЫ!K503),LOWER(КАДРЫ!I503))","v":""},{"$f":"КАДРЫ!D503","v":0},{"$f":"КАДРЫ!F503","v":0},{"$f":"КАДРЫ!G503","v":0},{"$f":"КАДРЫ!H503","v":0},{"$f":"КАДРЫ!J503","v":0},null,null,null,{"$f":"REPLACE(F503,100,2,ДОЛЖНОСТИ!$B$2:$B$71)","v":{"$error":"#VALUE!"}}]
[503,{"$f":"КАДРЫ!E504","v":0},{"$f":"PROPER(КАДРЫ!B504)","v":""},{"$error":"#VALUE!"},{"$f":"КАДРЫ!C504","v":0},{"$f":"IF(КАДРЫ!I504=\"\",LOWER(КАДРЫ!K504),LOWER(КАДРЫ!I504))","v":""},{"$f":"КАДРЫ!D504","v":0},{"$f":"КАДРЫ!F504","v":0},{"$f":"КАДРЫ!G504","v":0},{"$f":"КАДРЫ!H504","v":0},{"$f":"КАДРЫ!J504","v":0},null,null,null,{"$f":"REPLACE(F504,100,2,ДОЛЖНОСТИ!$B$2:$B$71)","v":{"$error":"#VALUE!"}}]
[504,{"$f":"КАДРЫ!E505","v":0},{"$f":"PROPER(КАДРЫ!B505)","v":""},{"$error":"#VALUE!"},{"$f":"КАДРЫ!C505","v":0},{"$f":"IF(КАДРЫ!I505=\"\",LOWER(КАДРЫ!K505),LOWER(КАДРЫ!I505))","v":""},{"$f":"КАДРЫ!D505","v":0},{"$f":"КАДРЫ!F505","v":0},{"$f":"КАДРЫ!G505","v":0},{"$f":"КАДРЫ!H505","v":0},{"$f":"КАДРЫ!J505","v":0},null,null,null,{"$f":"REPLACE(F505,100,2,ДОЛЖНОСТИ!$B$2:$B$71)","v":{"$error":"#VALUE!"}}]
[505,{"$f":"КАДРЫ!E506","v":0},{"$f":"PROPER(КАДРЫ!B506)","v":""},{"$error":"#VALUE!"},{"$f":"КАДРЫ!C506","v":0},{"$f":"IF(КАДРЫ!I506=\"\",LOWER(КАДРЫ!K506),LOWER(КАДРЫ!I506))","v":""},{"$f":"КАДРЫ!D506","v":0},{"$f":"КАДРЫ!F506","v":0},{"$f":"КАДРЫ!G506","v":0},{"$f":"КАДРЫ!H506","v":0},{"$f":"КАДРЫ!J506","v":0},null,null,null,{"$f":"REPLACE(F506,100,2,ДОЛЖНОСТИ!$B$2:$B$71)","v":{"$error":"#VALUE!"}}]
[506,{"$f":"КАДРЫ!E507","v":0},{"$f":"PROPER(КАДРЫ!B507)","v":""},{"$error":"#VALUE!"},{"$f":"КАДРЫ!C507","v":0},{"$f":"IF(КАДРЫ!I507=\"\",LOWER(КАДРЫ!K507),LOWER(КАДРЫ!I507))","v":""},{"$f":"КАДРЫ!D507","v":0},{"$f":"КАДРЫ!F507","v":0},{"$f":"КАДРЫ!G507","v":0},{"$f":"КАДРЫ!H507","v":0},{"$f":"КАДРЫ!J507","v":0},null,null,null,{"$f":"REPLACE(F507,100,2,ДОЛЖНОСТИ!$B$2:$B$71)","v":{"$error":"#VALUE!"}}]
[507,{"$f":"КАДРЫ!E508","v":0},{"$f":"PROPER(КАДРЫ!B508)","v":""},{"$error":"#VALUE!"},{"$f":"КАДРЫ!C508","v":0},{"$f":"IF(КАДРЫ!I508=\"\",LOWER(КАДРЫ!K508),LOWER(КАДРЫ!I508))","v":""},{"$f":"КАДРЫ!D508","v":0},{"$f":"КАДРЫ!F508","v":0},{"$f":"КАДРЫ!G508","v":0},{"$f":"КАДРЫ!H508","v":0},{"$f":"КАДРЫ!J508","v":0},null,null,null,{"$f":"REPLACE(F508,100,2,ДОЛЖНОСТИ!$B$2:$B$71)","v":{"$error":"#VALUE!"}}]
[508,{"$f":"КАДРЫ!E509","v":0},{"$f":"PROPER(КАДРЫ!B509)","v":""},{"$error":"#VALUE!"},{"$f":"КАДРЫ!C509","v":0},{"$f":"IF(КАДРЫ!I509=\"\",LOWER(КАДРЫ!K509),LOWER(КАДРЫ!I509))","v":""},{"$f":"КАДРЫ!D509","v":0},{"$f":"КАДРЫ!F509","v":0},{"$f":"КАДРЫ!G509","v":0},{"$f":"КАДРЫ!H509","v":0},{"$f":"КАДРЫ!J509","v":0},null,null,null,{"$f":"REPLACE(F509,100,2,ДОЛЖНОСТИ!$B$2:$B$71)","v":{"$error":"#VALUE!"}}]
[509,{"$f":"КАДРЫ!E510","v":0},{"$f":"PROPER(КАДРЫ!B510)","v":""},{"$error":"#VALUE!"},{"$f":"КАДРЫ!C510","v":0},{"$f":"IF(КАДРЫ!I510=\"\",LOWER(КАДРЫ!K510),LOWER(КАДРЫ!I510))","v":""},{"$f":"КАДРЫ!D510","v":0},{"$f":"КАДРЫ!F510","v":0},{"$f":"КАДРЫ!G510","v":0},{"$f":"КАДРЫ!H510","v":0},{"$f":"КАДРЫ!J510","v":0},null,null,null,{"$f":"REPLACE(F510,100,2,ДОЛЖНОСТИ!$B$2:$B$71)","v":{"$error":"#VALUE!"}}]
[510,{"$f":"КАДРЫ!E511","v":0},{"$f":"PROPER(КАДРЫ!B511)","v":""},{"$error":"#VALUE!"},{"$f":"КАДРЫ!C511","v":0},{"$f":"IF(КАДРЫ!I511=\"\",LOWER(КАДРЫ!K511),LOWER(КАДРЫ!I511))","v":""},{"$f":"КАДРЫ!D511","v":0},{"$f":"КАДРЫ!F511","v":0},{"$f":"КАДРЫ!G511","v":0},{"$f":"КАДРЫ!H511","v":0},{"$f":"КАДРЫ!J511","v":0},null,null,null,{"$f":"REPLACE(F511,100,2,ДОЛЖНОСТИ!$B$2:$B$71)","v":{"$error":"#VALUE!"}}]
[511,{"$f":"КАДРЫ!E512","v":0},{"$f":"PROPER(КАДРЫ!B512)","v":""},{"$error":"#VALUE!"},{"$f":"КАДРЫ!C512","v":0},{"$f":"IF(КАДРЫ!I512=\"\",LOWER(КАДРЫ!K512),LOWER(КАДРЫ!I512))","v":""},{"$f":"КАДРЫ!D512","v":0},{"$f":"КАДРЫ!F512","v":0},{"$f":"КАДРЫ!G512","v":0},{"$f":"КАДРЫ!H512","v":0},{"$f":"КАДРЫ!J512","v":0},null,null,null,{"$f":"REPLACE(F512,100,2,ДОЛЖНОСТИ!$B$2:$B$71)","v":{"$error":"#VALUE!"}}]
[512,{"$f":"КАДРЫ!E513","v":0},{"$f":"PROPER(КАДРЫ!B513)","v":""},{"$error":"#VALUE!"},{"$f":"КАДРЫ!C513","v":0},{"$f":"IF(КАДРЫ!I513=\"\",LOWER(КАДРЫ!K513),LOWER(КАДРЫ!I513))","v":""},{"$f":"КАДРЫ!D513","v":0},{"$f":"КАДРЫ!F513","v":0},{"$f":"КАДРЫ!G513","v":0},{"$f":"КАДРЫ!H513","v":0},{"$f":"КАДРЫ!J513","v":0},null,null,null,{"$f":"REPLACE(F513,100,2,ДОЛЖНОСТИ!$B$2:$B$71)","v":{"$error":"#VALUE!"}}]
[513,{"$f":"КАДРЫ!E514","v":0},{"$f":"PROPER(КАДРЫ!B514)","v":""},{"$error":"#VALUE!"},{"$f":"КАДРЫ!C514","v":0},{"$f":"IF(КАДРЫ!I514=\"\",LOWER(КАДРЫ!K514),LOWER(КАДРЫ!I514))","v":""},{"$f":"КАДРЫ!D514","v":0},{"$f":"КАДРЫ!F514","v":0},{"$f":"КАДРЫ!G514","v":0},{"$f":"КАДРЫ!H514","v":0},{"$f":"КАДРЫ!J514","v":0},null,null,null,{"$f":"REPLACE(F514,100,2,ДОЛЖНОСТИ!$B$2:$B$71)","v":{"$error":"#VALUE!"}}]
[514,{"$f":"КАДРЫ!E515","v":0},{"$f":"PROPER(КАДРЫ!B515)","v":""},{"$f":"LEFT(C515,FIND(\" \",C515,1)+1)&\".\"&MID(C515,FIND(\" \",C515,FIND(\" \",C515,1)+1)+1,1)&\".\"","v":{"$error":"#VALUE!"}},{"$f":"КАДРЫ!C515","v":0},{"$f":"IF(КАДРЫ!I515=\"\",LOWER(КАДРЫ!K515),LOWER(КАДРЫ!I515))","v":""},{"$f":"КАДРЫ!D515","v":0},{"$f":"КАДРЫ!F515","v":0},{"$f":"КАДРЫ!G515","v":0},{"$f":"КАДРЫ!H515","v":0},{"$f":"КАДРЫ!J515","v":0},null,null,null,{"$f":"REPLACE(F515,100,2,ДОЛЖНОСТИ!$B$2:$B$71)","v":{"$error":"#VALUE!"}}]
[515,{"$f":"КАДРЫ!E516","v":0},{"$f":"PROPER(КАДРЫ!B516)","v":""},{"$error":"#VALUE!"},{"$f":"КАДРЫ!C516","v":0},{"$f":"IF(КАДРЫ!I516=\"\",LOWER(КАДРЫ!K516),LOWER(КАДРЫ!I516))","v":""},{"$f":"КАДРЫ!D516","v":0},{"$f":"КАДРЫ!F516","v":0},{"$f":"КАДРЫ!G516","v":0},{"$f":"КАДРЫ!H516","v":0},{"$f":"КАДРЫ!J516","v":0},null,null,null,{"$f":"REPLACE(F516,100,2,ДОЛЖНОСТИ!$B$2:$B$71)","v":{"$error":"#VALUE!"}}]
[516,{"$f":"КАДРЫ!E517","v":0},{"$f":"PROPER(КАДРЫ!B517)","v":""},{"$error":"#VALUE!"},{"$f":"КАДРЫ!C517","v":0},{"$f":"IF(КАДРЫ!I517=\"\",LOWER(КАДРЫ!K517),LOWER(КАДРЫ!I517))","v":""},{"$f":"КАДРЫ!D517","v":0},{"$f":"КАДРЫ!F517","v":0},{"$f":"КАДРЫ!G517","v":0},{"$f":"КАДРЫ!H517","v":0},{"$f":"КАДРЫ!J517","v":0},null,null,null,{"$f":"REPLACE(F517,100,2,ДОЛЖНОСТИ!$B$2:$B$71)","v":{"$error":"#VALUE!"}}]
[517,{"$f":"КАДРЫ!E518","v":0},{"$f":"PROPER(КАДРЫ!B518)","v":""},{"$error":"#VALUE!"},{"$f":"КАДРЫ!C518","v":0},{"$f":"IF(КАДРЫ!I518=\"\",LOWER(КАДРЫ!K518),LOWER(КАДРЫ!I518))","v":""},{"$f":"КАДРЫ!D518","v":0},{"$f":"КАДРЫ!F518","v":0},{"$f":"КАДРЫ!G518","v":0},{"$f":"КАДРЫ!H518","v":0},{"$f":"КАДРЫ!J518","v":0},null,null,null,{"$f":"REPLACE(F518,100,2,ДОЛЖНОСТИ!$B$2:$B$71)","v":{"$error":"#VALUE!"}}]
[518,{"$f":"КАДРЫ!E519","v":0},{"$f":"PROPER(КАДРЫ!B519)","v":""},{"$error":"#VALUE!"},{"$f":"КАДРЫ!C519","v":0},{"$f":"IF(КАДРЫ!I519=\"\",LOWER(КАДРЫ!K519),LOWER(КАДРЫ!I519))","v":""},{"$f":"КАДРЫ!D519","v":0},{"$f":"КАДРЫ!F519","v":0},{"$f":"КАДРЫ!G519","v":0},{"$f":"КАДРЫ!H519","v":0},{"$f":"КАДРЫ!J519","v":0},null,null,null,{"$f":"REPLACE(F519,100,2,ДОЛЖНОСТИ!$B$2:$B$71)","v":{"$error":"#VALUE!"}}]
[519,{"$f":"КАДРЫ!E520","v":0},{"$f":"PROPER(КАДРЫ!B520)","v":""},{"$error":"#VALUE!"},{"$f":"КАДРЫ!C520","v":0},{"$f":"IF(КАДРЫ!I520=\"\",LOWER(КАДРЫ!K520),LOWER(КАДРЫ!I520))","v":""},{"$f":"КАДРЫ!D520","v":0},{"$f":"КАДРЫ!F520","v":0},{"$f":"КАДРЫ!G520","v":0},{"$f":"КАДРЫ!H520","v":0},{"$f":"КАДРЫ!J520","v":0},null,null,null,{"$f":"REPLACE(F520,100,2,ДОЛЖНОСТИ!$B$2:$B$71)","v":{"$error":"#VALUE!"}}]
[520,{"$f":"КАДРЫ!E521","v":0},{"$f":"PROPER(КАДРЫ!B521)","v":""},{"$error":"#VALUE!"},{"$f":"КАДРЫ!C521","v":0},{"$f":"IF(КАДРЫ!I521=\"\",LOWER(КАДРЫ!K521),LOWER(КАДРЫ!I521))","v":""},{"$f":"КАДРЫ!D521","v":0},{"$f":"КАДРЫ!F521","v":0},{"$f":"КАДРЫ!G521","v":0},{"$f":"КАДРЫ!H521","v":0},{"$f":"КАДРЫ!J521","v":0},null,null,null,{"$f":"REPLACE(F521,100,2,ДОЛЖНОСТИ!$B$2:$B$71)","v":{"$error":"#VALUE!"}}]
[521,{"$f":"КАДРЫ!E522","v":0},{"$f":"PROPER(КАДРЫ!B522)","v":""},{"$error":"#VALUE!"},{"$f":"КАДРЫ!C522","v":0},{"$f":"IF(КАДРЫ!I522=\"\",LOWER(КАДРЫ!K522),LOWER(КАДРЫ!I522))","v":""},{"$f":"КАДРЫ!D522","v":0},{"$f":"КАДРЫ!F522","v":0},{"$f":"КАДРЫ!G522","v":0},{"$f":"КАДРЫ!H522","v":0},{"$f":"КАДРЫ!J522","v":0},null,null,null,{"$f":"REPLACE(F522,100,2,ДОЛЖНОСТИ!$B$2:$B$71)","v":{"$error":"#VALUE!"}}]
[522,{"$f":"КАДРЫ!E523","v":0},{"$f":"PROPER(КАДРЫ!B523)","v":""},{"$error":"#VALUE!"},{"$f":"КАДРЫ!C523","v":0},{"$f":"IF(КАДРЫ!I523=\"\",LOWER(КАДРЫ!K523),LOWER(КАДРЫ!I523))","v":""},{"$f":"КАДРЫ!D523","v":0},{"$f":"КАДРЫ!F523","v":0},{"$f":"КАДРЫ!G523","v":0},{"$f":"КАДРЫ!H523","v":0},{"$f":"КАДРЫ!J523","v":0},null,null,null,{"$f":"REPLACE(F523,100,2,ДОЛЖНОСТИ!$B$2:$B$71)","v":{"$error":"#VALUE!"}}]
[523,{"$f":"КАДРЫ!E524","v":0},{"$f":"PROPER(КАДРЫ!B524)","v":""},{"$error":"#VALUE!"},{"$f":"КАДРЫ!C524","v":0},{"$f":"IF(КАДРЫ!I524=\"\",LOWER(КАДРЫ!K524),LOWER(КАДРЫ!I524))","v":""},{"$f":"КАДРЫ!D524","v":0},{"$f":"КАДРЫ!F524","v":0},{"$f":"КАДРЫ!G524","v":0},{"$f":"КАДРЫ!H524","v":0},{"$f":"КАДРЫ!J524","v":0},null,null,null,{"$f":"REPLACE(F524,100,2,ДОЛЖНОСТИ!$B$2:$B$71)","v":{"$error":"#VALUE!"}}]
[524,{"$f":"КАДРЫ!E525","v":0},{"$f":"PROPER(КАДРЫ!B525)","v":""},{"$error":"#VALUE!"},{"$f":"КАДРЫ!C525","v":0},{"$f":"IF(КАДРЫ!I525=\"\",LOWER(КАДРЫ!K525),LOWER(КАДРЫ!I525))","v":""},{"$f":"КАДРЫ!D525","v":0},{"$f":"КАДРЫ!F525","v":0},{"$f":"КАДРЫ!G525","v":0},{"$f":"КАДРЫ!H525","v":0},{"$f":"КАДРЫ!J525","v":0},null,null,null,{"$f":"REPLACE(F525,100,2,ДОЛЖНОСТИ!$B$2:$B$71)","v":{"$error":"#VALUE!"}}]
[525,{"$f":"КАДРЫ!E526","v":0},{"$f":"PROPER(КАДРЫ!B526)","v":""},{"$error":"#VALUE!"},{"$f":"КАДРЫ!C526","v":0},{"$f":"IF(КАДРЫ!I526=\"\",LOWER(КАДРЫ!K526),LOWER(КАДРЫ!I526))","v":""},{"$f":"КАДРЫ!D526","v":0},{"$f":"КАДРЫ!F526","v":0},{"$f":"КАДРЫ!G526","v":0},{"$f":"КАДРЫ!H526","v":0},{"$f":"КАДРЫ!J526","v":0},null,null,null,{"$f":"REPLACE(F526,100,2,ДОЛЖНОСТИ!$B$2:$B$71)","v":{"$error":"#VALUE!"}}]
[526,{"$f":"КАДРЫ!E527","v":0},{"$f":"PROPER(КАДРЫ!B527)","v":""},{"$error":"#VALUE!"},{"$f":"КАДРЫ!C527","v":0},{"$f":"IF(КАДРЫ!I527=\"\",LOWER(КАДРЫ!K527),LOWER(КАДРЫ!I527))","v":""},{"$f":"КАДРЫ!D527","v":0},{"$f":"КАДРЫ!F527","v":0},{"$f":"КАДРЫ!G527","v":0},{"$f":"КАДРЫ!H527","v":0},{"$f":"КАДРЫ!J527","v":0},null,null,null,{"$f":"REPLACE(F527,100,2,ДОЛЖНОСТИ!$B$2:$B$71)","v":{"$error":"#VALUE!"}}]
[527,{"$f":"КАДРЫ!E528","v":0},{"$f":"PROPER(КАДРЫ!B528)","v":""},{"$error":"#VALUE!"},{"$f":"КАДРЫ!C528","v":0},{"$f":"IF(КАДРЫ!I528=\"\",LOWER(КАДРЫ!K528),LOWER(КАДРЫ!I528))","v":""},{"$f":"КАДРЫ!D528","v":0},{"$f":"КАДРЫ!F528","v":0},{"$f":"КАДРЫ!G528","v":0},{"$f":"КАДРЫ!H528","v":0},{"$f":"КАДРЫ!J528","v":0},null,null,null,{"$f":"REPLACE(F528,100,2,ДОЛЖНОСТИ!$B$2:$B$71)","v":{"$error":"#VALUE!"}}]
[528,{"$f":"КАДРЫ!E529","v":0},{"$f":"PROPER(КАДРЫ!B529)","v":""},{"$error":"#VALUE!"},{"$f":"КАДРЫ!C529","v":0},{"$f":"IF(КАДРЫ!I529=\"\",LOWER(КАДРЫ!K529),LOWER(КАДРЫ!I529))","v":""},{"$f":"КАДРЫ!D529","v":0},{"$f":"КАДРЫ!F529","v":0},{"$f":"КАДРЫ!G529","v":0},{"$f":"КАДРЫ!H529","v":0},{"$f":"КАДРЫ!J529","v":0},null,null,null,{"$f":"REPLACE(F529,100,2,ДОЛЖНОСТИ!$B$2:$B$71)","v":{"$error":"#VALUE!"}}]
[529,{"$f":"КАДРЫ!E530","v":0},{"$f":"PROPER(КАДРЫ!B530)","v":""},{"$error":"#VALUE!"},{"$f":"КАДРЫ!C530","v":0},{"$f":"IF(КАДРЫ!I530=\"\",LOWER(КАДРЫ!K530),LOWER(КАДРЫ!I530))","v":""},{"$f":"КАДРЫ!D530","v":0},{"$f":"КАДРЫ!F530","v":0},{"$f":"КАДРЫ!G530","v":0},{"$f":"КАДРЫ!H530","v":0},{"$f":"КАДРЫ!J530","v":0},null,null,null,{"$f":"REPLACE(F530,100,2,ДОЛЖНОСТИ!$B$2:$B$71)","v":{"$error":"#VALUE!"}}]
[530,{"$f":"КАДРЫ!E531","v":0},{"$f":"PROPER(КАДРЫ!B531)","v":""},{"$error":"#VALUE!"},{"$f":"КАДРЫ!C531","v":0},{"$f":"IF(КАДРЫ!I531=\"\",LOWER(КАДРЫ!K531),LOWER(КАДРЫ!I531))","v":""},{"$f":"КАДРЫ!D531","v":0},{"$f":"КАДРЫ!F531","v":0},{"$f":"КАДРЫ!G531","v":0},{"$f":"КАДРЫ!H531","v":0},{"$f":"КАДРЫ!J531","v":0},null,null,null,{"$f":"REPLACE(F531,100,2,ДОЛЖНОСТИ!$B$2:$B$71)","v":{"$error":"#VALUE!"}}]
[531,{"$f":"КАДРЫ!E532","v":0},{"$f":"PROPER(КАДРЫ!B532)","v":""},{"$error":"#VALUE!"},{"$f":"КАДРЫ!C532","v":0},{"$f":"IF(КАДРЫ!I532=\"\",LOWER(КАДРЫ!K532),LOWER(КАДРЫ!I532))","v":""},{"$f":"КАДРЫ!D532","v":0},{"$f":"КАДРЫ!F532","v":0},{"$f":"КАДРЫ!G532","v":0},{"$f":"КАДРЫ!H532","v":0},{"$f":"КАДРЫ!J532","v":0},null,null,null,{"$f":"REPLACE(F532,100,2,ДОЛЖНОСТИ!$B$2:$B$71)","v":{"$error":"#VALUE!"}}]
[532,{"$f":"КАДРЫ!E533","v":0},{"$f":"PROPER(КАДРЫ!B533)","v":""},{"$error":"#VALUE!"},{"$f":"КАДРЫ!C533","v":0},{"$f":"IF(КАДРЫ!I533=\"\",LOWER(КАДРЫ!K533),LOWER(КАДРЫ!I533))","v":""},{"$f":"КАДРЫ!D533","v":0},{"$f":"КАДРЫ!F533","v":0},{"$f":"КАДРЫ!G533","v":0},{"$f":"КАДРЫ!H533","v":0},{"$f":"КАДРЫ!J533","v":0},null,null,null,{"$f":"REPLACE(F533,100,2,ДОЛЖНОСТИ!$B$2:$B$71)","v":{"$error":"#VALUE!"}}]
[533,{"$f":"КАДРЫ!E534","v":0},{"$f":"PROPER(КАДРЫ!B534)","v":""},{"$error":"#VALUE!"},{"$f":"КАДРЫ!C534","v":0},{"$f":"IF(КАДРЫ!I534=\"\",LOWER(КАДРЫ!K534),LOWER(КАДРЫ!I534))","v":""},{"$f":"КАДРЫ!D534","v":0},{"$f":"КАДРЫ!F534","v":0},{"$f":"КАДРЫ!G534","v":0},{"$f":"КАДРЫ!H534","v":0},{"$f":"КАДРЫ!J534","v":0},null,null,null,{"$f":"REPLACE(F534,100,2,ДОЛЖНОСТИ!$B$2:$B$71)","v":{"$error":"#VALUE!"}}]
[534,{"$f":"КАДРЫ!E535","v":0},{"$f":"PROPER(КАДРЫ!B535)","v":""},{"$error":"#VALUE!"},{"$f":"КАДРЫ!C535","v":0},{"$f":"IF(КАДРЫ!I535=\"\",LOWER(КАДРЫ!K535),LOWER(КАДРЫ!I535))","v":""},{"$f":"КАДРЫ!D535","v":0},{"$f":"КАДРЫ!F535","v":0},{"$f":"КАДРЫ!G535","v":0},{"$f":"КАДРЫ!H535","v":0},{"$f":"КАДРЫ!J535","v":0},null,null,null,{"$f":"REPLACE(F535,100,2,ДОЛЖНОСТИ!$B$2:$B$71)","v":{"$error":"#VALUE!"}}]
[535,{"$f":"КАДРЫ!E536","v":0},{"$f":"PROPER(КАДРЫ!B536)","v":""},{"$error":"#VALUE!"},{"$f":"КАДРЫ!C536","v":0},{"$f":"IF(КАДРЫ!I536=\"\",LOWER(КАДРЫ!K536),LOWER(КАДРЫ!I536))","v":""},{"$f":"КАДРЫ!D536","v":0},{"$f":"КАДРЫ!F536","v":0},{"$f":"КАДРЫ!G536","v":0},{"$f":"КАДРЫ!H536","v":0},{"$f":"КАДРЫ!J536","v":0},null,null,null,{"$f":"REPLACE(F536,100,2,ДОЛЖНОСТИ!$B$2:$B$71)","v":{"$error":"#VALUE!"}}]
[536,{"$f":"КАДРЫ!E537","v":0},{"$f":"PROPER(КАДРЫ!B537)","v":""},{"$error":"#VALUE!"},{"$f":"КАДРЫ!C537","v":0},{"$f":"IF(КАДРЫ!I537=\"\",LOWER(КАДРЫ!K537),LOWER(КАДРЫ!I537))","v":""},{"$f":"КАДРЫ!D537","v":0},{"$f":"КАДРЫ!F537","v":0},{"$f":"КАДРЫ!G537","v":0},{"$f":"КАДРЫ!H537","v":0},{"$f":"КАДРЫ!J537","v":0},null,null,null,{"$f":"REPLACE(F537,100,2,ДОЛЖНОСТИ!$B$2:$B$71)","v":{"$error":"#VALUE!"}}]
[537,{"$f":"КАДРЫ!E538","v":0},{"$f":"PROPER(КАДРЫ!B538)","v":""},{"$error":"#VALUE!"},{"$f":"КАДРЫ!C538","v":0},{"$f":"IF(КАДРЫ!I538=\"\",LOWER(КАДРЫ!K538),LOWER(КАДРЫ!I538))","v":""},{"$f":"КАДРЫ!D538","v":0},{"$f":"КАДРЫ!F538","v":0},{"$f":"КАДРЫ!G538","v":0},{"$f":"КАДРЫ!H538","v":0},{"$f":"КАДРЫ!J538","v":0},null,null,null,{"$f":"REPLACE(F538,100,2,ДОЛЖНОСТИ!$B$2:$B$71)","v":{"$error":"#VALUE!"}}]
[538,{"$f":"КАДРЫ!E539","v":0},{"$f":"PROPER(КАДРЫ!B539)","v":""},{"$error":"#VALUE!"},{"$f":"КАДРЫ!C539","v":0},{"$f":"IF(КАДРЫ!I539=\"\",LOWER(КАДРЫ!K539),LOWER(КАДРЫ!I539))","v":""},{"$f":"КАДРЫ!D539","v":0},{"$f":"КАДРЫ!F539","v":0},{"$f":"КАДРЫ!G539","v":0},{"$f":"КАДРЫ!H539","v":0},{"$f":"КАДРЫ!J539","v":0},null,null,null,{"$f":"REPLACE(F539,100,2,ДОЛЖНОСТИ!$B$2:$B$71)","v":{"$error":"#VALUE!"}}]
[539,{"$f":"КАДРЫ!E540","v":0},{"$f":"PROPER(КАДРЫ!B540)","v":""},{"$error":"#VALUE!"},{"$f":"КАДРЫ!C540","v":0},{"$f":"IF(КАДРЫ!I540=\"\",LOWER(КАДРЫ!K540),LOWER(КАДРЫ!I540))","v":""},{"$f":"КАДРЫ!D540","v":0},{"$f":"КАДРЫ!F540","v":0},{"$f":"КАДРЫ!G540","v":0},{"$f":"КАДРЫ!H540","v":0},{"$f":"КАДРЫ!J540","v":0},null,null,null,{"$f":"REPLACE(F540,100,2,ДОЛЖНОСТИ!$B$2:$B$71)","v":{"$error":"#VALUE!"}}]
[540,{"$f":"КАДРЫ!E541","v":0},{"$f":"PROPER(КАДРЫ!B541)","v":""},{"$error":"#VALUE!"},{"$f":"КАДРЫ!C541","v":0},{"$f":"IF(КАДРЫ!I541=\"\",LOWER(КАДРЫ!K541),LOWER(КАДРЫ!I541))","v":""},{"$f":"КАДРЫ!D541","v":0},{"$f":"КАДРЫ!F541","v":0},{"$f":"КАДРЫ!G541","v":0},{"$f":"КАДРЫ!H541","v":0},{"$f":"КАДРЫ!J541","v":0},null,null,null,{"$f":"REPLACE(F541,100,2,ДОЛЖНОСТИ!$B$2:$B$71)","v":{"$error":"#VALUE!"}}]
[541,{"$f":"КАДРЫ!E542","v":0},{"$f":"PROPER(КАДРЫ!B542)","v":""},{"$error":"#VALUE!"},{"$f":"КАДРЫ!C542","v":0},{"$f":"IF(КАДРЫ!I542=\"\",LOWER(КАДРЫ!K542),LOWER(КАДРЫ!I542))","v":""},{"$f":"КАДРЫ!D542","v":0},{"$f":"КАДРЫ!F542","v":0},{"$f":"КАДРЫ!G542","v":0},{"$f":"КАДРЫ!H542","v":0},{"$f":"КАДРЫ!J542","v":0},null,null,null,{"$f":"REPLACE(F542,100,2,ДОЛЖНОСТИ!$B$2:$B$71)","v":{"$error":"#VALUE!"}}]
[542,{"$f":"КАДРЫ!E543","v":0},{"$f":"PROPER(КАДРЫ!B543)","v":""},{"$error":"#VALUE!"},{"$f":"КАДРЫ!C543","v":0},{"$f":"IF(КАДРЫ!I543=\"\",LOWER(КАДРЫ!K543),LOWER(КАДРЫ!I543))","v":""},{"$f":"КАДРЫ!D543","v":0},{"$f":"КАДРЫ!F543","v":0},{"$f":"КАДРЫ!G543","v":0},{"$f":"КАДРЫ!H543","v":0},{"$f":"КАДРЫ!J543","v":0},null,null,null,{"$f":"REPLACE(F543,100,2,ДОЛЖНОСТИ!$B$2:$B$71)","v":{"$error":"#VALUE!"}}]
[543,{"$f":"КАДРЫ!E544","v":0},{"$f":"PROPER(КАДРЫ!B544)","v":""},{"$error":"#VALUE!"},{"$f":"КАДРЫ!C544","v":0},{"$f":"IF(КАДРЫ!I544=\"\",LOWER(КАДРЫ!K544),LOWER(КАДРЫ!I544))","v":""},{"$f":"КАДРЫ!D544","v":0},{"$f":"КАДРЫ!F544","v":0},{"$f":"КАДРЫ!G544","v":0},{"$f":"КАДРЫ!H544","v":0},{"$f":"КАДРЫ!J544","v":0},null,null,null,{"$f":"REPLACE(F544,100,2,ДОЛЖНОСТИ!$B$2:$B$71)","v":{"$error":"#VALUE!"}}]
[544,{"$f":"КАДРЫ!E545","v":0},{"$f":"PROPER(КАДРЫ!B545)","v":""},{"$error":"#VALUE!"},{"$f":"КАДРЫ!C545","v":0},{"$f":"IF(КАДРЫ!I545=\"\",LOWER(КАДРЫ!K545),LOWER(КАДРЫ!I545))","v":""},{"$f":"КАДРЫ!D545","v":0},{"$f":"КАДРЫ!F545","v":0},{"$f":"КАДРЫ!G545","v":0},{"$f":"КАДРЫ!H545","v":0},{"$f":"КАДРЫ!J545","v":0},null,null,null,{"$f":"REPLACE(F545,100,2,ДОЛЖНОСТИ!$B$2:$B$71)","v":{"$error":"#VALUE!"}}]
[545,{"$f":"КАДРЫ!E546","v":0},{"$f":"PROPER(КАДРЫ!B546)","v":""},{"$error":"#VALUE!"},{"$f":"КАДРЫ!C546","v":0},{"$f":"IF(КАДРЫ!I546=\"\",LOWER(КАДРЫ!K546),LOWER(КАДРЫ!I546))","v":""},{"$f":"КАДРЫ!D546","v":0},{"$f":"КАДРЫ!F546","v":0},{"$f":"КАДРЫ!G546","v":0},{"$f":"КАДРЫ!H546","v":0},{"$f":"КАДРЫ!J546","v":0},null,null,null,{"$f":"REPLACE(F546,100,2,ДОЛЖНОСТИ!$B$2:$B$71)","v":{"$error":"#VALUE!"}}]
[546,{"$f":"КАДРЫ!E547","v":0},{"$f":"PROPER(КАДРЫ!B547)","v":""},{"$error":"#VALUE!"},{"$f":"КАДРЫ!C547","v":0},{"$f":"IF(КАДРЫ!I547=\"\",LOWER(КАДРЫ!K547),LOWER(КАДРЫ!I547))","v":""},{"$f":"КАДРЫ!D547","v":0},{"$f":"КАДРЫ!F547","v":0},{"$f":"КАДРЫ!G547","v":0},{"$f":"КАДРЫ!H547","v":0},{"$f":"КАДРЫ!J547","v":0},null,null,null,{"$f":"REPLACE(F547,100,2,ДОЛЖНОСТИ!$B$2:$B$71)","v":{"$error":"#VALUE!"}}]
[547,{"$f":"КАДРЫ!E548","v":0},{"$f":"PROPER(КАДРЫ!B548)","v":""},{"$error":"#VALUE!"},{"$f":"КАДРЫ!C548","v":0},{"$f":"IF(КАДРЫ!I548=\"\",LOWER(КАДРЫ!K548),LOWER(КАДРЫ!I548))","v":""},{"$f":"КАДРЫ!D548","v":0},{"$f":"КАДРЫ!F548","v":0},{"$f":"КАДРЫ!G548","v":0},{"$f":"КАДРЫ!H548","v":0},{"$f":"КАДРЫ!J548","v":0},null,null,null,{"$f":"REPLACE(F548,100,2,ДОЛЖНОСТИ!$B$2:$B$71)","v":{"$error":"#VALUE!"}}]
[548,{"$f":"КАДРЫ!E549","v":0},{"$f":"PROPER(КАДРЫ!B549)","v":""},{"$error":"#VALUE!"},{"$f":"КАДРЫ!C549","v":0},{"$f":"IF(КАДРЫ!I549=\"\",LOWER(КАДРЫ!K549),LOWER(КАДРЫ!I549))","v":""},{"$f":"КАДРЫ!D549","v":0},{"$f":"КАДРЫ!F549","v":0},{"$f":"КАДРЫ!G549","v":0},{"$f":"КАДРЫ!H549","v":0},{"$f":"КАДРЫ!J549","v":0},null,null,null,{"$f":"REPLACE(F549,100,2,ДОЛЖНОСТИ!$B$2:$B$71)","v":{"$error":"#VALUE!"}}]
[549,{"$f":"КАДРЫ!E550","v":0},{"$f":"PROPER(КАДРЫ!B550)","v":""},{"$error":"#VALUE!"},{"$f":"КАДРЫ!C550","v":0},{"$f":"IF(КАДРЫ!I550=\"\",LOWER(КАДРЫ!K550),LOWER(КАДРЫ!I550))","v":""},{"$f":"КАДРЫ!D550","v":0},{"$f":"КАДРЫ!F550","v":0},{"$f":"КАДРЫ!G550","v":0},{"$f":"КАДРЫ!H550","v":0},{"$f":"КАДРЫ!J550","v":0},null,null,null,{"$f":"REPLACE(F550,100,2,ДОЛЖНОСТИ!$B$2:$B$71)","v":{"$error":"#VALUE!"}}]
[550,{"$f":"КАДРЫ!E551","v":0},{"$f":"PROPER(КАДРЫ!B551)","v":""},{"$error":"#VALUE!"},{"$f":"КАДРЫ!C551","v":0},{"$f":"IF(КАДРЫ!I551=\"\",LOWER(КАДРЫ!K551),LOWER(КАДРЫ!I551))","v":""},{"$f":"КАДРЫ!D551","v":0},{"$f":"КАДРЫ!F551","v":0},{"$f":"КАДРЫ!G551","v":0},{"$f":"КАДРЫ!H551","v":0},{"$f":"КАДРЫ!J551","v":0},null,null,null,{"$f":"REPLACE(F551,100,2,ДОЛЖНОСТИ!$B$2:$B$71)","v":{"$error":"#VALUE!"}}]
[551,{"$f":"КАДРЫ!E552","v":0},{"$f":"PROPER(КАДРЫ!B552)","v":""},{"$error":"#VALUE!"},{"$f":"КАДРЫ!C552","v":0},{"$f":"IF(КАДРЫ!I552=\"\",LOWER(КАДРЫ!K552),LOWER(КАДРЫ!I552))","v":""},{"$f":"КАДРЫ!D552","v":0},{"$f":"КАДРЫ!F552","v":0},{"$f":"КАДРЫ!G552","v":0},{"$f":"КАДРЫ!H552","v":0},{"$f":"КАДРЫ!J552","v":0},null,null,null,{"$f":"REPLACE(F552,100,2,ДОЛЖНОСТИ!$B$2:$B$71)","v":{"$error":"#VALUE!"}}]
[552,{"$f":"КАДРЫ!E553","v":0},{"$f":"PROPER(КАДРЫ!B553)","v":""},{"$error":"#VALUE!"},{"$f":"КАДРЫ!C553","v":0},{"$f":"IF(КАДРЫ!I553=\"\",LOWER(КАДРЫ!K553),LOWER(КАДРЫ!I553))","v":""},{"$f":"КАДРЫ!D553","v":0},{"$f":"КАДРЫ!F553","v":0},{"$f":"КАДРЫ!G553","v":0},{"$f":"КАДРЫ!H553","v":0},{"$f":"КАДРЫ!J553","v":0},null,null,null,{"$f":"REPLACE(F553,100,2,ДОЛЖНОСТИ!$B$2:$B$71)","v":{"$error":"#VALUE!"}}]
[553,{"$f":"КАДРЫ!E554","v":0},{"$f":"PROPER(КАДРЫ!B554)","v":""},{"$error":"#VALUE!"},{"$f":"КАДРЫ!C554","v":0},{"$f":"IF(КАДРЫ!I554=\"\",LOWER(КАДРЫ!K554),LOWER(КАДРЫ!I554))","v":""},{"$f":"КАДРЫ!D554","v":0},{"$f":"КАДРЫ!F554","v":0},{"$f":"КАДРЫ!G554","v":0},{"$f":"КАДРЫ!H554","v":0},{"$f":"КАДРЫ!J554","v":0},null,null,null,{"$f":"REPLACE(F554,100,2,ДОЛЖНОСТИ!$B$2:$B$71)","v":{"$error":"#VALUE!"}}]
[554,{"$f":"КАДРЫ!E555","v":0},{"$f":"PROPER(КАДРЫ!B555)","v":""},{"$error":"#VALUE!"},{"$f":"КАДРЫ!C555","v":0},{"$f":"IF(КАДРЫ!I555=\"\",LOWER(КАДРЫ!K555),LOWER(КАДРЫ!I555))","v":""},{"$f":"КАДРЫ!D555","v":0},{"$f":"КАДРЫ!F555","v":0},{"$f":"КАДРЫ!G555","v":0},{"$f":"КАДРЫ!H555","v":0},{"$f":"КАДРЫ!J555","v":0},null,null,null,{"$f":"REPLACE(F555,100,2,ДОЛЖНОСТИ!$B$2:$B$71)","v":{"$error":"#VALUE!"}}]
[555,{"$f":"КАДРЫ!E556","v":0},{"$f":"PROPER(КАДРЫ!B556)","v":""},{"$error":"#VALUE!"},{"$f":"КАДРЫ!C556","v":0},{"$f":"IF(КАДРЫ!I556=\"\",LOWER(КАДРЫ!K556),LOWER(КАДРЫ!I556))","v":""},{"$f":"КАДРЫ!D556","v":0},{"$f":"КАДРЫ!F556","v":0},{"$f":"КАДРЫ!G556","v":0},{"$f":"КАДРЫ!H556","v":0},{"$f":"КАДРЫ!J556","v":0},null,null,null,{"$f":"REPLACE(F556,100,2,ДОЛЖНОСТИ!$B$2:$B$71)","v":{"$error":"#VALUE!"}}]
[556,{"$f":"КАДРЫ!E557","v":0},{"$f":"PROPER(КАДРЫ!B557)","v":""},{"$error":"#VALUE!"},{"$f":"КАДРЫ!C557","v":0},{"$f":"IF(КАДРЫ!I557=\"\",LOWER(КАДРЫ!K557),LOWER(КАДРЫ!I557))","v":""},{"$f":"КАДРЫ!D557","v":0},{"$f":"КАДРЫ!F557","v":0},{"$f":"КАДРЫ!G557","v":0},{"$f":"КАДРЫ!H557","v":0},{"$f":"КАДРЫ!J557","v":0},null,null,null,{"$f":"REPLACE(F557,100,2,ДОЛЖНОСТИ!$B$2:$B$71)","v":{"$error":"#VALUE!"}}]
[557,{"$f":"КАДРЫ!E558","v":0},{"$f":"PROPER(КАДРЫ!B558)","v":""},{"$error":"#VALUE!"},{"$f":"КАДРЫ!C558","v":0},{"$f":"IF(КАДРЫ!I558=\"\",LOWER(КАДРЫ!K558),LOWER(КАДРЫ!I558))","v":""},{"$f":"КАДРЫ!D558","v":0},{"$f":"КАДРЫ!F558","v":0},{"$f":"КАДРЫ!G558","v":0},{"$f":"КАДРЫ!H558","v":0},{"$f":"КАДРЫ!J558","v":0},null,null,null,{"$f":"REPLACE(F558,100,2,ДОЛЖНОСТИ!$B$2:$B$71)","v":{"$error":"#VALUE!"}}]
[558,{"$f":"КАДРЫ!E559","v":0},{"$f":"PROPER(КАДРЫ!B559)","v":""},{"$error":"#VALUE!"},{"$f":"КАДРЫ!C559","v":0},{"$f":"IF(КАДРЫ!I559=\"\",LOWER(КАДРЫ!K559),LOWER(КАДРЫ!I559))","v":""},{"$f":"КАДРЫ!D559","v":0},{"$f":"КАДРЫ!F559","v":0},{"$f":"КАДРЫ!G559","v":0},{"$f":"КАДРЫ!H559","v":0},{"$f":"КАДРЫ!J559","v":0},null,null,null,{"$f":"REPLACE(F559,100,2,ДОЛЖНОСТИ!$B$2:$B$71)","v":{"$error":"#VALUE!"}}]
[559,{"$f":"КАДРЫ!E560","v":0},{"$f":"PROPER(КАДРЫ!B560)","v":""},{"$error":"#VALUE!"},{"$f":"КАДРЫ!C560","v":0},{"$f":"IF(КАДРЫ!I560=\"\",LOWER(КАДРЫ!K560),LOWER(КАДРЫ!I560))","v":""},{"$f":"КАДРЫ!D560","v":0},{"$f":"КАДРЫ!F560","v":0},{"$f":"КАДРЫ!G560","v":0},{"$f":"КАДРЫ!H560","v":0},{"$f":"КАДРЫ!J560","v":0},null,null,null,{"$f":"REPLACE(F560,100,2,ДОЛЖНОСТИ!$B$2:$B$71)","v":{"$error":"#VALUE!"}}]
[560,{"$f":"КАДРЫ!E561","v":0},{"$f":"PROPER(КАДРЫ!B561)","v":""},{"$error":"#VALUE!"},{"$f":"КАДРЫ!C561","v":0},{"$f":"IF(КАДРЫ!I561=\"\",LOWER(КАДРЫ!K561),LOWER(КАДРЫ!I561))","v":""},{"$f":"КАДРЫ!D561","v":0},{"$f":"КАДРЫ!F561","v":0},{"$f":"КАДРЫ!G561","v":0},{"$f":"КАДРЫ!H561","v":0},{"$f":"КАДРЫ!J561","v":0},null,null,null,{"$f":"REPLACE(F561,100,2,ДОЛЖНОСТИ!$B$2:$B$71)","v":{"$error":"#VALUE!"}}]
[561,{"$f":"КАДРЫ!E562","v":0},{"$f":"PROPER(КАДРЫ!B562)","v":""},{"$error":"#VALUE!"},{"$f":"КАДРЫ!C562","v":0},{"$f":"IF(КАДРЫ!I562=\"\",LOWER(КАДРЫ!K562),LOWER(КАДРЫ!I562))","v":""},{"$f":"КАДРЫ!D562","v":0},{"$f":"КАДРЫ!F562","v":0},{"$f":"КАДРЫ!G562","v":0},{"$f":"КАДРЫ!H562","v":0},{"$f":"КАДРЫ!J562","v":0},null,null,null,{"$f":"REPLACE(F562,100,2,ДОЛЖНОСТИ!$B$2:$B$71)","v":{"$error":"#VALUE!"}}]
[562,{"$f":"КАДРЫ!E563","v":0},{"$f":"PROPER(КАДРЫ!B563)","v":""},{"$error":"#VALUE!"},{"$f":"КАДРЫ!C563","v":0},{"$f":"IF(КАДРЫ!I563=\"\",LOWER(КАДРЫ!K563),LOWER(КАДРЫ!I563))","v":""},{"$f":"КАДРЫ!D563","v":0},{"$f":"КАДРЫ!F563","v":0},{"$f":"КАДРЫ!G563","v":0},{"$f":"КАДРЫ!H563","v":0},{"$f":"КАДРЫ!J563","v":0},null,null,null,{"$f":"REPLACE(F563,100,2,ДОЛЖНОСТИ!$B$2:$B$71)","v":{"$error":"#VALUE!"}}]
[563,{"$f":"КАДРЫ!E564","v":0},{"$f":"PROPER(КАДРЫ!B564)","v":""},{"$error":"#VALUE!"},{"$f":"КАДРЫ!C564","v":0},{"$f":"IF(КАДРЫ!I564=\"\",LOWER(КАДРЫ!K564),LOWER(КАДРЫ!I564))","v":""},{"$f":"КАДРЫ!D564","v":0},{"$f":"КАДРЫ!F564","v":0},{"$f":"КАДРЫ!G564","v":0},{"$f":"КАДРЫ!H564","v":0},{"$f":"КАДРЫ!J564","v":0},null,null,null,{"$f":"REPLACE(F564,100,2,ДОЛЖНОСТИ!$B$2:$B$71)","v":{"$error":"#VALUE!"}}]
[564,{"$f":"КАДРЫ!E565","v":0},{"$f":"PROPER(КАДРЫ!B565)","v":""},{"$error":"#VALUE!"},{"$f":"КАДРЫ!C565","v":0},{"$f":"IF(КАДРЫ!I565=\"\",LOWER(КАДРЫ!K565),LOWER(КАДРЫ!I565))","v":""},{"$f":"КАДРЫ!D565","v":0},{"$f":"КАДРЫ!F565","v":0},{"$f":"КАДРЫ!G565","v":0},{"$f":"КАДРЫ!H565","v":0},{"$f":"КАДРЫ!J565","v":0},null,null,null,{"$f":"REPLACE(F565,100,2,ДОЛЖНОСТИ!$B$2:$B$71)","v":{"$error":"#VALUE!"}}]
[565,{"$f":"КАДРЫ!E566","v":0},{"$f":"PROPER(КАДРЫ!B566)","v":""},{"$error":"#VALUE!"},{"$f":"КАДРЫ!C566","v":0},{"$f":"IF(КАДРЫ!I566=\"\",LOWER(КАДРЫ!K566),LOWER(КАДРЫ!I566))","v":""},{"$f":"КАДРЫ!D566","v":0},{"$f":"КАДРЫ!F566","v":0},{"$f":"КАДРЫ!G566","v":0},{"$f":"КАДРЫ!H566","v":0},{"$f":"КАДРЫ!J566","v":0},null,null,null,{"$f":"REPLACE(F566,100,2,ДОЛЖНОСТИ!$B$2:$B$71)","v":{"$error":"#VALUE!"}}]
[566,{"$f":"КАДРЫ!E567","v":0},{"$f":"PROPER(КАДРЫ!B567)","v":""},{"$error":"#VALUE!"},{"$f":"КАДРЫ!C567","v":0},{"$f":"IF(КАДРЫ!I567=\"\",LOWER(КАДРЫ!K567),LOWER(КАДРЫ!I567))","v":""},{"$f":"КАДРЫ!D567","v":0},{"$f":"КАДРЫ!F567","v":0},{"$f":"КАДРЫ!G567","v":0},{"$f":"КАДРЫ!H567","v":0},{"$f":"КАДРЫ!J567","v":0},null,null,null,{"$f":"REPLACE(F567,100,2,ДОЛЖНОСТИ!$B$2:$B$71)","v":{"$error":"#VALUE!"}}]
[567,{"$f":"КАДРЫ!E568","v":0},{"$f":"PROPER(КАДРЫ!B568)","v":""},{"$error":"#VALUE!"},{"$f":"КАДРЫ!C568","v":0},{"$f":"IF(КАДРЫ!I568=\"\",LOWER(КАДРЫ!K568),LOWER(КАДРЫ!I568))","v":""},{"$f":"КАДРЫ!D568","v":0},{"$f":"КАДРЫ!F568","v":0},{"$f":"КАДРЫ!G568","v":0},{"$f":"КАДРЫ!H568","v":0},{"$f":"КАДРЫ!J568","v":0},null,null,null,{"$f":"REPLACE(F568,100,2,ДОЛЖНОСТИ!$B$2:$B$71)","v":{"$error":"#VALUE!"}}]
[568,{"$f":"КАДРЫ!E569","v":0},{"$f":"PROPER(КАДРЫ!B569)","v":""},{"$error":"#VALUE!"},{"$f":"КАДРЫ!C569","v":0},{"$f":"IF(КАДРЫ!I569=\"\",LOWER(КАДРЫ!K569),LOWER(КАДРЫ!I569))","v":""},{"$f":"КАДРЫ!D569","v":0},{"$f":"КАДРЫ!F569","v":0},{"$f":"КАДРЫ!G569","v":0},{"$f":"КАДРЫ!H569","v":0},{"$f":"КАДРЫ!J569","v":0},null,null,null,{"$f":"REPLACE(F569,100,2,ДОЛЖНОСТИ!$B$2:$B$71)","v":{"$error":"#VALUE!"}}]
[569,{"$f":"КАДРЫ!E570","v":0},{"$f":"PROPER(КАДРЫ!B570)","v":""},{"$error":"#VALUE!"},{"$f":"КАДРЫ!C570","v":0},{"$f":"IF(КАДРЫ!I570=\"\",LOWER(КАДРЫ!K570),LOWER(КАДРЫ!I570))","v":""},{"$f":"КАДРЫ!D570","v":0},{"$f":"КАДРЫ!F570","v":0},{"$f":"КАДРЫ!G570","v":0},{"$f":"КАДРЫ!H570","v":0},{"$f":"КАДРЫ!J570","v":0},null,null,null,{"$f":"REPLACE(F570,100,2,ДОЛЖНОСТИ!$B$2:$B$71)","v":{"$error":"#VALUE!"}}]
[570,{"$f":"КАДРЫ!E571","v":0},{"$f":"PROPER(КАДРЫ!B571)","v":""},{"$error":"#VALUE!"},{"$f":"КАДРЫ!C571","v":0},{"$f":"IF(КАДРЫ!I571=\"\",LOWER(КАДРЫ!K571),LOWER(КАДРЫ!I571))","v":""},{"$f":"КАДРЫ!D571","v":0},{"$f":"КАДРЫ!F571","v":0},{"$f":"КАДРЫ!G571","v":0},{"$f":"КАДРЫ!H571","v":0},{"$f":"КАДРЫ!J571","v":0},null,null,null,{"$f":"REPLACE(F571,100,2,ДОЛЖНОСТИ!$B$2:$B$71)","v":{"$error":"#VALUE!"}}]
[571,{"$f":"КАДРЫ!E572","v":0},{"$f":"PROPER(КАДРЫ!B572)","v":""},{"$error":"#VALUE!"},{"$f":"КАДРЫ!C572","v":0},{"$f":"IF(КАДРЫ!I572=\"\",LOWER(КАДРЫ!K572),LOWER(КАДРЫ!I572))","v":""},{"$f":"КАДРЫ!D572","v":0},{"$f":"КАДРЫ!F572","v":0},{"$f":"КАДРЫ!G572","v":0},{"$f":"КАДРЫ!H572","v":0},{"$f":"КАДРЫ!J572","v":0},null,null,null,{"$f":"REPLACE(F572,100,2,ДОЛЖНОСТИ!$B$2:$B$71)","v":{"$error":"#VALUE!"}}]
[572,{"$f":"КАДРЫ!E573","v":0},{"$f":"PROPER(КАДРЫ!B573)","v":""},{"$error":"#VALUE!"},{"$f":"КАДРЫ!C573","v":0},{"$f":"IF(КАДРЫ!I573=\"\",LOWER(КАДРЫ!K573),LOWER(КАДРЫ!I573))","v":""},{"$f":"КАДРЫ!D573","v":0},{"$f":"КАДРЫ!F573","v":0},{"$f":"КАДРЫ!G573","v":0},{"$f":"КАДРЫ!H573","v":0},{"$f":"КАДРЫ!J573","v":0},null,null,null,{"$f":"REPLACE(F573,100,2,ДОЛЖНОСТИ!$B$2:$B$71)","v":{"$error":"#VALUE!"}}]
[573,{"$f":"КАДРЫ!E574","v":0},{"$f":"PROPER(КАДРЫ!B574)","v":""},{"$error":"#VALUE!"},{"$f":"КАДРЫ!C574","v":0},{"$f":"IF(КАДРЫ!I574=\"\",LOWER(КАДРЫ!K574),LOWER(КАДРЫ!I574))","v":""},{"$f":"КАДРЫ!D574","v":0},{"$f":"КАДРЫ!F574","v":0},{"$f":"КАДРЫ!G574","v":0},{"$f":"КАДРЫ!H574","v":0},{"$f":"КАДРЫ!J574","v":0},null,null,null,{"$f":"REPLACE(F574,100,2,ДОЛЖНОСТИ!$B$2:$B$71)","v":{"$error":"#VALUE!"}}]
[574,{"$f":"КАДРЫ!E575","v":0},{"$f":"PROPER(КАДРЫ!B575)","v":""},{"$error":"#VALUE!"},{"$f":"КАДРЫ!C575","v":0},{"$f":"IF(КАДРЫ!I575=\"\",LOWER(КАДРЫ!K575),LOWER(КАДРЫ!I575))","v":""},{"$f":"КАДРЫ!D575","v":0},{"$f":"КАДРЫ!F575","v":0},{"$f":"КАДРЫ!G575","v":0},{"$f":"КАДРЫ!H575","v":0},{"$f":"КАДРЫ!J575","v":0},null,null,null,{"$f":"REPLACE(F575,100,2,ДОЛЖНОСТИ!$B$2:$B$71)","v":{"$error":"#VALUE!"}}]
[575,{"$f":"КАДРЫ!E576","v":0},{"$f":"PROPER(КАДРЫ!B576)","v":""},{"$error":"#VALUE!"},{"$f":"КАДРЫ!C576","v":0},{"$f":"IF(КАДРЫ!I576=\"\",LOWER(КАДРЫ!K576),LOWER(КАДРЫ!I576))","v":""},{"$f":"КАДРЫ!D576","v":0},{"$f":"КАДРЫ!F576","v":0},{"$f":"КАДРЫ!G576","v":0},{"$f":"КАДРЫ!H576","v":0},{"$f":"КАДРЫ!J576","v":0},null,null,null,{"$f":"REPLACE(F576,100,2,ДОЛЖНОСТИ!$B$2:$B$71)","v":{"$error":"#VALUE!"}}]
[576,{"$f":"КАДРЫ!E577","v":0},{"$f":"PROPER(КАДРЫ!B577)","v":""},{"$error":"#VALUE!"},{"$f":"КАДРЫ!C577","v":0},{"$f":"IF(КАДРЫ!I577=\"\",LOWER(КАДРЫ!K577),LOWER(КАДРЫ!I577))","v":""},{"$f":"КАДРЫ!D577","v":0},{"$f":"КАДРЫ!F577","v":0},{"$f":"КАДРЫ!G577","v":0},{"$f":"КАДРЫ!H577","v":0},{"$f":"КАДРЫ!J577","v":0},null,null,null,{"$f":"REPLACE(F577,100,2,ДОЛЖНОСТИ!$B$2:$B$71)","v":{"$error":"#VALUE!"}}]
[577,{"$f":"КАДРЫ!E578","v":0},{"$f":"PROPER(КАДРЫ!B578)","v":""},{"$error":"#VALUE!"},{"$f":"КАДРЫ!C578","v":0},{"$f":"IF(КАДРЫ!I578=\"\",LOWER(КАДРЫ!K578),LOWER(КАДРЫ!I578))","v":""},{"$f":"КАДРЫ!D578","v":0},{"$f":"КАДРЫ!F578","v":0},{"$f":"КАДРЫ!G578","v":0},{"$f":"КАДРЫ!H578","v":0},{"$f":"КАДРЫ!J578","v":0},null,null,null,{"$f":"REPLACE(F578,100,2,ДОЛЖНОСТИ!$B$2:$B$71)","v":{"$error":"#VALUE!"}}]
[578,{"$f":"КАДРЫ!E579","v":0},{"$f":"PROPER(КАДРЫ!B579)","v":""},{"$f":"LEFT(C579,FIND(\" \",C579,1)+1)&\".\"&MID(C579,FIND(\" \",C579,FIND(\" \",C579,1)+1)+1,1)&\".\"","v":{"$error":"#VALUE!"}},{"$f":"КАДРЫ!C579","v":0},{"$f":"IF(КАДРЫ!I579=\"\",LOWER(КАДРЫ!K579),LOWER(КАДРЫ!I579))","v":""},{"$f":"КАДРЫ!D579","v":0},{"$f":"КАДРЫ!F579","v":0},{"$f":"КАДРЫ!G579","v":0},{"$f":"КАДРЫ!H579","v":0},{"$f":"КАДРЫ!J579","v":0},null,null,null,{"$f":"REPLACE(F579,100,2,ДОЛЖНОСТИ!$B$2:$B$71)","v":{"$error":"#VALUE!"}}]
[579,{"$f":"КАДРЫ!E580","v":0},{"$f":"PROPER(КАДРЫ!B580)","v":""},{"$error":"#VALUE!"},{"$f":"КАДРЫ!C580","v":0},{"$f":"IF(КАДРЫ!I580=\"\",LOWER(КАДРЫ!K580),LOWER(КАДРЫ!I580))","v":""},{"$f":"КАДРЫ!D580","v":0},{"$f":"КАДРЫ!F580","v":0},{"$f":"КАДРЫ!G580","v":0},{"$f":"КАДРЫ!H580","v":0},{"$f":"КАДРЫ!J580","v":0},null,null,null,{"$f":"REPLACE(F580,100,2,ДОЛЖНОСТИ!$B$2:$B$71)","v":{"$error":"#VALUE!"}}]
[580,{"$f":"КАДРЫ!E581","v":0},{"$f":"PROPER(КАДРЫ!B581)","v":""},{"$error":"#VALUE!"},{"$f":"КАДРЫ!C581","v":0},{"$f":"IF(КАДРЫ!I581=\"\",LOWER(КАДРЫ!K581),LOWER(КАДРЫ!I581))","v":""},{"$f":"КАДРЫ!D581","v":0},{"$f":"КАДРЫ!F581","v":0},{"$f":"КАДРЫ!G581","v":0},{"$f":"КАДРЫ!H581","v":0},{"$f":"КАДРЫ!J581","v":0},null,null,null,{"$f":"REPLACE(F581,100,2,ДОЛЖНОСТИ!$B$2:$B$71)","v":{"$error":"#VALUE!"}}]
[581,{"$f":"КАДРЫ!E582","v":0},{"$f":"PROPER(КАДРЫ!B582)","v":""},{"$error":"#VALUE!"},{"$f":"КАДРЫ!C582","v":0},{"$f":"IF(КАДРЫ!I582=\"\",LOWER(КАДРЫ!K582),LOWER(КАДРЫ!I582))","v":""},{"$f":"КАДРЫ!D582","v":0},{"$f":"КАДРЫ!F582","v":0},{"$f":"КАДРЫ!G582","v":0},{"$f":"КАДРЫ!H582","v":0},{"$f":"КАДРЫ!J582","v":0},null,null,null,{"$f":"REPLACE(F582,100,2,ДОЛЖНОСТИ!$B$2:$B$71)","v":{"$error":"#VALUE!"}}]
[582,{"$f":"КАДРЫ!E583","v":0},{"$f":"PROPER(КАДРЫ!B583)","v":""},{"$error":"#VALUE!"},{"$f":"КАДРЫ!C583","v":0},{"$f":"IF(КАДРЫ!I583=\"\",LOWER(КАДРЫ!K583),LOWER(КАДРЫ!I583))","v":""},{"$f":"КАДРЫ!D583","v":0},{"$f":"КАДРЫ!F583","v":0},{"$f":"КАДРЫ!G583","v":0},{"$f":"КАДРЫ!H583","v":0},{"$f":"КАДРЫ!J583","v":0},null,null,null,{"$f":"REPLACE(F583,100,2,ДОЛЖНОСТИ!$B$2:$B$71)","v":{"$error":"#VALUE!"}}]
[583,{"$f":"КАДРЫ!E584","v":0},{"$f":"PROPER(КАДРЫ!B584)","v":""},{"$error":"#VALUE!"},{"$f":"КАДРЫ!C584","v":0},{"$f":"IF(КАДРЫ!I584=\"\",LOWER(КАДРЫ!K584),LOWER(КАДРЫ!I584))","v":""},{"$f":"КАДРЫ!D584","v":0},{"$f":"КАДРЫ!F584","v":0},{"$f":"КАДРЫ!G584","v":0},{"$f":"КАДРЫ!H584","v":0},{"$f":"КАДРЫ!J584","v":0},null,null,null,{"$f":"REPLACE(F584,100,2,ДОЛЖНОСТИ!$B$2:$B$71)","v":{"$error":"#VALUE!"}}]
[584,{"$f":"КАДРЫ!E585","v":0},{"$f":"PROPER(КАДРЫ!B585)","v":""},{"$error":"#VALUE!"},{"$f":"КАДРЫ!C585","v":0},{"$f":"IF(КАДРЫ!I585=\"\",LOWER(КАДРЫ!K585),LOWER(КАДРЫ!I585))","v":""},{"$f":"КАДРЫ!D585","v":0},{"$f":"КАДРЫ!F585","v":0},{"$f":"КАДРЫ!G585","v":0},{"$f":"КАДРЫ!H585","v":0},{"$f":"КАДРЫ!J585","v":0},null,null,null,{"$f":"REPLACE(F585,100,2,ДОЛЖНОСТИ!$B$2:$B$71)","v":{"$error":"#VALUE!"}}]
[585,{"$f":"КАДРЫ!E586","v":0},{"$f":"PROPER(КАДРЫ!B586)","v":""},{"$error":"#VALUE!"},{"$f":"КАДРЫ!C586","v":0},{"$f":"IF(КАДРЫ!I586=\"\",LOWER(КАДРЫ!K586),LOWER(КАДРЫ!I586))","v":""},{"$f":"КАДРЫ!D586","v":0},{"$f":"КАДРЫ!F586","v":0},{"$f":"КАДРЫ!G586","v":0},{"$f":"КАДРЫ!H586","v":0},{"$f":"КАДРЫ!J586","v":0},null,null,null,{"$f":"REPLACE(F586,100,2,ДОЛЖНОСТИ!$B$2:$B$71)","v":{"$error":"#VALUE!"}}]
[586,{"$f":"КАДРЫ!E587","v":0},{"$f":"PROPER(КАДРЫ!B587)","v":""},{"$error":"#VALUE!"},{"$f":"КАДРЫ!C587","v":0},{"$f":"IF(КАДРЫ!I587=\"\",LOWER(КАДРЫ!K587),LOWER(КАДРЫ!I587))","v":""},{"$f":"КАДРЫ!D587","v":0},{"$f":"КАДРЫ!F587","v":0},{"$f":"КАДРЫ!G587","v":0},{"$f":"КАДРЫ!H587","v":0},{"$f":"КАДРЫ!J587","v":0},null,null,null,{"$f":"REPLACE(F587,100,2,ДОЛЖНОСТИ!$B$2:$B$71)","v":{"$error":"#VALUE!"}}]
[587,{"$f":"КАДРЫ!E588","v":0},{"$f":"PROPER(КАДРЫ!B588)","v":""},{"$error":"#VALUE!"},{"$f":"КАДРЫ!C588","v":0},{"$f":"IF(КАДРЫ!I588=\"\",LOWER(КАДРЫ!K588),LOWER(КАДРЫ!I588))","v":""},{"$f":"КАДРЫ!D588","v":0},{"$f":"КАДРЫ!F588","v":0},{"$f":"КАДРЫ!G588","v":0},{"$f":"КАДРЫ!H588","v":0},{"$f":"КАДРЫ!J588","v":0},null,null,null,{"$f":"REPLACE(F588,100,2,ДОЛЖНОСТИ!$B$2:$B$71)","v":{"$error":"#VALUE!"}}]
[588,{"$f":"КАДРЫ!E589","v":0},{"$f":"PROPER(КАДРЫ!B589)","v":""},{"$error":"#VALUE!"},{"$f":"КАДРЫ!C589","v":0},{"$f":"IF(КАДРЫ!I589=\"\",LOWER(КАДРЫ!K589),LOWER(КАДРЫ!I589))","v":""},{"$f":"КАДРЫ!D589","v":0},{"$f":"КАДРЫ!F589","v":0},{"$f":"КАДРЫ!G589","v":0},{"$f":"КАДРЫ!H589","v":0},{"$f":"КАДРЫ!J589","v":0},null,null,null,{"$f":"REPLACE(F589,100,2,ДОЛЖНОСТИ!$B$2:$B$71)","v":{"$error":"#VALUE!"}}]
[589,{"$f":"КАДРЫ!E590","v":0},{"$f":"PROPER(КАДРЫ!B590)","v":""},{"$error":"#VALUE!"},{"$f":"КАДРЫ!C590","v":0},{"$f":"IF(КАДРЫ!I590=\"\",LOWER(КАДРЫ!K590),LOWER(КАДРЫ!I590))","v":""},{"$f":"КАДРЫ!D590","v":0},{"$f":"КАДРЫ!F590","v":0},{"$f":"КАДРЫ!G590","v":0},{"$f":"КАДРЫ!H590","v":0},{"$f":"КАДРЫ!J590","v":0},null,null,null,{"$f":"REPLACE(F590,100,2,ДОЛЖНОСТИ!$B$2:$B$71)","v":{"$error":"#VALUE!"}}]
[590,{"$f":"КАДРЫ!E591","v":0},{"$f":"PROPER(КАДРЫ!B591)","v":""},{"$error":"#VALUE!"},{"$f":"КАДРЫ!C591","v":0},{"$f":"IF(КАДРЫ!I591=\"\",LOWER(КАДРЫ!K591),LOWER(КАДРЫ!I591))","v":""},{"$f":"КАДРЫ!D591","v":0},{"$f":"КАДРЫ!F591","v":0},{"$f":"КАДРЫ!G591","v":0},{"$f":"КАДРЫ!H591","v":0},{"$f":"КАДРЫ!J591","v":0},null,null,null,{"$f":"REPLACE(F591,100,2,ДОЛЖНОСТИ!$B$2:$B$71)","v":{"$error":"#VALUE!"}}]
[591,{"$f":"КАДРЫ!E592","v":0},{"$f":"PROPER(КАДРЫ!B592)","v":""},{"$error":"#VALUE!"},{"$f":"КАДРЫ!C592","v":0},{"$f":"IF(КАДРЫ!I592=\"\",LOWER(КАДРЫ!K592),LOWER(КАДРЫ!I592))","v":""},{"$f":"КАДРЫ!D592","v":0},{"$f":"КАДРЫ!F592","v":0},{"$f":"КАДРЫ!G592","v":0},{"$f":"КАДРЫ!H592","v":0},{"$f":"КАДРЫ!J592","v":0},null,null,null,{"$f":"REPLACE(F592,100,2,ДОЛЖНОСТИ!$B$2:$B$71)","v":{"$error":"#VALUE!"}}]
[592,{"$f":"КАДРЫ!E593","v":0},{"$f":"PROPER(КАДРЫ!B593)","v":""},{"$error":"#VALUE!"},{"$f":"КАДРЫ!C593","v":0},{"$f":"IF(КАДРЫ!I593=\"\",LOWER(КАДРЫ!K593),LOWER(КАДРЫ!I593))","v":""},{"$f":"КАДРЫ!D593","v":0},{"$f":"КАДРЫ!F593","v":0},{"$f":"КАДРЫ!G593","v":0},{"$f":"КАДРЫ!H593","v":0},{"$f":"КАДРЫ!J593","v":0},null,null,null,{"$f":"REPLACE(F593,100,2,ДОЛЖНОСТИ!$B$2:$B$71)","v":{"$error":"#VALUE!"}}]
[593,{"$f":"КАДРЫ!E594","v":0},{"$f":"PROPER(КАДРЫ!B594)","v":""},{"$error":"#VALUE!"},{"$f":"КАДРЫ!C594","v":0},{"$f":"IF(КАДРЫ!I594=\"\",LOWER(КАДРЫ!K594),LOWER(КАДРЫ!I594))","v":""},{"$f":"КАДРЫ!D594","v":0},{"$f":"КАДРЫ!F594","v":0},{"$f":"КАДРЫ!G594","v":0},{"$f":"КАДРЫ!H594","v":0},{"$f":"КАДРЫ!J594","v":0},null,null,null,{"$f":"REPLACE(F594,100,2,ДОЛЖНОСТИ!$B$2:$B$71)","v":{"$error":"#VALUE!"}}]
[594,{"$f":"КАДРЫ!E595","v":0},{"$f":"PROPER(КАДРЫ!B595)","v":""},{"$error":"#VALUE!"},{"$f":"КАДРЫ!C595","v":0},{"$f":"IF(КАДРЫ!I595=\"\",LOWER(КАДРЫ!K595),LOWER(КАДРЫ!I595))","v":""},{"$f":"КАДРЫ!D595","v":0},{"$f":"КАДРЫ!F595","v":0},{"$f":"КАДРЫ!G595","v":0},{"$f":"КАДРЫ!H595","v":0},{"$f":"КАДРЫ!J595","v":0},null,null,null,{"$f":"REPLACE(F595,100,2,ДОЛЖНОСТИ!$B$2:$B$71)","v":{"$error":"#VALUE!"}}]
[595,{"$f":"КАДРЫ!E596","v":0},{"$f":"PROPER(КАДРЫ!B596)","v":""},{"$error":"#VALUE!"},{"$f":"КАДРЫ!C596","v":0},{"$f":"IF(КАДРЫ!I596=\"\",LOWER(КАДРЫ!K596),LOWER(КАДРЫ!I596))","v":""},{"$f":"КАДРЫ!D596","v":0},{"$f":"КАДРЫ!F596","v":0},{"$f":"КАДРЫ!G596","v":0},{"$f":"КАДРЫ!H596","v":0},{"$f":"КАДРЫ!J596","v":0},null,null,null,{"$f":"REPLACE(F596,100,2,ДОЛЖНОСТИ!$B$2:$B$71)","v":{"$error":"#VALUE!"}}]
[596,{"$f":"КАДРЫ!E597","v":0},{"$f":"PROPER(КАДРЫ!B597)","v":""},{"$error":"#VALUE!"},{"$f":"КАДРЫ!C597","v":0},{"$f":"IF(КАДРЫ!I597=\"\",LOWER(КАДРЫ!K597),LOWER(КАДРЫ!I597))","v":""},{"$f":"КАДРЫ!D597","v":0},{"$f":"КАДРЫ!F597","v":0},{"$f":"КАДРЫ!G597","v":0},{"$f":"КАДРЫ!H597","v":0},{"$f":"КАДРЫ!J597","v":0},null,null,null,{"$f":"REPLACE(F597,100,2,ДОЛЖНОСТИ!$B$2:$B$71)","v":{"$error":"#VALUE!"}}]
[597,{"$f":"КАДРЫ!E598","v":0},{"$f":"PROPER(КАДРЫ!B598)","v":""},{"$error":"#VALUE!"},{"$f":"КАДРЫ!C598","v":0},{"$f":"IF(КАДРЫ!I598=\"\",LOWER(КАДРЫ!K598),LOWER(КАДРЫ!I598))","v":""},{"$f":"КАДРЫ!D598","v":0},{"$f":"КАДРЫ!F598","v":0},{"$f":"КАДРЫ!G598","v":0},{"$f":"КАДРЫ!H598","v":0},{"$f":"КАДРЫ!J598","v":0},null,null,null,{"$f":"REPLACE(F598,100,2,ДОЛЖНОСТИ!$B$2:$B$71)","v":{"$error":"#VALUE!"}}]
[598,{"$f":"КАДРЫ!E599","v":0},{"$f":"PROPER(КАДРЫ!B599)","v":""},{"$error":"#VALUE!"},{"$f":"КАДРЫ!C599","v":0},{"$f":"IF(КАДРЫ!I599=\"\",LOWER(КАДРЫ!K599),LOWER(КАДРЫ!I599))","v":""},{"$f":"КАДРЫ!D599","v":0},{"$f":"КАДРЫ!F599","v":0},{"$f":"КАДРЫ!G599","v":0},{"$f":"КАДРЫ!H599","v":0},{"$f":"КАДРЫ!J599","v":0},null,null,null,{"$f":"REPLACE(F599,100,2,ДОЛЖНОСТИ!$B$2:$B$71)","v":{"$error":"#VALUE!"}}]
[599,{"$f":"КАДРЫ!E600","v":0},{"$f":"PROPER(КАДРЫ!B600)","v":""},{"$error":"#VALUE!"},{"$f":"КАДРЫ!C600","v":0},{"$f":"IF(КАДРЫ!I600=\"\",LOWER(КАДРЫ!K600),LOWER(КАДРЫ!I600))","v":""},{"$f":"КАДРЫ!D600","v":0},{"$f":"КАДРЫ!F600","v":0},{"$f":"КАДРЫ!G600","v":0},{"$f":"КАДРЫ!H600","v":0},{"$f":"КАДРЫ!J600","v":0},null,null,null,{"$f":"REPLACE(F600,100,2,ДОЛЖНОСТИ!$B$2:$B$71)","v":{"$error":"#VALUE!"}}]

{"sheet":"ДОЛЖНОСТИ","index":2,"n_rows":70,"n_cols":2,"rows_kept":70,"cut":false,"hidden":false,"merged":[]}
[]
[1,"боцман"]
[2,"второй механик"]
[3,"второй помощник капитана"]
[4,"второй электромеханик"]
[5,"диспетчер по транспорту"]
[6,"дневальный"]
[7,"докмейстер"]
[8,"заведующий хозяйством"]
[9,"заместитель начальника транспортного производства - начальник цеха"]
[10,"заместитель начальника цеха - капитанобъединения"]
[11,"заместитель начальника цеха по подготовке производства"]
[12,"инженер по подготовке производства"]
[13,"капитан"]
[14,"капитан-руководительучастка"]
[15,"капитан-сменныймеханик"]
[16,"капитан-кранмейстер"]
[17,"кладовщик"]
[18,"мастер по ремонту и обслуживанию оборудования"]
[19,"мастер погрузо-разгрузочных работ"]
[20,"мастер такелажно-судовых работ"]
[21,"матрос 1 класса"]
[22,"машинист крана (крановщик)"]
[23,"механик-сменныйкапитан"]
[24,"механик (групповой)"]
[25,"механик-энергетик"]
[26,"монтажник санитарно - технических систем и оборудования"]
[27,"моторист (машинист)"]
[28,"моторист-матрос"]
[29,"моторист-рулевой"]
[30,"начальник дока (докмейстер)"]
[31,"начальник службы"]
[32,"начальник службы судового хозяйства"]
[33,"оператор электронно-вычислительных машин"]
[34,"поварс удовой 1 категории"]
[35,"повар судовой 2 категории"]
[36,"проводник на водном транспорте"]
[37,"слесарь-ремонтник"]
[38,"сменный капитан-сменный механик"]
[39,"сменный капитан-диспетчер"]
[40,"сменный механик"]
[41,"сменный помощник капитана"]
[42,"сменный помощник капитана-кранмейстер"]
[43,"сменный помощник капитана-сменный кранмейстер"]
[44,"сменный электромеханик"]
[45,"специалист по охране труда"]
[46,"старший кладовщик"]
[47,"старший мастер-руководитель участката келажных работ"]
[48,"старший мастер погрузочно-разгрузочных работ"]
[49,"старший матрос"]
[50,"старший механик"]
[51,"старший помощник капитана"]
[52,"старший помощник капитана-сменный кранмейстер"]
[53,"старший помощник начальника дока (докмейстер)"]
[54,"старший проводник на водном транспорте"]
[55,"старший электрик судовой"]
[56,"старший электромеханик"]
[57,"такелажник"]
[58,"такелажник судовой"]
[59,"третий механик"]
[60,"третий помощник капитана"]
[61,"третий электромеханик"]
[62,"уборщик производственных помещений"]
[63,"уборщик служебных помещений"]
[64,"уборщик территорий (улиц)"]
[65,"четвертый механик"]
[66,"электрик судовой"]
[67,"электрогазосварщик"]
[68,"электромеханик"]
[69,"электромонтер по ремонту и обслуживанию электрооборудования"]